Workbook

Sheet home

Sheet الرئيسية
AA3: رقم الفاتورة | AB3: =LOOKUP(9.99E+307,المبيعات!$A$2:$A$99980,المبيعات!$A$2:$A$99980)+1 -> 16 | AJ3: رقم الفاتورة | AK3: =LOOKUP(9.99E+307,المشتريات!$A$2:$A$99968,المشتريات!$A$2:$A$99968)+1 -> 8
A4: Prod. Update | B4: FALSE
A5: Prod Row (Name) | B5: =IFERROR(MATCH(E5,Prod_Name,0)+3,"") ->  | D5: إختار الصنف | E5: لاب توب | G5: كود الصنف | H5: =VLOOKUP($E$5,Table2[[إسم الصنف]:[كود الصنف]],2,0) -> 7 | J5: إسم الصنف | K5: =E5 -> لاب توب | O5: إختار الإسم | P5: شركة الاخلاص | R5: الكود | S5: =VLOOKUP($P$5,Table28[[الإسم]:[الكود]],2,0) -> 1117 | U5: الإسم | W5: =P5 -> شركة الاخلاص | AA5: التاريخ | AD5: نوع الفاتورة | AE5: مرتجع مبيعات | AJ5: التاريخ | AM5: نوع الفاتورة | AN5: مشتريات | AS5: أدخل رقم السند | AT5: 16 | AV5: التاريخ
A6: Prod Row (ID) | B6: =IFERROR(MATCH(H5,Prod_ID,0)+3,"") -> 
A7: Next Prod ID | B7: =IFERROR(MAX(Prod_ID)+1,1) -> 6 | D7: إسم الصنف | G7: نوع الصنف | J7: رصيد الصنف | O7: الإسم | P7: شركة الاخلاص | R7: النوع | S7: مورد | U7: الأرصدة المدينة | W7: الأرصدة الدائنة | AA7: الإسم | AD7: رقم التواصل | AE7: =IF($AB$7="","",VLOOKUP($AB$7,Table36[[الإسم]:[الرصيد المتبقي]],4,0)) ->  | AJ7: الإسم | AM7: رقم التواصل | AN7: =IF($AK$7="","",VLOOKUP($AK$7,Table368[[الإسم]:[الرصيد المتبقي]],4,0)) ->  | AS7: جهة الصرف | AV7: نوع السند
D9: سعر الشراء | G9: سعر البيع | J9: =IFERROR(VLOOKUP($E$5,Table2[[إسم الصنف]:[الرصيد]],11,0),"") -> 13 | O9: إسم المسؤول | P9: محمد السيد محمود | R9: رقم التواصل | S9: 1588888 | U9: =VLOOKUP($P$5,#REF!,8,0) ->  | W9: =VLOOKUP($P$5,#REF!,9,0) ->  | AA9: الكود | AB9: =IF($AB$7="","",VLOOKUP($AB$7,Table36[[الإسم]:[الرصيد المتبقي]],2,0)) ->  | AD9: الخصم | AE9: =$AE$39 -> 0 | AJ9: الكود | AK9: =IF($AK$7="","",VLOOKUP($AK$7,Table368[[الإسم]:[الرصيد المتبقي]],2,0)) ->  | AM9: الخصم | AN9: =$AN$39 -> 1500 | AS9: عميل / مورد | AV9: طريقة التحصيل / الدفع
D11: المورد | G11: رصيد إفتتاحي | J11: الكميات الواردة | K11: =IFERROR(VLOOKUP($E$5,Table2[[إسم الصنف]:[الرصيد]],9,0),"") -> 11 | L11: C:\Users\Public\Pictures\Sample Pictures\Penguins.jpg | O11: الميل | P11: اي حاجه | U11: الرصيد المتبقي | AA11: الرصيد المتبقى | AB11: =IF($AB$7="","",VLOOKUP($AB$7,Table36[[الإسم]:[الرصيد المتبقي]],9,0)) ->  | AD11: ضريبة المبيعات | AE11: =$AE$35 -> 0 | AJ11: الرصيد المتبقى | AK11: =IF($AK$7="","",VLOOKUP($AK$7,Table368[[الإسم]:[الرصيد المتبقي]],9,0)) ->  | AM11: ضريبة المشتريات | AN11: =$AN$35 -> 0 | AS11: المبلغ | AV11: تاريخ الاستحقاق
D13: فرق الربح | E13: =$H$9-$E$9 -> 0 | G13: الوحدة | J13: الكميات الصادرة | K13: =IFERROR(VLOOKUP($E$5,Table2[[إسم الصنف]:[الرصيد]],10,0),"") -> 13 | O13: العنوان | P13: اي حاجة | U13: =VLOOKUP($P$5,#REF!,10,0) ->  | AA13: الرصيد الجديد | AB13: =IFERROR(IF($AE$5="مرتجع مبيعات",$AB$11-$AE$11-$AE$13+$AE$9,$AB$11+$AE$11+$AE$13-$AE$9),"") ->  | AD13: إجمالي الفاتورة | AE13: =$AE$33 -> 0 | AJ13: الرصيد الجديد | AK13: =IFERROR(IF($AN$5="مرتجع مشتريات",$AK$11-$AN$11-$AN$13+$AN$9,$AK$11+$AN$11+$AN$13-$AN$9),"") ->  | AM13: إجمالي الفاتورة | AN13: =$AN$33 -> 0 | AS13: البيان
Y15: الكمية المتاحة | AA15: اسم الصنف | AB15: الكمية | AC15: الوحدة | AD15: سعر البيع | AE15: الإجمالي | AF15: سعر البيع الافتراضي | AH15: الكمية المتاحة | AJ15: اسم الصنف | AK15: الكمية | AL15: الوحدة | AM15: سعر الشراء | AN15: الإجمالي | AO15: سعر البيع الافتراضي | AS15: المستلم | AV15: التوقيع
Y16: =IF(Table3[[#This Row],[اسم الصنف]]="","",VLOOKUP(Table3[[#This Row],[اسم الصنف]],Table2[[إسم الصنف]:[الرصيد]],11,0)) ->  | Z16: 1 | AE16: =IF(Table3[[#This Row],[اسم الصنف]]="","",Table3[[#This Row],[الكمية]]*Table3[[#This Row],[سعر البيع]]) ->  | AF16: =IF(Table3[[#This Row],[اسم الصنف]]="","",VLOOKUP(Table3[[#This Row],[اسم الصنف]],Table2[[إسم الصنف]:[الرصيد]],5,0)) ->  | AH16: =IF(Table35[[#This Row],[اسم الصنف]]="","",VLOOKUP(Table35[[#This Row],[اسم الصنف]],Table2[[إسم الصنف]:[الرصيد]],11,0)) ->  | AI16: 1 | AN16: =IF(AK16="","",AK16*AM16) ->  | AO16: =IF(Table35[[#This Row],[اسم الصنف]]="","",VLOOKUP(Table35[[#This Row],[اسم الصنف]],Table2[[إسم الصنف]:[الرصيد]],4,0)) -> 
Y17: =IF(Table3[[#This Row],[اسم الصنف]]="","",VLOOKUP(Table3[[#This Row],[اسم الصنف]],Table2[[إسم الصنف]:[الرصيد]],11,0)) ->  | Z17: 2 | AE17: =IF(Table3[[#This Row],[اسم الصنف]]="","",Table3[[#This Row],[الكمية]]*Table3[[#This Row],[سعر البيع]]) ->  | AF17: =IF(Table3[[#This Row],[اسم الصنف]]="","",VLOOKUP(Table3[[#This Row],[اسم الصنف]],Table2[[إسم الصنف]:[الرصيد]],5,0)) ->  | AH17: =IF(Table35[[#This Row],[اسم الصنف]]="","",VLOOKUP(Table35[[#This Row],[اسم الصنف]],Table2[[إسم الصنف]:[الرصيد]],11,0)) ->  | AI17: 2 | AN17: =IF(AK17="","",AK17*AM17) ->  | AO17: =IF(Table35[[#This Row],[اسم الصنف]]="","",VLOOKUP(Table35[[#This Row],[اسم الصنف]],Table2[[إسم الصنف]:[الرصيد]],4,0)) -> 
Y18: =IF(Table3[[#This Row],[اسم الصنف]]="","",VLOOKUP(Table3[[#This Row],[اسم الصنف]],Table2[[إسم الصنف]:[الرصيد]],11,0)) ->  | Z18: 3 | AE18: =IF(Table3[[#This Row],[اسم الصنف]]="","",Table3[[#This Row],[الكمية]]*Table3[[#This Row],[سعر البيع]]) ->  | AF18: =IF(Table3[[#This Row],[اسم الصنف]]="","",VLOOKUP(Table3[[#This Row],[اسم الصنف]],Table2[[إسم الصنف]:[الرصيد]],5,0)) ->  | AH18: =IF(Table35[[#This Row],[اسم الصنف]]="","",VLOOKUP(Table35[[#This Row],[اسم الصنف]],Table2[[إسم الصنف]:[الرصيد]],11,0)) ->  | AI18: 3 | AN18: =IF(AK18="","",AK18*AM18) ->  | AO18: =IF(Table35[[#This Row],[اسم الصنف]]="","",VLOOKUP(Table35[[#This Row],[اسم الصنف]],Table2[[إسم الصنف]:[الرصيد]],4,0)) -> 
Y19: =IF(Table3[[#This Row],[اسم الصنف]]="","",VLOOKUP(Table3[[#This Row],[اسم الصنف]],Table2[[إسم الصنف]:[الرصيد]],11,0)) ->  | Z19: 4 | AE19: =IF(Table3[[#This Row],[اسم الصنف]]="","",Table3[[#This Row],[الكمية]]*Table3[[#This Row],[سعر البيع]]) ->  | AF19: =IF(Table3[[#This Row],[اسم الصنف]]="","",VLOOKUP(Table3[[#This Row],[اسم الصنف]],Table2[[إسم الصنف]:[الرصيد]],5,0)) ->  | AH19: =IF(Table35[[#This Row],[اسم الصنف]]="","",VLOOKUP(Table35[[#This Row],[اسم الصنف]],Table2[[إسم الصنف]:[الرصيد]],11,0)) ->  | AI19: 4 | AN19: =IF(AK19="","",AK19*AM19) ->  | AO19: =IF(Table35[[#This Row],[اسم الصنف]]="","",VLOOKUP(Table35[[#This Row],[اسم الصنف]],Table2[[إسم الصنف]:[الرصيد]],4,0)) -> 
Y20: =IF(Table3[[#This Row],[اسم الصنف]]="","",VLOOKUP(Table3[[#This Row],[اسم الصنف]],Table2[[إسم الصنف]:[الرصيد]],11,0)) ->  | Z20: 5 | AE20: =IF(Table3[[#This Row],[اسم الصنف]]="","",Table3[[#This Row],[الكمية]]*Table3[[#This Row],[سعر البيع]]) ->  | AF20: =IF(Table3[[#This Row],[اسم الصنف]]="","",VLOOKUP(Table3[[#This Row],[اسم الصنف]],Table2[[إسم الصنف]:[الرصيد]],5,0)) ->  | AH20: =IF(Table35[[#This Row],[اسم الصنف]]="","",VLOOKUP(Table35[[#This Row],[اسم الصنف]],Table2[[إسم الصنف]:[الرصيد]],11,0)) ->  | AI20: 5 | AO20: =IF(Table35[[#This Row],[اسم الصنف]]="","",VLOOKUP(Table35[[#This Row],[اسم الصنف]],Table2[[إسم الصنف]:[الرصيد]],4,0)) -> 
Y21: =IF(Table3[[#This Row],[اسم الصنف]]="","",VLOOKUP(Table3[[#This Row],[اسم الصنف]],Table2[[إسم الصنف]:[الرصيد]],11,0)) ->  | Z21: 6 | AE21: =IF(Table3[[#This Row],[اسم الصنف]]="","",Table3[[#This Row],[الكمية]]*Table3[[#This Row],[سعر البيع]]) ->  | AF21: =IF(Table3[[#This Row],[اسم الصنف]]="","",VLOOKUP(Table3[[#This Row],[اسم الصنف]],Table2[[إسم الصنف]:[الرصيد]],5,0)) ->  | AH21: =IF(Table35[[#This Row],[اسم الصنف]]="","",VLOOKUP(Table35[[#This Row],[اسم الصنف]],Table2[[إسم الصنف]:[الرصيد]],11,0)) ->  | AI21: 6 | AO21: =IF(Table35[[#This Row],[اسم الصنف]]="","",VLOOKUP(Table35[[#This Row],[اسم الصنف]],Table2[[إسم الصنف]:[الرصيد]],4,0)) -> 
Y22: =IF(Table3[[#This Row],[اسم الصنف]]="","",VLOOKUP(Table3[[#This Row],[اسم الصنف]],Table2[[إسم الصنف]:[الرصيد]],11,0)) ->  | Z22: 7 | AE22: =IF(Table3[[#This Row],[اسم الصنف]]="","",Table3[[#This Row],[الكمية]]*Table3[[#This Row],[سعر البيع]]) ->  | AF22: =IF(Table3[[#This Row],[اسم الصنف]]="","",VLOOKUP(Table3[[#This Row],[اسم الصنف]],Table2[[إسم الصنف]:[الرصيد]],5,0)) ->  | AH22: =IF(Table35[[#This Row],[اسم الصنف]]="","",VLOOKUP(Table35[[#This Row],[اسم الصنف]],Table2[[إسم الصنف]:[الرصيد]],11,0)) ->  | AI22: 7 | AO22: =IF(Table35[[#This Row],[اسم الصنف]]="","",VLOOKUP(Table35[[#This Row],[اسم الصنف]],Table2[[إسم الصنف]:[الرصيد]],4,0)) -> 
Y23: =IF(Table3[[#This Row],[اسم الصنف]]="","",VLOOKUP(Table3[[#This Row],[اسم الصنف]],Table2[[إسم الصنف]:[الرصيد]],11,0)) ->  | Z23: 8 | AE23: =IF(Table3[[#This Row],[اسم الصنف]]="","",Table3[[#This Row],[الكمية]]*Table3[[#This Row],[سعر البيع]]) ->  | AF23: =IF(Table3[[#This Row],[اسم الصنف]]="","",VLOOKUP(Table3[[#This Row],[اسم الصنف]],Table2[[إسم الصنف]:[الرصيد]],5,0)) ->  | AH23: =IF(Table35[[#This Row],[اسم الصنف]]="","",VLOOKUP(Table35[[#This Row],[اسم الصنف]],Table2[[إسم الصنف]:[الرصيد]],11,0)) ->  | AI23: 8 | AO23: =IF(Table35[[#This Row],[اسم الصنف]]="","",VLOOKUP(Table35[[#This Row],[اسم الصنف]],Table2[[إسم الصنف]:[الرصيد]],4,0)) -> 
Y24: =IF(Table3[[#This Row],[اسم الصنف]]="","",VLOOKUP(Table3[[#This Row],[اسم الصنف]],Table2[[إسم الصنف]:[الرصيد]],11,0)) ->  | Z24: 9 | AE24: =IF(Table3[[#This Row],[اسم الصنف]]="","",Table3[[#This Row],[الكمية]]*Table3[[#This Row],[سعر البيع]]) ->  | AF24: =IF(Table3[[#This Row],[اسم الصنف]]="","",VLOOKUP(Table3[[#This Row],[اسم الصنف]],Table2[[إسم الصنف]:[الرصيد]],5,0)) ->  | AH24: =IF(Table35[[#This Row],[اسم الصنف]]="","",VLOOKUP(Table35[[#This Row],[اسم الصنف]],Table2[[إسم الصنف]:[الرصيد]],11,0)) ->  | AI24: 9 | AO24: =IF(Table35[[#This Row],[اسم الصنف]]="","",VLOOKUP(Table35[[#This Row],[اسم الصنف]],Table2[[إسم الصنف]:[الرصيد]],4,0)) -> 
Y25: =IF(Table3[[#This Row],[اسم الصنف]]="","",VLOOKUP(Table3[[#This Row],[اسم الصنف]],Table2[[إسم الصنف]:[الرصيد]],11,0)) ->  | Z25: 10 | AE25: =IF(Table3[[#This Row],[اسم الصنف]]="","",Table3[[#This Row],[الكمية]]*Table3[[#This Row],[سعر البيع]]) ->  | AF25: =IF(Table3[[#This Row],[اسم الصنف]]="","",VLOOKUP(Table3[[#This Row],[اسم الصنف]],Table2[[إسم الصنف]:[الرصيد]],5,0)) ->  | AH25: =IF(Table35[[#This Row],[اسم الصنف]]="","",VLOOKUP(Table35[[#This Row],[اسم الصنف]],Table2[[إسم الصنف]:[الرصيد]],11,0)) ->  | AI25: 10 | AO25: =IF(Table35[[#This Row],[اسم الصنف]]="","",VLOOKUP(Table35[[#This Row],[اسم الصنف]],Table2[[إسم الصنف]:[الرصيد]],4,0)) -> 
Y26: =IF(Table3[[#This Row],[اسم الصنف]]="","",VLOOKUP(Table3[[#This Row],[اسم الصنف]],Table2[[إسم الصنف]:[الرصيد]],11,0)) ->  | Z26: 11 | AE26: =IF(Table3[[#This Row],[اسم الصنف]]="","",Table3[[#This Row],[الكمية]]*Table3[[#This Row],[سعر البيع]]) ->  | AF26: =IF(Table3[[#This Row],[اسم الصنف]]="","",VLOOKUP(Table3[[#This Row],[اسم الصنف]],Table2[[إسم الصنف]:[الرصيد]],5,0)) ->  | AH26: =IF(Table35[[#This Row],[اسم الصنف]]="","",VLOOKUP(Table35[[#This Row],[اسم الصنف]],Table2[[إسم الصنف]:[الرصيد]],11,0)) ->  | AI26: 11 | AO26: =IF(Table35[[#This Row],[اسم الصنف]]="","",VLOOKUP(Table35[[#This Row],[اسم الصنف]],Table2[[إسم الصنف]:[الرصيد]],4,0)) -> 
Y27: =IF(Table3[[#This Row],[اسم الصنف]]="","",VLOOKUP(Table3[[#This Row],[اسم الصنف]],Table2[[إسم الصنف]:[الرصيد]],11,0)) ->  | Z27: 12 | AE27: =IF(Table3[[#This Row],[اسم الصنف]]="","",Table3[[#This Row],[الكمية]]*Table3[[#This Row],[سعر البيع]]) ->  | AF27: =IF(Table3[[#This Row],[اسم الصنف]]="","",VLOOKUP(Table3[[#This Row],[اسم الصنف]],Table2[[إسم الصنف]:[الرصيد]],5,0)) ->  | AH27: =IF(Table35[[#This Row],[اسم الصنف]]="","",VLOOKUP(Table35[[#This Row],[اسم الصنف]],Table2[[إسم الصنف]:[الرصيد]],11,0)) ->  | AI27: 12 | AO27: =IF(Table35[[#This Row],[اسم الصنف]]="","",VLOOKUP(Table35[[#This Row],[اسم الصنف]],Table2[[إسم الصنف]:[الرصيد]],4,0)) -> 
Y28: =IF(Table3[[#This Row],[اسم الصنف]]="","",VLOOKUP(Table3[[#This Row],[اسم الصنف]],Table2[[إسم الصنف]:[الرصيد]],11,0)) ->  | Z28: 13 | AE28: =IF(Table3[[#This Row],[اسم الصنف]]="","",Table3[[#This Row],[الكمية]]*Table3[[#This Row],[سعر البيع]]) ->  | AF28: =IF(Table3[[#This Row],[اسم الصنف]]="","",VLOOKUP(Table3[[#This Row],[اسم الصنف]],Table2[[إسم الصنف]:[الرصيد]],5,0)) ->  | AH28: =IF(Table35[[#This Row],[اسم الصنف]]="","",VLOOKUP(Table35[[#This Row],[اسم الصنف]],Table2[[إسم الصنف]:[الرصيد]],11,0)) ->  | AI28: 13 | AO28: =IF(Table35[[#This Row],[اسم الصنف]]="","",VLOOKUP(Table35[[#This Row],[اسم الصنف]],Table2[[إسم الصنف]:[الرصيد]],4,0)) -> 
Y29: =IF(Table3[[#This Row],[اسم الصنف]]="","",VLOOKUP(Table3[[#This Row],[اسم الصنف]],Table2[[إسم الصنف]:[الرصيد]],11,0)) ->  | Z29: 14 | AE29: =IF(Table3[[#This Row],[اسم الصنف]]="","",Table3[[#This Row],[الكمية]]*Table3[[#This Row],[سعر البيع]]) ->  | AF29: =IF(Table3[[#This Row],[اسم الصنف]]="","",VLOOKUP(Table3[[#This Row],[اسم الصنف]],Table2[[إسم الصنف]:[الرصيد]],5,0)) ->  | AH29: =IF(Table35[[#This Row],[اسم الصنف]]="","",VLOOKUP(Table35[[#This Row],[اسم الصنف]],Table2[[إسم الصنف]:[الرصيد]],11,0)) ->  | AI29: 14 | AO29: =IF(Table35[[#This Row],[اسم الصنف]]="","",VLOOKUP(Table35[[#This Row],[اسم الصنف]],Table2[[إسم الصنف]:[الرصيد]],4,0)) -> 
Y30: =IF(Table3[[#This Row],[اسم الصنف]]="","",VLOOKUP(Table3[[#This Row],[اسم الصنف]],Table2[[إسم الصنف]:[الرصيد]],11,0)) ->  | Z30: 15 | AE30: =IF(Table3[[#This Row],[اسم الصنف]]="","",Table3[[#This Row],[الكمية]]*Table3[[#This Row],[سعر البيع]]) ->  | AF30: =IF(Table3[[#This Row],[اسم الصنف]]="","",VLOOKUP(Table3[[#This Row],[اسم الصنف]],Table2[[إسم الصنف]:[الرصيد]],5,0)) ->  | AH30: =IF(Table35[[#This Row],[اسم الصنف]]="","",VLOOKUP(Table35[[#This Row],[اسم الصنف]],Table2[[إسم الصنف]:[الرصيد]],11,0)) ->  | AI30: 15 | AO30: =IF(Table35[[#This Row],[اسم الصنف]]="","",VLOOKUP(Table35[[#This Row],[اسم الصنف]],Table2[[إسم الصنف]:[الرصيد]],4,0)) -> 
AD33: الاجمالي | AE33: =SUM(Table3[الإجمالي]) -> 0 | AM33: الإجمالي | AN33: =SUM(Table35[الإجمالي]) -> 0
AC35: 0.14 | AD35: ضريبة المبيعات | AE35: =$AE$33*$AC$35 -> 0 | AL35: 0.14 | AM35: ضريبة المشتريات | AN35: =$AN$33*$AL$35 -> 0
AD37: المبلغ شامل الضريبة | AE37: =$AE$33+$AE$35 -> 0 | AM37: المبلغ شامل الضريبة | AN37: =$AN$33+$AN$35 -> 0
AD39: الخصم | AM39: الخصم | AN39: 1500
AD41: المبلغ النهائي | AE41: =$AE$37-$AE$39 -> 0 | AM41: المبلغ النهائي | AN41: =$AN$37-$AN$39 -> -1500

Sheet الأصناف
B1: قائمة الأصناف | O1: الاسم | P1: الصف
B2: إسم الصنف | C2: كود الصنف | D2: نوع الصنف | E2: سعر الشراء | F2: سعر البيع | G2: المورد | H2: رصيد افتتاحي | I2: الوحدة | J2: الوارد | K2: الصادر | L2: الرصيد | M2: حسب الشراء | N2: حسب البيع | O2: لاب توب | P2: =MATCH(O2,B:B,0) -> 9
A3: عدد الأصناف | B3: موز | C3: =IF(B3="","",ROW(C3)-ROW($C$2)) -> 1 | D3: فاكهه | E3: 15 | F3: 20 | G3: ملك | H3: 1500 | I3: كيلو | J3: =SUMIF(Table8[اسم الصنف],Table2[[#This Row],[إسم الصنف]],Table8[الكمية]) -> 110 | K3: =SUMIF(Table4[اسم الصنف],Table2[[#This Row],[إسم الصنف]],Table4[الكمية]) -> 110 | L3: =Table2[[#This Row],[رصيد افتتاحي]]+Table2[[#This Row],[الوارد]]-Table2[[#This Row],[الصادر]] -> 1500 | M3: =Table2[[#This Row],[الرصيد]]*Table2[[#This Row],[سعر الشراء]] -> 22500 | N3: =Table2[[#This Row],[الرصيد]]*Table2[[#This Row],[سعر البيع]] -> 30000
A4: =COUNTA(Table2[إسم الصنف]) -> 8 | B4: تفاح | C4: 2 | D4: فاكهه | E4: 6 | F4: 10 | G4: سارة | H4: 430 | I4: كيلو | J4: =SUMIF(Table8[اسم الصنف],Table2[[#This Row],[إسم الصنف]],Table8[الكمية]) -> 216 | K4: =SUMIF(Table4[اسم الصنف],Table2[[#This Row],[إسم الصنف]],Table4[الكمية]) -> 44 | L4: =Table2[[#This Row],[رصيد افتتاحي]]+Table2[[#This Row],[الوارد]]-Table2[[#This Row],[الصادر]] -> 602 | M4: =Table2[[#This Row],[الرصيد]]*Table2[[#This Row],[سعر الشراء]] -> 3612 | N4: =Table2[[#This Row],[الرصيد]]*Table2[[#This Row],[سعر البيع]] -> 6020
B5: مانجو | C5: 3 | D5: فاكهه | E5: 12 | F5: 14 | G5: سارة | H5: 250 | I5: كيلو | J5: =SUMIF(Table8[اسم الصنف],Table2[[#This Row],[إسم الصنف]],Table8[الكمية]) -> 700 | K5: =SUMIF(Table4[اسم الصنف],Table2[[#This Row],[إسم الصنف]],Table4[الكمية]) -> 252 | L5: =Table2[[#This Row],[رصيد افتتاحي]]+Table2[[#This Row],[الوارد]]-Table2[[#This Row],[الصادر]] -> 698 | M5: =Table2[[#This Row],[الرصيد]]*Table2[[#This Row],[سعر الشراء]] -> 8376 | N5: =Table2[[#This Row],[الرصيد]]*Table2[[#This Row],[سعر البيع]] -> 9772
A6: حسب الشراء | B6: يوسفي | C6: =IF(B6="","",ROW(C6)-ROW($C$2)) -> 4 | D6: فاكهه | E6: 5 | F6: 8 | G6: سارة | H6: 251 | I6: كيلو | J6: =SUMIF(Table8[اسم الصنف],Table2[[#This Row],[إسم الصنف]],Table8[الكمية]) -> 0 | K6: =SUMIF(Table4[اسم الصنف],Table2[[#This Row],[إسم الصنف]],Table4[الكمية]) -> 1 | L6: =Table2[[#This Row],[رصيد افتتاحي]]+Table2[[#This Row],[الوارد]]-Table2[[#This Row],[الصادر]] -> 250 | M6: =Table2[[#This Row],[الرصيد]]*Table2[[#This Row],[سعر الشراء]] -> 1250 | N6: =Table2[[#This Row],[الرصيد]]*Table2[[#This Row],[سعر البيع]] -> 2000
A7: =SUM(Table2[حسب الشراء]) -> 129018 | B7: اناناس | C7: =IF(B7="","",ROW(C7)-ROW($C$2)) -> 5 | D7: فاكهة | E7: 4 | F7: 8 | G7: ملك | H7: 150 | I7: كيلو | J7: =SUMIF(Table8[اسم الصنف],Table2[[#This Row],[إسم الصنف]],Table8[الكمية]) -> 0 | K7: =SUMIF(Table4[اسم الصنف],Table2[[#This Row],[إسم الصنف]],Table4[الكمية]) -> 80 | L7: =Table2[[#This Row],[رصيد افتتاحي]]+Table2[[#This Row],[الوارد]]-Table2[[#This Row],[الصادر]] -> 70 | M7: =Table2[[#This Row],[الرصيد]]*Table2[[#This Row],[سعر الشراء]] -> 280 | N7: =Table2[[#This Row],[الرصيد]]*Table2[[#This Row],[سعر البيع]] -> 560
B8: برتقال | C8: =IF(B8="","",ROW(C8)-ROW($C$2)) -> 6 | D8: فاكهه | E8: 5 | F8: 9 | G8: عمر | H8: 150 | I8: كيلو | J8: =SUMIF(Table8[اسم الصنف],Table2[[#This Row],[إسم الصنف]],Table8[الكمية]) -> 0 | K8: =SUMIF(Table4[اسم الصنف],Table2[[#This Row],[إسم الصنف]],Table4[الكمية]) -> 0 | L8: =Table2[[#This Row],[رصيد افتتاحي]]+Table2[[#This Row],[الوارد]]-Table2[[#This Row],[الصادر]] -> 150 | M8: =Table2[[#This Row],[الرصيد]]*Table2[[#This Row],[سعر الشراء]] -> 750 | N8: =Table2[[#This Row],[الرصيد]]*Table2[[#This Row],[سعر البيع]] -> 1350
A9: حسب البيع | B9: لاب توب | C9: =IF(B9="","",ROW(C9)-ROW($C$2)) -> 7 | D9: اجهزة | E9: 4500 | F9: 6000 | G9: ملك | H9: 15 | I9: قطعة | J9: =SUMIF(Table8[اسم الصنف],Table2[[#This Row],[إسم الصنف]],Table8[الكمية]) -> 11 | K9: =SUMIF(Table4[اسم الصنف],Table2[[#This Row],[إسم الصنف]],Table4[الكمية]) -> 13 | L9: =Table2[[#This Row],[رصيد افتتاحي]]+Table2[[#This Row],[الوارد]]-Table2[[#This Row],[الصادر]] -> 13 | M9: =Table2[[#This Row],[الرصيد]]*Table2[[#This Row],[سعر الشراء]] -> 58500 | N9: =Table2[[#This Row],[الرصيد]]*Table2[[#This Row],[سعر البيع]] -> 78000
A10: =SUM(Table2[حسب البيع]) -> 162202 | B10: موبايل | C10: =IF(B10="","",ROW(C10)-ROW($C$2)) -> 8 | D10: اجهزة | E10: 2250 | F10: 2300 | G10: سهيله | H10: 15 | I10: قطعة | J10: =SUMIF(Table8[اسم الصنف],Table2[[#This Row],[إسم الصنف]],Table8[الكمية]) -> 0 | K10: =SUMIF(Table4[اسم الصنف],Table2[[#This Row],[إسم الصنف]],Table4[الكمية]) -> 0 | L10: =Table2[[#This Row],[رصيد افتتاحي]]+Table2[[#This Row],[الوارد]]-Table2[[#This Row],[الصادر]] -> 15 | M10: =Table2[[#This Row],[الرصيد]]*Table2[[#This Row],[سعر الشراء]] -> 33750 | N10: =Table2[[#This Row],[الرصيد]]*Table2[[#This Row],[سعر البيع]] -> 34500

Sheet الصندوق
B1: م | C1: التاريخ | D1: عميل / مورد | E1: المبلغ | F1: جهة الصرف | G1: نوع السند | H1: طريقة التحصيل | I1: تاريخ الاستحقاق | J1: البيان | L1: سند قبض | M1: سند صرف | O1: الرقم | P1: الصف
A2: اجمالي القبض | B2: =IF(C2="","",ROW(B2)-ROW($B$1)) -> 1 | C2: 2021-01-01 | D2: لايمسح | E2: 10000 | G2: سند قبض | H2: نقدي | I2: هذا الصف لايمسح | J2: رصيد افتتاحي | O2: 16 | P2: =MATCH(O2,B:B,0) -> 17 | R2: عبدالله
A3: =SUMIF(table30[نوع السند],$L$1,table30[المبلغ]) -> 16574.6 | B3: =IF(C3="","",ROW(B3)-ROW($B$1)) -> 2 | C3: 2021-01-01 | D3: 0 | E3: 300 | F3: مبيعات نقدية | G3: سند قبض | H3: نقدي | J3: تحصيل فاتورة
B4: 3 | C4: 2021-01-01 | D4: 0 | E4: 100 | F4: إيجارات | G4: سند صرف | H4: نقدي | J4: سداد ايجار شهر 2
A5: إجمالي الصرف | B5: 4 | C5: 2021-01-13 | D5: 0 | E5: 500 | F5: ضيافة | G5: سند صرف | H5: نقدي | J5: شاي
A6: =SUMIF(table30[نوع السند],$M$1,table30[المبلغ]) -> 8463 | B6: 5 | C6: 2021-01-13 | D6: 0 | E6: 1500 | F6: نظافة | G6: سند صرف | H6: نقدي | J6: مواد نظافة
B7: 6 | C7: 2021-01-13 | D7: 0 | E7: 200 | F7: صدقات | G7: سند صرف | H7: نقدي | J7: تبرعات
A8: رصيد الصندوق | B8: 7 | C8: 2021-01-13 | D8: 0 | E8: 1500 | F8: رسوم حكومية | G8: سند صرف | H8: نقدي | J8: رسوم بطاقة ضريبية
A9: =A3-A6 -> 8111.6 | B9: =IF(C9="","",ROW(B9)-ROW($B$1)) -> 8 | C9: 2021-01-14 | D9: 0 | E9: 150 | F9: رسوم حكومية | G9: سند قبض | H9: نقدي | J9: رسوم بطاقة ضريبية
B10: 9 | C10: 2021-01-14 | D10: 0 | E10: 250 | F10: مبيعات نقدية | G10: سند قبض | H10: نقدي | J10: تحصيل فاتورة
B11: 10 | C11: 2021-02-11 | D11: 0 | E11: 1800 | F11: مبيعات نقدية | G11: سند قبض | H11: نقدي | J11: اي حاجة
B12: 11 | C12: 2021-01-01 | D12: يوسف | E12: 74.6 | F12: عميل | G12: سند قبض | H12: نقدي | J12: تحصيل من العميل
B13: 12 | C13: 2021-02-02 | D13: ملك | E13: 13 | F13: مورد | G13: سند صرف | H13: نقدي
B14: 13 | C14: 2021-02-11 | D14: ملك | E14: 150 | F14: مورد | G14: سند صرف | H14: شيك | I14: 2021-02-18
B15: =IF(C15="","",ROW(B15)-ROW($B$1)) -> 14 | C15: 2021-01-01 | E15: 1500 | F15: رواتب | G15: سند صرف | J15: رواتب عمال
B16: =IF(C16="","",ROW(B16)-ROW($B$1)) -> 15 | C16: 2021-05-05 | D16: شركة الاخلاص | E16: 1500 | F16: مورد | G16: سند صرف | H16: نقدي
B17: =IF(C17="","",ROW(B17)-ROW($B$1)) -> 16 | C17: 2021-05-05 | D17: يس | E17: 2500 | F17: عميل | G17: سند قبض | H17: نقدي
B18: =IF(C18="","",ROW(B18)-ROW($B$1)) -> 17 | C18: 2021-02-02 | D18: يس | E18: 1500 | F18: عميل | G18: سند قبض | H18: شيك
B19: =IF(C19="","",ROW(B19)-ROW($B$1)) -> 18 | C19: 2021-05-05 | D19: ملك | E19: 1500 | F19: مورد | G19: سند صرف | H19: شيك

Sheet العملاء الموردين (hidden)
B1: م | C1: الإسم | D1: الكود | E1: أسم المسؤول | F1: رقم التواصل | G1: النوع | H1: الميل | I1: العنوان | K1: حالات العملاء | L1: بداية الأكواد | O1: الاسم | P1: الصف
A2: عدد العملاء | B2: =IF(C2="","",ROW(B2)-ROW($B$1)) -> 1 | C2: عميل نقدي | D2: =IF($C2="","",$L2+1) -> 1101 | E2: احمد | F2: 555555 | G2: عميل | H2: mohamedkabou85@gmail.com | I2: اي عنوان - المحلة الكبرى - الشعبية | K2: عميل | L2: 1100 | O2: شركة الاخلاص | P2: =MATCH(O2,C:C,0) -> 18
A3: =COUNTIF(Table28[النوع],$K$2) -> 10 | B3: 2 | C3: مورد نقدي | D3: =IF($C3="","",$D2+1) -> 1102 | E3: محمد | F3: 55555 | G3: مورد | H3: mohamedkabou85@gmail.com | I3: اي عنوان - المحلة الكبرى - الشعبية | K3: مورد
B4: 3 | C4: يوسف | D4: 1103 | E4: يوسف | F4: 66666666 | G4: عميل | H4: mohamedkabou85@gmail.com | I4: اي عنوان - المحلة الكبرى - الشعبية
A5: عدد الموردين | B5: 4 | C5: حمزة | D5: 1104 | E5: حمزة | F5: 999999 | G5: عميل | H5: mohamedkabou85@gmail.com | I5: اي عنوان - المحلة الكبرى - الشعبية
A6: =COUNTIF(Table28[النوع],$K$3) -> 7 | B6: 5 | C6: ابراهيم | D6: 1105 | E6: ابراهيم | F6: 8888888 | G6: عميل | H6: mohamedkabou85@gmail.com | I6: اي عنوان - المحلة الكبرى - الشعبية
B7: 6 | C7: عمر | D7: 1106 | E7: عمر | F7: 5148 | G7: مورد | H7: mohamedkabou85@gmail.com | I7: اي عنوان - المحلة الكبرى - الشعبية
B8: 7 | C8: ملك | D8: 1107 | E8: ملك | F8: 5269877 | G8: مورد | H8: mohamedkabou85@gmail.com | I8: اي عنوان - المحلة الكبرى - الشعبية
B9: 8 | C9: سهيله | D9: 1108 | E9: سهيله | F9: 56698787 | G9: مورد | H9: mohamedkabou85@gmail.com | I9: اي عنوان - المحلة الكبرى - الشعبية
B10: 9 | C10: سارة | D10: 1109 | E10: سارة | F10: 9998958 | G10: مورد | H10: mohamedkabou85@gmail.com | I10: اي عنوان - المحلة الكبرى - الشعبية
B11: 10 | C11: ماجدة | D11: 1110 | E11: خالد محمود | F11: 55555 | G11: عميل | H11: mohamedkabou85@gmail.com | I11: اي عنوان - المحلة الكبرى - الشعبية
B12: 11 | C12: يس | D12: 1111 | E12: يس | F12: 31082828.83 | G12: عميل | H12: mohamedkabou85@gmail.com | I12: اي عنوان - المحلة الكبرى - الشعبية
B13: 12 | C13: عبدالله | D13: 1112 | E13: احمد عبدالله | F13: 33447369.33 | G13: مورد | H13: mohamedkabou85@gmail.com | I13: اي عنوان - المحلة الكبرى - الشعبية
B14: 13 | C14: كعبو | D14: 1113 | E14: محمد كعبو | F14: 2012555 | G14: عميل | H14: اي ميل | I14: المحلة الكبرى
B15: 14 | C15: أحمد كعبو | D15: 1114 | E15: يوسف كعبو | F15: 30 | G15: عميل | H15: اي حاجة | I15: اي حاجة
B16: =IF(C16="","",ROW(B16)-ROW($B$1)) -> 15 | C16: مصطفى | D16: 1115 | E16: خالد | F16: 55555 | G16: عميل | H16: mohamedkabou85@gmail.com | I16: اي عنوان - المحلة الكبرى - الشعبية
B17: =IF(C17="","",ROW(B17)-ROW($B$1)) -> 16 | C17: نورا مصطفى | D17: 1116 | E17: محمد كعبو | F17: 1588888 | G17: عميل | H17: اي حاجه | I17: اي حاجة
B18: =IF(C18="","",ROW(B18)-ROW($B$1)) -> 17 | C18: شركة الاخلاص | D18: 1117 | E18: محمد السيد محمود | F18: 1588888 | G18: مورد | H18: اي حاجه | I18: اي حاجة

Sheet العملاء
A1: عميل | E1: الصافي | F1: =H1-I1 -> 77148.8 | H1: =SUM(Table36[الأرصدة المدينة]) -> 88604.9 | I1: =SUM(Table36[الأرصدة الدائنة]) -> 11456.1
H2: مبيعات | I2: مرتجع مبيعات
A3: م | B3: الإسم | C3: الكود | D3: أسم المسؤول | E3: رقم التواصل | F3: الميل | G3: العنوان | H3: الأرصدة المدينة | I3: الأرصدة الدائنة | J3: الرصيد المتبقي | K3: ملاحظات
A4: 1 | B4: =IF($A$1="","", IFERROR(INDEX(Table28[#All],SMALL(IF(Table28[#All]=العملاء!$A$1,ROW(Table28[#All]),""),ROW('العملاء الموردين'!$B1)),MATCH(B$3,Table28[#Headers],0))," ")) -> عميل نقدي | C4: =IF($A$1="","", IFERROR(INDEX(Table28[#All],SMALL(IF(Table28[#All]=العملاء!$A$1,ROW(Table28[#All]),""),ROW('العملاء الموردين'!$B1)),MATCH(C$3,Table28[#Headers],0))," ")) -> 1101 | D4: =IF($A$1="","", IFERROR(INDEX(Table28[#All],SMALL(IF(Table28[#All]=العملاء!$A$1,ROW(Table28[#All]),""),ROW('العملاء الموردين'!$B1)),MATCH(D$3,Table28[#Headers],0))," ")) -> احمد | E4: =IF($A$1="","", IFERROR(INDEX(Table28[#All],SMALL(IF(Table28[#All]=العملاء!$A$1,ROW(Table28[#All]),""),ROW('العملاء الموردين'!$B1)),MATCH(E$3,Table28[#Headers],0))," ")) -> 555555 | F4: =IF($A$1="","", IFERROR(INDEX(Table28[#All],SMALL(IF(Table28[#All]=العملاء!$A$1,ROW(Table28[#All]),""),ROW('العملاء الموردين'!$B1)),MATCH(F$3,Table28[#Headers],0))," ")) -> mohamedkabou85@gmail.com | G4: =IF($A$1="","", IFERROR(INDEX(Table28[#All],SMALL(IF(Table28[#All]=العملاء!$A$1,ROW(Table28[#All]),""),ROW('العملاء الموردين'!$B1)),MATCH(G$3,Table28[#Headers],0))," ")) -> اي عنوان - المحلة الكبرى - الشعبية | H4: =SUMIFS(Table5[الإجمالي النهائي],Table5[نوع الفاتورة],$H$2,Table5[اسم العميل],Table36[[#This Row],[الإسم]]) -> 125.4 | I4: =SUMIFS(Table5[الإجمالي النهائي],Table5[نوع الفاتورة],$I$2,Table5[اسم العميل],Table36[[#This Row],[الإسم]])+SUMIFS(table30[المبلغ],table30[عميل / مورد],Table36[[#This Row],[الإسم]],table30[نوع السند],الصندوق!$L$1) -> 0 | J4: =Table36[[#This Row],[الأرصدة المدينة]]-Table36[[#This Row],[الأرصدة الدائنة]] -> 125.4
A5: 2 | B5: =IF($A$1="","", IFERROR(INDEX(Table28[#All],SMALL(IF(Table28[#All]=العملاء!$A$1,ROW(Table28[#All]),""),ROW('العملاء الموردين'!$B2)),MATCH(B$3,Table28[#Headers],0))," ")) -> يوسف | C5: =IF($A$1="","", IFERROR(INDEX(Table28[#All],SMALL(IF(Table28[#All]=العملاء!$A$1,ROW(Table28[#All]),""),ROW('العملاء الموردين'!$B2)),MATCH(C$3,Table28[#Headers],0))," ")) -> 1103 | D5: =IF($A$1="","", IFERROR(INDEX(Table28[#All],SMALL(IF(Table28[#All]=العملاء!$A$1,ROW(Table28[#All]),""),ROW('العملاء الموردين'!$B2)),MATCH(D$3,Table28[#Headers],0))," ")) -> يوسف | E5: =IF($A$1="","", IFERROR(INDEX(Table28[#All],SMALL(IF(Table28[#All]=العملاء!$A$1,ROW(Table28[#All]),""),ROW('العملاء الموردين'!$B2)),MATCH(E$3,Table28[#Headers],0))," ")) -> 66666666 | F5: =IF($A$1="","", IFERROR(INDEX(Table28[#All],SMALL(IF(Table28[#All]=العملاء!$A$1,ROW(Table28[#All]),""),ROW('العملاء الموردين'!$B2)),MATCH(F$3,Table28[#Headers],0))," ")) -> mohamedkabou85@gmail.com | G5: =IF($A$1="","", IFERROR(INDEX(Table28[#All],SMALL(IF(Table28[#All]=العملاء!$A$1,ROW(Table28[#All]),""),ROW('العملاء الموردين'!$B2)),MATCH(G$3,Table28[#Headers],0))," ")) -> اي عنوان - المحلة الكبرى - الشعبية | H5: =SUMIFS(Table5[الإجمالي النهائي],Table5[نوع الفاتورة],$H$2,Table5[اسم العميل],Table36[[#This Row],[الإسم]]) -> 400 | I5: =SUMIFS(Table5[الإجمالي النهائي],Table5[نوع الفاتورة],$I$2,Table5[اسم العميل],Table36[[#This Row],[الإسم]])+SUMIFS(table30[المبلغ],table30[عميل / مورد],Table36[[#This Row],[الإسم]],table30[نوع السند],الصندوق!$L$1) -> 564.8 | J5: =Table36[[#This Row],[الأرصدة المدينة]]-Table36[[#This Row],[الأرصدة الدائنة]] -> -164.8
A6: 3 | B6: =IF($A$1="","", IFERROR(INDEX(Table28[#All],SMALL(IF(Table28[#All]=العملاء!$A$1,ROW(Table28[#All]),""),ROW('العملاء الموردين'!$B3)),MATCH(B$3,Table28[#Headers],0))," ")) -> حمزة | C6: =IF($A$1="","", IFERROR(INDEX(Table28[#All],SMALL(IF(Table28[#All]=العملاء!$A$1,ROW(Table28[#All]),""),ROW('العملاء الموردين'!$B3)),MATCH(C$3,Table28[#Headers],0))," ")) -> 1104 | D6: =IF($A$1="","", IFERROR(INDEX(Table28[#All],SMALL(IF(Table28[#All]=العملاء!$A$1,ROW(Table28[#All]),""),ROW('العملاء الموردين'!$B3)),MATCH(D$3,Table28[#Headers],0))," ")) -> حمزة | E6: =IF($A$1="","", IFERROR(INDEX(Table28[#All],SMALL(IF(Table28[#All]=العملاء!$A$1,ROW(Table28[#All]),""),ROW('العملاء الموردين'!$B3)),MATCH(E$3,Table28[#Headers],0))," ")) -> 999999 | F6: =IF($A$1="","", IFERROR(INDEX(Table28[#All],SMALL(IF(Table28[#All]=العملاء!$A$1,ROW(Table28[#All]),""),ROW('العملاء الموردين'!$B3)),MATCH(F$3,Table28[#Headers],0))," ")) -> mohamedkabou85@gmail.com | G6: =IF($A$1="","", IFERROR(INDEX(Table28[#All],SMALL(IF(Table28[#All]=العملاء!$A$1,ROW(Table28[#All]),""),ROW('العملاء الموردين'!$B3)),MATCH(G$3,Table28[#Headers],0))," ")) -> اي عنوان - المحلة الكبرى - الشعبية | H6: =SUMIFS(Table5[الإجمالي النهائي],Table5[نوع الفاتورة],$H$2,Table5[اسم العميل],Table36[[#This Row],[الإسم]]) -> 6840 | I6: =SUMIFS(Table5[الإجمالي النهائي],Table5[نوع الفاتورة],$I$2,Table5[اسم العميل],Table36[[#This Row],[الإسم]])+SUMIFS(table30[المبلغ],table30[عميل / مورد],Table36[[#This Row],[الإسم]],table30[نوع السند],الصندوق!$L$1) -> 0 | J6: =Table36[[#This Row],[الأرصدة المدينة]]-Table36[[#This Row],[الأرصدة الدائنة]] -> 6840
A7: 4 | B7: =IF($A$1="","", IFERROR(INDEX(Table28[#All],SMALL(IF(Table28[#All]=العملاء!$A$1,ROW(Table28[#All]),""),ROW('العملاء الموردين'!$B4)),MATCH(B$3,Table28[#Headers],0))," ")) -> ابراهيم | C7: =IF($A$1="","", IFERROR(INDEX(Table28[#All],SMALL(IF(Table28[#All]=العملاء!$A$1,ROW(Table28[#All]),""),ROW('العملاء الموردين'!$B4)),MATCH(C$3,Table28[#Headers],0))," ")) -> 1105 | D7: =IF($A$1="","", IFERROR(INDEX(Table28[#All],SMALL(IF(Table28[#All]=العملاء!$A$1,ROW(Table28[#All]),""),ROW('العملاء الموردين'!$B4)),MATCH(D$3,Table28[#Headers],0))," ")) -> ابراهيم | E7: =IF($A$1="","", IFERROR(INDEX(Table28[#All],SMALL(IF(Table28[#All]=العملاء!$A$1,ROW(Table28[#All]),""),ROW('العملاء الموردين'!$B4)),MATCH(E$3,Table28[#Headers],0))," ")) -> 8888888 | F7: =IF($A$1="","", IFERROR(INDEX(Table28[#All],SMALL(IF(Table28[#All]=العملاء!$A$1,ROW(Table28[#All]),""),ROW('العملاء الموردين'!$B4)),MATCH(F$3,Table28[#Headers],0))," ")) -> mohamedkabou85@gmail.com | G7: =IF($A$1="","", IFERROR(INDEX(Table28[#All],SMALL(IF(Table28[#All]=العملاء!$A$1,ROW(Table28[#All]),""),ROW('العملاء الموردين'!$B4)),MATCH(G$3,Table28[#Headers],0))," ")) -> اي عنوان - المحلة الكبرى - الشعبية | H7: =SUMIFS(Table5[الإجمالي النهائي],Table5[نوع الفاتورة],$H$2,Table5[اسم العميل],Table36[[#This Row],[الإسم]]) -> 34200 | I7: =SUMIFS(Table5[الإجمالي النهائي],Table5[نوع الفاتورة],$I$2,Table5[اسم العميل],Table36[[#This Row],[الإسم]])+SUMIFS(table30[المبلغ],table30[عميل / مورد],Table36[[#This Row],[الإسم]],table30[نوع السند],الصندوق!$L$1) -> 0 | J7: =Table36[[#This Row],[الأرصدة المدينة]]-Table36[[#This Row],[الأرصدة الدائنة]] -> 34200
A8: 5 | B8: =IF($A$1="","", IFERROR(INDEX(Table28[#All],SMALL(IF(Table28[#All]=العملاء!$A$1,ROW(Table28[#All]),""),ROW('العملاء الموردين'!$B5)),MATCH(B$3,Table28[#Headers],0))," ")) -> ماجدة | C8: =IF($A$1="","", IFERROR(INDEX(Table28[#All],SMALL(IF(Table28[#All]=العملاء!$A$1,ROW(Table28[#All]),""),ROW('العملاء الموردين'!$B5)),MATCH(C$3,Table28[#Headers],0))," ")) -> 1110 | D8: =IF($A$1="","", IFERROR(INDEX(Table28[#All],SMALL(IF(Table28[#All]=العملاء!$A$1,ROW(Table28[#All]),""),ROW('العملاء الموردين'!$B5)),MATCH(D$3,Table28[#Headers],0))," ")) -> خالد محمود | E8: =IF($A$1="","", IFERROR(INDEX(Table28[#All],SMALL(IF(Table28[#All]=العملاء!$A$1,ROW(Table28[#All]),""),ROW('العملاء الموردين'!$B5)),MATCH(E$3,Table28[#Headers],0))," ")) -> 55555 | F8: =IF($A$1="","", IFERROR(INDEX(Table28[#All],SMALL(IF(Table28[#All]=العملاء!$A$1,ROW(Table28[#All]),""),ROW('العملاء الموردين'!$B5)),MATCH(F$3,Table28[#Headers],0))," ")) -> mohamedkabou85@gmail.com | G8: =IF($A$1="","", IFERROR(INDEX(Table28[#All],SMALL(IF(Table28[#All]=العملاء!$A$1,ROW(Table28[#All]),""),ROW('العملاء الموردين'!$B5)),MATCH(G$3,Table28[#Headers],0))," ")) -> اي عنوان - المحلة الكبرى - الشعبية | H8: =SUMIFS(Table5[الإجمالي النهائي],Table5[نوع الفاتورة],$H$2,Table5[اسم العميل],Table36[[#This Row],[الإسم]]) -> 6000 | I8: =SUMIFS(Table5[الإجمالي النهائي],Table5[نوع الفاتورة],$I$2,Table5[اسم العميل],Table36[[#This Row],[الإسم]])+SUMIFS(table30[المبلغ],table30[عميل / مورد],Table36[[#This Row],[الإسم]],table30[نوع السند],الصندوق!$L$1) -> 0 | J8: =Table36[[#This Row],[الأرصدة المدينة]]-Table36[[#This Row],[الأرصدة الدائنة]] -> 6000
A9: 6 | B9: =IF($A$1="","", IFERROR(INDEX(Table28[#All],SMALL(IF(Table28[#All]=العملاء!$A$1,ROW(Table28[#All]),""),ROW('العملاء الموردين'!$B6)),MATCH(B$3,Table28[#Headers],0))," ")) -> يس | C9: =IF($A$1="","", IFERROR(INDEX(Table28[#All],SMALL(IF(Table28[#All]=العملاء!$A$1,ROW(Table28[#All]),""),ROW('العملاء الموردين'!$B6)),MATCH(C$3,Table28[#Headers],0))," ")) -> 1111 | D9: =IF($A$1="","", IFERROR(INDEX(Table28[#All],SMALL(IF(Table28[#All]=العملاء!$A$1,ROW(Table28[#All]),""),ROW('العملاء الموردين'!$B6)),MATCH(D$3,Table28[#Headers],0))," ")) -> يس | E9: =IF($A$1="","", IFERROR(INDEX(Table28[#All],SMALL(IF(Table28[#All]=العملاء!$A$1,ROW(Table28[#All]),""),ROW('العملاء الموردين'!$B6)),MATCH(E$3,Table28[#Headers],0))," ")) -> 31082828.83 | F9: =IF($A$1="","", IFERROR(INDEX(Table28[#All],SMALL(IF(Table28[#All]=العملاء!$A$1,ROW(Table28[#All]),""),ROW('العملاء الموردين'!$B6)),MATCH(F$3,Table28[#Headers],0))," ")) -> mohamedkabou85@gmail.com | G9: =IF($A$1="","", IFERROR(INDEX(Table28[#All],SMALL(IF(Table28[#All]=العملاء!$A$1,ROW(Table28[#All]),""),ROW('العملاء الموردين'!$B6)),MATCH(G$3,Table28[#Headers],0))," ")) -> اي عنوان - المحلة الكبرى - الشعبية | H9: =SUMIFS(Table5[الإجمالي النهائي],Table5[نوع الفاتورة],$H$2,Table5[اسم العميل],Table36[[#This Row],[الإسم]]) -> 22600 | I9: =SUMIFS(Table5[الإجمالي النهائي],Table5[نوع الفاتورة],$I$2,Table5[اسم العميل],Table36[[#This Row],[الإسم]])+SUMIFS(table30[المبلغ],table30[عميل / مورد],Table36[[#This Row],[الإسم]],table30[نوع السند],الصندوق!$L$1) -> 10840 | J9: =Table36[[#This Row],[الأرصدة المدينة]]-Table36[[#This Row],[الأرصدة الدائنة]] -> 11760
A10: 7 | B10: =IF($A$1="","", IFERROR(INDEX(Table28[#All],SMALL(IF(Table28[#All]=العملاء!$A$1,ROW(Table28[#All]),""),ROW('العملاء الموردين'!$B7)),MATCH(B$3,Table28[#Headers],0))," ")) -> كعبو | C10: =IF($A$1="","", IFERROR(INDEX(Table28[#All],SMALL(IF(Table28[#All]=العملاء!$A$1,ROW(Table28[#All]),""),ROW('العملاء الموردين'!$B7)),MATCH(C$3,Table28[#Headers],0))," ")) -> 1113 | D10: =IF($A$1="","", IFERROR(INDEX(Table28[#All],SMALL(IF(Table28[#All]=العملاء!$A$1,ROW(Table28[#All]),""),ROW('العملاء الموردين'!$B7)),MATCH(D$3,Table28[#Headers],0))," ")) -> محمد كعبو | E10: =IF($A$1="","", IFERROR(INDEX(Table28[#All],SMALL(IF(Table28[#All]=العملاء!$A$1,ROW(Table28[#All]),""),ROW('العملاء الموردين'!$B7)),MATCH(E$3,Table28[#Headers],0))," ")) -> 2012555 | F10: =IF($A$1="","", IFERROR(INDEX(Table28[#All],SMALL(IF(Table28[#All]=العملاء!$A$1,ROW(Table28[#All]),""),ROW('العملاء الموردين'!$B7)),MATCH(F$3,Table28[#Headers],0))," ")) -> اي ميل | G10: =IF($A$1="","", IFERROR(INDEX(Table28[#All],SMALL(IF(Table28[#All]=العملاء!$A$1,ROW(Table28[#All]),""),ROW('العملاء الموردين'!$B7)),MATCH(G$3,Table28[#Headers],0))," ")) -> المحلة الكبرى | H10: =SUMIFS(Table5[الإجمالي النهائي],Table5[نوع الفاتورة],$H$2,Table5[اسم العميل],Table36[[#This Row],[الإسم]]) -> 6840 | I10: =SUMIFS(Table5[الإجمالي النهائي],Table5[نوع الفاتورة],$I$2,Table5[اسم العميل],Table36[[#This Row],[الإسم]])+SUMIFS(table30[المبلغ],table30[عميل / مورد],Table36[[#This Row],[الإسم]],table30[نوع السند],الصندوق!$L$1) -> 0 | J10: =Table36[[#This Row],[الأرصدة المدينة]]-Table36[[#This Row],[الأرصدة الدائنة]] -> 6840
A11: 8 | B11: =IF($A$1="","", IFERROR(INDEX(Table28[#All],SMALL(IF(Table28[#All]=العملاء!$A$1,ROW(Table28[#All]),""),ROW('العملاء الموردين'!$B8)),MATCH(B$3,Table28[#Headers],0))," ")) -> أحمد كعبو | C11: =IF($A$1="","", IFERROR(INDEX(Table28[#All],SMALL(IF(Table28[#All]=العملاء!$A$1,ROW(Table28[#All]),""),ROW('العملاء الموردين'!$B8)),MATCH(C$3,Table28[#Headers],0))," ")) -> 1114 | D11: =IF($A$1="","", IFERROR(INDEX(Table28[#All],SMALL(IF(Table28[#All]=العملاء!$A$1,ROW(Table28[#All]),""),ROW('العملاء الموردين'!$B8)),MATCH(D$3,Table28[#Headers],0))," ")) -> يوسف كعبو | E11: =IF($A$1="","", IFERROR(INDEX(Table28[#All],SMALL(IF(Table28[#All]=العملاء!$A$1,ROW(Table28[#All]),""),ROW('العملاء الموردين'!$B8)),MATCH(E$3,Table28[#Headers],0))," ")) -> 30 | F11: =IF($A$1="","", IFERROR(INDEX(Table28[#All],SMALL(IF(Table28[#All]=العملاء!$A$1,ROW(Table28[#All]),""),ROW('العملاء الموردين'!$B8)),MATCH(F$3,Table28[#Headers],0))," ")) -> اي حاجة | G11: =IF($A$1="","", IFERROR(INDEX(Table28[#All],SMALL(IF(Table28[#All]=العملاء!$A$1,ROW(Table28[#All]),""),ROW('العملاء الموردين'!$B8)),MATCH(G$3,Table28[#Headers],0))," ")) -> اي حاجة | H11: =SUMIFS(Table5[الإجمالي النهائي],Table5[نوع الفاتورة],$H$2,Table5[اسم العميل],Table36[[#This Row],[الإسم]]) -> 6840 | I11: =SUMIFS(Table5[الإجمالي النهائي],Table5[نوع الفاتورة],$I$2,Table5[اسم العميل],Table36[[#This Row],[الإسم]])+SUMIFS(table30[المبلغ],table30[عميل / مورد],Table36[[#This Row],[الإسم]],table30[نوع السند],الصندوق!$L$1) -> 0 | J11: =Table36[[#This Row],[الأرصدة المدينة]]-Table36[[#This Row],[الأرصدة الدائنة]] -> 6840
A12: 9 | B12: =IF($A$1="","", IFERROR(INDEX(Table28[#All],SMALL(IF(Table28[#All]=العملاء!$A$1,ROW(Table28[#All]),""),ROW('العملاء الموردين'!$B9)),MATCH(B$3,Table28[#Headers],0))," ")) -> مصطفى | C12: =IF($A$1="","", IFERROR(INDEX(Table28[#All],SMALL(IF(Table28[#All]=العملاء!$A$1,ROW(Table28[#All]),""),ROW('العملاء الموردين'!$B9)),MATCH(C$3,Table28[#Headers],0))," ")) -> 1115 | D12: =IF($A$1="","", IFERROR(INDEX(Table28[#All],SMALL(IF(Table28[#All]=العملاء!$A$1,ROW(Table28[#All]),""),ROW('العملاء الموردين'!$B9)),MATCH(D$3,Table28[#Headers],0))," ")) -> خالد | E12: =IF($A$1="","", IFERROR(INDEX(Table28[#All],SMALL(IF(Table28[#All]=العملاء!$A$1,ROW(Table28[#All]),""),ROW('العملاء الموردين'!$B9)),MATCH(E$3,Table28[#Headers],0))," ")) -> 55555 | F12: =IF($A$1="","", IFERROR(INDEX(Table28[#All],SMALL(IF(Table28[#All]=العملاء!$A$1,ROW(Table28[#All]),""),ROW('العملاء الموردين'!$B9)),MATCH(F$3,Table28[#Headers],0))," ")) -> mohamedkabou85@gmail.com | G12: =IF($A$1="","", IFERROR(INDEX(Table28[#All],SMALL(IF(Table28[#All]=العملاء!$A$1,ROW(Table28[#All]),""),ROW('العملاء الموردين'!$B9)),MATCH(G$3,Table28[#Headers],0))," ")) -> اي عنوان - المحلة الكبرى - الشعبية | H12: =SUMIFS(Table5[الإجمالي النهائي],Table5[نوع الفاتورة],$H$2,Table5[اسم العميل],Table36[[#This Row],[الإسم]]) -> 3990 | I12: =SUMIFS(Table5[الإجمالي النهائي],Table5[نوع الفاتورة],$I$2,Table5[اسم العميل],Table36[[#This Row],[الإسم]])+SUMIFS(table30[المبلغ],table30[عميل / مورد],Table36[[#This Row],[الإسم]],table30[نوع السند],الصندوق!$L$1) -> 0 | J12: =Table36[[#This Row],[الأرصدة المدينة]]-Table36[[#This Row],[الأرصدة الدائنة]] -> 3990
A13: 10 | B13: =IF($A$1="","", IFERROR(INDEX(Table28[#All],SMALL(IF(Table28[#All]=العملاء!$A$1,ROW(Table28[#All]),""),ROW('العملاء الموردين'!$B10)),MATCH(B$3,Table28[#Headers],0))," ")) -> نورا مصطفى | C13: =IF($A$1="","", IFERROR(INDEX(Table28[#All],SMALL(IF(Table28[#All]=العملاء!$A$1,ROW(Table28[#All]),""),ROW('العملاء الموردين'!$B10)),MATCH(C$3,Table28[#Headers],0))," ")) -> 1116 | D13: =IF($A$1="","", IFERROR(INDEX(Table28[#All],SMALL(IF(Table28[#All]=العملاء!$A$1,ROW(Table28[#All]),""),ROW('العملاء الموردين'!$B10)),MATCH(D$3,Table28[#Headers],0))," ")) -> محمد كعبو | E13: =IF($A$1="","", IFERROR(INDEX(Table28[#All],SMALL(IF(Table28[#All]=العملاء!$A$1,ROW(Table28[#All]),""),ROW('العملاء الموردين'!$B10)),MATCH(E$3,Table28[#Headers],0))," ")) -> 1588888 | F13: =IF($A$1="","", IFERROR(INDEX(Table28[#All],SMALL(IF(Table28[#All]=العملاء!$A$1,ROW(Table28[#All]),""),ROW('العملاء الموردين'!$B10)),MATCH(F$3,Table28[#Headers],0))," ")) -> اي حاجه | G13: =IF($A$1="","", IFERROR(INDEX(Table28[#All],SMALL(IF(Table28[#All]=العملاء!$A$1,ROW(Table28[#All]),""),ROW('العملاء الموردين'!$B10)),MATCH(G$3,Table28[#Headers],0))," ")) -> اي حاجة | H13: =SUMIFS(Table5[الإجمالي النهائي],Table5[نوع الفاتورة],$H$2,Table5[اسم العميل],Table36[[#This Row],[الإسم]]) -> 769.5 | I13: =SUMIFS(Table5[الإجمالي النهائي],Table5[نوع الفاتورة],$I$2,Table5[اسم العميل],Table36[[#This Row],[الإسم]])+SUMIFS(table30[المبلغ],table30[عميل / مورد],Table36[[#This Row],[الإسم]],table30[نوع السند],الصندوق!$L$1) -> 51.3 | J13: =Table36[[#This Row],[الأرصدة المدينة]]-Table36[[#This Row],[الأرصدة الدائنة]] -> 718.2
A14: 11 | B14: =IF($A$1="","", IFERROR(INDEX(Table28[#All],SMALL(IF(Table28[#All]=العملاء!$A$1,ROW(Table28[#All]),""),ROW('العملاء الموردين'!$B11)),MATCH(B$3,Table28[#Headers],0))," ")) ->  | C14: =IF($A$1="","", IFERROR(INDEX(Table28[#All],SMALL(IF(Table28[#All]=العملاء!$A$1,ROW(Table28[#All]),""),ROW('العملاء الموردين'!$B11)),MATCH(C$3,Table28[#Headers],0))," ")) ->  | D14: =IF($A$1="","", IFERROR(INDEX(Table28[#All],SMALL(IF(Table28[#All]=العملاء!$A$1,ROW(Table28[#All]),""),ROW('العملاء الموردين'!$B11)),MATCH(D$3,Table28[#Headers],0))," ")) ->  | E14: =IF($A$1="","", IFERROR(INDEX(Table28[#All],SMALL(IF(Table28[#All]=العملاء!$A$1,ROW(Table28[#All]),""),ROW('العملاء الموردين'!$B11)),MATCH(E$3,Table28[#Headers],0))," ")) ->  | F14: =IF($A$1="","", IFERROR(INDEX(Table28[#All],SMALL(IF(Table28[#All]=العملاء!$A$1,ROW(Table28[#All]),""),ROW('العملاء الموردين'!$B11)),MATCH(F$3,Table28[#Headers],0))," ")) ->  | G14: =IF($A$1="","", IFERROR(INDEX(Table28[#All],SMALL(IF(Table28[#All]=العملاء!$A$1,ROW(Table28[#All]),""),ROW('العملاء الموردين'!$B11)),MATCH(G$3,Table28[#Headers],0))," ")) ->  | H14: =SUMIFS(Table5[الإجمالي النهائي],Table5[نوع الفاتورة],$H$2,Table5[اسم العميل],Table36[[#This Row],[الإسم]]) -> 0 | I14: =SUMIFS(Table5[الإجمالي النهائي],Table5[نوع الفاتورة],$I$2,Table5[اسم العميل],Table36[[#This Row],[الإسم]])+SUMIFS(table30[المبلغ],table30[عميل / مورد],Table36[[#This Row],[الإسم]],table30[نوع السند],الصندوق!$L$1) -> 0 | J14: =Table36[[#This Row],[الأرصدة المدينة]]-Table36[[#This Row],[الأرصدة الدائنة]] -> 0
A15: 12 | B15: =IF($A$1="","", IFERROR(INDEX(Table28[#All],SMALL(IF(Table28[#All]=العملاء!$A$1,ROW(Table28[#All]),""),ROW('العملاء الموردين'!$B12)),MATCH(B$3,Table28[#Headers],0))," ")) ->  | C15: =IF($A$1="","", IFERROR(INDEX(Table28[#All],SMALL(IF(Table28[#All]=العملاء!$A$1,ROW(Table28[#All]),""),ROW('العملاء الموردين'!$B12)),MATCH(C$3,Table28[#Headers],0))," ")) ->  | D15: =IF($A$1="","", IFERROR(INDEX(Table28[#All],SMALL(IF(Table28[#All]=العملاء!$A$1,ROW(Table28[#All]),""),ROW('العملاء الموردين'!$B12)),MATCH(D$3,Table28[#Headers],0))," ")) ->  | E15: =IF($A$1="","", IFERROR(INDEX(Table28[#All],SMALL(IF(Table28[#All]=العملاء!$A$1,ROW(Table28[#All]),""),ROW('العملاء الموردين'!$B12)),MATCH(E$3,Table28[#Headers],0))," ")) ->  | F15: =IF($A$1="","", IFERROR(INDEX(Table28[#All],SMALL(IF(Table28[#All]=العملاء!$A$1,ROW(Table28[#All]),""),ROW('العملاء الموردين'!$B12)),MATCH(F$3,Table28[#Headers],0))," ")) ->  | G15: =IF($A$1="","", IFERROR(INDEX(Table28[#All],SMALL(IF(Table28[#All]=العملاء!$A$1,ROW(Table28[#All]),""),ROW('العملاء الموردين'!$B12)),MATCH(G$3,Table28[#Headers],0))," ")) ->  | H15: =SUMIFS(Table5[الإجمالي النهائي],Table5[نوع الفاتورة],$H$2,Table5[اسم العميل],Table36[[#This Row],[الإسم]]) -> 0 | I15: =SUMIFS(Table5[الإجمالي النهائي],Table5[نوع الفاتورة],$I$2,Table5[اسم العميل],Table36[[#This Row],[الإسم]])+SUMIFS(table30[المبلغ],table30[عميل / مورد],Table36[[#This Row],[الإسم]],table30[نوع السند],الصندوق!$L$1) -> 0 | J15: =Table36[[#This Row],[الأرصدة المدينة]]-Table36[[#This Row],[الأرصدة الدائنة]] -> 0
A16: 13 | B16: =IF($A$1="","", IFERROR(INDEX(Table28[#All],SMALL(IF(Table28[#All]=العملاء!$A$1,ROW(Table28[#All]),""),ROW('العملاء الموردين'!$B13)),MATCH(B$3,Table28[#Headers],0))," ")) ->  | C16: =IF($A$1="","", IFERROR(INDEX(Table28[#All],SMALL(IF(Table28[#All]=العملاء!$A$1,ROW(Table28[#All]),""),ROW('العملاء الموردين'!$B13)),MATCH(C$3,Table28[#Headers],0))," ")) ->  | D16: =IF($A$1="","", IFERROR(INDEX(Table28[#All],SMALL(IF(Table28[#All]=العملاء!$A$1,ROW(Table28[#All]),""),ROW('العملاء الموردين'!$B13)),MATCH(D$3,Table28[#Headers],0))," ")) ->  | E16: =IF($A$1="","", IFERROR(INDEX(Table28[#All],SMALL(IF(Table28[#All]=العملاء!$A$1,ROW(Table28[#All]),""),ROW('العملاء الموردين'!$B13)),MATCH(E$3,Table28[#Headers],0))," ")) ->  | F16: =IF($A$1="","", IFERROR(INDEX(Table28[#All],SMALL(IF(Table28[#All]=العملاء!$A$1,ROW(Table28[#All]),""),ROW('العملاء الموردين'!$B13)),MATCH(F$3,Table28[#Headers],0))," ")) ->  | G16: =IF($A$1="","", IFERROR(INDEX(Table28[#All],SMALL(IF(Table28[#All]=العملاء!$A$1,ROW(Table28[#All]),""),ROW('العملاء الموردين'!$B13)),MATCH(G$3,Table28[#Headers],0))," ")) ->  | H16: =SUMIFS(Table5[الإجمالي النهائي],Table5[نوع الفاتورة],$H$2,Table5[اسم العميل],Table36[[#This Row],[الإسم]]) -> 0 | I16: =SUMIFS(Table5[الإجمالي النهائي],Table5[نوع الفاتورة],$I$2,Table5[اسم العميل],Table36[[#This Row],[الإسم]])+SUMIFS(table30[المبلغ],table30[عميل / مورد],Table36[[#This Row],[الإسم]],table30[نوع السند],الصندوق!$L$1) -> 0 | J16: =Table36[[#This Row],[الأرصدة المدينة]]-Table36[[#This Row],[الأرصدة الدائنة]] -> 0
A17: 14 | B17: =IF($A$1="","", IFERROR(INDEX(Table28[#All],SMALL(IF(Table28[#All]=العملاء!$A$1,ROW(Table28[#All]),""),ROW('العملاء الموردين'!$B14)),MATCH(B$3,Table28[#Headers],0))," ")) ->  | C17: =IF($A$1="","", IFERROR(INDEX(Table28[#All],SMALL(IF(Table28[#All]=العملاء!$A$1,ROW(Table28[#All]),""),ROW('العملاء الموردين'!$B14)),MATCH(C$3,Table28[#Headers],0))," ")) ->  | D17: =IF($A$1="","", IFERROR(INDEX(Table28[#All],SMALL(IF(Table28[#All]=العملاء!$A$1,ROW(Table28[#All]),""),ROW('العملاء الموردين'!$B14)),MATCH(D$3,Table28[#Headers],0))," ")) ->  | E17: =IF($A$1="","", IFERROR(INDEX(Table28[#All],SMALL(IF(Table28[#All]=العملاء!$A$1,ROW(Table28[#All]),""),ROW('العملاء الموردين'!$B14)),MATCH(E$3,Table28[#Headers],0))," ")) ->  | F17: =IF($A$1="","", IFERROR(INDEX(Table28[#All],SMALL(IF(Table28[#All]=العملاء!$A$1,ROW(Table28[#All]),""),ROW('العملاء الموردين'!$B14)),MATCH(F$3,Table28[#Headers],0))," ")) ->  | G17: =IF($A$1="","", IFERROR(INDEX(Table28[#All],SMALL(IF(Table28[#All]=العملاء!$A$1,ROW(Table28[#All]),""),ROW('العملاء الموردين'!$B14)),MATCH(G$3,Table28[#Headers],0))," ")) ->  | H17: =SUMIFS(Table5[الإجمالي النهائي],Table5[نوع الفاتورة],$H$2,Table5[اسم العميل],Table36[[#This Row],[الإسم]]) -> 0 | I17: =SUMIFS(Table5[الإجمالي النهائي],Table5[نوع الفاتورة],$I$2,Table5[اسم العميل],Table36[[#This Row],[الإسم]])+SUMIFS(table30[المبلغ],table30[عميل / مورد],Table36[[#This Row],[الإسم]],table30[نوع السند],الصندوق!$L$1) -> 0 | J17: =Table36[[#This Row],[الأرصدة المدينة]]-Table36[[#This Row],[الأرصدة الدائنة]] -> 0
A18: 15 | B18: =IF($A$1="","", IFERROR(INDEX(Table28[#All],SMALL(IF(Table28[#All]=العملاء!$A$1,ROW(Table28[#All]),""),ROW('العملاء الموردين'!$B15)),MATCH(B$3,Table28[#Headers],0))," ")) ->  | C18: =IF($A$1="","", IFERROR(INDEX(Table28[#All],SMALL(IF(Table28[#All]=العملاء!$A$1,ROW(Table28[#All]),""),ROW('العملاء الموردين'!$B15)),MATCH(C$3,Table28[#Headers],0))," ")) ->  | D18: =IF($A$1="","", IFERROR(INDEX(Table28[#All],SMALL(IF(Table28[#All]=العملاء!$A$1,ROW(Table28[#All]),""),ROW('العملاء الموردين'!$B15)),MATCH(D$3,Table28[#Headers],0))," ")) ->  | E18: =IF($A$1="","", IFERROR(INDEX(Table28[#All],SMALL(IF(Table28[#All]=العملاء!$A$1,ROW(Table28[#All]),""),ROW('العملاء الموردين'!$B15)),MATCH(E$3,Table28[#Headers],0))," ")) ->  | F18: =IF($A$1="","", IFERROR(INDEX(Table28[#All],SMALL(IF(Table28[#All]=العملاء!$A$1,ROW(Table28[#All]),""),ROW('العملاء الموردين'!$B15)),MATCH(F$3,Table28[#Headers],0))," ")) ->  | G18: =IF($A$1="","", IFERROR(INDEX(Table28[#All],SMALL(IF(Table28[#All]=العملاء!$A$1,ROW(Table28[#All]),""),ROW('العملاء الموردين'!$B15)),MATCH(G$3,Table28[#Headers],0))," ")) ->  | H18: =SUMIFS(Table5[الإجمالي النهائي],Table5[نوع الفاتورة],$H$2,Table5[اسم العميل],Table36[[#This Row],[الإسم]]) -> 0 | I18: =SUMIFS(Table5[الإجمالي النهائي],Table5[نوع الفاتورة],$I$2,Table5[اسم العميل],Table36[[#This Row],[الإسم]])+SUMIFS(table30[المبلغ],table30[عميل / مورد],Table36[[#This Row],[الإسم]],table30[نوع السند],الصندوق!$L$1) -> 0 | J18: =Table36[[#This Row],[الأرصدة المدينة]]-Table36[[#This Row],[الأرصدة الدائنة]] -> 0
A19: 16 | B19: =IF($A$1="","", IFERROR(INDEX(Table28[#All],SMALL(IF(Table28[#All]=العملاء!$A$1,ROW(Table28[#All]),""),ROW('العملاء الموردين'!$B16)),MATCH(B$3,Table28[#Headers],0))," ")) ->  | C19: =IF($A$1="","", IFERROR(INDEX(Table28[#All],SMALL(IF(Table28[#All]=العملاء!$A$1,ROW(Table28[#All]),""),ROW('العملاء الموردين'!$B16)),MATCH(C$3,Table28[#Headers],0))," ")) ->  | D19: =IF($A$1="","", IFERROR(INDEX(Table28[#All],SMALL(IF(Table28[#All]=العملاء!$A$1,ROW(Table28[#All]),""),ROW('العملاء الموردين'!$B16)),MATCH(D$3,Table28[#Headers],0))," ")) ->  | E19: =IF($A$1="","", IFERROR(INDEX(Table28[#All],SMALL(IF(Table28[#All]=العملاء!$A$1,ROW(Table28[#All]),""),ROW('العملاء الموردين'!$B16)),MATCH(E$3,Table28[#Headers],0))," ")) ->  | F19: =IF($A$1="","", IFERROR(INDEX(Table28[#All],SMALL(IF(Table28[#All]=العملاء!$A$1,ROW(Table28[#All]),""),ROW('العملاء الموردين'!$B16)),MATCH(F$3,Table28[#Headers],0))," ")) ->  | G19: =IF($A$1="","", IFERROR(INDEX(Table28[#All],SMALL(IF(Table28[#All]=العملاء!$A$1,ROW(Table28[#All]),""),ROW('العملاء الموردين'!$B16)),MATCH(G$3,Table28[#Headers],0))," ")) ->  | H19: =SUMIFS(Table5[الإجمالي النهائي],Table5[نوع الفاتورة],$H$2,Table5[اسم العميل],Table36[[#This Row],[الإسم]]) -> 0 | I19: =SUMIFS(Table5[الإجمالي النهائي],Table5[نوع الفاتورة],$I$2,Table5[اسم العميل],Table36[[#This Row],[الإسم]])+SUMIFS(table30[المبلغ],table30[عميل / مورد],Table36[[#This Row],[الإسم]],table30[نوع السند],الصندوق!$L$1) -> 0 | J19: =Table36[[#This Row],[الأرصدة المدينة]]-Table36[[#This Row],[الأرصدة الدائنة]] -> 0
A20: 17 | B20: =IF($A$1="","", IFERROR(INDEX(Table28[#All],SMALL(IF(Table28[#All]=العملاء!$A$1,ROW(Table28[#All]),""),ROW('العملاء الموردين'!$B17)),MATCH(B$3,Table28[#Headers],0))," ")) ->  | C20: =IF($A$1="","", IFERROR(INDEX(Table28[#All],SMALL(IF(Table28[#All]=العملاء!$A$1,ROW(Table28[#All]),""),ROW('العملاء الموردين'!$B17)),MATCH(C$3,Table28[#Headers],0))," ")) ->  | D20: =IF($A$1="","", IFERROR(INDEX(Table28[#All],SMALL(IF(Table28[#All]=العملاء!$A$1,ROW(Table28[#All]),""),ROW('العملاء الموردين'!$B17)),MATCH(D$3,Table28[#Headers],0))," ")) ->  | E20: =IF($A$1="","", IFERROR(INDEX(Table28[#All],SMALL(IF(Table28[#All]=العملاء!$A$1,ROW(Table28[#All]),""),ROW('العملاء الموردين'!$B17)),MATCH(E$3,Table28[#Headers],0))," ")) ->  | F20: =IF($A$1="","", IFERROR(INDEX(Table28[#All],SMALL(IF(Table28[#All]=العملاء!$A$1,ROW(Table28[#All]),""),ROW('العملاء الموردين'!$B17)),MATCH(F$3,Table28[#Headers],0))," ")) ->  | G20: =IF($A$1="","", IFERROR(INDEX(Table28[#All],SMALL(IF(Table28[#All]=العملاء!$A$1,ROW(Table28[#All]),""),ROW('العملاء الموردين'!$B17)),MATCH(G$3,Table28[#Headers],0))," ")) ->  | H20: =SUMIFS(Table5[الإجمالي النهائي],Table5[نوع الفاتورة],$H$2,Table5[اسم العميل],Table36[[#This Row],[الإسم]]) -> 0 | I20: =SUMIFS(Table5[الإجمالي النهائي],Table5[نوع الفاتورة],$I$2,Table5[اسم العميل],Table36[[#This Row],[الإسم]])+SUMIFS(table30[المبلغ],table30[عميل / مورد],Table36[[#This Row],[الإسم]],table30[نوع السند],الصندوق!$L$1) -> 0 | J20: =Table36[[#This Row],[الأرصدة المدينة]]-Table36[[#This Row],[الأرصدة الدائنة]] -> 0
A21: 18 | B21: =IF($A$1="","", IFERROR(INDEX(Table28[#All],SMALL(IF(Table28[#All]=العملاء!$A$1,ROW(Table28[#All]),""),ROW('العملاء الموردين'!$B18)),MATCH(B$3,Table28[#Headers],0))," ")) ->  | C21: =IF($A$1="","", IFERROR(INDEX(Table28[#All],SMALL(IF(Table28[#All]=العملاء!$A$1,ROW(Table28[#All]),""),ROW('العملاء الموردين'!$B18)),MATCH(C$3,Table28[#Headers],0))," ")) ->  | D21: =IF($A$1="","", IFERROR(INDEX(Table28[#All],SMALL(IF(Table28[#All]=العملاء!$A$1,ROW(Table28[#All]),""),ROW('العملاء الموردين'!$B18)),MATCH(D$3,Table28[#Headers],0))," ")) ->  | E21: =IF($A$1="","", IFERROR(INDEX(Table28[#All],SMALL(IF(Table28[#All]=العملاء!$A$1,ROW(Table28[#All]),""),ROW('العملاء الموردين'!$B18)),MATCH(E$3,Table28[#Headers],0))," ")) ->  | F21: =IF($A$1="","", IFERROR(INDEX(Table28[#All],SMALL(IF(Table28[#All]=العملاء!$A$1,ROW(Table28[#All]),""),ROW('العملاء الموردين'!$B18)),MATCH(F$3,Table28[#Headers],0))," ")) ->  | G21: =IF($A$1="","", IFERROR(INDEX(Table28[#All],SMALL(IF(Table28[#All]=العملاء!$A$1,ROW(Table28[#All]),""),ROW('العملاء الموردين'!$B18)),MATCH(G$3,Table28[#Headers],0))," ")) ->  | H21: =SUMIFS(Table5[الإجمالي النهائي],Table5[نوع الفاتورة],$H$2,Table5[اسم العميل],Table36[[#This Row],[الإسم]]) -> 0 | I21: =SUMIFS(Table5[الإجمالي النهائي],Table5[نوع الفاتورة],$I$2,Table5[اسم العميل],Table36[[#This Row],[الإسم]])+SUMIFS(table30[المبلغ],table30[عميل / مورد],Table36[[#This Row],[الإسم]],table30[نوع السند],الصندوق!$L$1) -> 0 | J21: =Table36[[#This Row],[الأرصدة المدينة]]-Table36[[#This Row],[الأرصدة الدائنة]] -> 0
A22: 19 | B22: =IF($A$1="","", IFERROR(INDEX(Table28[#All],SMALL(IF(Table28[#All]=العملاء!$A$1,ROW(Table28[#All]),""),ROW('العملاء الموردين'!$B19)),MATCH(B$3,Table28[#Headers],0))," ")) ->  | C22: =IF($A$1="","", IFERROR(INDEX(Table28[#All],SMALL(IF(Table28[#All]=العملاء!$A$1,ROW(Table28[#All]),""),ROW('العملاء الموردين'!$B19)),MATCH(C$3,Table28[#Headers],0))," ")) ->  | D22: =IF($A$1="","", IFERROR(INDEX(Table28[#All],SMALL(IF(Table28[#All]=العملاء!$A$1,ROW(Table28[#All]),""),ROW('العملاء الموردين'!$B19)),MATCH(D$3,Table28[#Headers],0))," ")) ->  | E22: =IF($A$1="","", IFERROR(INDEX(Table28[#All],SMALL(IF(Table28[#All]=العملاء!$A$1,ROW(Table28[#All]),""),ROW('العملاء الموردين'!$B19)),MATCH(E$3,Table28[#Headers],0))," ")) ->  | F22: =IF($A$1="","", IFERROR(INDEX(Table28[#All],SMALL(IF(Table28[#All]=العملاء!$A$1,ROW(Table28[#All]),""),ROW('العملاء الموردين'!$B19)),MATCH(F$3,Table28[#Headers],0))," ")) ->  | G22: =IF($A$1="","", IFERROR(INDEX(Table28[#All],SMALL(IF(Table28[#All]=العملاء!$A$1,ROW(Table28[#All]),""),ROW('العملاء الموردين'!$B19)),MATCH(G$3,Table28[#Headers],0))," ")) ->  | H22: =SUMIFS(Table5[الإجمالي النهائي],Table5[نوع الفاتورة],$H$2,Table5[اسم العميل],Table36[[#This Row],[الإسم]]) -> 0 | I22: =SUMIFS(Table5[الإجمالي النهائي],Table5[نوع الفاتورة],$I$2,Table5[اسم العميل],Table36[[#This Row],[الإسم]])+SUMIFS(table30[المبلغ],table30[عميل / مورد],Table36[[#This Row],[الإسم]],table30[نوع السند],الصندوق!$L$1) -> 0 | J22: =Table36[[#This Row],[الأرصدة المدينة]]-Table36[[#This Row],[الأرصدة الدائنة]] -> 0
A23: 20 | B23: =IF($A$1="","", IFERROR(INDEX(Table28[#All],SMALL(IF(Table28[#All]=العملاء!$A$1,ROW(Table28[#All]),""),ROW('العملاء الموردين'!$B20)),MATCH(B$3,Table28[#Headers],0))," ")) ->  | C23: =IF($A$1="","", IFERROR(INDEX(Table28[#All],SMALL(IF(Table28[#All]=العملاء!$A$1,ROW(Table28[#All]),""),ROW('العملاء الموردين'!$B20)),MATCH(C$3,Table28[#Headers],0))," ")) ->  | D23: =IF($A$1="","", IFERROR(INDEX(Table28[#All],SMALL(IF(Table28[#All]=العملاء!$A$1,ROW(Table28[#All]),""),ROW('العملاء الموردين'!$B20)),MATCH(D$3,Table28[#Headers],0))," ")) ->  | E23: =IF($A$1="","", IFERROR(INDEX(Table28[#All],SMALL(IF(Table28[#All]=العملاء!$A$1,ROW(Table28[#All]),""),ROW('العملاء الموردين'!$B20)),MATCH(E$3,Table28[#Headers],0))," ")) ->  | F23: =IF($A$1="","", IFERROR(INDEX(Table28[#All],SMALL(IF(Table28[#All]=العملاء!$A$1,ROW(Table28[#All]),""),ROW('العملاء الموردين'!$B20)),MATCH(F$3,Table28[#Headers],0))," ")) ->  | G23: =IF($A$1="","", IFERROR(INDEX(Table28[#All],SMALL(IF(Table28[#All]=العملاء!$A$1,ROW(Table28[#All]),""),ROW('العملاء الموردين'!$B20)),MATCH(G$3,Table28[#Headers],0))," ")) ->  | H23: =SUMIFS(Table5[الإجمالي النهائي],Table5[نوع الفاتورة],$H$2,Table5[اسم العميل],Table36[[#This Row],[الإسم]]) -> 0 | I23: =SUMIFS(Table5[الإجمالي النهائي],Table5[نوع الفاتورة],$I$2,Table5[اسم العميل],Table36[[#This Row],[الإسم]])+SUMIFS(table30[المبلغ],table30[عميل / مورد],Table36[[#This Row],[الإسم]],table30[نوع السند],الصندوق!$L$1) -> 0 | J23: =Table36[[#This Row],[الأرصدة المدينة]]-Table36[[#This Row],[الأرصدة الدائنة]] -> 0
A24: 21 | B24: =IF($A$1="","", IFERROR(INDEX(Table28[#All],SMALL(IF(Table28[#All]=العملاء!$A$1,ROW(Table28[#All]),""),ROW('العملاء الموردين'!$B21)),MATCH(B$3,Table28[#Headers],0))," ")) ->  | C24: =IF($A$1="","", IFERROR(INDEX(Table28[#All],SMALL(IF(Table28[#All]=العملاء!$A$1,ROW(Table28[#All]),""),ROW('العملاء الموردين'!$B21)),MATCH(C$3,Table28[#Headers],0))," ")) ->  | D24: =IF($A$1="","", IFERROR(INDEX(Table28[#All],SMALL(IF(Table28[#All]=العملاء!$A$1,ROW(Table28[#All]),""),ROW('العملاء الموردين'!$B21)),MATCH(D$3,Table28[#Headers],0))," ")) ->  | E24: =IF($A$1="","", IFERROR(INDEX(Table28[#All],SMALL(IF(Table28[#All]=العملاء!$A$1,ROW(Table28[#All]),""),ROW('العملاء الموردين'!$B21)),MATCH(E$3,Table28[#Headers],0))," ")) ->  | F24: =IF($A$1="","", IFERROR(INDEX(Table28[#All],SMALL(IF(Table28[#All]=العملاء!$A$1,ROW(Table28[#All]),""),ROW('العملاء الموردين'!$B21)),MATCH(F$3,Table28[#Headers],0))," ")) ->  | G24: =IF($A$1="","", IFERROR(INDEX(Table28[#All],SMALL(IF(Table28[#All]=العملاء!$A$1,ROW(Table28[#All]),""),ROW('العملاء الموردين'!$B21)),MATCH(G$3,Table28[#Headers],0))," ")) ->  | H24: =SUMIFS(Table5[الإجمالي النهائي],Table5[نوع الفاتورة],$H$2,Table5[اسم العميل],Table36[[#This Row],[الإسم]]) -> 0 | I24: =SUMIFS(Table5[الإجمالي النهائي],Table5[نوع الفاتورة],$I$2,Table5[اسم العميل],Table36[[#This Row],[الإسم]])+SUMIFS(table30[المبلغ],table30[عميل / مورد],Table36[[#This Row],[الإسم]],table30[نوع السند],الصندوق!$L$1) -> 0 | J24: =Table36[[#This Row],[الأرصدة المدينة]]-Table36[[#This Row],[الأرصدة الدائنة]] -> 0
A25: 22 | B25: =IF($A$1="","", IFERROR(INDEX(Table28[#All],SMALL(IF(Table28[#All]=العملاء!$A$1,ROW(Table28[#All]),""),ROW('العملاء الموردين'!$B22)),MATCH(B$3,Table28[#Headers],0))," ")) ->  | C25: =IF($A$1="","", IFERROR(INDEX(Table28[#All],SMALL(IF(Table28[#All]=العملاء!$A$1,ROW(Table28[#All]),""),ROW('العملاء الموردين'!$B22)),MATCH(C$3,Table28[#Headers],0))," ")) ->  | D25: =IF($A$1="","", IFERROR(INDEX(Table28[#All],SMALL(IF(Table28[#All]=العملاء!$A$1,ROW(Table28[#All]),""),ROW('العملاء الموردين'!$B22)),MATCH(D$3,Table28[#Headers],0))," ")) ->  | E25: =IF($A$1="","", IFERROR(INDEX(Table28[#All],SMALL(IF(Table28[#All]=العملاء!$A$1,ROW(Table28[#All]),""),ROW('العملاء الموردين'!$B22)),MATCH(E$3,Table28[#Headers],0))," ")) ->  | F25: =IF($A$1="","", IFERROR(INDEX(Table28[#All],SMALL(IF(Table28[#All]=العملاء!$A$1,ROW(Table28[#All]),""),ROW('العملاء الموردين'!$B22)),MATCH(F$3,Table28[#Headers],0))," ")) ->  | G25: =IF($A$1="","", IFERROR(INDEX(Table28[#All],SMALL(IF(Table28[#All]=العملاء!$A$1,ROW(Table28[#All]),""),ROW('العملاء الموردين'!$B22)),MATCH(G$3,Table28[#Headers],0))," ")) ->  | H25: =SUMIFS(Table5[الإجمالي النهائي],Table5[نوع الفاتورة],$H$2,Table5[اسم العميل],Table36[[#This Row],[الإسم]]) -> 0 | I25: =SUMIFS(Table5[الإجمالي النهائي],Table5[نوع الفاتورة],$I$2,Table5[اسم العميل],Table36[[#This Row],[الإسم]])+SUMIFS(table30[المبلغ],table30[عميل / مورد],Table36[[#This Row],[الإسم]],table30[نوع السند],الصندوق!$L$1) -> 0 | J25: =Table36[[#This Row],[الأرصدة المدينة]]-Table36[[#This Row],[الأرصدة الدائنة]] -> 0
A26: 23 | B26: =IF($A$1="","", IFERROR(INDEX(Table28[#All],SMALL(IF(Table28[#All]=العملاء!$A$1,ROW(Table28[#All]),""),ROW('العملاء الموردين'!$B23)),MATCH(B$3,Table28[#Headers],0))," ")) ->  | C26: =IF($A$1="","", IFERROR(INDEX(Table28[#All],SMALL(IF(Table28[#All]=العملاء!$A$1,ROW(Table28[#All]),""),ROW('العملاء الموردين'!$B23)),MATCH(C$3,Table28[#Headers],0))," ")) ->  | D26: =IF($A$1="","", IFERROR(INDEX(Table28[#All],SMALL(IF(Table28[#All]=العملاء!$A$1,ROW(Table28[#All]),""),ROW('العملاء الموردين'!$B23)),MATCH(D$3,Table28[#Headers],0))," ")) ->  | E26: =IF($A$1="","", IFERROR(INDEX(Table28[#All],SMALL(IF(Table28[#All]=العملاء!$A$1,ROW(Table28[#All]),""),ROW('العملاء الموردين'!$B23)),MATCH(E$3,Table28[#Headers],0))," ")) ->  | F26: =IF($A$1="","", IFERROR(INDEX(Table28[#All],SMALL(IF(Table28[#All]=العملاء!$A$1,ROW(Table28[#All]),""),ROW('العملاء الموردين'!$B23)),MATCH(F$3,Table28[#Headers],0))," ")) ->  | G26: =IF($A$1="","", IFERROR(INDEX(Table28[#All],SMALL(IF(Table28[#All]=العملاء!$A$1,ROW(Table28[#All]),""),ROW('العملاء الموردين'!$B23)),MATCH(G$3,Table28[#Headers],0))," ")) ->  | H26: =SUMIFS(Table5[الإجمالي النهائي],Table5[نوع الفاتورة],$H$2,Table5[اسم العميل],Table36[[#This Row],[الإسم]]) -> 0 | I26: =SUMIFS(Table5[الإجمالي النهائي],Table5[نوع الفاتورة],$I$2,Table5[اسم العميل],Table36[[#This Row],[الإسم]])+SUMIFS(table30[المبلغ],table30[عميل / مورد],Table36[[#This Row],[الإسم]],table30[نوع السند],الصندوق!$L$1) -> 0 | J26: =Table36[[#This Row],[الأرصدة المدينة]]-Table36[[#This Row],[الأرصدة الدائنة]] -> 0
A27: 24 | B27: =IF($A$1="","", IFERROR(INDEX(Table28[#All],SMALL(IF(Table28[#All]=العملاء!$A$1,ROW(Table28[#All]),""),ROW('العملاء الموردين'!$B24)),MATCH(B$3,Table28[#Headers],0))," ")) ->  | C27: =IF($A$1="","", IFERROR(INDEX(Table28[#All],SMALL(IF(Table28[#All]=العملاء!$A$1,ROW(Table28[#All]),""),ROW('العملاء الموردين'!$B24)),MATCH(C$3,Table28[#Headers],0))," ")) ->  | D27: =IF($A$1="","", IFERROR(INDEX(Table28[#All],SMALL(IF(Table28[#All]=العملاء!$A$1,ROW(Table28[#All]),""),ROW('العملاء الموردين'!$B24)),MATCH(D$3,Table28[#Headers],0))," ")) ->  | E27: =IF($A$1="","", IFERROR(INDEX(Table28[#All],SMALL(IF(Table28[#All]=العملاء!$A$1,ROW(Table28[#All]),""),ROW('العملاء الموردين'!$B24)),MATCH(E$3,Table28[#Headers],0))," ")) ->  | F27: =IF($A$1="","", IFERROR(INDEX(Table28[#All],SMALL(IF(Table28[#All]=العملاء!$A$1,ROW(Table28[#All]),""),ROW('العملاء الموردين'!$B24)),MATCH(F$3,Table28[#Headers],0))," ")) ->  | G27: =IF($A$1="","", IFERROR(INDEX(Table28[#All],SMALL(IF(Table28[#All]=العملاء!$A$1,ROW(Table28[#All]),""),ROW('العملاء الموردين'!$B24)),MATCH(G$3,Table28[#Headers],0))," ")) ->  | H27: =SUMIFS(Table5[الإجمالي النهائي],Table5[نوع الفاتورة],$H$2,Table5[اسم العميل],Table36[[#This Row],[الإسم]]) -> 0 | I27: =SUMIFS(Table5[الإجمالي النهائي],Table5[نوع الفاتورة],$I$2,Table5[اسم العميل],Table36[[#This Row],[الإسم]])+SUMIFS(table30[المبلغ],table30[عميل / مورد],Table36[[#This Row],[الإسم]],table30[نوع السند],الصندوق!$L$1) -> 0 | J27: =Table36[[#This Row],[الأرصدة المدينة]]-Table36[[#This Row],[الأرصدة الدائنة]] -> 0
A28: 25 | B28: =IF($A$1="","", IFERROR(INDEX(Table28[#All],SMALL(IF(Table28[#All]=العملاء!$A$1,ROW(Table28[#All]),""),ROW('العملاء الموردين'!$B25)),MATCH(B$3,Table28[#Headers],0))," ")) ->  | C28: =IF($A$1="","", IFERROR(INDEX(Table28[#All],SMALL(IF(Table28[#All]=العملاء!$A$1,ROW(Table28[#All]),""),ROW('العملاء الموردين'!$B25)),MATCH(C$3,Table28[#Headers],0))," ")) ->  | D28: =IF($A$1="","", IFERROR(INDEX(Table28[#All],SMALL(IF(Table28[#All]=العملاء!$A$1,ROW(Table28[#All]),""),ROW('العملاء الموردين'!$B25)),MATCH(D$3,Table28[#Headers],0))," ")) ->  | E28: =IF($A$1="","", IFERROR(INDEX(Table28[#All],SMALL(IF(Table28[#All]=العملاء!$A$1,ROW(Table28[#All]),""),ROW('العملاء الموردين'!$B25)),MATCH(E$3,Table28[#Headers],0))," ")) ->  | F28: =IF($A$1="","", IFERROR(INDEX(Table28[#All],SMALL(IF(Table28[#All]=العملاء!$A$1,ROW(Table28[#All]),""),ROW('العملاء الموردين'!$B25)),MATCH(F$3,Table28[#Headers],0))," ")) ->  | G28: =IF($A$1="","", IFERROR(INDEX(Table28[#All],SMALL(IF(Table28[#All]=العملاء!$A$1,ROW(Table28[#All]),""),ROW('العملاء الموردين'!$B25)),MATCH(G$3,Table28[#Headers],0))," ")) ->  | H28: =SUMIFS(Table5[الإجمالي النهائي],Table5[نوع الفاتورة],$H$2,Table5[اسم العميل],Table36[[#This Row],[الإسم]]) -> 0 | I28: =SUMIFS(Table5[الإجمالي النهائي],Table5[نوع الفاتورة],$I$2,Table5[اسم العميل],Table36[[#This Row],[الإسم]])+SUMIFS(table30[المبلغ],table30[عميل / مورد],Table36[[#This Row],[الإسم]],table30[نوع السند],الصندوق!$L$1) -> 0 | J28: =Table36[[#This Row],[الأرصدة المدينة]]-Table36[[#This Row],[الأرصدة الدائنة]] -> 0
A29: 26 | B29: =IF($A$1="","", IFERROR(INDEX(Table28[#All],SMALL(IF(Table28[#All]=العملاء!$A$1,ROW(Table28[#All]),""),ROW('العملاء الموردين'!$B26)),MATCH(B$3,Table28[#Headers],0))," ")) ->  | C29: =IF($A$1="","", IFERROR(INDEX(Table28[#All],SMALL(IF(Table28[#All]=العملاء!$A$1,ROW(Table28[#All]),""),ROW('العملاء الموردين'!$B26)),MATCH(C$3,Table28[#Headers],0))," ")) ->  | D29: =IF($A$1="","", IFERROR(INDEX(Table28[#All],SMALL(IF(Table28[#All]=العملاء!$A$1,ROW(Table28[#All]),""),ROW('العملاء الموردين'!$B26)),MATCH(D$3,Table28[#Headers],0))," ")) ->  | E29: =IF($A$1="","", IFERROR(INDEX(Table28[#All],SMALL(IF(Table28[#All]=العملاء!$A$1,ROW(Table28[#All]),""),ROW('العملاء الموردين'!$B26)),MATCH(E$3,Table28[#Headers],0))," ")) ->  | F29: =IF($A$1="","", IFERROR(INDEX(Table28[#All],SMALL(IF(Table28[#All]=العملاء!$A$1,ROW(Table28[#All]),""),ROW('العملاء الموردين'!$B26)),MATCH(F$3,Table28[#Headers],0))," ")) ->  | G29: =IF($A$1="","", IFERROR(INDEX(Table28[#All],SMALL(IF(Table28[#All]=العملاء!$A$1,ROW(Table28[#All]),""),ROW('العملاء الموردين'!$B26)),MATCH(G$3,Table28[#Headers],0))," ")) ->  | H29: =SUMIFS(Table5[الإجمالي النهائي],Table5[نوع الفاتورة],$H$2,Table5[اسم العميل],Table36[[#This Row],[الإسم]]) -> 0 | I29: =SUMIFS(Table5[الإجمالي النهائي],Table5[نوع الفاتورة],$I$2,Table5[اسم العميل],Table36[[#This Row],[الإسم]])+SUMIFS(table30[المبلغ],table30[عميل / مورد],Table36[[#This Row],[الإسم]],table30[نوع السند],الصندوق!$L$1) -> 0 | J29: =Table36[[#This Row],[الأرصدة المدينة]]-Table36[[#This Row],[الأرصدة الدائنة]] -> 0
A30: 27 | B30: =IF($A$1="","", IFERROR(INDEX(Table28[#All],SMALL(IF(Table28[#All]=العملاء!$A$1,ROW(Table28[#All]),""),ROW('العملاء الموردين'!$B27)),MATCH(B$3,Table28[#Headers],0))," ")) ->  | C30: =IF($A$1="","", IFERROR(INDEX(Table28[#All],SMALL(IF(Table28[#All]=العملاء!$A$1,ROW(Table28[#All]),""),ROW('العملاء الموردين'!$B27)),MATCH(C$3,Table28[#Headers],0))," ")) ->  | D30: =IF($A$1="","", IFERROR(INDEX(Table28[#All],SMALL(IF(Table28[#All]=العملاء!$A$1,ROW(Table28[#All]),""),ROW('العملاء الموردين'!$B27)),MATCH(D$3,Table28[#Headers],0))," ")) ->  | E30: =IF($A$1="","", IFERROR(INDEX(Table28[#All],SMALL(IF(Table28[#All]=العملاء!$A$1,ROW(Table28[#All]),""),ROW('العملاء الموردين'!$B27)),MATCH(E$3,Table28[#Headers],0))," ")) ->  | F30: =IF($A$1="","", IFERROR(INDEX(Table28[#All],SMALL(IF(Table28[#All]=العملاء!$A$1,ROW(Table28[#All]),""),ROW('العملاء الموردين'!$B27)),MATCH(F$3,Table28[#Headers],0))," ")) ->  | G30: =IF($A$1="","", IFERROR(INDEX(Table28[#All],SMALL(IF(Table28[#All]=العملاء!$A$1,ROW(Table28[#All]),""),ROW('العملاء الموردين'!$B27)),MATCH(G$3,Table28[#Headers],0))," ")) ->  | H30: =SUMIFS(Table5[الإجمالي النهائي],Table5[نوع الفاتورة],$H$2,Table5[اسم العميل],Table36[[#This Row],[الإسم]]) -> 0 | I30: =SUMIFS(Table5[الإجمالي النهائي],Table5[نوع الفاتورة],$I$2,Table5[اسم العميل],Table36[[#This Row],[الإسم]])+SUMIFS(table30[المبلغ],table30[عميل / مورد],Table36[[#This Row],[الإسم]],table30[نوع السند],الصندوق!$L$1) -> 0 | J30: =Table36[[#This Row],[الأرصدة المدينة]]-Table36[[#This Row],[الأرصدة الدائنة]] -> 0
A31: 28 | B31: =IF($A$1="","", IFERROR(INDEX(Table28[#All],SMALL(IF(Table28[#All]=العملاء!$A$1,ROW(Table28[#All]),""),ROW('العملاء الموردين'!$B28)),MATCH(B$3,Table28[#Headers],0))," ")) ->  | C31: =IF($A$1="","", IFERROR(INDEX(Table28[#All],SMALL(IF(Table28[#All]=العملاء!$A$1,ROW(Table28[#All]),""),ROW('العملاء الموردين'!$B28)),MATCH(C$3,Table28[#Headers],0))," ")) ->  | D31: =IF($A$1="","", IFERROR(INDEX(Table28[#All],SMALL(IF(Table28[#All]=العملاء!$A$1,ROW(Table28[#All]),""),ROW('العملاء الموردين'!$B28)),MATCH(D$3,Table28[#Headers],0))," ")) ->  | E31: =IF($A$1="","", IFERROR(INDEX(Table28[#All],SMALL(IF(Table28[#All]=العملاء!$A$1,ROW(Table28[#All]),""),ROW('العملاء الموردين'!$B28)),MATCH(E$3,Table28[#Headers],0))," ")) ->  | F31: =IF($A$1="","", IFERROR(INDEX(Table28[#All],SMALL(IF(Table28[#All]=العملاء!$A$1,ROW(Table28[#All]),""),ROW('العملاء الموردين'!$B28)),MATCH(F$3,Table28[#Headers],0))," ")) ->  | G31: =IF($A$1="","", IFERROR(INDEX(Table28[#All],SMALL(IF(Table28[#All]=العملاء!$A$1,ROW(Table28[#All]),""),ROW('العملاء الموردين'!$B28)),MATCH(G$3,Table28[#Headers],0))," ")) ->  | H31: =SUMIFS(Table5[الإجمالي النهائي],Table5[نوع الفاتورة],$H$2,Table5[اسم العميل],Table36[[#This Row],[الإسم]]) -> 0 | I31: =SUMIFS(Table5[الإجمالي النهائي],Table5[نوع الفاتورة],$I$2,Table5[اسم العميل],Table36[[#This Row],[الإسم]])+SUMIFS(table30[المبلغ],table30[عميل / مورد],Table36[[#This Row],[الإسم]],table30[نوع السند],الصندوق!$L$1) -> 0 | J31: =Table36[[#This Row],[الأرصدة المدينة]]-Table36[[#This Row],[الأرصدة الدائنة]] -> 0
A32: 29 | B32: =IF($A$1="","", IFERROR(INDEX(Table28[#All],SMALL(IF(Table28[#All]=العملاء!$A$1,ROW(Table28[#All]),""),ROW('العملاء الموردين'!$B29)),MATCH(B$3,Table28[#Headers],0))," ")) ->  | C32: =IF($A$1="","", IFERROR(INDEX(Table28[#All],SMALL(IF(Table28[#All]=العملاء!$A$1,ROW(Table28[#All]),""),ROW('العملاء الموردين'!$B29)),MATCH(C$3,Table28[#Headers],0))," ")) ->  | D32: =IF($A$1="","", IFERROR(INDEX(Table28[#All],SMALL(IF(Table28[#All]=العملاء!$A$1,ROW(Table28[#All]),""),ROW('العملاء الموردين'!$B29)),MATCH(D$3,Table28[#Headers],0))," ")) ->  | E32: =IF($A$1="","", IFERROR(INDEX(Table28[#All],SMALL(IF(Table28[#All]=العملاء!$A$1,ROW(Table28[#All]),""),ROW('العملاء الموردين'!$B29)),MATCH(E$3,Table28[#Headers],0))," ")) ->  | F32: =IF($A$1="","", IFERROR(INDEX(Table28[#All],SMALL(IF(Table28[#All]=العملاء!$A$1,ROW(Table28[#All]),""),ROW('العملاء الموردين'!$B29)),MATCH(F$3,Table28[#Headers],0))," ")) ->  | G32: =IF($A$1="","", IFERROR(INDEX(Table28[#All],SMALL(IF(Table28[#All]=العملاء!$A$1,ROW(Table28[#All]),""),ROW('العملاء الموردين'!$B29)),MATCH(G$3,Table28[#Headers],0))," ")) ->  | H32: =SUMIFS(Table5[الإجمالي النهائي],Table5[نوع الفاتورة],$H$2,Table5[اسم العميل],Table36[[#This Row],[الإسم]]) -> 0 | I32: =SUMIFS(Table5[الإجمالي النهائي],Table5[نوع الفاتورة],$I$2,Table5[اسم العميل],Table36[[#This Row],[الإسم]])+SUMIFS(table30[المبلغ],table30[عميل / مورد],Table36[[#This Row],[الإسم]],table30[نوع السند],الصندوق!$L$1) -> 0 | J32: =Table36[[#This Row],[الأرصدة المدينة]]-Table36[[#This Row],[الأرصدة الدائنة]] -> 0
A33: 30 | B33: =IF($A$1="","", IFERROR(INDEX(Table28[#All],SMALL(IF(Table28[#All]=العملاء!$A$1,ROW(Table28[#All]),""),ROW('العملاء الموردين'!$B30)),MATCH(B$3,Table28[#Headers],0))," ")) ->  | C33: =IF($A$1="","", IFERROR(INDEX(Table28[#All],SMALL(IF(Table28[#All]=العملاء!$A$1,ROW(Table28[#All]),""),ROW('العملاء الموردين'!$B30)),MATCH(C$3,Table28[#Headers],0))," ")) ->  | D33: =IF($A$1="","", IFERROR(INDEX(Table28[#All],SMALL(IF(Table28[#All]=العملاء!$A$1,ROW(Table28[#All]),""),ROW('العملاء الموردين'!$B30)),MATCH(D$3,Table28[#Headers],0))," ")) ->  | E33: =IF($A$1="","", IFERROR(INDEX(Table28[#All],SMALL(IF(Table28[#All]=العملاء!$A$1,ROW(Table28[#All]),""),ROW('العملاء الموردين'!$B30)),MATCH(E$3,Table28[#Headers],0))," ")) ->  | F33: =IF($A$1="","", IFERROR(INDEX(Table28[#All],SMALL(IF(Table28[#All]=العملاء!$A$1,ROW(Table28[#All]),""),ROW('العملاء الموردين'!$B30)),MATCH(F$3,Table28[#Headers],0))," ")) ->  | G33: =IF($A$1="","", IFERROR(INDEX(Table28[#All],SMALL(IF(Table28[#All]=العملاء!$A$1,ROW(Table28[#All]),""),ROW('العملاء الموردين'!$B30)),MATCH(G$3,Table28[#Headers],0))," ")) ->  | H33: =SUMIFS(Table5[الإجمالي النهائي],Table5[نوع الفاتورة],$H$2,Table5[اسم العميل],Table36[[#This Row],[الإسم]]) -> 0 | I33: =SUMIFS(Table5[الإجمالي النهائي],Table5[نوع الفاتورة],$I$2,Table5[اسم العميل],Table36[[#This Row],[الإسم]])+SUMIFS(table30[المبلغ],table30[عميل / مورد],Table36[[#This Row],[الإسم]],table30[نوع السند],الصندوق!$L$1) -> 0 | J33: =Table36[[#This Row],[الأرصدة المدينة]]-Table36[[#This Row],[الأرصدة الدائنة]] -> 0
A34: 31 | B34: =IF($A$1="","", IFERROR(INDEX(Table28[#All],SMALL(IF(Table28[#All]=العملاء!$A$1,ROW(Table28[#All]),""),ROW('العملاء الموردين'!$B31)),MATCH(B$3,Table28[#Headers],0))," ")) ->  | C34: =IF($A$1="","", IFERROR(INDEX(Table28[#All],SMALL(IF(Table28[#All]=العملاء!$A$1,ROW(Table28[#All]),""),ROW('العملاء الموردين'!$B31)),MATCH(C$3,Table28[#Headers],0))," ")) ->  | D34: =IF($A$1="","", IFERROR(INDEX(Table28[#All],SMALL(IF(Table28[#All]=العملاء!$A$1,ROW(Table28[#All]),""),ROW('العملاء الموردين'!$B31)),MATCH(D$3,Table28[#Headers],0))," ")) ->  | E34: =IF($A$1="","", IFERROR(INDEX(Table28[#All],SMALL(IF(Table28[#All]=العملاء!$A$1,ROW(Table28[#All]),""),ROW('العملاء الموردين'!$B31)),MATCH(E$3,Table28[#Headers],0))," ")) ->  | F34: =IF($A$1="","", IFERROR(INDEX(Table28[#All],SMALL(IF(Table28[#All]=العملاء!$A$1,ROW(Table28[#All]),""),ROW('العملاء الموردين'!$B31)),MATCH(F$3,Table28[#Headers],0))," ")) ->  | G34: =IF($A$1="","", IFERROR(INDEX(Table28[#All],SMALL(IF(Table28[#All]=العملاء!$A$1,ROW(Table28[#All]),""),ROW('العملاء الموردين'!$B31)),MATCH(G$3,Table28[#Headers],0))," ")) ->  | H34: =SUMIFS(Table5[الإجمالي النهائي],Table5[نوع الفاتورة],$H$2,Table5[اسم العميل],Table36[[#This Row],[الإسم]]) -> 0 | I34: =SUMIFS(Table5[الإجمالي النهائي],Table5[نوع الفاتورة],$I$2,Table5[اسم العميل],Table36[[#This Row],[الإسم]])+SUMIFS(table30[المبلغ],table30[عميل / مورد],Table36[[#This Row],[الإسم]],table30[نوع السند],الصندوق!$L$1) -> 0 | J34: =Table36[[#This Row],[الأرصدة المدينة]]-Table36[[#This Row],[الأرصدة الدائنة]] -> 0
A35: 32 | B35: =IF($A$1="","", IFERROR(INDEX(Table28[#All],SMALL(IF(Table28[#All]=العملاء!$A$1,ROW(Table28[#All]),""),ROW('العملاء الموردين'!$B32)),MATCH(B$3,Table28[#Headers],0))," ")) ->  | C35: =IF($A$1="","", IFERROR(INDEX(Table28[#All],SMALL(IF(Table28[#All]=العملاء!$A$1,ROW(Table28[#All]),""),ROW('العملاء الموردين'!$B32)),MATCH(C$3,Table28[#Headers],0))," ")) ->  | D35: =IF($A$1="","", IFERROR(INDEX(Table28[#All],SMALL(IF(Table28[#All]=العملاء!$A$1,ROW(Table28[#All]),""),ROW('العملاء الموردين'!$B32)),MATCH(D$3,Table28[#Headers],0))," ")) ->  | E35: =IF($A$1="","", IFERROR(INDEX(Table28[#All],SMALL(IF(Table28[#All]=العملاء!$A$1,ROW(Table28[#All]),""),ROW('العملاء الموردين'!$B32)),MATCH(E$3,Table28[#Headers],0))," ")) ->  | F35: =IF($A$1="","", IFERROR(INDEX(Table28[#All],SMALL(IF(Table28[#All]=العملاء!$A$1,ROW(Table28[#All]),""),ROW('العملاء الموردين'!$B32)),MATCH(F$3,Table28[#Headers],0))," ")) ->  | G35: =IF($A$1="","", IFERROR(INDEX(Table28[#All],SMALL(IF(Table28[#All]=العملاء!$A$1,ROW(Table28[#All]),""),ROW('العملاء الموردين'!$B32)),MATCH(G$3,Table28[#Headers],0))," ")) ->  | H35: =SUMIFS(Table5[الإجمالي النهائي],Table5[نوع الفاتورة],$H$2,Table5[اسم العميل],Table36[[#This Row],[الإسم]]) -> 0 | I35: =SUMIFS(Table5[الإجمالي النهائي],Table5[نوع الفاتورة],$I$2,Table5[اسم العميل],Table36[[#This Row],[الإسم]])+SUMIFS(table30[المبلغ],table30[عميل / مورد],Table36[[#This Row],[الإسم]],table30[نوع السند],الصندوق!$L$1) -> 0 | J35: =Table36[[#This Row],[الأرصدة المدينة]]-Table36[[#This Row],[الأرصدة الدائنة]] -> 0
A36: 33 | B36: =IF($A$1="","", IFERROR(INDEX(Table28[#All],SMALL(IF(Table28[#All]=العملاء!$A$1,ROW(Table28[#All]),""),ROW('العملاء الموردين'!$B33)),MATCH(B$3,Table28[#Headers],0))," ")) ->  | C36: =IF($A$1="","", IFERROR(INDEX(Table28[#All],SMALL(IF(Table28[#All]=العملاء!$A$1,ROW(Table28[#All]),""),ROW('العملاء الموردين'!$B33)),MATCH(C$3,Table28[#Headers],0))," ")) ->  | D36: =IF($A$1="","", IFERROR(INDEX(Table28[#All],SMALL(IF(Table28[#All]=العملاء!$A$1,ROW(Table28[#All]),""),ROW('العملاء الموردين'!$B33)),MATCH(D$3,Table28[#Headers],0))," ")) ->  | E36: =IF($A$1="","", IFERROR(INDEX(Table28[#All],SMALL(IF(Table28[#All]=العملاء!$A$1,ROW(Table28[#All]),""),ROW('العملاء الموردين'!$B33)),MATCH(E$3,Table28[#Headers],0))," ")) ->  | F36: =IF($A$1="","", IFERROR(INDEX(Table28[#All],SMALL(IF(Table28[#All]=العملاء!$A$1,ROW(Table28[#All]),""),ROW('العملاء الموردين'!$B33)),MATCH(F$3,Table28[#Headers],0))," ")) ->  | G36: =IF($A$1="","", IFERROR(INDEX(Table28[#All],SMALL(IF(Table28[#All]=العملاء!$A$1,ROW(Table28[#All]),""),ROW('العملاء الموردين'!$B33)),MATCH(G$3,Table28[#Headers],0))," ")) ->  | H36: =SUMIFS(Table5[الإجمالي النهائي],Table5[نوع الفاتورة],$H$2,Table5[اسم العميل],Table36[[#This Row],[الإسم]]) -> 0 | I36: =SUMIFS(Table5[الإجمالي النهائي],Table5[نوع الفاتورة],$I$2,Table5[اسم العميل],Table36[[#This Row],[الإسم]])+SUMIFS(table30[المبلغ],table30[عميل / مورد],Table36[[#This Row],[الإسم]],table30[نوع السند],الصندوق!$L$1) -> 0 | J36: =Table36[[#This Row],[الأرصدة المدينة]]-Table36[[#This Row],[الأرصدة الدائنة]] -> 0
A37: 34 | B37: =IF($A$1="","", IFERROR(INDEX(Table28[#All],SMALL(IF(Table28[#All]=العملاء!$A$1,ROW(Table28[#All]),""),ROW('العملاء الموردين'!$B34)),MATCH(B$3,Table28[#Headers],0))," ")) ->  | C37: =IF($A$1="","", IFERROR(INDEX(Table28[#All],SMALL(IF(Table28[#All]=العملاء!$A$1,ROW(Table28[#All]),""),ROW('العملاء الموردين'!$B34)),MATCH(C$3,Table28[#Headers],0))," ")) ->  | D37: =IF($A$1="","", IFERROR(INDEX(Table28[#All],SMALL(IF(Table28[#All]=العملاء!$A$1,ROW(Table28[#All]),""),ROW('العملاء الموردين'!$B34)),MATCH(D$3,Table28[#Headers],0))," ")) ->  | E37: =IF($A$1="","", IFERROR(INDEX(Table28[#All],SMALL(IF(Table28[#All]=العملاء!$A$1,ROW(Table28[#All]),""),ROW('العملاء الموردين'!$B34)),MATCH(E$3,Table28[#Headers],0))," ")) ->  | F37: =IF($A$1="","", IFERROR(INDEX(Table28[#All],SMALL(IF(Table28[#All]=العملاء!$A$1,ROW(Table28[#All]),""),ROW('العملاء الموردين'!$B34)),MATCH(F$3,Table28[#Headers],0))," ")) ->  | G37: =IF($A$1="","", IFERROR(INDEX(Table28[#All],SMALL(IF(Table28[#All]=العملاء!$A$1,ROW(Table28[#All]),""),ROW('العملاء الموردين'!$B34)),MATCH(G$3,Table28[#Headers],0))," ")) ->  | H37: =SUMIFS(Table5[الإجمالي النهائي],Table5[نوع الفاتورة],$H$2,Table5[اسم العميل],Table36[[#This Row],[الإسم]]) -> 0 | I37: =SUMIFS(Table5[الإجمالي النهائي],Table5[نوع الفاتورة],$I$2,Table5[اسم العميل],Table36[[#This Row],[الإسم]])+SUMIFS(table30[المبلغ],table30[عميل / مورد],Table36[[#This Row],[الإسم]],table30[نوع السند],الصندوق!$L$1) -> 0 | J37: =Table36[[#This Row],[الأرصدة المدينة]]-Table36[[#This Row],[الأرصدة الدائنة]] -> 0
A38: 35 | B38: =IF($A$1="","", IFERROR(INDEX(Table28[#All],SMALL(IF(Table28[#All]=العملاء!$A$1,ROW(Table28[#All]),""),ROW('العملاء الموردين'!$B35)),MATCH(B$3,Table28[#Headers],0))," ")) ->  | C38: =IF($A$1="","", IFERROR(INDEX(Table28[#All],SMALL(IF(Table28[#All]=العملاء!$A$1,ROW(Table28[#All]),""),ROW('العملاء الموردين'!$B35)),MATCH(C$3,Table28[#Headers],0))," ")) ->  | D38: =IF($A$1="","", IFERROR(INDEX(Table28[#All],SMALL(IF(Table28[#All]=العملاء!$A$1,ROW(Table28[#All]),""),ROW('العملاء الموردين'!$B35)),MATCH(D$3,Table28[#Headers],0))," ")) ->  | E38: =IF($A$1="","", IFERROR(INDEX(Table28[#All],SMALL(IF(Table28[#All]=العملاء!$A$1,ROW(Table28[#All]),""),ROW('العملاء الموردين'!$B35)),MATCH(E$3,Table28[#Headers],0))," ")) ->  | F38: =IF($A$1="","", IFERROR(INDEX(Table28[#All],SMALL(IF(Table28[#All]=العملاء!$A$1,ROW(Table28[#All]),""),ROW('العملاء الموردين'!$B35)),MATCH(F$3,Table28[#Headers],0))," ")) ->  | G38: =IF($A$1="","", IFERROR(INDEX(Table28[#All],SMALL(IF(Table28[#All]=العملاء!$A$1,ROW(Table28[#All]),""),ROW('العملاء الموردين'!$B35)),MATCH(G$3,Table28[#Headers],0))," ")) ->  | H38: =SUMIFS(Table5[الإجمالي النهائي],Table5[نوع الفاتورة],$H$2,Table5[اسم العميل],Table36[[#This Row],[الإسم]]) -> 0 | I38: =SUMIFS(Table5[الإجمالي النهائي],Table5[نوع الفاتورة],$I$2,Table5[اسم العميل],Table36[[#This Row],[الإسم]])+SUMIFS(table30[المبلغ],table30[عميل / مورد],Table36[[#This Row],[الإسم]],table30[نوع السند],الصندوق!$L$1) -> 0 | J38: =Table36[[#This Row],[الأرصدة المدينة]]-Table36[[#This Row],[الأرصدة الدائنة]] -> 0
A39: 36 | B39: =IF($A$1="","", IFERROR(INDEX(Table28[#All],SMALL(IF(Table28[#All]=العملاء!$A$1,ROW(Table28[#All]),""),ROW('العملاء الموردين'!$B36)),MATCH(B$3,Table28[#Headers],0))," ")) ->  | C39: =IF($A$1="","", IFERROR(INDEX(Table28[#All],SMALL(IF(Table28[#All]=العملاء!$A$1,ROW(Table28[#All]),""),ROW('العملاء الموردين'!$B36)),MATCH(C$3,Table28[#Headers],0))," ")) ->  | D39: =IF($A$1="","", IFERROR(INDEX(Table28[#All],SMALL(IF(Table28[#All]=العملاء!$A$1,ROW(Table28[#All]),""),ROW('العملاء الموردين'!$B36)),MATCH(D$3,Table28[#Headers],0))," ")) ->  | E39: =IF($A$1="","", IFERROR(INDEX(Table28[#All],SMALL(IF(Table28[#All]=العملاء!$A$1,ROW(Table28[#All]),""),ROW('العملاء الموردين'!$B36)),MATCH(E$3,Table28[#Headers],0))," ")) ->  | F39: =IF($A$1="","", IFERROR(INDEX(Table28[#All],SMALL(IF(Table28[#All]=العملاء!$A$1,ROW(Table28[#All]),""),ROW('العملاء الموردين'!$B36)),MATCH(F$3,Table28[#Headers],0))," ")) ->  | G39: =IF($A$1="","", IFERROR(INDEX(Table28[#All],SMALL(IF(Table28[#All]=العملاء!$A$1,ROW(Table28[#All]),""),ROW('العملاء الموردين'!$B36)),MATCH(G$3,Table28[#Headers],0))," ")) ->  | H39: =SUMIFS(Table5[الإجمالي النهائي],Table5[نوع الفاتورة],$H$2,Table5[اسم العميل],Table36[[#This Row],[الإسم]]) -> 0 | I39: =SUMIFS(Table5[الإجمالي النهائي],Table5[نوع الفاتورة],$I$2,Table5[اسم العميل],Table36[[#This Row],[الإسم]])+SUMIFS(table30[المبلغ],table30[عميل / مورد],Table36[[#This Row],[الإسم]],table30[نوع السند],الصندوق!$L$1) -> 0 | J39: =Table36[[#This Row],[الأرصدة المدينة]]-Table36[[#This Row],[الأرصدة الدائنة]] -> 0
A40: 37 | B40: =IF($A$1="","", IFERROR(INDEX(Table28[#All],SMALL(IF(Table28[#All]=العملاء!$A$1,ROW(Table28[#All]),""),ROW('العملاء الموردين'!$B37)),MATCH(B$3,Table28[#Headers],0))," ")) ->  | C40: =IF($A$1="","", IFERROR(INDEX(Table28[#All],SMALL(IF(Table28[#All]=العملاء!$A$1,ROW(Table28[#All]),""),ROW('العملاء الموردين'!$B37)),MATCH(C$3,Table28[#Headers],0))," ")) ->  | D40: =IF($A$1="","", IFERROR(INDEX(Table28[#All],SMALL(IF(Table28[#All]=العملاء!$A$1,ROW(Table28[#All]),""),ROW('العملاء الموردين'!$B37)),MATCH(D$3,Table28[#Headers],0))," ")) ->  | E40: =IF($A$1="","", IFERROR(INDEX(Table28[#All],SMALL(IF(Table28[#All]=العملاء!$A$1,ROW(Table28[#All]),""),ROW('العملاء الموردين'!$B37)),MATCH(E$3,Table28[#Headers],0))," ")) ->  | F40: =IF($A$1="","", IFERROR(INDEX(Table28[#All],SMALL(IF(Table28[#All]=العملاء!$A$1,ROW(Table28[#All]),""),ROW('العملاء الموردين'!$B37)),MATCH(F$3,Table28[#Headers],0))," ")) ->  | G40: =IF($A$1="","", IFERROR(INDEX(Table28[#All],SMALL(IF(Table28[#All]=العملاء!$A$1,ROW(Table28[#All]),""),ROW('العملاء الموردين'!$B37)),MATCH(G$3,Table28[#Headers],0))," ")) ->  | H40: =SUMIFS(Table5[الإجمالي النهائي],Table5[نوع الفاتورة],$H$2,Table5[اسم العميل],Table36[[#This Row],[الإسم]]) -> 0 | I40: =SUMIFS(Table5[الإجمالي النهائي],Table5[نوع الفاتورة],$I$2,Table5[اسم العميل],Table36[[#This Row],[الإسم]])+SUMIFS(table30[المبلغ],table30[عميل / مورد],Table36[[#This Row],[الإسم]],table30[نوع السند],الصندوق!$L$1) -> 0 | J40: =Table36[[#This Row],[الأرصدة المدينة]]-Table36[[#This Row],[الأرصدة الدائنة]] -> 0
A41: 38 | B41: =IF($A$1="","", IFERROR(INDEX(Table28[#All],SMALL(IF(Table28[#All]=العملاء!$A$1,ROW(Table28[#All]),""),ROW('العملاء الموردين'!$B38)),MATCH(B$3,Table28[#Headers],0))," ")) ->  | C41: =IF($A$1="","", IFERROR(INDEX(Table28[#All],SMALL(IF(Table28[#All]=العملاء!$A$1,ROW(Table28[#All]),""),ROW('العملاء الموردين'!$B38)),MATCH(C$3,Table28[#Headers],0))," ")) ->  | D41: =IF($A$1="","", IFERROR(INDEX(Table28[#All],SMALL(IF(Table28[#All]=العملاء!$A$1,ROW(Table28[#All]),""),ROW('العملاء الموردين'!$B38)),MATCH(D$3,Table28[#Headers],0))," ")) ->  | E41: =IF($A$1="","", IFERROR(INDEX(Table28[#All],SMALL(IF(Table28[#All]=العملاء!$A$1,ROW(Table28[#All]),""),ROW('العملاء الموردين'!$B38)),MATCH(E$3,Table28[#Headers],0))," ")) ->  | F41: =IF($A$1="","", IFERROR(INDEX(Table28[#All],SMALL(IF(Table28[#All]=العملاء!$A$1,ROW(Table28[#All]),""),ROW('العملاء الموردين'!$B38)),MATCH(F$3,Table28[#Headers],0))," ")) ->  | G41: =IF($A$1="","", IFERROR(INDEX(Table28[#All],SMALL(IF(Table28[#All]=العملاء!$A$1,ROW(Table28[#All]),""),ROW('العملاء الموردين'!$B38)),MATCH(G$3,Table28[#Headers],0))," ")) ->  | H41: =SUMIFS(Table5[الإجمالي النهائي],Table5[نوع الفاتورة],$H$2,Table5[اسم العميل],Table36[[#This Row],[الإسم]]) -> 0 | I41: =SUMIFS(Table5[الإجمالي النهائي],Table5[نوع الفاتورة],$I$2,Table5[اسم العميل],Table36[[#This Row],[الإسم]])+SUMIFS(table30[المبلغ],table30[عميل / مورد],Table36[[#This Row],[الإسم]],table30[نوع السند],الصندوق!$L$1) -> 0 | J41: =Table36[[#This Row],[الأرصدة المدينة]]-Table36[[#This Row],[الأرصدة الدائنة]] -> 0
A42: 39 | B42: =IF($A$1="","", IFERROR(INDEX(Table28[#All],SMALL(IF(Table28[#All]=العملاء!$A$1,ROW(Table28[#All]),""),ROW('العملاء الموردين'!$B39)),MATCH(B$3,Table28[#Headers],0))," ")) ->  | C42: =IF($A$1="","", IFERROR(INDEX(Table28[#All],SMALL(IF(Table28[#All]=العملاء!$A$1,ROW(Table28[#All]),""),ROW('العملاء الموردين'!$B39)),MATCH(C$3,Table28[#Headers],0))," ")) ->  | D42: =IF($A$1="","", IFERROR(INDEX(Table28[#All],SMALL(IF(Table28[#All]=العملاء!$A$1,ROW(Table28[#All]),""),ROW('العملاء الموردين'!$B39)),MATCH(D$3,Table28[#Headers],0))," ")) ->  | E42: =IF($A$1="","", IFERROR(INDEX(Table28[#All],SMALL(IF(Table28[#All]=العملاء!$A$1,ROW(Table28[#All]),""),ROW('العملاء الموردين'!$B39)),MATCH(E$3,Table28[#Headers],0))," ")) ->  | F42: =IF($A$1="","", IFERROR(INDEX(Table28[#All],SMALL(IF(Table28[#All]=العملاء!$A$1,ROW(Table28[#All]),""),ROW('العملاء الموردين'!$B39)),MATCH(F$3,Table28[#Headers],0))," ")) ->  | G42: =IF($A$1="","", IFERROR(INDEX(Table28[#All],SMALL(IF(Table28[#All]=العملاء!$A$1,ROW(Table28[#All]),""),ROW('العملاء الموردين'!$B39)),MATCH(G$3,Table28[#Headers],0))," ")) ->  | H42: =SUMIFS(Table5[الإجمالي النهائي],Table5[نوع الفاتورة],$H$2,Table5[اسم العميل],Table36[[#This Row],[الإسم]]) -> 0 | I42: =SUMIFS(Table5[الإجمالي النهائي],Table5[نوع الفاتورة],$I$2,Table5[اسم العميل],Table36[[#This Row],[الإسم]])+SUMIFS(table30[المبلغ],table30[عميل / مورد],Table36[[#This Row],[الإسم]],table30[نوع السند],الصندوق!$L$1) -> 0 | J42: =Table36[[#This Row],[الأرصدة المدينة]]-Table36[[#This Row],[الأرصدة الدائنة]] -> 0
A43: 40 | B43: =IF($A$1="","", IFERROR(INDEX(Table28[#All],SMALL(IF(Table28[#All]=العملاء!$A$1,ROW(Table28[#All]),""),ROW('العملاء الموردين'!$B40)),MATCH(B$3,Table28[#Headers],0))," ")) ->  | C43: =IF($A$1="","", IFERROR(INDEX(Table28[#All],SMALL(IF(Table28[#All]=العملاء!$A$1,ROW(Table28[#All]),""),ROW('العملاء الموردين'!$B40)),MATCH(C$3,Table28[#Headers],0))," ")) ->  | D43: =IF($A$1="","", IFERROR(INDEX(Table28[#All],SMALL(IF(Table28[#All]=العملاء!$A$1,ROW(Table28[#All]),""),ROW('العملاء الموردين'!$B40)),MATCH(D$3,Table28[#Headers],0))," ")) ->  | E43: =IF($A$1="","", IFERROR(INDEX(Table28[#All],SMALL(IF(Table28[#All]=العملاء!$A$1,ROW(Table28[#All]),""),ROW('العملاء الموردين'!$B40)),MATCH(E$3,Table28[#Headers],0))," ")) ->  | F43: =IF($A$1="","", IFERROR(INDEX(Table28[#All],SMALL(IF(Table28[#All]=العملاء!$A$1,ROW(Table28[#All]),""),ROW('العملاء الموردين'!$B40)),MATCH(F$3,Table28[#Headers],0))," ")) ->  | G43: =IF($A$1="","", IFERROR(INDEX(Table28[#All],SMALL(IF(Table28[#All]=العملاء!$A$1,ROW(Table28[#All]),""),ROW('العملاء الموردين'!$B40)),MATCH(G$3,Table28[#Headers],0))," ")) ->  | H43: =SUMIFS(Table5[الإجمالي النهائي],Table5[نوع الفاتورة],$H$2,Table5[اسم العميل],Table36[[#This Row],[الإسم]]) -> 0 | I43: =SUMIFS(Table5[الإجمالي النهائي],Table5[نوع الفاتورة],$I$2,Table5[اسم العميل],Table36[[#This Row],[الإسم]])+SUMIFS(table30[المبلغ],table30[عميل / مورد],Table36[[#This Row],[الإسم]],table30[نوع السند],الصندوق!$L$1) -> 0 | J43: =Table36[[#This Row],[الأرصدة المدينة]]-Table36[[#This Row],[الأرصدة الدائنة]] -> 0
A44: 41 | B44: =IF($A$1="","", IFERROR(INDEX(Table28[#All],SMALL(IF(Table28[#All]=العملاء!$A$1,ROW(Table28[#All]),""),ROW('العملاء الموردين'!$B41)),MATCH(B$3,Table28[#Headers],0))," ")) ->  | C44: =IF($A$1="","", IFERROR(INDEX(Table28[#All],SMALL(IF(Table28[#All]=العملاء!$A$1,ROW(Table28[#All]),""),ROW('العملاء الموردين'!$B41)),MATCH(C$3,Table28[#Headers],0))," ")) ->  | D44: =IF($A$1="","", IFERROR(INDEX(Table28[#All],SMALL(IF(Table28[#All]=العملاء!$A$1,ROW(Table28[#All]),""),ROW('العملاء الموردين'!$B41)),MATCH(D$3,Table28[#Headers],0))," ")) ->  | E44: =IF($A$1="","", IFERROR(INDEX(Table28[#All],SMALL(IF(Table28[#All]=العملاء!$A$1,ROW(Table28[#All]),""),ROW('العملاء الموردين'!$B41)),MATCH(E$3,Table28[#Headers],0))," ")) ->  | F44: =IF($A$1="","", IFERROR(INDEX(Table28[#All],SMALL(IF(Table28[#All]=العملاء!$A$1,ROW(Table28[#All]),""),ROW('العملاء الموردين'!$B41)),MATCH(F$3,Table28[#Headers],0))," ")) ->  | G44: =IF($A$1="","", IFERROR(INDEX(Table28[#All],SMALL(IF(Table28[#All]=العملاء!$A$1,ROW(Table28[#All]),""),ROW('العملاء الموردين'!$B41)),MATCH(G$3,Table28[#Headers],0))," ")) ->  | H44: =SUMIFS(Table5[الإجمالي النهائي],Table5[نوع الفاتورة],$H$2,Table5[اسم العميل],Table36[[#This Row],[الإسم]]) -> 0 | I44: =SUMIFS(Table5[الإجمالي النهائي],Table5[نوع الفاتورة],$I$2,Table5[اسم العميل],Table36[[#This Row],[الإسم]])+SUMIFS(table30[المبلغ],table30[عميل / مورد],Table36[[#This Row],[الإسم]],table30[نوع السند],الصندوق!$L$1) -> 0 | J44: =Table36[[#This Row],[الأرصدة المدينة]]-Table36[[#This Row],[الأرصدة الدائنة]] -> 0
A45: 42 | B45: =IF($A$1="","", IFERROR(INDEX(Table28[#All],SMALL(IF(Table28[#All]=العملاء!$A$1,ROW(Table28[#All]),""),ROW('العملاء الموردين'!$B42)),MATCH(B$3,Table28[#Headers],0))," ")) ->  | C45: =IF($A$1="","", IFERROR(INDEX(Table28[#All],SMALL(IF(Table28[#All]=العملاء!$A$1,ROW(Table28[#All]),""),ROW('العملاء الموردين'!$B42)),MATCH(C$3,Table28[#Headers],0))," ")) ->  | D45: =IF($A$1="","", IFERROR(INDEX(Table28[#All],SMALL(IF(Table28[#All]=العملاء!$A$1,ROW(Table28[#All]),""),ROW('العملاء الموردين'!$B42)),MATCH(D$3,Table28[#Headers],0))," ")) ->  | E45: =IF($A$1="","", IFERROR(INDEX(Table28[#All],SMALL(IF(Table28[#All]=العملاء!$A$1,ROW(Table28[#All]),""),ROW('العملاء الموردين'!$B42)),MATCH(E$3,Table28[#Headers],0))," ")) ->  | F45: =IF($A$1="","", IFERROR(INDEX(Table28[#All],SMALL(IF(Table28[#All]=العملاء!$A$1,ROW(Table28[#All]),""),ROW('العملاء الموردين'!$B42)),MATCH(F$3,Table28[#Headers],0))," ")) ->  | G45: =IF($A$1="","", IFERROR(INDEX(Table28[#All],SMALL(IF(Table28[#All]=العملاء!$A$1,ROW(Table28[#All]),""),ROW('العملاء الموردين'!$B42)),MATCH(G$3,Table28[#Headers],0))," ")) ->  | H45: =SUMIFS(Table5[الإجمالي النهائي],Table5[نوع الفاتورة],$H$2,Table5[اسم العميل],Table36[[#This Row],[الإسم]]) -> 0 | I45: =SUMIFS(Table5[الإجمالي النهائي],Table5[نوع الفاتورة],$I$2,Table5[اسم العميل],Table36[[#This Row],[الإسم]])+SUMIFS(table30[المبلغ],table30[عميل / مورد],Table36[[#This Row],[الإسم]],table30[نوع السند],الصندوق!$L$1) -> 0 | J45: =Table36[[#This Row],[الأرصدة المدينة]]-Table36[[#This Row],[الأرصدة الدائنة]] -> 0
A46: 43 | B46: =IF($A$1="","", IFERROR(INDEX(Table28[#All],SMALL(IF(Table28[#All]=العملاء!$A$1,ROW(Table28[#All]),""),ROW('العملاء الموردين'!$B43)),MATCH(B$3,Table28[#Headers],0))," ")) ->  | C46: =IF($A$1="","", IFERROR(INDEX(Table28[#All],SMALL(IF(Table28[#All]=العملاء!$A$1,ROW(Table28[#All]),""),ROW('العملاء الموردين'!$B43)),MATCH(C$3,Table28[#Headers],0))," ")) ->  | D46: =IF($A$1="","", IFERROR(INDEX(Table28[#All],SMALL(IF(Table28[#All]=العملاء!$A$1,ROW(Table28[#All]),""),ROW('العملاء الموردين'!$B43)),MATCH(D$3,Table28[#Headers],0))," ")) ->  | E46: =IF($A$1="","", IFERROR(INDEX(Table28[#All],SMALL(IF(Table28[#All]=العملاء!$A$1,ROW(Table28[#All]),""),ROW('العملاء الموردين'!$B43)),MATCH(E$3,Table28[#Headers],0))," ")) ->  | F46: =IF($A$1="","", IFERROR(INDEX(Table28[#All],SMALL(IF(Table28[#All]=العملاء!$A$1,ROW(Table28[#All]),""),ROW('العملاء الموردين'!$B43)),MATCH(F$3,Table28[#Headers],0))," ")) ->  | G46: =IF($A$1="","", IFERROR(INDEX(Table28[#All],SMALL(IF(Table28[#All]=العملاء!$A$1,ROW(Table28[#All]),""),ROW('العملاء الموردين'!$B43)),MATCH(G$3,Table28[#Headers],0))," ")) ->  | H46: =SUMIFS(Table5[الإجمالي النهائي],Table5[نوع الفاتورة],$H$2,Table5[اسم العميل],Table36[[#This Row],[الإسم]]) -> 0 | I46: =SUMIFS(Table5[الإجمالي النهائي],Table5[نوع الفاتورة],$I$2,Table5[اسم العميل],Table36[[#This Row],[الإسم]])+SUMIFS(table30[المبلغ],table30[عميل / مورد],Table36[[#This Row],[الإسم]],table30[نوع السند],الصندوق!$L$1) -> 0 | J46: =Table36[[#This Row],[الأرصدة المدينة]]-Table36[[#This Row],[الأرصدة الدائنة]] -> 0
A47: 44 | B47: =IF($A$1="","", IFERROR(INDEX(Table28[#All],SMALL(IF(Table28[#All]=العملاء!$A$1,ROW(Table28[#All]),""),ROW('العملاء الموردين'!$B44)),MATCH(B$3,Table28[#Headers],0))," ")) ->  | C47: =IF($A$1="","", IFERROR(INDEX(Table28[#All],SMALL(IF(Table28[#All]=العملاء!$A$1,ROW(Table28[#All]),""),ROW('العملاء الموردين'!$B44)),MATCH(C$3,Table28[#Headers],0))," ")) ->  | D47: =IF($A$1="","", IFERROR(INDEX(Table28[#All],SMALL(IF(Table28[#All]=العملاء!$A$1,ROW(Table28[#All]),""),ROW('العملاء الموردين'!$B44)),MATCH(D$3,Table28[#Headers],0))," ")) ->  | E47: =IF($A$1="","", IFERROR(INDEX(Table28[#All],SMALL(IF(Table28[#All]=العملاء!$A$1,ROW(Table28[#All]),""),ROW('العملاء الموردين'!$B44)),MATCH(E$3,Table28[#Headers],0))," ")) ->  | F47: =IF($A$1="","", IFERROR(INDEX(Table28[#All],SMALL(IF(Table28[#All]=العملاء!$A$1,ROW(Table28[#All]),""),ROW('العملاء الموردين'!$B44)),MATCH(F$3,Table28[#Headers],0))," ")) ->  | G47: =IF($A$1="","", IFERROR(INDEX(Table28[#All],SMALL(IF(Table28[#All]=العملاء!$A$1,ROW(Table28[#All]),""),ROW('العملاء الموردين'!$B44)),MATCH(G$3,Table28[#Headers],0))," ")) ->  | H47: =SUMIFS(Table5[الإجمالي النهائي],Table5[نوع الفاتورة],$H$2,Table5[اسم العميل],Table36[[#This Row],[الإسم]]) -> 0 | I47: =SUMIFS(Table5[الإجمالي النهائي],Table5[نوع الفاتورة],$I$2,Table5[اسم العميل],Table36[[#This Row],[الإسم]])+SUMIFS(table30[المبلغ],table30[عميل / مورد],Table36[[#This Row],[الإسم]],table30[نوع السند],الصندوق!$L$1) -> 0 | J47: =Table36[[#This Row],[الأرصدة المدينة]]-Table36[[#This Row],[الأرصدة الدائنة]] -> 0
A48: 45 | B48: =IF($A$1="","", IFERROR(INDEX(Table28[#All],SMALL(IF(Table28[#All]=العملاء!$A$1,ROW(Table28[#All]),""),ROW('العملاء الموردين'!$B45)),MATCH(B$3,Table28[#Headers],0))," ")) ->  | C48: =IF($A$1="","", IFERROR(INDEX(Table28[#All],SMALL(IF(Table28[#All]=العملاء!$A$1,ROW(Table28[#All]),""),ROW('العملاء الموردين'!$B45)),MATCH(C$3,Table28[#Headers],0))," ")) ->  | D48: =IF($A$1="","", IFERROR(INDEX(Table28[#All],SMALL(IF(Table28[#All]=العملاء!$A$1,ROW(Table28[#All]),""),ROW('العملاء الموردين'!$B45)),MATCH(D$3,Table28[#Headers],0))," ")) ->  | E48: =IF($A$1="","", IFERROR(INDEX(Table28[#All],SMALL(IF(Table28[#All]=العملاء!$A$1,ROW(Table28[#All]),""),ROW('العملاء الموردين'!$B45)),MATCH(E$3,Table28[#Headers],0))," ")) ->  | F48: =IF($A$1="","", IFERROR(INDEX(Table28[#All],SMALL(IF(Table28[#All]=العملاء!$A$1,ROW(Table28[#All]),""),ROW('العملاء الموردين'!$B45)),MATCH(F$3,Table28[#Headers],0))," ")) ->  | G48: =IF($A$1="","", IFERROR(INDEX(Table28[#All],SMALL(IF(Table28[#All]=العملاء!$A$1,ROW(Table28[#All]),""),ROW('العملاء الموردين'!$B45)),MATCH(G$3,Table28[#Headers],0))," ")) ->  | H48: =SUMIFS(Table5[الإجمالي النهائي],Table5[نوع الفاتورة],$H$2,Table5[اسم العميل],Table36[[#This Row],[الإسم]]) -> 0 | I48: =SUMIFS(Table5[الإجمالي النهائي],Table5[نوع الفاتورة],$I$2,Table5[اسم العميل],Table36[[#This Row],[الإسم]])+SUMIFS(table30[المبلغ],table30[عميل / مورد],Table36[[#This Row],[الإسم]],table30[نوع السند],الصندوق!$L$1) -> 0 | J48: =Table36[[#This Row],[الأرصدة المدينة]]-Table36[[#This Row],[الأرصدة الدائنة]] -> 0
A49: 46 | B49: =IF($A$1="","", IFERROR(INDEX(Table28[#All],SMALL(IF(Table28[#All]=العملاء!$A$1,ROW(Table28[#All]),""),ROW('العملاء الموردين'!$B46)),MATCH(B$3,Table28[#Headers],0))," ")) ->  | C49: =IF($A$1="","", IFERROR(INDEX(Table28[#All],SMALL(IF(Table28[#All]=العملاء!$A$1,ROW(Table28[#All]),""),ROW('العملاء الموردين'!$B46)),MATCH(C$3,Table28[#Headers],0))," ")) ->  | D49: =IF($A$1="","", IFERROR(INDEX(Table28[#All],SMALL(IF(Table28[#All]=العملاء!$A$1,ROW(Table28[#All]),""),ROW('العملاء الموردين'!$B46)),MATCH(D$3,Table28[#Headers],0))," ")) ->  | E49: =IF($A$1="","", IFERROR(INDEX(Table28[#All],SMALL(IF(Table28[#All]=العملاء!$A$1,ROW(Table28[#All]),""),ROW('العملاء الموردين'!$B46)),MATCH(E$3,Table28[#Headers],0))," ")) ->  | F49: =IF($A$1="","", IFERROR(INDEX(Table28[#All],SMALL(IF(Table28[#All]=العملاء!$A$1,ROW(Table28[#All]),""),ROW('العملاء الموردين'!$B46)),MATCH(F$3,Table28[#Headers],0))," ")) ->  | G49: =IF($A$1="","", IFERROR(INDEX(Table28[#All],SMALL(IF(Table28[#All]=العملاء!$A$1,ROW(Table28[#All]),""),ROW('العملاء الموردين'!$B46)),MATCH(G$3,Table28[#Headers],0))," ")) ->  | H49: =SUMIFS(Table5[الإجمالي النهائي],Table5[نوع الفاتورة],$H$2,Table5[اسم العميل],Table36[[#This Row],[الإسم]]) -> 0 | I49: =SUMIFS(Table5[الإجمالي النهائي],Table5[نوع الفاتورة],$I$2,Table5[اسم العميل],Table36[[#This Row],[الإسم]])+SUMIFS(table30[المبلغ],table30[عميل / مورد],Table36[[#This Row],[الإسم]],table30[نوع السند],الصندوق!$L$1) -> 0 | J49: =Table36[[#This Row],[الأرصدة المدينة]]-Table36[[#This Row],[الأرصدة الدائنة]] -> 0
A50: 47 | B50: =IF($A$1="","", IFERROR(INDEX(Table28[#All],SMALL(IF(Table28[#All]=العملاء!$A$1,ROW(Table28[#All]),""),ROW('العملاء الموردين'!$B47)),MATCH(B$3,Table28[#Headers],0))," ")) ->  | C50: =IF($A$1="","", IFERROR(INDEX(Table28[#All],SMALL(IF(Table28[#All]=العملاء!$A$1,ROW(Table28[#All]),""),ROW('العملاء الموردين'!$B47)),MATCH(C$3,Table28[#Headers],0))," ")) ->  | D50: =IF($A$1="","", IFERROR(INDEX(Table28[#All],SMALL(IF(Table28[#All]=العملاء!$A$1,ROW(Table28[#All]),""),ROW('العملاء الموردين'!$B47)),MATCH(D$3,Table28[#Headers],0))," ")) ->  | E50: =IF($A$1="","", IFERROR(INDEX(Table28[#All],SMALL(IF(Table28[#All]=العملاء!$A$1,ROW(Table28[#All]),""),ROW('العملاء الموردين'!$B47)),MATCH(E$3,Table28[#Headers],0))," ")) ->  | F50: =IF($A$1="","", IFERROR(INDEX(Table28[#All],SMALL(IF(Table28[#All]=العملاء!$A$1,ROW(Table28[#All]),""),ROW('العملاء الموردين'!$B47)),MATCH(F$3,Table28[#Headers],0))," ")) ->  | G50: =IF($A$1="","", IFERROR(INDEX(Table28[#All],SMALL(IF(Table28[#All]=العملاء!$A$1,ROW(Table28[#All]),""),ROW('العملاء الموردين'!$B47)),MATCH(G$3,Table28[#Headers],0))," ")) ->  | H50: =SUMIFS(Table5[الإجمالي النهائي],Table5[نوع الفاتورة],$H$2,Table5[اسم العميل],Table36[[#This Row],[الإسم]]) -> 0 | I50: =SUMIFS(Table5[الإجمالي النهائي],Table5[نوع الفاتورة],$I$2,Table5[اسم العميل],Table36[[#This Row],[الإسم]])+SUMIFS(table30[المبلغ],table30[عميل / مورد],Table36[[#This Row],[الإسم]],table30[نوع السند],الصندوق!$L$1) -> 0 | J50: =Table36[[#This Row],[الأرصدة المدينة]]-Table36[[#This Row],[الأرصدة الدائنة]] -> 0
A51: 48 | B51: =IF($A$1="","", IFERROR(INDEX(Table28[#All],SMALL(IF(Table28[#All]=العملاء!$A$1,ROW(Table28[#All]),""),ROW('العملاء الموردين'!$B48)),MATCH(B$3,Table28[#Headers],0))," ")) ->  | C51: =IF($A$1="","", IFERROR(INDEX(Table28[#All],SMALL(IF(Table28[#All]=العملاء!$A$1,ROW(Table28[#All]),""),ROW('العملاء الموردين'!$B48)),MATCH(C$3,Table28[#Headers],0))," ")) ->  | D51: =IF($A$1="","", IFERROR(INDEX(Table28[#All],SMALL(IF(Table28[#All]=العملاء!$A$1,ROW(Table28[#All]),""),ROW('العملاء الموردين'!$B48)),MATCH(D$3,Table28[#Headers],0))," ")) ->  | E51: =IF($A$1="","", IFERROR(INDEX(Table28[#All],SMALL(IF(Table28[#All]=العملاء!$A$1,ROW(Table28[#All]),""),ROW('العملاء الموردين'!$B48)),MATCH(E$3,Table28[#Headers],0))," ")) ->  | F51: =IF($A$1="","", IFERROR(INDEX(Table28[#All],SMALL(IF(Table28[#All]=العملاء!$A$1,ROW(Table28[#All]),""),ROW('العملاء الموردين'!$B48)),MATCH(F$3,Table28[#Headers],0))," ")) ->  | G51: =IF($A$1="","", IFERROR(INDEX(Table28[#All],SMALL(IF(Table28[#All]=العملاء!$A$1,ROW(Table28[#All]),""),ROW('العملاء الموردين'!$B48)),MATCH(G$3,Table28[#Headers],0))," ")) ->  | H51: =SUMIFS(Table5[الإجمالي النهائي],Table5[نوع الفاتورة],$H$2,Table5[اسم العميل],Table36[[#This Row],[الإسم]]) -> 0 | I51: =SUMIFS(Table5[الإجمالي النهائي],Table5[نوع الفاتورة],$I$2,Table5[اسم العميل],Table36[[#This Row],[الإسم]])+SUMIFS(table30[المبلغ],table30[عميل / مورد],Table36[[#This Row],[الإسم]],table30[نوع السند],الصندوق!$L$1) -> 0 | J51: =Table36[[#This Row],[الأرصدة المدينة]]-Table36[[#This Row],[الأرصدة الدائنة]] -> 0
A52: 49 | B52: =IF($A$1="","", IFERROR(INDEX(Table28[#All],SMALL(IF(Table28[#All]=العملاء!$A$1,ROW(Table28[#All]),""),ROW('العملاء الموردين'!$B49)),MATCH(B$3,Table28[#Headers],0))," ")) ->  | C52: =IF($A$1="","", IFERROR(INDEX(Table28[#All],SMALL(IF(Table28[#All]=العملاء!$A$1,ROW(Table28[#All]),""),ROW('العملاء الموردين'!$B49)),MATCH(C$3,Table28[#Headers],0))," ")) ->  | D52: =IF($A$1="","", IFERROR(INDEX(Table28[#All],SMALL(IF(Table28[#All]=العملاء!$A$1,ROW(Table28[#All]),""),ROW('العملاء الموردين'!$B49)),MATCH(D$3,Table28[#Headers],0))," ")) ->  | E52: =IF($A$1="","", IFERROR(INDEX(Table28[#All],SMALL(IF(Table28[#All]=العملاء!$A$1,ROW(Table28[#All]),""),ROW('العملاء الموردين'!$B49)),MATCH(E$3,Table28[#Headers],0))," ")) ->  | F52: =IF($A$1="","", IFERROR(INDEX(Table28[#All],SMALL(IF(Table28[#All]=العملاء!$A$1,ROW(Table28[#All]),""),ROW('العملاء الموردين'!$B49)),MATCH(F$3,Table28[#Headers],0))," ")) ->  | G52: =IF($A$1="","", IFERROR(INDEX(Table28[#All],SMALL(IF(Table28[#All]=العملاء!$A$1,ROW(Table28[#All]),""),ROW('العملاء الموردين'!$B49)),MATCH(G$3,Table28[#Headers],0))," ")) ->  | H52: =SUMIFS(Table5[الإجمالي النهائي],Table5[نوع الفاتورة],$H$2,Table5[اسم العميل],Table36[[#This Row],[الإسم]]) -> 0 | I52: =SUMIFS(Table5[الإجمالي النهائي],Table5[نوع الفاتورة],$I$2,Table5[اسم العميل],Table36[[#This Row],[الإسم]])+SUMIFS(table30[المبلغ],table30[عميل / مورد],Table36[[#This Row],[الإسم]],table30[نوع السند],الصندوق!$L$1) -> 0 | J52: =Table36[[#This Row],[الأرصدة المدينة]]-Table36[[#This Row],[الأرصدة الدائنة]] -> 0
A53: 50 | B53: =IF($A$1="","", IFERROR(INDEX(Table28[#All],SMALL(IF(Table28[#All]=العملاء!$A$1,ROW(Table28[#All]),""),ROW('العملاء الموردين'!$B50)),MATCH(B$3,Table28[#Headers],0))," ")) ->  | C53: =IF($A$1="","", IFERROR(INDEX(Table28[#All],SMALL(IF(Table28[#All]=العملاء!$A$1,ROW(Table28[#All]),""),ROW('العملاء الموردين'!$B50)),MATCH(C$3,Table28[#Headers],0))," ")) ->  | D53: =IF($A$1="","", IFERROR(INDEX(Table28[#All],SMALL(IF(Table28[#All]=العملاء!$A$1,ROW(Table28[#All]),""),ROW('العملاء الموردين'!$B50)),MATCH(D$3,Table28[#Headers],0))," ")) ->  | E53: =IF($A$1="","", IFERROR(INDEX(Table28[#All],SMALL(IF(Table28[#All]=العملاء!$A$1,ROW(Table28[#All]),""),ROW('العملاء الموردين'!$B50)),MATCH(E$3,Table28[#Headers],0))," ")) ->  | F53: =IF($A$1="","", IFERROR(INDEX(Table28[#All],SMALL(IF(Table28[#All]=العملاء!$A$1,ROW(Table28[#All]),""),ROW('العملاء الموردين'!$B50)),MATCH(F$3,Table28[#Headers],0))," ")) ->  | G53: =IF($A$1="","", IFERROR(INDEX(Table28[#All],SMALL(IF(Table28[#All]=العملاء!$A$1,ROW(Table28[#All]),""),ROW('العملاء الموردين'!$B50)),MATCH(G$3,Table28[#Headers],0))," ")) ->  | H53: =SUMIFS(Table5[الإجمالي النهائي],Table5[نوع الفاتورة],$H$2,Table5[اسم العميل],Table36[[#This Row],[الإسم]]) -> 0 | I53: =SUMIFS(Table5[الإجمالي النهائي],Table5[نوع الفاتورة],$I$2,Table5[اسم العميل],Table36[[#This Row],[الإسم]])+SUMIFS(table30[المبلغ],table30[عميل / مورد],Table36[[#This Row],[الإسم]],table30[نوع السند],الصندوق!$L$1) -> 0 | J53: =Table36[[#This Row],[الأرصدة المدينة]]-Table36[[#This Row],[الأرصدة الدائنة]] -> 0
A54: 51 | B54: =IF($A$1="","", IFERROR(INDEX(Table28[#All],SMALL(IF(Table28[#All]=العملاء!$A$1,ROW(Table28[#All]),""),ROW('العملاء الموردين'!$B51)),MATCH(B$3,Table28[#Headers],0))," ")) ->  | C54: =IF($A$1="","", IFERROR(INDEX(Table28[#All],SMALL(IF(Table28[#All]=العملاء!$A$1,ROW(Table28[#All]),""),ROW('العملاء الموردين'!$B51)),MATCH(C$3,Table28[#Headers],0))," ")) ->  | D54: =IF($A$1="","", IFERROR(INDEX(Table28[#All],SMALL(IF(Table28[#All]=العملاء!$A$1,ROW(Table28[#All]),""),ROW('العملاء الموردين'!$B51)),MATCH(D$3,Table28[#Headers],0))," ")) ->  | E54: =IF($A$1="","", IFERROR(INDEX(Table28[#All],SMALL(IF(Table28[#All]=العملاء!$A$1,ROW(Table28[#All]),""),ROW('العملاء الموردين'!$B51)),MATCH(E$3,Table28[#Headers],0))," ")) ->  | F54: =IF($A$1="","", IFERROR(INDEX(Table28[#All],SMALL(IF(Table28[#All]=العملاء!$A$1,ROW(Table28[#All]),""),ROW('العملاء الموردين'!$B51)),MATCH(F$3,Table28[#Headers],0))," ")) ->  | G54: =IF($A$1="","", IFERROR(INDEX(Table28[#All],SMALL(IF(Table28[#All]=العملاء!$A$1,ROW(Table28[#All]),""),ROW('العملاء الموردين'!$B51)),MATCH(G$3,Table28[#Headers],0))," ")) ->  | H54: =SUMIFS(Table5[الإجمالي النهائي],Table5[نوع الفاتورة],$H$2,Table5[اسم العميل],Table36[[#This Row],[الإسم]]) -> 0 | I54: =SUMIFS(Table5[الإجمالي النهائي],Table5[نوع الفاتورة],$I$2,Table5[اسم العميل],Table36[[#This Row],[الإسم]])+SUMIFS(table30[المبلغ],table30[عميل / مورد],Table36[[#This Row],[الإسم]],table30[نوع السند],الصندوق!$L$1) -> 0 | J54: =Table36[[#This Row],[الأرصدة المدينة]]-Table36[[#This Row],[الأرصدة الدائنة]] -> 0
A55: 52 | B55: =IF($A$1="","", IFERROR(INDEX(Table28[#All],SMALL(IF(Table28[#All]=العملاء!$A$1,ROW(Table28[#All]),""),ROW('العملاء الموردين'!$B52)),MATCH(B$3,Table28[#Headers],0))," ")) ->  | C55: =IF($A$1="","", IFERROR(INDEX(Table28[#All],SMALL(IF(Table28[#All]=العملاء!$A$1,ROW(Table28[#All]),""),ROW('العملاء الموردين'!$B52)),MATCH(C$3,Table28[#Headers],0))," ")) ->  | D55: =IF($A$1="","", IFERROR(INDEX(Table28[#All],SMALL(IF(Table28[#All]=العملاء!$A$1,ROW(Table28[#All]),""),ROW('العملاء الموردين'!$B52)),MATCH(D$3,Table28[#Headers],0))," ")) ->  | E55: =IF($A$1="","", IFERROR(INDEX(Table28[#All],SMALL(IF(Table28[#All]=العملاء!$A$1,ROW(Table28[#All]),""),ROW('العملاء الموردين'!$B52)),MATCH(E$3,Table28[#Headers],0))," ")) ->  | F55: =IF($A$1="","", IFERROR(INDEX(Table28[#All],SMALL(IF(Table28[#All]=العملاء!$A$1,ROW(Table28[#All]),""),ROW('العملاء الموردين'!$B52)),MATCH(F$3,Table28[#Headers],0))," ")) ->  | G55: =IF($A$1="","", IFERROR(INDEX(Table28[#All],SMALL(IF(Table28[#All]=العملاء!$A$1,ROW(Table28[#All]),""),ROW('العملاء الموردين'!$B52)),MATCH(G$3,Table28[#Headers],0))," ")) ->  | H55: =SUMIFS(Table5[الإجمالي النهائي],Table5[نوع الفاتورة],$H$2,Table5[اسم العميل],Table36[[#This Row],[الإسم]]) -> 0 | I55: =SUMIFS(Table5[الإجمالي النهائي],Table5[نوع الفاتورة],$I$2,Table5[اسم العميل],Table36[[#This Row],[الإسم]])+SUMIFS(table30[المبلغ],table30[عميل / مورد],Table36[[#This Row],[الإسم]],table30[نوع السند],الصندوق!$L$1) -> 0 | J55: =Table36[[#This Row],[الأرصدة المدينة]]-Table36[[#This Row],[الأرصدة الدائنة]] -> 0
A56: 53 | B56: =IF($A$1="","", IFERROR(INDEX(Table28[#All],SMALL(IF(Table28[#All]=العملاء!$A$1,ROW(Table28[#All]),""),ROW('العملاء الموردين'!$B53)),MATCH(B$3,Table28[#Headers],0))," ")) ->  | C56: =IF($A$1="","", IFERROR(INDEX(Table28[#All],SMALL(IF(Table28[#All]=العملاء!$A$1,ROW(Table28[#All]),""),ROW('العملاء الموردين'!$B53)),MATCH(C$3,Table28[#Headers],0))," ")) ->  | D56: =IF($A$1="","", IFERROR(INDEX(Table28[#All],SMALL(IF(Table28[#All]=العملاء!$A$1,ROW(Table28[#All]),""),ROW('العملاء الموردين'!$B53)),MATCH(D$3,Table28[#Headers],0))," ")) ->  | E56: =IF($A$1="","", IFERROR(INDEX(Table28[#All],SMALL(IF(Table28[#All]=العملاء!$A$1,ROW(Table28[#All]),""),ROW('العملاء الموردين'!$B53)),MATCH(E$3,Table28[#Headers],0))," ")) ->  | F56: =IF($A$1="","", IFERROR(INDEX(Table28[#All],SMALL(IF(Table28[#All]=العملاء!$A$1,ROW(Table28[#All]),""),ROW('العملاء الموردين'!$B53)),MATCH(F$3,Table28[#Headers],0))," ")) ->  | G56: =IF($A$1="","", IFERROR(INDEX(Table28[#All],SMALL(IF(Table28[#All]=العملاء!$A$1,ROW(Table28[#All]),""),ROW('العملاء الموردين'!$B53)),MATCH(G$3,Table28[#Headers],0))," ")) ->  | H56: =SUMIFS(Table5[الإجمالي النهائي],Table5[نوع الفاتورة],$H$2,Table5[اسم العميل],Table36[[#This Row],[الإسم]]) -> 0 | I56: =SUMIFS(Table5[الإجمالي النهائي],Table5[نوع الفاتورة],$I$2,Table5[اسم العميل],Table36[[#This Row],[الإسم]])+SUMIFS(table30[المبلغ],table30[عميل / مورد],Table36[[#This Row],[الإسم]],table30[نوع السند],الصندوق!$L$1) -> 0 | J56: =Table36[[#This Row],[الأرصدة المدينة]]-Table36[[#This Row],[الأرصدة الدائنة]] -> 0
A57: 54 | B57: =IF($A$1="","", IFERROR(INDEX(Table28[#All],SMALL(IF(Table28[#All]=العملاء!$A$1,ROW(Table28[#All]),""),ROW('العملاء الموردين'!$B54)),MATCH(B$3,Table28[#Headers],0))," ")) ->  | C57: =IF($A$1="","", IFERROR(INDEX(Table28[#All],SMALL(IF(Table28[#All]=العملاء!$A$1,ROW(Table28[#All]),""),ROW('العملاء الموردين'!$B54)),MATCH(C$3,Table28[#Headers],0))," ")) ->  | D57: =IF($A$1="","", IFERROR(INDEX(Table28[#All],SMALL(IF(Table28[#All]=العملاء!$A$1,ROW(Table28[#All]),""),ROW('العملاء الموردين'!$B54)),MATCH(D$3,Table28[#Headers],0))," ")) ->  | E57: =IF($A$1="","", IFERROR(INDEX(Table28[#All],SMALL(IF(Table28[#All]=العملاء!$A$1,ROW(Table28[#All]),""),ROW('العملاء الموردين'!$B54)),MATCH(E$3,Table28[#Headers],0))," ")) ->  | F57: =IF($A$1="","", IFERROR(INDEX(Table28[#All],SMALL(IF(Table28[#All]=العملاء!$A$1,ROW(Table28[#All]),""),ROW('العملاء الموردين'!$B54)),MATCH(F$3,Table28[#Headers],0))," ")) ->  | G57: =IF($A$1="","", IFERROR(INDEX(Table28[#All],SMALL(IF(Table28[#All]=العملاء!$A$1,ROW(Table28[#All]),""),ROW('العملاء الموردين'!$B54)),MATCH(G$3,Table28[#Headers],0))," ")) ->  | H57: =SUMIFS(Table5[الإجمالي النهائي],Table5[نوع الفاتورة],$H$2,Table5[اسم العميل],Table36[[#This Row],[الإسم]]) -> 0 | I57: =SUMIFS(Table5[الإجمالي النهائي],Table5[نوع الفاتورة],$I$2,Table5[اسم العميل],Table36[[#This Row],[الإسم]])+SUMIFS(table30[المبلغ],table30[عميل / مورد],Table36[[#This Row],[الإسم]],table30[نوع السند],الصندوق!$L$1) -> 0 | J57: =Table36[[#This Row],[الأرصدة المدينة]]-Table36[[#This Row],[الأرصدة الدائنة]] -> 0
A58: 55 | B58: =IF($A$1="","", IFERROR(INDEX(Table28[#All],SMALL(IF(Table28[#All]=العملاء!$A$1,ROW(Table28[#All]),""),ROW('العملاء الموردين'!$B55)),MATCH(B$3,Table28[#Headers],0))," ")) ->  | C58: =IF($A$1="","", IFERROR(INDEX(Table28[#All],SMALL(IF(Table28[#All]=العملاء!$A$1,ROW(Table28[#All]),""),ROW('العملاء الموردين'!$B55)),MATCH(C$3,Table28[#Headers],0))," ")) ->  | D58: =IF($A$1="","", IFERROR(INDEX(Table28[#All],SMALL(IF(Table28[#All]=العملاء!$A$1,ROW(Table28[#All]),""),ROW('العملاء الموردين'!$B55)),MATCH(D$3,Table28[#Headers],0))," ")) ->  | E58: =IF($A$1="","", IFERROR(INDEX(Table28[#All],SMALL(IF(Table28[#All]=العملاء!$A$1,ROW(Table28[#All]),""),ROW('العملاء الموردين'!$B55)),MATCH(E$3,Table28[#Headers],0))," ")) ->  | F58: =IF($A$1="","", IFERROR(INDEX(Table28[#All],SMALL(IF(Table28[#All]=العملاء!$A$1,ROW(Table28[#All]),""),ROW('العملاء الموردين'!$B55)),MATCH(F$3,Table28[#Headers],0))," ")) ->  | G58: =IF($A$1="","", IFERROR(INDEX(Table28[#All],SMALL(IF(Table28[#All]=العملاء!$A$1,ROW(Table28[#All]),""),ROW('العملاء الموردين'!$B55)),MATCH(G$3,Table28[#Headers],0))," ")) ->  | H58: =SUMIFS(Table5[الإجمالي النهائي],Table5[نوع الفاتورة],$H$2,Table5[اسم العميل],Table36[[#This Row],[الإسم]]) -> 0 | I58: =SUMIFS(Table5[الإجمالي النهائي],Table5[نوع الفاتورة],$I$2,Table5[اسم العميل],Table36[[#This Row],[الإسم]])+SUMIFS(table30[المبلغ],table30[عميل / مورد],Table36[[#This Row],[الإسم]],table30[نوع السند],الصندوق!$L$1) -> 0 | J58: =Table36[[#This Row],[الأرصدة المدينة]]-Table36[[#This Row],[الأرصدة الدائنة]] -> 0
A59: 56 | B59: =IF($A$1="","", IFERROR(INDEX(Table28[#All],SMALL(IF(Table28[#All]=العملاء!$A$1,ROW(Table28[#All]),""),ROW('العملاء الموردين'!$B56)),MATCH(B$3,Table28[#Headers],0))," ")) ->  | C59: =IF($A$1="","", IFERROR(INDEX(Table28[#All],SMALL(IF(Table28[#All]=العملاء!$A$1,ROW(Table28[#All]),""),ROW('العملاء الموردين'!$B56)),MATCH(C$3,Table28[#Headers],0))," ")) ->  | D59: =IF($A$1="","", IFERROR(INDEX(Table28[#All],SMALL(IF(Table28[#All]=العملاء!$A$1,ROW(Table28[#All]),""),ROW('العملاء الموردين'!$B56)),MATCH(D$3,Table28[#Headers],0))," ")) ->  | E59: =IF($A$1="","", IFERROR(INDEX(Table28[#All],SMALL(IF(Table28[#All]=العملاء!$A$1,ROW(Table28[#All]),""),ROW('العملاء الموردين'!$B56)),MATCH(E$3,Table28[#Headers],0))," ")) ->  | F59: =IF($A$1="","", IFERROR(INDEX(Table28[#All],SMALL(IF(Table28[#All]=العملاء!$A$1,ROW(Table28[#All]),""),ROW('العملاء الموردين'!$B56)),MATCH(F$3,Table28[#Headers],0))," ")) ->  | G59: =IF($A$1="","", IFERROR(INDEX(Table28[#All],SMALL(IF(Table28[#All]=العملاء!$A$1,ROW(Table28[#All]),""),ROW('العملاء الموردين'!$B56)),MATCH(G$3,Table28[#Headers],0))," ")) ->  | H59: =SUMIFS(Table5[الإجمالي النهائي],Table5[نوع الفاتورة],$H$2,Table5[اسم العميل],Table36[[#This Row],[الإسم]]) -> 0 | I59: =SUMIFS(Table5[الإجمالي النهائي],Table5[نوع الفاتورة],$I$2,Table5[اسم العميل],Table36[[#This Row],[الإسم]])+SUMIFS(table30[المبلغ],table30[عميل / مورد],Table36[[#This Row],[الإسم]],table30[نوع السند],الصندوق!$L$1) -> 0 | J59: =Table36[[#This Row],[الأرصدة المدينة]]-Table36[[#This Row],[الأرصدة الدائنة]] -> 0
A60: 57 | B60: =IF($A$1="","", IFERROR(INDEX(Table28[#All],SMALL(IF(Table28[#All]=العملاء!$A$1,ROW(Table28[#All]),""),ROW('العملاء الموردين'!$B57)),MATCH(B$3,Table28[#Headers],0))," ")) ->  | C60: =IF($A$1="","", IFERROR(INDEX(Table28[#All],SMALL(IF(Table28[#All]=العملاء!$A$1,ROW(Table28[#All]),""),ROW('العملاء الموردين'!$B57)),MATCH(C$3,Table28[#Headers],0))," ")) ->  | D60: =IF($A$1="","", IFERROR(INDEX(Table28[#All],SMALL(IF(Table28[#All]=العملاء!$A$1,ROW(Table28[#All]),""),ROW('العملاء الموردين'!$B57)),MATCH(D$3,Table28[#Headers],0))," ")) ->  | E60: =IF($A$1="","", IFERROR(INDEX(Table28[#All],SMALL(IF(Table28[#All]=العملاء!$A$1,ROW(Table28[#All]),""),ROW('العملاء الموردين'!$B57)),MATCH(E$3,Table28[#Headers],0))," ")) ->  | F60: =IF($A$1="","", IFERROR(INDEX(Table28[#All],SMALL(IF(Table28[#All]=العملاء!$A$1,ROW(Table28[#All]),""),ROW('العملاء الموردين'!$B57)),MATCH(F$3,Table28[#Headers],0))," ")) ->  | G60: =IF($A$1="","", IFERROR(INDEX(Table28[#All],SMALL(IF(Table28[#All]=العملاء!$A$1,ROW(Table28[#All]),""),ROW('العملاء الموردين'!$B57)),MATCH(G$3,Table28[#Headers],0))," ")) ->  | H60: =SUMIFS(Table5[الإجمالي النهائي],Table5[نوع الفاتورة],$H$2,Table5[اسم العميل],Table36[[#This Row],[الإسم]]) -> 0 | I60: =SUMIFS(Table5[الإجمالي النهائي],Table5[نوع الفاتورة],$I$2,Table5[اسم العميل],Table36[[#This Row],[الإسم]])+SUMIFS(table30[المبلغ],table30[عميل / مورد],Table36[[#This Row],[الإسم]],table30[نوع السند],الصندوق!$L$1) -> 0 | J60: =Table36[[#This Row],[الأرصدة المدينة]]-Table36[[#This Row],[الأرصدة الدائنة]] -> 0
A61: 58 | B61: =IF($A$1="","", IFERROR(INDEX(Table28[#All],SMALL(IF(Table28[#All]=العملاء!$A$1,ROW(Table28[#All]),""),ROW('العملاء الموردين'!$B58)),MATCH(B$3,Table28[#Headers],0))," ")) ->  | C61: =IF($A$1="","", IFERROR(INDEX(Table28[#All],SMALL(IF(Table28[#All]=العملاء!$A$1,ROW(Table28[#All]),""),ROW('العملاء الموردين'!$B58)),MATCH(C$3,Table28[#Headers],0))," ")) ->  | D61: =IF($A$1="","", IFERROR(INDEX(Table28[#All],SMALL(IF(Table28[#All]=العملاء!$A$1,ROW(Table28[#All]),""),ROW('العملاء الموردين'!$B58)),MATCH(D$3,Table28[#Headers],0))," ")) ->  | E61: =IF($A$1="","", IFERROR(INDEX(Table28[#All],SMALL(IF(Table28[#All]=العملاء!$A$1,ROW(Table28[#All]),""),ROW('العملاء الموردين'!$B58)),MATCH(E$3,Table28[#Headers],0))," ")) ->  | F61: =IF($A$1="","", IFERROR(INDEX(Table28[#All],SMALL(IF(Table28[#All]=العملاء!$A$1,ROW(Table28[#All]),""),ROW('العملاء الموردين'!$B58)),MATCH(F$3,Table28[#Headers],0))," ")) ->  | G61: =IF($A$1="","", IFERROR(INDEX(Table28[#All],SMALL(IF(Table28[#All]=العملاء!$A$1,ROW(Table28[#All]),""),ROW('العملاء الموردين'!$B58)),MATCH(G$3,Table28[#Headers],0))," ")) ->  | H61: =SUMIFS(Table5[الإجمالي النهائي],Table5[نوع الفاتورة],$H$2,Table5[اسم العميل],Table36[[#This Row],[الإسم]]) -> 0 | I61: =SUMIFS(Table5[الإجمالي النهائي],Table5[نوع الفاتورة],$I$2,Table5[اسم العميل],Table36[[#This Row],[الإسم]])+SUMIFS(table30[المبلغ],table30[عميل / مورد],Table36[[#This Row],[الإسم]],table30[نوع السند],الصندوق!$L$1) -> 0 | J61: =Table36[[#This Row],[الأرصدة المدينة]]-Table36[[#This Row],[الأرصدة الدائنة]] -> 0
A62: 59 | B62: =IF($A$1="","", IFERROR(INDEX(Table28[#All],SMALL(IF(Table28[#All]=العملاء!$A$1,ROW(Table28[#All]),""),ROW('العملاء الموردين'!$B59)),MATCH(B$3,Table28[#Headers],0))," ")) ->  | C62: =IF($A$1="","", IFERROR(INDEX(Table28[#All],SMALL(IF(Table28[#All]=العملاء!$A$1,ROW(Table28[#All]),""),ROW('العملاء الموردين'!$B59)),MATCH(C$3,Table28[#Headers],0))," ")) ->  | D62: =IF($A$1="","", IFERROR(INDEX(Table28[#All],SMALL(IF(Table28[#All]=العملاء!$A$1,ROW(Table28[#All]),""),ROW('العملاء الموردين'!$B59)),MATCH(D$3,Table28[#Headers],0))," ")) ->  | E62: =IF($A$1="","", IFERROR(INDEX(Table28[#All],SMALL(IF(Table28[#All]=العملاء!$A$1,ROW(Table28[#All]),""),ROW('العملاء الموردين'!$B59)),MATCH(E$3,Table28[#Headers],0))," ")) ->  | F62: =IF($A$1="","", IFERROR(INDEX(Table28[#All],SMALL(IF(Table28[#All]=العملاء!$A$1,ROW(Table28[#All]),""),ROW('العملاء الموردين'!$B59)),MATCH(F$3,Table28[#Headers],0))," ")) ->  | G62: =IF($A$1="","", IFERROR(INDEX(Table28[#All],SMALL(IF(Table28[#All]=العملاء!$A$1,ROW(Table28[#All]),""),ROW('العملاء الموردين'!$B59)),MATCH(G$3,Table28[#Headers],0))," ")) ->  | H62: =SUMIFS(Table5[الإجمالي النهائي],Table5[نوع الفاتورة],$H$2,Table5[اسم العميل],Table36[[#This Row],[الإسم]]) -> 0 | I62: =SUMIFS(Table5[الإجمالي النهائي],Table5[نوع الفاتورة],$I$2,Table5[اسم العميل],Table36[[#This Row],[الإسم]])+SUMIFS(table30[المبلغ],table30[عميل / مورد],Table36[[#This Row],[الإسم]],table30[نوع السند],الصندوق!$L$1) -> 0 | J62: =Table36[[#This Row],[الأرصدة المدينة]]-Table36[[#This Row],[الأرصدة الدائنة]] -> 0
A63: 60 | B63: =IF($A$1="","", IFERROR(INDEX(Table28[#All],SMALL(IF(Table28[#All]=العملاء!$A$1,ROW(Table28[#All]),""),ROW('العملاء الموردين'!$B60)),MATCH(B$3,Table28[#Headers],0))," ")) ->  | C63: =IF($A$1="","", IFERROR(INDEX(Table28[#All],SMALL(IF(Table28[#All]=العملاء!$A$1,ROW(Table28[#All]),""),ROW('العملاء الموردين'!$B60)),MATCH(C$3,Table28[#Headers],0))," ")) ->  | D63: =IF($A$1="","", IFERROR(INDEX(Table28[#All],SMALL(IF(Table28[#All]=العملاء!$A$1,ROW(Table28[#All]),""),ROW('العملاء الموردين'!$B60)),MATCH(D$3,Table28[#Headers],0))," ")) ->  | E63: =IF($A$1="","", IFERROR(INDEX(Table28[#All],SMALL(IF(Table28[#All]=العملاء!$A$1,ROW(Table28[#All]),""),ROW('العملاء الموردين'!$B60)),MATCH(E$3,Table28[#Headers],0))," ")) ->  | F63: =IF($A$1="","", IFERROR(INDEX(Table28[#All],SMALL(IF(Table28[#All]=العملاء!$A$1,ROW(Table28[#All]),""),ROW('العملاء الموردين'!$B60)),MATCH(F$3,Table28[#Headers],0))," ")) ->  | G63: =IF($A$1="","", IFERROR(INDEX(Table28[#All],SMALL(IF(Table28[#All]=العملاء!$A$1,ROW(Table28[#All]),""),ROW('العملاء الموردين'!$B60)),MATCH(G$3,Table28[#Headers],0))," ")) ->  | H63: =SUMIFS(Table5[الإجمالي النهائي],Table5[نوع الفاتورة],$H$2,Table5[اسم العميل],Table36[[#This Row],[الإسم]]) -> 0 | I63: =SUMIFS(Table5[الإجمالي النهائي],Table5[نوع الفاتورة],$I$2,Table5[اسم العميل],Table36[[#This Row],[الإسم]])+SUMIFS(table30[المبلغ],table30[عميل / مورد],Table36[[#This Row],[الإسم]],table30[نوع السند],الصندوق!$L$1) -> 0 | J63: =Table36[[#This Row],[الأرصدة المدينة]]-Table36[[#This Row],[الأرصدة الدائنة]] -> 0
A64: 61 | B64: =IF($A$1="","", IFERROR(INDEX(Table28[#All],SMALL(IF(Table28[#All]=العملاء!$A$1,ROW(Table28[#All]),""),ROW('العملاء الموردين'!$B61)),MATCH(B$3,Table28[#Headers],0))," ")) ->  | C64: =IF($A$1="","", IFERROR(INDEX(Table28[#All],SMALL(IF(Table28[#All]=العملاء!$A$1,ROW(Table28[#All]),""),ROW('العملاء الموردين'!$B61)),MATCH(C$3,Table28[#Headers],0))," ")) ->  | D64: =IF($A$1="","", IFERROR(INDEX(Table28[#All],SMALL(IF(Table28[#All]=العملاء!$A$1,ROW(Table28[#All]),""),ROW('العملاء الموردين'!$B61)),MATCH(D$3,Table28[#Headers],0))," ")) ->  | E64: =IF($A$1="","", IFERROR(INDEX(Table28[#All],SMALL(IF(Table28[#All]=العملاء!$A$1,ROW(Table28[#All]),""),ROW('العملاء الموردين'!$B61)),MATCH(E$3,Table28[#Headers],0))," ")) ->  | F64: =IF($A$1="","", IFERROR(INDEX(Table28[#All],SMALL(IF(Table28[#All]=العملاء!$A$1,ROW(Table28[#All]),""),ROW('العملاء الموردين'!$B61)),MATCH(F$3,Table28[#Headers],0))," ")) ->  | G64: =IF($A$1="","", IFERROR(INDEX(Table28[#All],SMALL(IF(Table28[#All]=العملاء!$A$1,ROW(Table28[#All]),""),ROW('العملاء الموردين'!$B61)),MATCH(G$3,Table28[#Headers],0))," ")) ->  | H64: =SUMIFS(Table5[الإجمالي النهائي],Table5[نوع الفاتورة],$H$2,Table5[اسم العميل],Table36[[#This Row],[الإسم]]) -> 0 | I64: =SUMIFS(Table5[الإجمالي النهائي],Table5[نوع الفاتورة],$I$2,Table5[اسم العميل],Table36[[#This Row],[الإسم]])+SUMIFS(table30[المبلغ],table30[عميل / مورد],Table36[[#This Row],[الإسم]],table30[نوع السند],الصندوق!$L$1) -> 0 | J64: =Table36[[#This Row],[الأرصدة المدينة]]-Table36[[#This Row],[الأرصدة الدائنة]] -> 0
A65: 62 | B65: =IF($A$1="","", IFERROR(INDEX(Table28[#All],SMALL(IF(Table28[#All]=العملاء!$A$1,ROW(Table28[#All]),""),ROW('العملاء الموردين'!$B62)),MATCH(B$3,Table28[#Headers],0))," ")) ->  | C65: =IF($A$1="","", IFERROR(INDEX(Table28[#All],SMALL(IF(Table28[#All]=العملاء!$A$1,ROW(Table28[#All]),""),ROW('العملاء الموردين'!$B62)),MATCH(C$3,Table28[#Headers],0))," ")) ->  | D65: =IF($A$1="","", IFERROR(INDEX(Table28[#All],SMALL(IF(Table28[#All]=العملاء!$A$1,ROW(Table28[#All]),""),ROW('العملاء الموردين'!$B62)),MATCH(D$3,Table28[#Headers],0))," ")) ->  | E65: =IF($A$1="","", IFERROR(INDEX(Table28[#All],SMALL(IF(Table28[#All]=العملاء!$A$1,ROW(Table28[#All]),""),ROW('العملاء الموردين'!$B62)),MATCH(E$3,Table28[#Headers],0))," ")) ->  | F65: =IF($A$1="","", IFERROR(INDEX(Table28[#All],SMALL(IF(Table28[#All]=العملاء!$A$1,ROW(Table28[#All]),""),ROW('العملاء الموردين'!$B62)),MATCH(F$3,Table28[#Headers],0))," ")) ->  | G65: =IF($A$1="","", IFERROR(INDEX(Table28[#All],SMALL(IF(Table28[#All]=العملاء!$A$1,ROW(Table28[#All]),""),ROW('العملاء الموردين'!$B62)),MATCH(G$3,Table28[#Headers],0))," ")) ->  | H65: =SUMIFS(Table5[الإجمالي النهائي],Table5[نوع الفاتورة],$H$2,Table5[اسم العميل],Table36[[#This Row],[الإسم]]) -> 0 | I65: =SUMIFS(Table5[الإجمالي النهائي],Table5[نوع الفاتورة],$I$2,Table5[اسم العميل],Table36[[#This Row],[الإسم]])+SUMIFS(table30[المبلغ],table30[عميل / مورد],Table36[[#This Row],[الإسم]],table30[نوع السند],الصندوق!$L$1) -> 0 | J65: =Table36[[#This Row],[الأرصدة المدينة]]-Table36[[#This Row],[الأرصدة الدائنة]] -> 0
A66: 63 | B66: =IF($A$1="","", IFERROR(INDEX(Table28[#All],SMALL(IF(Table28[#All]=العملاء!$A$1,ROW(Table28[#All]),""),ROW('العملاء الموردين'!$B63)),MATCH(B$3,Table28[#Headers],0))," ")) ->  | C66: =IF($A$1="","", IFERROR(INDEX(Table28[#All],SMALL(IF(Table28[#All]=العملاء!$A$1,ROW(Table28[#All]),""),ROW('العملاء الموردين'!$B63)),MATCH(C$3,Table28[#Headers],0))," ")) ->  | D66: =IF($A$1="","", IFERROR(INDEX(Table28[#All],SMALL(IF(Table28[#All]=العملاء!$A$1,ROW(Table28[#All]),""),ROW('العملاء الموردين'!$B63)),MATCH(D$3,Table28[#Headers],0))," ")) ->  | E66: =IF($A$1="","", IFERROR(INDEX(Table28[#All],SMALL(IF(Table28[#All]=العملاء!$A$1,ROW(Table28[#All]),""),ROW('العملاء الموردين'!$B63)),MATCH(E$3,Table28[#Headers],0))," ")) ->  | F66: =IF($A$1="","", IFERROR(INDEX(Table28[#All],SMALL(IF(Table28[#All]=العملاء!$A$1,ROW(Table28[#All]),""),ROW('العملاء الموردين'!$B63)),MATCH(F$3,Table28[#Headers],0))," ")) ->  | G66: =IF($A$1="","", IFERROR(INDEX(Table28[#All],SMALL(IF(Table28[#All]=العملاء!$A$1,ROW(Table28[#All]),""),ROW('العملاء الموردين'!$B63)),MATCH(G$3,Table28[#Headers],0))," ")) ->  | H66: =SUMIFS(Table5[الإجمالي النهائي],Table5[نوع الفاتورة],$H$2,Table5[اسم العميل],Table36[[#This Row],[الإسم]]) -> 0 | I66: =SUMIFS(Table5[الإجمالي النهائي],Table5[نوع الفاتورة],$I$2,Table5[اسم العميل],Table36[[#This Row],[الإسم]])+SUMIFS(table30[المبلغ],table30[عميل / مورد],Table36[[#This Row],[الإسم]],table30[نوع السند],الصندوق!$L$1) -> 0 | J66: =Table36[[#This Row],[الأرصدة المدينة]]-Table36[[#This Row],[الأرصدة الدائنة]] -> 0
A67: 64 | B67: =IF($A$1="","", IFERROR(INDEX(Table28[#All],SMALL(IF(Table28[#All]=العملاء!$A$1,ROW(Table28[#All]),""),ROW('العملاء الموردين'!$B64)),MATCH(B$3,Table28[#Headers],0))," ")) ->  | C67: =IF($A$1="","", IFERROR(INDEX(Table28[#All],SMALL(IF(Table28[#All]=العملاء!$A$1,ROW(Table28[#All]),""),ROW('العملاء الموردين'!$B64)),MATCH(C$3,Table28[#Headers],0))," ")) ->  | D67: =IF($A$1="","", IFERROR(INDEX(Table28[#All],SMALL(IF(Table28[#All]=العملاء!$A$1,ROW(Table28[#All]),""),ROW('العملاء الموردين'!$B64)),MATCH(D$3,Table28[#Headers],0))," ")) ->  | E67: =IF($A$1="","", IFERROR(INDEX(Table28[#All],SMALL(IF(Table28[#All]=العملاء!$A$1,ROW(Table28[#All]),""),ROW('العملاء الموردين'!$B64)),MATCH(E$3,Table28[#Headers],0))," ")) ->  | F67: =IF($A$1="","", IFERROR(INDEX(Table28[#All],SMALL(IF(Table28[#All]=العملاء!$A$1,ROW(Table28[#All]),""),ROW('العملاء الموردين'!$B64)),MATCH(F$3,Table28[#Headers],0))," ")) ->  | G67: =IF($A$1="","", IFERROR(INDEX(Table28[#All],SMALL(IF(Table28[#All]=العملاء!$A$1,ROW(Table28[#All]),""),ROW('العملاء الموردين'!$B64)),MATCH(G$3,Table28[#Headers],0))," ")) ->  | H67: =SUMIFS(Table5[الإجمالي النهائي],Table5[نوع الفاتورة],$H$2,Table5[اسم العميل],Table36[[#This Row],[الإسم]]) -> 0 | I67: =SUMIFS(Table5[الإجمالي النهائي],Table5[نوع الفاتورة],$I$2,Table5[اسم العميل],Table36[[#This Row],[الإسم]])+SUMIFS(table30[المبلغ],table30[عميل / مورد],Table36[[#This Row],[الإسم]],table30[نوع السند],الصندوق!$L$1) -> 0 | J67: =Table36[[#This Row],[الأرصدة المدينة]]-Table36[[#This Row],[الأرصدة الدائنة]] -> 0
A68: 65 | B68: =IF($A$1="","", IFERROR(INDEX(Table28[#All],SMALL(IF(Table28[#All]=العملاء!$A$1,ROW(Table28[#All]),""),ROW('العملاء الموردين'!$B65)),MATCH(B$3,Table28[#Headers],0))," ")) ->  | C68: =IF($A$1="","", IFERROR(INDEX(Table28[#All],SMALL(IF(Table28[#All]=العملاء!$A$1,ROW(Table28[#All]),""),ROW('العملاء الموردين'!$B65)),MATCH(C$3,Table28[#Headers],0))," ")) ->  | D68: =IF($A$1="","", IFERROR(INDEX(Table28[#All],SMALL(IF(Table28[#All]=العملاء!$A$1,ROW(Table28[#All]),""),ROW('العملاء الموردين'!$B65)),MATCH(D$3,Table28[#Headers],0))," ")) ->  | E68: =IF($A$1="","", IFERROR(INDEX(Table28[#All],SMALL(IF(Table28[#All]=العملاء!$A$1,ROW(Table28[#All]),""),ROW('العملاء الموردين'!$B65)),MATCH(E$3,Table28[#Headers],0))," ")) ->  | F68: =IF($A$1="","", IFERROR(INDEX(Table28[#All],SMALL(IF(Table28[#All]=العملاء!$A$1,ROW(Table28[#All]),""),ROW('العملاء الموردين'!$B65)),MATCH(F$3,Table28[#Headers],0))," ")) ->  | G68: =IF($A$1="","", IFERROR(INDEX(Table28[#All],SMALL(IF(Table28[#All]=العملاء!$A$1,ROW(Table28[#All]),""),ROW('العملاء الموردين'!$B65)),MATCH(G$3,Table28[#Headers],0))," ")) ->  | H68: =SUMIFS(Table5[الإجمالي النهائي],Table5[نوع الفاتورة],$H$2,Table5[اسم العميل],Table36[[#This Row],[الإسم]]) -> 0 | I68: =SUMIFS(Table5[الإجمالي النهائي],Table5[نوع الفاتورة],$I$2,Table5[اسم العميل],Table36[[#This Row],[الإسم]])+SUMIFS(table30[المبلغ],table30[عميل / مورد],Table36[[#This Row],[الإسم]],table30[نوع السند],الصندوق!$L$1) -> 0 | J68: =Table36[[#This Row],[الأرصدة المدينة]]-Table36[[#This Row],[الأرصدة الدائنة]] -> 0
A69: 66 | B69: =IF($A$1="","", IFERROR(INDEX(Table28[#All],SMALL(IF(Table28[#All]=العملاء!$A$1,ROW(Table28[#All]),""),ROW('العملاء الموردين'!$B66)),MATCH(B$3,Table28[#Headers],0))," ")) ->  | C69: =IF($A$1="","", IFERROR(INDEX(Table28[#All],SMALL(IF(Table28[#All]=العملاء!$A$1,ROW(Table28[#All]),""),ROW('العملاء الموردين'!$B66)),MATCH(C$3,Table28[#Headers],0))," ")) ->  | D69: =IF($A$1="","", IFERROR(INDEX(Table28[#All],SMALL(IF(Table28[#All]=العملاء!$A$1,ROW(Table28[#All]),""),ROW('العملاء الموردين'!$B66)),MATCH(D$3,Table28[#Headers],0))," ")) ->  | E69: =IF($A$1="","", IFERROR(INDEX(Table28[#All],SMALL(IF(Table28[#All]=العملاء!$A$1,ROW(Table28[#All]),""),ROW('العملاء الموردين'!$B66)),MATCH(E$3,Table28[#Headers],0))," ")) ->  | F69: =IF($A$1="","", IFERROR(INDEX(Table28[#All],SMALL(IF(Table28[#All]=العملاء!$A$1,ROW(Table28[#All]),""),ROW('العملاء الموردين'!$B66)),MATCH(F$3,Table28[#Headers],0))," ")) ->  | G69: =IF($A$1="","", IFERROR(INDEX(Table28[#All],SMALL(IF(Table28[#All]=العملاء!$A$1,ROW(Table28[#All]),""),ROW('العملاء الموردين'!$B66)),MATCH(G$3,Table28[#Headers],0))," ")) ->  | H69: =SUMIFS(Table5[الإجمالي النهائي],Table5[نوع الفاتورة],$H$2,Table5[اسم العميل],Table36[[#This Row],[الإسم]]) -> 0 | I69: =SUMIFS(Table5[الإجمالي النهائي],Table5[نوع الفاتورة],$I$2,Table5[اسم العميل],Table36[[#This Row],[الإسم]])+SUMIFS(table30[المبلغ],table30[عميل / مورد],Table36[[#This Row],[الإسم]],table30[نوع السند],الصندوق!$L$1) -> 0 | J69: =Table36[[#This Row],[الأرصدة المدينة]]-Table36[[#This Row],[الأرصدة الدائنة]] -> 0
A70: 67 | B70: =IF($A$1="","", IFERROR(INDEX(Table28[#All],SMALL(IF(Table28[#All]=العملاء!$A$1,ROW(Table28[#All]),""),ROW('العملاء الموردين'!$B67)),MATCH(B$3,Table28[#Headers],0))," ")) ->  | C70: =IF($A$1="","", IFERROR(INDEX(Table28[#All],SMALL(IF(Table28[#All]=العملاء!$A$1,ROW(Table28[#All]),""),ROW('العملاء الموردين'!$B67)),MATCH(C$3,Table28[#Headers],0))," ")) ->  | D70: =IF($A$1="","", IFERROR(INDEX(Table28[#All],SMALL(IF(Table28[#All]=العملاء!$A$1,ROW(Table28[#All]),""),ROW('العملاء الموردين'!$B67)),MATCH(D$3,Table28[#Headers],0))," ")) ->  | E70: =IF($A$1="","", IFERROR(INDEX(Table28[#All],SMALL(IF(Table28[#All]=العملاء!$A$1,ROW(Table28[#All]),""),ROW('العملاء الموردين'!$B67)),MATCH(E$3,Table28[#Headers],0))," ")) ->  | F70: =IF($A$1="","", IFERROR(INDEX(Table28[#All],SMALL(IF(Table28[#All]=العملاء!$A$1,ROW(Table28[#All]),""),ROW('العملاء الموردين'!$B67)),MATCH(F$3,Table28[#Headers],0))," ")) ->  | G70: =IF($A$1="","", IFERROR(INDEX(Table28[#All],SMALL(IF(Table28[#All]=العملاء!$A$1,ROW(Table28[#All]),""),ROW('العملاء الموردين'!$B67)),MATCH(G$3,Table28[#Headers],0))," ")) ->  | H70: =SUMIFS(Table5[الإجمالي النهائي],Table5[نوع الفاتورة],$H$2,Table5[اسم العميل],Table36[[#This Row],[الإسم]]) -> 0 | I70: =SUMIFS(Table5[الإجمالي النهائي],Table5[نوع الفاتورة],$I$2,Table5[اسم العميل],Table36[[#This Row],[الإسم]])+SUMIFS(table30[المبلغ],table30[عميل / مورد],Table36[[#This Row],[الإسم]],table30[نوع السند],الصندوق!$L$1) -> 0 | J70: =Table36[[#This Row],[الأرصدة المدينة]]-Table36[[#This Row],[الأرصدة الدائنة]] -> 0
A71: 68 | B71: =IF($A$1="","", IFERROR(INDEX(Table28[#All],SMALL(IF(Table28[#All]=العملاء!$A$1,ROW(Table28[#All]),""),ROW('العملاء الموردين'!$B68)),MATCH(B$3,Table28[#Headers],0))," ")) ->  | C71: =IF($A$1="","", IFERROR(INDEX(Table28[#All],SMALL(IF(Table28[#All]=العملاء!$A$1,ROW(Table28[#All]),""),ROW('العملاء الموردين'!$B68)),MATCH(C$3,Table28[#Headers],0))," ")) ->  | D71: =IF($A$1="","", IFERROR(INDEX(Table28[#All],SMALL(IF(Table28[#All]=العملاء!$A$1,ROW(Table28[#All]),""),ROW('العملاء الموردين'!$B68)),MATCH(D$3,Table28[#Headers],0))," ")) ->  | E71: =IF($A$1="","", IFERROR(INDEX(Table28[#All],SMALL(IF(Table28[#All]=العملاء!$A$1,ROW(Table28[#All]),""),ROW('العملاء الموردين'!$B68)),MATCH(E$3,Table28[#Headers],0))," ")) ->  | F71: =IF($A$1="","", IFERROR(INDEX(Table28[#All],SMALL(IF(Table28[#All]=العملاء!$A$1,ROW(Table28[#All]),""),ROW('العملاء الموردين'!$B68)),MATCH(F$3,Table28[#Headers],0))," ")) ->  | G71: =IF($A$1="","", IFERROR(INDEX(Table28[#All],SMALL(IF(Table28[#All]=العملاء!$A$1,ROW(Table28[#All]),""),ROW('العملاء الموردين'!$B68)),MATCH(G$3,Table28[#Headers],0))," ")) ->  | H71: =SUMIFS(Table5[الإجمالي النهائي],Table5[نوع الفاتورة],$H$2,Table5[اسم العميل],Table36[[#This Row],[الإسم]]) -> 0 | I71: =SUMIFS(Table5[الإجمالي النهائي],Table5[نوع الفاتورة],$I$2,Table5[اسم العميل],Table36[[#This Row],[الإسم]])+SUMIFS(table30[المبلغ],table30[عميل / مورد],Table36[[#This Row],[الإسم]],table30[نوع السند],الصندوق!$L$1) -> 0 | J71: =Table36[[#This Row],[الأرصدة المدينة]]-Table36[[#This Row],[الأرصدة الدائنة]] -> 0
A72: 69 | B72: =IF($A$1="","", IFERROR(INDEX(Table28[#All],SMALL(IF(Table28[#All]=العملاء!$A$1,ROW(Table28[#All]),""),ROW('العملاء الموردين'!$B69)),MATCH(B$3,Table28[#Headers],0))," ")) ->  | C72: =IF($A$1="","", IFERROR(INDEX(Table28[#All],SMALL(IF(Table28[#All]=العملاء!$A$1,ROW(Table28[#All]),""),ROW('العملاء الموردين'!$B69)),MATCH(C$3,Table28[#Headers],0))," ")) ->  | D72: =IF($A$1="","", IFERROR(INDEX(Table28[#All],SMALL(IF(Table28[#All]=العملاء!$A$1,ROW(Table28[#All]),""),ROW('العملاء الموردين'!$B69)),MATCH(D$3,Table28[#Headers],0))," ")) ->  | E72: =IF($A$1="","", IFERROR(INDEX(Table28[#All],SMALL(IF(Table28[#All]=العملاء!$A$1,ROW(Table28[#All]),""),ROW('العملاء الموردين'!$B69)),MATCH(E$3,Table28[#Headers],0))," ")) ->  | F72: =IF($A$1="","", IFERROR(INDEX(Table28[#All],SMALL(IF(Table28[#All]=العملاء!$A$1,ROW(Table28[#All]),""),ROW('العملاء الموردين'!$B69)),MATCH(F$3,Table28[#Headers],0))," ")) ->  | G72: =IF($A$1="","", IFERROR(INDEX(Table28[#All],SMALL(IF(Table28[#All]=العملاء!$A$1,ROW(Table28[#All]),""),ROW('العملاء الموردين'!$B69)),MATCH(G$3,Table28[#Headers],0))," ")) ->  | H72: =SUMIFS(Table5[الإجمالي النهائي],Table5[نوع الفاتورة],$H$2,Table5[اسم العميل],Table36[[#This Row],[الإسم]]) -> 0 | I72: =SUMIFS(Table5[الإجمالي النهائي],Table5[نوع الفاتورة],$I$2,Table5[اسم العميل],Table36[[#This Row],[الإسم]])+SUMIFS(table30[المبلغ],table30[عميل / مورد],Table36[[#This Row],[الإسم]],table30[نوع السند],الصندوق!$L$1) -> 0 | J72: =Table36[[#This Row],[الأرصدة المدينة]]-Table36[[#This Row],[الأرصدة الدائنة]] -> 0
A73: 70 | B73: =IF($A$1="","", IFERROR(INDEX(Table28[#All],SMALL(IF(Table28[#All]=العملاء!$A$1,ROW(Table28[#All]),""),ROW('العملاء الموردين'!$B70)),MATCH(B$3,Table28[#Headers],0))," ")) ->  | C73: =IF($A$1="","", IFERROR(INDEX(Table28[#All],SMALL(IF(Table28[#All]=العملاء!$A$1,ROW(Table28[#All]),""),ROW('العملاء الموردين'!$B70)),MATCH(C$3,Table28[#Headers],0))," ")) ->  | D73: =IF($A$1="","", IFERROR(INDEX(Table28[#All],SMALL(IF(Table28[#All]=العملاء!$A$1,ROW(Table28[#All]),""),ROW('العملاء الموردين'!$B70)),MATCH(D$3,Table28[#Headers],0))," ")) ->  | E73: =IF($A$1="","", IFERROR(INDEX(Table28[#All],SMALL(IF(Table28[#All]=العملاء!$A$1,ROW(Table28[#All]),""),ROW('العملاء الموردين'!$B70)),MATCH(E$3,Table28[#Headers],0))," ")) ->  | F73: =IF($A$1="","", IFERROR(INDEX(Table28[#All],SMALL(IF(Table28[#All]=العملاء!$A$1,ROW(Table28[#All]),""),ROW('العملاء الموردين'!$B70)),MATCH(F$3,Table28[#Headers],0))," ")) ->  | G73: =IF($A$1="","", IFERROR(INDEX(Table28[#All],SMALL(IF(Table28[#All]=العملاء!$A$1,ROW(Table28[#All]),""),ROW('العملاء الموردين'!$B70)),MATCH(G$3,Table28[#Headers],0))," ")) ->  | H73: =SUMIFS(Table5[الإجمالي النهائي],Table5[نوع الفاتورة],$H$2,Table5[اسم العميل],Table36[[#This Row],[الإسم]]) -> 0 | I73: =SUMIFS(Table5[الإجمالي النهائي],Table5[نوع الفاتورة],$I$2,Table5[اسم العميل],Table36[[#This Row],[الإسم]])+SUMIFS(table30[المبلغ],table30[عميل / مورد],Table36[[#This Row],[الإسم]],table30[نوع السند],الصندوق!$L$1) -> 0 | J73: =Table36[[#This Row],[الأرصدة المدينة]]-Table36[[#This Row],[الأرصدة الدائنة]] -> 0
A74: 71 | B74: =IF($A$1="","", IFERROR(INDEX(Table28[#All],SMALL(IF(Table28[#All]=العملاء!$A$1,ROW(Table28[#All]),""),ROW('العملاء الموردين'!$B71)),MATCH(B$3,Table28[#Headers],0))," ")) ->  | C74: =IF($A$1="","", IFERROR(INDEX(Table28[#All],SMALL(IF(Table28[#All]=العملاء!$A$1,ROW(Table28[#All]),""),ROW('العملاء الموردين'!$B71)),MATCH(C$3,Table28[#Headers],0))," ")) ->  | D74: =IF($A$1="","", IFERROR(INDEX(Table28[#All],SMALL(IF(Table28[#All]=العملاء!$A$1,ROW(Table28[#All]),""),ROW('العملاء الموردين'!$B71)),MATCH(D$3,Table28[#Headers],0))," ")) ->  | E74: =IF($A$1="","", IFERROR(INDEX(Table28[#All],SMALL(IF(Table28[#All]=العملاء!$A$1,ROW(Table28[#All]),""),ROW('العملاء الموردين'!$B71)),MATCH(E$3,Table28[#Headers],0))," ")) ->  | F74: =IF($A$1="","", IFERROR(INDEX(Table28[#All],SMALL(IF(Table28[#All]=العملاء!$A$1,ROW(Table28[#All]),""),ROW('العملاء الموردين'!$B71)),MATCH(F$3,Table28[#Headers],0))," ")) ->  | G74: =IF($A$1="","", IFERROR(INDEX(Table28[#All],SMALL(IF(Table28[#All]=العملاء!$A$1,ROW(Table28[#All]),""),ROW('العملاء الموردين'!$B71)),MATCH(G$3,Table28[#Headers],0))," ")) ->  | H74: =SUMIFS(Table5[الإجمالي النهائي],Table5[نوع الفاتورة],$H$2,Table5[اسم العميل],Table36[[#This Row],[الإسم]]) -> 0 | I74: =SUMIFS(Table5[الإجمالي النهائي],Table5[نوع الفاتورة],$I$2,Table5[اسم العميل],Table36[[#This Row],[الإسم]])+SUMIFS(table30[المبلغ],table30[عميل / مورد],Table36[[#This Row],[الإسم]],table30[نوع السند],الصندوق!$L$1) -> 0 | J74: =Table36[[#This Row],[الأرصدة المدينة]]-Table36[[#This Row],[الأرصدة الدائنة]] -> 0
A75: 72 | B75: =IF($A$1="","", IFERROR(INDEX(Table28[#All],SMALL(IF(Table28[#All]=العملاء!$A$1,ROW(Table28[#All]),""),ROW('العملاء الموردين'!$B72)),MATCH(B$3,Table28[#Headers],0))," ")) ->  | C75: =IF($A$1="","", IFERROR(INDEX(Table28[#All],SMALL(IF(Table28[#All]=العملاء!$A$1,ROW(Table28[#All]),""),ROW('العملاء الموردين'!$B72)),MATCH(C$3,Table28[#Headers],0))," ")) ->  | D75: =IF($A$1="","", IFERROR(INDEX(Table28[#All],SMALL(IF(Table28[#All]=العملاء!$A$1,ROW(Table28[#All]),""),ROW('العملاء الموردين'!$B72)),MATCH(D$3,Table28[#Headers],0))," ")) ->  | E75: =IF($A$1="","", IFERROR(INDEX(Table28[#All],SMALL(IF(Table28[#All]=العملاء!$A$1,ROW(Table28[#All]),""),ROW('العملاء الموردين'!$B72)),MATCH(E$3,Table28[#Headers],0))," ")) ->  | F75: =IF($A$1="","", IFERROR(INDEX(Table28[#All],SMALL(IF(Table28[#All]=العملاء!$A$1,ROW(Table28[#All]),""),ROW('العملاء الموردين'!$B72)),MATCH(F$3,Table28[#Headers],0))," ")) ->  | G75: =IF($A$1="","", IFERROR(INDEX(Table28[#All],SMALL(IF(Table28[#All]=العملاء!$A$1,ROW(Table28[#All]),""),ROW('العملاء الموردين'!$B72)),MATCH(G$3,Table28[#Headers],0))," ")) ->  | H75: =SUMIFS(Table5[الإجمالي النهائي],Table5[نوع الفاتورة],$H$2,Table5[اسم العميل],Table36[[#This Row],[الإسم]]) -> 0 | I75: =SUMIFS(Table5[الإجمالي النهائي],Table5[نوع الفاتورة],$I$2,Table5[اسم العميل],Table36[[#This Row],[الإسم]])+SUMIFS(table30[المبلغ],table30[عميل / مورد],Table36[[#This Row],[الإسم]],table30[نوع السند],الصندوق!$L$1) -> 0 | J75: =Table36[[#This Row],[الأرصدة المدينة]]-Table36[[#This Row],[الأرصدة الدائنة]] -> 0
A76: 73 | B76: =IF($A$1="","", IFERROR(INDEX(Table28[#All],SMALL(IF(Table28[#All]=العملاء!$A$1,ROW(Table28[#All]),""),ROW('العملاء الموردين'!$B73)),MATCH(B$3,Table28[#Headers],0))," ")) ->  | C76: =IF($A$1="","", IFERROR(INDEX(Table28[#All],SMALL(IF(Table28[#All]=العملاء!$A$1,ROW(Table28[#All]),""),ROW('العملاء الموردين'!$B73)),MATCH(C$3,Table28[#Headers],0))," ")) ->  | D76: =IF($A$1="","", IFERROR(INDEX(Table28[#All],SMALL(IF(Table28[#All]=العملاء!$A$1,ROW(Table28[#All]),""),ROW('العملاء الموردين'!$B73)),MATCH(D$3,Table28[#Headers],0))," ")) ->  | E76: =IF($A$1="","", IFERROR(INDEX(Table28[#All],SMALL(IF(Table28[#All]=العملاء!$A$1,ROW(Table28[#All]),""),ROW('العملاء الموردين'!$B73)),MATCH(E$3,Table28[#Headers],0))," ")) ->  | F76: =IF($A$1="","", IFERROR(INDEX(Table28[#All],SMALL(IF(Table28[#All]=العملاء!$A$1,ROW(Table28[#All]),""),ROW('العملاء الموردين'!$B73)),MATCH(F$3,Table28[#Headers],0))," ")) ->  | G76: =IF($A$1="","", IFERROR(INDEX(Table28[#All],SMALL(IF(Table28[#All]=العملاء!$A$1,ROW(Table28[#All]),""),ROW('العملاء الموردين'!$B73)),MATCH(G$3,Table28[#Headers],0))," ")) ->  | H76: =SUMIFS(Table5[الإجمالي النهائي],Table5[نوع الفاتورة],$H$2,Table5[اسم العميل],Table36[[#This Row],[الإسم]]) -> 0 | I76: =SUMIFS(Table5[الإجمالي النهائي],Table5[نوع الفاتورة],$I$2,Table5[اسم العميل],Table36[[#This Row],[الإسم]])+SUMIFS(table30[المبلغ],table30[عميل / مورد],Table36[[#This Row],[الإسم]],table30[نوع السند],الصندوق!$L$1) -> 0 | J76: =Table36[[#This Row],[الأرصدة المدينة]]-Table36[[#This Row],[الأرصدة الدائنة]] -> 0
A77: 74 | B77: =IF($A$1="","", IFERROR(INDEX(Table28[#All],SMALL(IF(Table28[#All]=العملاء!$A$1,ROW(Table28[#All]),""),ROW('العملاء الموردين'!$B74)),MATCH(B$3,Table28[#Headers],0))," ")) ->  | C77: =IF($A$1="","", IFERROR(INDEX(Table28[#All],SMALL(IF(Table28[#All]=العملاء!$A$1,ROW(Table28[#All]),""),ROW('العملاء الموردين'!$B74)),MATCH(C$3,Table28[#Headers],0))," ")) ->  | D77: =IF($A$1="","", IFERROR(INDEX(Table28[#All],SMALL(IF(Table28[#All]=العملاء!$A$1,ROW(Table28[#All]),""),ROW('العملاء الموردين'!$B74)),MATCH(D$3,Table28[#Headers],0))," ")) ->  | E77: =IF($A$1="","", IFERROR(INDEX(Table28[#All],SMALL(IF(Table28[#All]=العملاء!$A$1,ROW(Table28[#All]),""),ROW('العملاء الموردين'!$B74)),MATCH(E$3,Table28[#Headers],0))," ")) ->  | F77: =IF($A$1="","", IFERROR(INDEX(Table28[#All],SMALL(IF(Table28[#All]=العملاء!$A$1,ROW(Table28[#All]),""),ROW('العملاء الموردين'!$B74)),MATCH(F$3,Table28[#Headers],0))," ")) ->  | G77: =IF($A$1="","", IFERROR(INDEX(Table28[#All],SMALL(IF(Table28[#All]=العملاء!$A$1,ROW(Table28[#All]),""),ROW('العملاء الموردين'!$B74)),MATCH(G$3,Table28[#Headers],0))," ")) ->  | H77: =SUMIFS(Table5[الإجمالي النهائي],Table5[نوع الفاتورة],$H$2,Table5[اسم العميل],Table36[[#This Row],[الإسم]]) -> 0 | I77: =SUMIFS(Table5[الإجمالي النهائي],Table5[نوع الفاتورة],$I$2,Table5[اسم العميل],Table36[[#This Row],[الإسم]])+SUMIFS(table30[المبلغ],table30[عميل / مورد],Table36[[#This Row],[الإسم]],table30[نوع السند],الصندوق!$L$1) -> 0 | J77: =Table36[[#This Row],[الأرصدة المدينة]]-Table36[[#This Row],[الأرصدة الدائنة]] -> 0
A78: 75 | B78: =IF($A$1="","", IFERROR(INDEX(Table28[#All],SMALL(IF(Table28[#All]=العملاء!$A$1,ROW(Table28[#All]),""),ROW('العملاء الموردين'!$B75)),MATCH(B$3,Table28[#Headers],0))," ")) ->  | C78: =IF($A$1="","", IFERROR(INDEX(Table28[#All],SMALL(IF(Table28[#All]=العملاء!$A$1,ROW(Table28[#All]),""),ROW('العملاء الموردين'!$B75)),MATCH(C$3,Table28[#Headers],0))," ")) ->  | D78: =IF($A$1="","", IFERROR(INDEX(Table28[#All],SMALL(IF(Table28[#All]=العملاء!$A$1,ROW(Table28[#All]),""),ROW('العملاء الموردين'!$B75)),MATCH(D$3,Table28[#Headers],0))," ")) ->  | E78: =IF($A$1="","", IFERROR(INDEX(Table28[#All],SMALL(IF(Table28[#All]=العملاء!$A$1,ROW(Table28[#All]),""),ROW('العملاء الموردين'!$B75)),MATCH(E$3,Table28[#Headers],0))," ")) ->  | F78: =IF($A$1="","", IFERROR(INDEX(Table28[#All],SMALL(IF(Table28[#All]=العملاء!$A$1,ROW(Table28[#All]),""),ROW('العملاء الموردين'!$B75)),MATCH(F$3,Table28[#Headers],0))," ")) ->  | G78: =IF($A$1="","", IFERROR(INDEX(Table28[#All],SMALL(IF(Table28[#All]=العملاء!$A$1,ROW(Table28[#All]),""),ROW('العملاء الموردين'!$B75)),MATCH(G$3,Table28[#Headers],0))," ")) ->  | H78: =SUMIFS(Table5[الإجمالي النهائي],Table5[نوع الفاتورة],$H$2,Table5[اسم العميل],Table36[[#This Row],[الإسم]]) -> 0 | I78: =SUMIFS(Table5[الإجمالي النهائي],Table5[نوع الفاتورة],$I$2,Table5[اسم العميل],Table36[[#This Row],[الإسم]])+SUMIFS(table30[المبلغ],table30[عميل / مورد],Table36[[#This Row],[الإسم]],table30[نوع السند],الصندوق!$L$1) -> 0 | J78: =Table36[[#This Row],[الأرصدة المدينة]]-Table36[[#This Row],[الأرصدة الدائنة]] -> 0
A79: 76 | B79: =IF($A$1="","", IFERROR(INDEX(Table28[#All],SMALL(IF(Table28[#All]=العملاء!$A$1,ROW(Table28[#All]),""),ROW('العملاء الموردين'!$B76)),MATCH(B$3,Table28[#Headers],0))," ")) ->  | C79: =IF($A$1="","", IFERROR(INDEX(Table28[#All],SMALL(IF(Table28[#All]=العملاء!$A$1,ROW(Table28[#All]),""),ROW('العملاء الموردين'!$B76)),MATCH(C$3,Table28[#Headers],0))," ")) ->  | D79: =IF($A$1="","", IFERROR(INDEX(Table28[#All],SMALL(IF(Table28[#All]=العملاء!$A$1,ROW(Table28[#All]),""),ROW('العملاء الموردين'!$B76)),MATCH(D$3,Table28[#Headers],0))," ")) ->  | E79: =IF($A$1="","", IFERROR(INDEX(Table28[#All],SMALL(IF(Table28[#All]=العملاء!$A$1,ROW(Table28[#All]),""),ROW('العملاء الموردين'!$B76)),MATCH(E$3,Table28[#Headers],0))," ")) ->  | F79: =IF($A$1="","", IFERROR(INDEX(Table28[#All],SMALL(IF(Table28[#All]=العملاء!$A$1,ROW(Table28[#All]),""),ROW('العملاء الموردين'!$B76)),MATCH(F$3,Table28[#Headers],0))," ")) ->  | G79: =IF($A$1="","", IFERROR(INDEX(Table28[#All],SMALL(IF(Table28[#All]=العملاء!$A$1,ROW(Table28[#All]),""),ROW('العملاء الموردين'!$B76)),MATCH(G$3,Table28[#Headers],0))," ")) ->  | H79: =SUMIFS(Table5[الإجمالي النهائي],Table5[نوع الفاتورة],$H$2,Table5[اسم العميل],Table36[[#This Row],[الإسم]]) -> 0 | I79: =SUMIFS(Table5[الإجمالي النهائي],Table5[نوع الفاتورة],$I$2,Table5[اسم العميل],Table36[[#This Row],[الإسم]])+SUMIFS(table30[المبلغ],table30[عميل / مورد],Table36[[#This Row],[الإسم]],table30[نوع السند],الصندوق!$L$1) -> 0 | J79: =Table36[[#This Row],[الأرصدة المدينة]]-Table36[[#This Row],[الأرصدة الدائنة]] -> 0
A80: 77 | B80: =IF($A$1="","", IFERROR(INDEX(Table28[#All],SMALL(IF(Table28[#All]=العملاء!$A$1,ROW(Table28[#All]),""),ROW('العملاء الموردين'!$B77)),MATCH(B$3,Table28[#Headers],0))," ")) ->  | C80: =IF($A$1="","", IFERROR(INDEX(Table28[#All],SMALL(IF(Table28[#All]=العملاء!$A$1,ROW(Table28[#All]),""),ROW('العملاء الموردين'!$B77)),MATCH(C$3,Table28[#Headers],0))," ")) ->  | D80: =IF($A$1="","", IFERROR(INDEX(Table28[#All],SMALL(IF(Table28[#All]=العملاء!$A$1,ROW(Table28[#All]),""),ROW('العملاء الموردين'!$B77)),MATCH(D$3,Table28[#Headers],0))," ")) ->  | E80: =IF($A$1="","", IFERROR(INDEX(Table28[#All],SMALL(IF(Table28[#All]=العملاء!$A$1,ROW(Table28[#All]),""),ROW('العملاء الموردين'!$B77)),MATCH(E$3,Table28[#Headers],0))," ")) ->  | F80: =IF($A$1="","", IFERROR(INDEX(Table28[#All],SMALL(IF(Table28[#All]=العملاء!$A$1,ROW(Table28[#All]),""),ROW('العملاء الموردين'!$B77)),MATCH(F$3,Table28[#Headers],0))," ")) ->  | G80: =IF($A$1="","", IFERROR(INDEX(Table28[#All],SMALL(IF(Table28[#All]=العملاء!$A$1,ROW(Table28[#All]),""),ROW('العملاء الموردين'!$B77)),MATCH(G$3,Table28[#Headers],0))," ")) ->  | H80: =SUMIFS(Table5[الإجمالي النهائي],Table5[نوع الفاتورة],$H$2,Table5[اسم العميل],Table36[[#This Row],[الإسم]]) -> 0 | I80: =SUMIFS(Table5[الإجمالي النهائي],Table5[نوع الفاتورة],$I$2,Table5[اسم العميل],Table36[[#This Row],[الإسم]])+SUMIFS(table30[المبلغ],table30[عميل / مورد],Table36[[#This Row],[الإسم]],table30[نوع السند],الصندوق!$L$1) -> 0 | J80: =Table36[[#This Row],[الأرصدة المدينة]]-Table36[[#This Row],[الأرصدة الدائنة]] -> 0
A81: 78 | B81: =IF($A$1="","", IFERROR(INDEX(Table28[#All],SMALL(IF(Table28[#All]=العملاء!$A$1,ROW(Table28[#All]),""),ROW('العملاء الموردين'!$B78)),MATCH(B$3,Table28[#Headers],0))," ")) ->  | C81: =IF($A$1="","", IFERROR(INDEX(Table28[#All],SMALL(IF(Table28[#All]=العملاء!$A$1,ROW(Table28[#All]),""),ROW('العملاء الموردين'!$B78)),MATCH(C$3,Table28[#Headers],0))," ")) ->  | D81: =IF($A$1="","", IFERROR(INDEX(Table28[#All],SMALL(IF(Table28[#All]=العملاء!$A$1,ROW(Table28[#All]),""),ROW('العملاء الموردين'!$B78)),MATCH(D$3,Table28[#Headers],0))," ")) ->  | E81: =IF($A$1="","", IFERROR(INDEX(Table28[#All],SMALL(IF(Table28[#All]=العملاء!$A$1,ROW(Table28[#All]),""),ROW('العملاء الموردين'!$B78)),MATCH(E$3,Table28[#Headers],0))," ")) ->  | F81: =IF($A$1="","", IFERROR(INDEX(Table28[#All],SMALL(IF(Table28[#All]=العملاء!$A$1,ROW(Table28[#All]),""),ROW('العملاء الموردين'!$B78)),MATCH(F$3,Table28[#Headers],0))," ")) ->  | G81: =IF($A$1="","", IFERROR(INDEX(Table28[#All],SMALL(IF(Table28[#All]=العملاء!$A$1,ROW(Table28[#All]),""),ROW('العملاء الموردين'!$B78)),MATCH(G$3,Table28[#Headers],0))," ")) ->  | H81: =SUMIFS(Table5[الإجمالي النهائي],Table5[نوع الفاتورة],$H$2,Table5[اسم العميل],Table36[[#This Row],[الإسم]]) -> 0 | I81: =SUMIFS(Table5[الإجمالي النهائي],Table5[نوع الفاتورة],$I$2,Table5[اسم العميل],Table36[[#This Row],[الإسم]])+SUMIFS(table30[المبلغ],table30[عميل / مورد],Table36[[#This Row],[الإسم]],table30[نوع السند],الصندوق!$L$1) -> 0 | J81: =Table36[[#This Row],[الأرصدة المدينة]]-Table36[[#This Row],[الأرصدة الدائنة]] -> 0
A82: 79 | B82: =IF($A$1="","", IFERROR(INDEX(Table28[#All],SMALL(IF(Table28[#All]=العملاء!$A$1,ROW(Table28[#All]),""),ROW('العملاء الموردين'!$B79)),MATCH(B$3,Table28[#Headers],0))," ")) ->  | C82: =IF($A$1="","", IFERROR(INDEX(Table28[#All],SMALL(IF(Table28[#All]=العملاء!$A$1,ROW(Table28[#All]),""),ROW('العملاء الموردين'!$B79)),MATCH(C$3,Table28[#Headers],0))," ")) ->  | D82: =IF($A$1="","", IFERROR(INDEX(Table28[#All],SMALL(IF(Table28[#All]=العملاء!$A$1,ROW(Table28[#All]),""),ROW('العملاء الموردين'!$B79)),MATCH(D$3,Table28[#Headers],0))," ")) ->  | E82: =IF($A$1="","", IFERROR(INDEX(Table28[#All],SMALL(IF(Table28[#All]=العملاء!$A$1,ROW(Table28[#All]),""),ROW('العملاء الموردين'!$B79)),MATCH(E$3,Table28[#Headers],0))," ")) ->  | F82: =IF($A$1="","", IFERROR(INDEX(Table28[#All],SMALL(IF(Table28[#All]=العملاء!$A$1,ROW(Table28[#All]),""),ROW('العملاء الموردين'!$B79)),MATCH(F$3,Table28[#Headers],0))," ")) ->  | G82: =IF($A$1="","", IFERROR(INDEX(Table28[#All],SMALL(IF(Table28[#All]=العملاء!$A$1,ROW(Table28[#All]),""),ROW('العملاء الموردين'!$B79)),MATCH(G$3,Table28[#Headers],0))," ")) ->  | H82: =SUMIFS(Table5[الإجمالي النهائي],Table5[نوع الفاتورة],$H$2,Table5[اسم العميل],Table36[[#This Row],[الإسم]]) -> 0 | I82: =SUMIFS(Table5[الإجمالي النهائي],Table5[نوع الفاتورة],$I$2,Table5[اسم العميل],Table36[[#This Row],[الإسم]])+SUMIFS(table30[المبلغ],table30[عميل / مورد],Table36[[#This Row],[الإسم]],table30[نوع السند],الصندوق!$L$1) -> 0 | J82: =Table36[[#This Row],[الأرصدة المدينة]]-Table36[[#This Row],[الأرصدة الدائنة]] -> 0
A83: 80 | B83: =IF($A$1="","", IFERROR(INDEX(Table28[#All],SMALL(IF(Table28[#All]=العملاء!$A$1,ROW(Table28[#All]),""),ROW('العملاء الموردين'!$B80)),MATCH(B$3,Table28[#Headers],0))," ")) ->  | C83: =IF($A$1="","", IFERROR(INDEX(Table28[#All],SMALL(IF(Table28[#All]=العملاء!$A$1,ROW(Table28[#All]),""),ROW('العملاء الموردين'!$B80)),MATCH(C$3,Table28[#Headers],0))," ")) ->  | D83: =IF($A$1="","", IFERROR(INDEX(Table28[#All],SMALL(IF(Table28[#All]=العملاء!$A$1,ROW(Table28[#All]),""),ROW('العملاء الموردين'!$B80)),MATCH(D$3,Table28[#Headers],0))," ")) ->  | E83: =IF($A$1="","", IFERROR(INDEX(Table28[#All],SMALL(IF(Table28[#All]=العملاء!$A$1,ROW(Table28[#All]),""),ROW('العملاء الموردين'!$B80)),MATCH(E$3,Table28[#Headers],0))," ")) ->  | F83: =IF($A$1="","", IFERROR(INDEX(Table28[#All],SMALL(IF(Table28[#All]=العملاء!$A$1,ROW(Table28[#All]),""),ROW('العملاء الموردين'!$B80)),MATCH(F$3,Table28[#Headers],0))," ")) ->  | G83: =IF($A$1="","", IFERROR(INDEX(Table28[#All],SMALL(IF(Table28[#All]=العملاء!$A$1,ROW(Table28[#All]),""),ROW('العملاء الموردين'!$B80)),MATCH(G$3,Table28[#Headers],0))," ")) ->  | H83: =SUMIFS(Table5[الإجمالي النهائي],Table5[نوع الفاتورة],$H$2,Table5[اسم العميل],Table36[[#This Row],[الإسم]]) -> 0 | I83: =SUMIFS(Table5[الإجمالي النهائي],Table5[نوع الفاتورة],$I$2,Table5[اسم العميل],Table36[[#This Row],[الإسم]])+SUMIFS(table30[المبلغ],table30[عميل / مورد],Table36[[#This Row],[الإسم]],table30[نوع السند],الصندوق!$L$1) -> 0 | J83: =Table36[[#This Row],[الأرصدة المدينة]]-Table36[[#This Row],[الأرصدة الدائنة]] -> 0
A84: 81 | B84: =IF($A$1="","", IFERROR(INDEX(Table28[#All],SMALL(IF(Table28[#All]=العملاء!$A$1,ROW(Table28[#All]),""),ROW('العملاء الموردين'!$B81)),MATCH(B$3,Table28[#Headers],0))," ")) ->  | C84: =IF($A$1="","", IFERROR(INDEX(Table28[#All],SMALL(IF(Table28[#All]=العملاء!$A$1,ROW(Table28[#All]),""),ROW('العملاء الموردين'!$B81)),MATCH(C$3,Table28[#Headers],0))," ")) ->  | D84: =IF($A$1="","", IFERROR(INDEX(Table28[#All],SMALL(IF(Table28[#All]=العملاء!$A$1,ROW(Table28[#All]),""),ROW('العملاء الموردين'!$B81)),MATCH(D$3,Table28[#Headers],0))," ")) ->  | E84: =IF($A$1="","", IFERROR(INDEX(Table28[#All],SMALL(IF(Table28[#All]=العملاء!$A$1,ROW(Table28[#All]),""),ROW('العملاء الموردين'!$B81)),MATCH(E$3,Table28[#Headers],0))," ")) ->  | F84: =IF($A$1="","", IFERROR(INDEX(Table28[#All],SMALL(IF(Table28[#All]=العملاء!$A$1,ROW(Table28[#All]),""),ROW('العملاء الموردين'!$B81)),MATCH(F$3,Table28[#Headers],0))," ")) ->  | G84: =IF($A$1="","", IFERROR(INDEX(Table28[#All],SMALL(IF(Table28[#All]=العملاء!$A$1,ROW(Table28[#All]),""),ROW('العملاء الموردين'!$B81)),MATCH(G$3,Table28[#Headers],0))," ")) ->  | H84: =SUMIFS(Table5[الإجمالي النهائي],Table5[نوع الفاتورة],$H$2,Table5[اسم العميل],Table36[[#This Row],[الإسم]]) -> 0 | I84: =SUMIFS(Table5[الإجمالي النهائي],Table5[نوع الفاتورة],$I$2,Table5[اسم العميل],Table36[[#This Row],[الإسم]])+SUMIFS(table30[المبلغ],table30[عميل / مورد],Table36[[#This Row],[الإسم]],table30[نوع السند],الصندوق!$L$1) -> 0 | J84: =Table36[[#This Row],[الأرصدة المدينة]]-Table36[[#This Row],[الأرصدة الدائنة]] -> 0
A85: 82 | B85: =IF($A$1="","", IFERROR(INDEX(Table28[#All],SMALL(IF(Table28[#All]=العملاء!$A$1,ROW(Table28[#All]),""),ROW('العملاء الموردين'!$B82)),MATCH(B$3,Table28[#Headers],0))," ")) ->  | C85: =IF($A$1="","", IFERROR(INDEX(Table28[#All],SMALL(IF(Table28[#All]=العملاء!$A$1,ROW(Table28[#All]),""),ROW('العملاء الموردين'!$B82)),MATCH(C$3,Table28[#Headers],0))," ")) ->  | D85: =IF($A$1="","", IFERROR(INDEX(Table28[#All],SMALL(IF(Table28[#All]=العملاء!$A$1,ROW(Table28[#All]),""),ROW('العملاء الموردين'!$B82)),MATCH(D$3,Table28[#Headers],0))," ")) ->  | E85: =IF($A$1="","", IFERROR(INDEX(Table28[#All],SMALL(IF(Table28[#All]=العملاء!$A$1,ROW(Table28[#All]),""),ROW('العملاء الموردين'!$B82)),MATCH(E$3,Table28[#Headers],0))," ")) ->  | F85: =IF($A$1="","", IFERROR(INDEX(Table28[#All],SMALL(IF(Table28[#All]=العملاء!$A$1,ROW(Table28[#All]),""),ROW('العملاء الموردين'!$B82)),MATCH(F$3,Table28[#Headers],0))," ")) ->  | G85: =IF($A$1="","", IFERROR(INDEX(Table28[#All],SMALL(IF(Table28[#All]=العملاء!$A$1,ROW(Table28[#All]),""),ROW('العملاء الموردين'!$B82)),MATCH(G$3,Table28[#Headers],0))," ")) ->  | H85: =SUMIFS(Table5[الإجمالي النهائي],Table5[نوع الفاتورة],$H$2,Table5[اسم العميل],Table36[[#This Row],[الإسم]]) -> 0 | I85: =SUMIFS(Table5[الإجمالي النهائي],Table5[نوع الفاتورة],$I$2,Table5[اسم العميل],Table36[[#This Row],[الإسم]])+SUMIFS(table30[المبلغ],table30[عميل / مورد],Table36[[#This Row],[الإسم]],table30[نوع السند],الصندوق!$L$1) -> 0 | J85: =Table36[[#This Row],[الأرصدة المدينة]]-Table36[[#This Row],[الأرصدة الدائنة]] -> 0
A86: 83 | B86: =IF($A$1="","", IFERROR(INDEX(Table28[#All],SMALL(IF(Table28[#All]=العملاء!$A$1,ROW(Table28[#All]),""),ROW('العملاء الموردين'!$B83)),MATCH(B$3,Table28[#Headers],0))," ")) ->  | C86: =IF($A$1="","", IFERROR(INDEX(Table28[#All],SMALL(IF(Table28[#All]=العملاء!$A$1,ROW(Table28[#All]),""),ROW('العملاء الموردين'!$B83)),MATCH(C$3,Table28[#Headers],0))," ")) ->  | D86: =IF($A$1="","", IFERROR(INDEX(Table28[#All],SMALL(IF(Table28[#All]=العملاء!$A$1,ROW(Table28[#All]),""),ROW('العملاء الموردين'!$B83)),MATCH(D$3,Table28[#Headers],0))," ")) ->  | E86: =IF($A$1="","", IFERROR(INDEX(Table28[#All],SMALL(IF(Table28[#All]=العملاء!$A$1,ROW(Table28[#All]),""),ROW('العملاء الموردين'!$B83)),MATCH(E$3,Table28[#Headers],0))," ")) ->  | F86: =IF($A$1="","", IFERROR(INDEX(Table28[#All],SMALL(IF(Table28[#All]=العملاء!$A$1,ROW(Table28[#All]),""),ROW('العملاء الموردين'!$B83)),MATCH(F$3,Table28[#Headers],0))," ")) ->  | G86: =IF($A$1="","", IFERROR(INDEX(Table28[#All],SMALL(IF(Table28[#All]=العملاء!$A$1,ROW(Table28[#All]),""),ROW('العملاء الموردين'!$B83)),MATCH(G$3,Table28[#Headers],0))," ")) ->  | H86: =SUMIFS(Table5[الإجمالي النهائي],Table5[نوع الفاتورة],$H$2,Table5[اسم العميل],Table36[[#This Row],[الإسم]]) -> 0 | I86: =SUMIFS(Table5[الإجمالي النهائي],Table5[نوع الفاتورة],$I$2,Table5[اسم العميل],Table36[[#This Row],[الإسم]])+SUMIFS(table30[المبلغ],table30[عميل / مورد],Table36[[#This Row],[الإسم]],table30[نوع السند],الصندوق!$L$1) -> 0 | J86: =Table36[[#This Row],[الأرصدة المدينة]]-Table36[[#This Row],[الأرصدة الدائنة]] -> 0
A87: 84 | B87: =IF($A$1="","", IFERROR(INDEX(Table28[#All],SMALL(IF(Table28[#All]=العملاء!$A$1,ROW(Table28[#All]),""),ROW('العملاء الموردين'!$B84)),MATCH(B$3,Table28[#Headers],0))," ")) ->  | C87: =IF($A$1="","", IFERROR(INDEX(Table28[#All],SMALL(IF(Table28[#All]=العملاء!$A$1,ROW(Table28[#All]),""),ROW('العملاء الموردين'!$B84)),MATCH(C$3,Table28[#Headers],0))," ")) ->  | D87: =IF($A$1="","", IFERROR(INDEX(Table28[#All],SMALL(IF(Table28[#All]=العملاء!$A$1,ROW(Table28[#All]),""),ROW('العملاء الموردين'!$B84)),MATCH(D$3,Table28[#Headers],0))," ")) ->  | E87: =IF($A$1="","", IFERROR(INDEX(Table28[#All],SMALL(IF(Table28[#All]=العملاء!$A$1,ROW(Table28[#All]),""),ROW('العملاء الموردين'!$B84)),MATCH(E$3,Table28[#Headers],0))," ")) ->  | F87: =IF($A$1="","", IFERROR(INDEX(Table28[#All],SMALL(IF(Table28[#All]=العملاء!$A$1,ROW(Table28[#All]),""),ROW('العملاء الموردين'!$B84)),MATCH(F$3,Table28[#Headers],0))," ")) ->  | G87: =IF($A$1="","", IFERROR(INDEX(Table28[#All],SMALL(IF(Table28[#All]=العملاء!$A$1,ROW(Table28[#All]),""),ROW('العملاء الموردين'!$B84)),MATCH(G$3,Table28[#Headers],0))," ")) ->  | H87: =SUMIFS(Table5[الإجمالي النهائي],Table5[نوع الفاتورة],$H$2,Table5[اسم العميل],Table36[[#This Row],[الإسم]]) -> 0 | I87: =SUMIFS(Table5[الإجمالي النهائي],Table5[نوع الفاتورة],$I$2,Table5[اسم العميل],Table36[[#This Row],[الإسم]])+SUMIFS(table30[المبلغ],table30[عميل / مورد],Table36[[#This Row],[الإسم]],table30[نوع السند],الصندوق!$L$1) -> 0 | J87: =Table36[[#This Row],[الأرصدة المدينة]]-Table36[[#This Row],[الأرصدة الدائنة]] -> 0
A88: 85 | B88: =IF($A$1="","", IFERROR(INDEX(Table28[#All],SMALL(IF(Table28[#All]=العملاء!$A$1,ROW(Table28[#All]),""),ROW('العملاء الموردين'!$B85)),MATCH(B$3,Table28[#Headers],0))," ")) ->  | C88: =IF($A$1="","", IFERROR(INDEX(Table28[#All],SMALL(IF(Table28[#All]=العملاء!$A$1,ROW(Table28[#All]),""),ROW('العملاء الموردين'!$B85)),MATCH(C$3,Table28[#Headers],0))," ")) ->  | D88: =IF($A$1="","", IFERROR(INDEX(Table28[#All],SMALL(IF(Table28[#All]=العملاء!$A$1,ROW(Table28[#All]),""),ROW('العملاء الموردين'!$B85)),MATCH(D$3,Table28[#Headers],0))," ")) ->  | E88: =IF($A$1="","", IFERROR(INDEX(Table28[#All],SMALL(IF(Table28[#All]=العملاء!$A$1,ROW(Table28[#All]),""),ROW('العملاء الموردين'!$B85)),MATCH(E$3,Table28[#Headers],0))," ")) ->  | F88: =IF($A$1="","", IFERROR(INDEX(Table28[#All],SMALL(IF(Table28[#All]=العملاء!$A$1,ROW(Table28[#All]),""),ROW('العملاء الموردين'!$B85)),MATCH(F$3,Table28[#Headers],0))," ")) ->  | G88: =IF($A$1="","", IFERROR(INDEX(Table28[#All],SMALL(IF(Table28[#All]=العملاء!$A$1,ROW(Table28[#All]),""),ROW('العملاء الموردين'!$B85)),MATCH(G$3,Table28[#Headers],0))," ")) ->  | H88: =SUMIFS(Table5[الإجمالي النهائي],Table5[نوع الفاتورة],$H$2,Table5[اسم العميل],Table36[[#This Row],[الإسم]]) -> 0 | I88: =SUMIFS(Table5[الإجمالي النهائي],Table5[نوع الفاتورة],$I$2,Table5[اسم العميل],Table36[[#This Row],[الإسم]])+SUMIFS(table30[المبلغ],table30[عميل / مورد],Table36[[#This Row],[الإسم]],table30[نوع السند],الصندوق!$L$1) -> 0 | J88: =Table36[[#This Row],[الأرصدة المدينة]]-Table36[[#This Row],[الأرصدة الدائنة]] -> 0
A89: 86 | B89: =IF($A$1="","", IFERROR(INDEX(Table28[#All],SMALL(IF(Table28[#All]=العملاء!$A$1,ROW(Table28[#All]),""),ROW('العملاء الموردين'!$B86)),MATCH(B$3,Table28[#Headers],0))," ")) ->  | C89: =IF($A$1="","", IFERROR(INDEX(Table28[#All],SMALL(IF(Table28[#All]=العملاء!$A$1,ROW(Table28[#All]),""),ROW('العملاء الموردين'!$B86)),MATCH(C$3,Table28[#Headers],0))," ")) ->  | D89: =IF($A$1="","", IFERROR(INDEX(Table28[#All],SMALL(IF(Table28[#All]=العملاء!$A$1,ROW(Table28[#All]),""),ROW('العملاء الموردين'!$B86)),MATCH(D$3,Table28[#Headers],0))," ")) ->  | E89: =IF($A$1="","", IFERROR(INDEX(Table28[#All],SMALL(IF(Table28[#All]=العملاء!$A$1,ROW(Table28[#All]),""),ROW('العملاء الموردين'!$B86)),MATCH(E$3,Table28[#Headers],0))," ")) ->  | F89: =IF($A$1="","", IFERROR(INDEX(Table28[#All],SMALL(IF(Table28[#All]=العملاء!$A$1,ROW(Table28[#All]),""),ROW('العملاء الموردين'!$B86)),MATCH(F$3,Table28[#Headers],0))," ")) ->  | G89: =IF($A$1="","", IFERROR(INDEX(Table28[#All],SMALL(IF(Table28[#All]=العملاء!$A$1,ROW(Table28[#All]),""),ROW('العملاء الموردين'!$B86)),MATCH(G$3,Table28[#Headers],0))," ")) ->  | H89: =SUMIFS(Table5[الإجمالي النهائي],Table5[نوع الفاتورة],$H$2,Table5[اسم العميل],Table36[[#This Row],[الإسم]]) -> 0 | I89: =SUMIFS(Table5[الإجمالي النهائي],Table5[نوع الفاتورة],$I$2,Table5[اسم العميل],Table36[[#This Row],[الإسم]])+SUMIFS(table30[المبلغ],table30[عميل / مورد],Table36[[#This Row],[الإسم]],table30[نوع السند],الصندوق!$L$1) -> 0 | J89: =Table36[[#This Row],[الأرصدة المدينة]]-Table36[[#This Row],[الأرصدة الدائنة]] -> 0
A90: 87 | B90: =IF($A$1="","", IFERROR(INDEX(Table28[#All],SMALL(IF(Table28[#All]=العملاء!$A$1,ROW(Table28[#All]),""),ROW('العملاء الموردين'!$B87)),MATCH(B$3,Table28[#Headers],0))," ")) ->  | C90: =IF($A$1="","", IFERROR(INDEX(Table28[#All],SMALL(IF(Table28[#All]=العملاء!$A$1,ROW(Table28[#All]),""),ROW('العملاء الموردين'!$B87)),MATCH(C$3,Table28[#Headers],0))," ")) ->  | D90: =IF($A$1="","", IFERROR(INDEX(Table28[#All],SMALL(IF(Table28[#All]=العملاء!$A$1,ROW(Table28[#All]),""),ROW('العملاء الموردين'!$B87)),MATCH(D$3,Table28[#Headers],0))," ")) ->  | E90: =IF($A$1="","", IFERROR(INDEX(Table28[#All],SMALL(IF(Table28[#All]=العملاء!$A$1,ROW(Table28[#All]),""),ROW('العملاء الموردين'!$B87)),MATCH(E$3,Table28[#Headers],0))," ")) ->  | F90: =IF($A$1="","", IFERROR(INDEX(Table28[#All],SMALL(IF(Table28[#All]=العملاء!$A$1,ROW(Table28[#All]),""),ROW('العملاء الموردين'!$B87)),MATCH(F$3,Table28[#Headers],0))," ")) ->  | G90: =IF($A$1="","", IFERROR(INDEX(Table28[#All],SMALL(IF(Table28[#All]=العملاء!$A$1,ROW(Table28[#All]),""),ROW('العملاء الموردين'!$B87)),MATCH(G$3,Table28[#Headers],0))," ")) ->  | H90: =SUMIFS(Table5[الإجمالي النهائي],Table5[نوع الفاتورة],$H$2,Table5[اسم العميل],Table36[[#This Row],[الإسم]]) -> 0 | I90: =SUMIFS(Table5[الإجمالي النهائي],Table5[نوع الفاتورة],$I$2,Table5[اسم العميل],Table36[[#This Row],[الإسم]])+SUMIFS(table30[المبلغ],table30[عميل / مورد],Table36[[#This Row],[الإسم]],table30[نوع السند],الصندوق!$L$1) -> 0 | J90: =Table36[[#This Row],[الأرصدة المدينة]]-Table36[[#This Row],[الأرصدة الدائنة]] -> 0
A91: 88 | B91: =IF($A$1="","", IFERROR(INDEX(Table28[#All],SMALL(IF(Table28[#All]=العملاء!$A$1,ROW(Table28[#All]),""),ROW('العملاء الموردين'!$B88)),MATCH(B$3,Table28[#Headers],0))," ")) ->  | C91: =IF($A$1="","", IFERROR(INDEX(Table28[#All],SMALL(IF(Table28[#All]=العملاء!$A$1,ROW(Table28[#All]),""),ROW('العملاء الموردين'!$B88)),MATCH(C$3,Table28[#Headers],0))," ")) ->  | D91: =IF($A$1="","", IFERROR(INDEX(Table28[#All],SMALL(IF(Table28[#All]=العملاء!$A$1,ROW(Table28[#All]),""),ROW('العملاء الموردين'!$B88)),MATCH(D$3,Table28[#Headers],0))," ")) ->  | E91: =IF($A$1="","", IFERROR(INDEX(Table28[#All],SMALL(IF(Table28[#All]=العملاء!$A$1,ROW(Table28[#All]),""),ROW('العملاء الموردين'!$B88)),MATCH(E$3,Table28[#Headers],0))," ")) ->  | F91: =IF($A$1="","", IFERROR(INDEX(Table28[#All],SMALL(IF(Table28[#All]=العملاء!$A$1,ROW(Table28[#All]),""),ROW('العملاء الموردين'!$B88)),MATCH(F$3,Table28[#Headers],0))," ")) ->  | G91: =IF($A$1="","", IFERROR(INDEX(Table28[#All],SMALL(IF(Table28[#All]=العملاء!$A$1,ROW(Table28[#All]),""),ROW('العملاء الموردين'!$B88)),MATCH(G$3,Table28[#Headers],0))," ")) ->  | H91: =SUMIFS(Table5[الإجمالي النهائي],Table5[نوع الفاتورة],$H$2,Table5[اسم العميل],Table36[[#This Row],[الإسم]]) -> 0 | I91: =SUMIFS(Table5[الإجمالي النهائي],Table5[نوع الفاتورة],$I$2,Table5[اسم العميل],Table36[[#This Row],[الإسم]])+SUMIFS(table30[المبلغ],table30[عميل / مورد],Table36[[#This Row],[الإسم]],table30[نوع السند],الصندوق!$L$1) -> 0 | J91: =Table36[[#This Row],[الأرصدة المدينة]]-Table36[[#This Row],[الأرصدة الدائنة]] -> 0
A92: 89 | B92: =IF($A$1="","", IFERROR(INDEX(Table28[#All],SMALL(IF(Table28[#All]=العملاء!$A$1,ROW(Table28[#All]),""),ROW('العملاء الموردين'!$B89)),MATCH(B$3,Table28[#Headers],0))," ")) ->  | C92: =IF($A$1="","", IFERROR(INDEX(Table28[#All],SMALL(IF(Table28[#All]=العملاء!$A$1,ROW(Table28[#All]),""),ROW('العملاء الموردين'!$B89)),MATCH(C$3,Table28[#Headers],0))," ")) ->  | D92: =IF($A$1="","", IFERROR(INDEX(Table28[#All],SMALL(IF(Table28[#All]=العملاء!$A$1,ROW(Table28[#All]),""),ROW('العملاء الموردين'!$B89)),MATCH(D$3,Table28[#Headers],0))," ")) ->  | E92: =IF($A$1="","", IFERROR(INDEX(Table28[#All],SMALL(IF(Table28[#All]=العملاء!$A$1,ROW(Table28[#All]),""),ROW('العملاء الموردين'!$B89)),MATCH(E$3,Table28[#Headers],0))," ")) ->  | F92: =IF($A$1="","", IFERROR(INDEX(Table28[#All],SMALL(IF(Table28[#All]=العملاء!$A$1,ROW(Table28[#All]),""),ROW('العملاء الموردين'!$B89)),MATCH(F$3,Table28[#Headers],0))," ")) ->  | G92: =IF($A$1="","", IFERROR(INDEX(Table28[#All],SMALL(IF(Table28[#All]=العملاء!$A$1,ROW(Table28[#All]),""),ROW('العملاء الموردين'!$B89)),MATCH(G$3,Table28[#Headers],0))," ")) ->  | H92: =SUMIFS(Table5[الإجمالي النهائي],Table5[نوع الفاتورة],$H$2,Table5[اسم العميل],Table36[[#This Row],[الإسم]]) -> 0 | I92: =SUMIFS(Table5[الإجمالي النهائي],Table5[نوع الفاتورة],$I$2,Table5[اسم العميل],Table36[[#This Row],[الإسم]])+SUMIFS(table30[المبلغ],table30[عميل / مورد],Table36[[#This Row],[الإسم]],table30[نوع السند],الصندوق!$L$1) -> 0 | J92: =Table36[[#This Row],[الأرصدة المدينة]]-Table36[[#This Row],[الأرصدة الدائنة]] -> 0
A93: 90 | B93: =IF($A$1="","", IFERROR(INDEX(Table28[#All],SMALL(IF(Table28[#All]=العملاء!$A$1,ROW(Table28[#All]),""),ROW('العملاء الموردين'!$B90)),MATCH(B$3,Table28[#Headers],0))," ")) ->  | C93: =IF($A$1="","", IFERROR(INDEX(Table28[#All],SMALL(IF(Table28[#All]=العملاء!$A$1,ROW(Table28[#All]),""),ROW('العملاء الموردين'!$B90)),MATCH(C$3,Table28[#Headers],0))," ")) ->  | D93: =IF($A$1="","", IFERROR(INDEX(Table28[#All],SMALL(IF(Table28[#All]=العملاء!$A$1,ROW(Table28[#All]),""),ROW('العملاء الموردين'!$B90)),MATCH(D$3,Table28[#Headers],0))," ")) ->  | E93: =IF($A$1="","", IFERROR(INDEX(Table28[#All],SMALL(IF(Table28[#All]=العملاء!$A$1,ROW(Table28[#All]),""),ROW('العملاء الموردين'!$B90)),MATCH(E$3,Table28[#Headers],0))," ")) ->  | F93: =IF($A$1="","", IFERROR(INDEX(Table28[#All],SMALL(IF(Table28[#All]=العملاء!$A$1,ROW(Table28[#All]),""),ROW('العملاء الموردين'!$B90)),MATCH(F$3,Table28[#Headers],0))," ")) ->  | G93: =IF($A$1="","", IFERROR(INDEX(Table28[#All],SMALL(IF(Table28[#All]=العملاء!$A$1,ROW(Table28[#All]),""),ROW('العملاء الموردين'!$B90)),MATCH(G$3,Table28[#Headers],0))," ")) ->  | H93: =SUMIFS(Table5[الإجمالي النهائي],Table5[نوع الفاتورة],$H$2,Table5[اسم العميل],Table36[[#This Row],[الإسم]]) -> 0 | I93: =SUMIFS(Table5[الإجمالي النهائي],Table5[نوع الفاتورة],$I$2,Table5[اسم العميل],Table36[[#This Row],[الإسم]])+SUMIFS(table30[المبلغ],table30[عميل / مورد],Table36[[#This Row],[الإسم]],table30[نوع السند],الصندوق!$L$1) -> 0 | J93: =Table36[[#This Row],[الأرصدة المدينة]]-Table36[[#This Row],[الأرصدة الدائنة]] -> 0
A94: 91 | B94: =IF($A$1="","", IFERROR(INDEX(Table28[#All],SMALL(IF(Table28[#All]=العملاء!$A$1,ROW(Table28[#All]),""),ROW('العملاء الموردين'!$B91)),MATCH(B$3,Table28[#Headers],0))," ")) ->  | C94: =IF($A$1="","", IFERROR(INDEX(Table28[#All],SMALL(IF(Table28[#All]=العملاء!$A$1,ROW(Table28[#All]),""),ROW('العملاء الموردين'!$B91)),MATCH(C$3,Table28[#Headers],0))," ")) ->  | D94: =IF($A$1="","", IFERROR(INDEX(Table28[#All],SMALL(IF(Table28[#All]=العملاء!$A$1,ROW(Table28[#All]),""),ROW('العملاء الموردين'!$B91)),MATCH(D$3,Table28[#Headers],0))," ")) ->  | E94: =IF($A$1="","", IFERROR(INDEX(Table28[#All],SMALL(IF(Table28[#All]=العملاء!$A$1,ROW(Table28[#All]),""),ROW('العملاء الموردين'!$B91)),MATCH(E$3,Table28[#Headers],0))," ")) ->  | F94: =IF($A$1="","", IFERROR(INDEX(Table28[#All],SMALL(IF(Table28[#All]=العملاء!$A$1,ROW(Table28[#All]),""),ROW('العملاء الموردين'!$B91)),MATCH(F$3,Table28[#Headers],0))," ")) ->  | G94: =IF($A$1="","", IFERROR(INDEX(Table28[#All],SMALL(IF(Table28[#All]=العملاء!$A$1,ROW(Table28[#All]),""),ROW('العملاء الموردين'!$B91)),MATCH(G$3,Table28[#Headers],0))," ")) ->  | H94: =SUMIFS(Table5[الإجمالي النهائي],Table5[نوع الفاتورة],$H$2,Table5[اسم العميل],Table36[[#This Row],[الإسم]]) -> 0 | I94: =SUMIFS(Table5[الإجمالي النهائي],Table5[نوع الفاتورة],$I$2,Table5[اسم العميل],Table36[[#This Row],[الإسم]])+SUMIFS(table30[المبلغ],table30[عميل / مورد],Table36[[#This Row],[الإسم]],table30[نوع السند],الصندوق!$L$1) -> 0 | J94: =Table36[[#This Row],[الأرصدة المدينة]]-Table36[[#This Row],[الأرصدة الدائنة]] -> 0
A95: 92 | B95: =IF($A$1="","", IFERROR(INDEX(Table28[#All],SMALL(IF(Table28[#All]=العملاء!$A$1,ROW(Table28[#All]),""),ROW('العملاء الموردين'!$B92)),MATCH(B$3,Table28[#Headers],0))," ")) ->  | C95: =IF($A$1="","", IFERROR(INDEX(Table28[#All],SMALL(IF(Table28[#All]=العملاء!$A$1,ROW(Table28[#All]),""),ROW('العملاء الموردين'!$B92)),MATCH(C$3,Table28[#Headers],0))," ")) ->  | D95: =IF($A$1="","", IFERROR(INDEX(Table28[#All],SMALL(IF(Table28[#All]=العملاء!$A$1,ROW(Table28[#All]),""),ROW('العملاء الموردين'!$B92)),MATCH(D$3,Table28[#Headers],0))," ")) ->  | E95: =IF($A$1="","", IFERROR(INDEX(Table28[#All],SMALL(IF(Table28[#All]=العملاء!$A$1,ROW(Table28[#All]),""),ROW('العملاء الموردين'!$B92)),MATCH(E$3,Table28[#Headers],0))," ")) ->  | F95: =IF($A$1="","", IFERROR(INDEX(Table28[#All],SMALL(IF(Table28[#All]=العملاء!$A$1,ROW(Table28[#All]),""),ROW('العملاء الموردين'!$B92)),MATCH(F$3,Table28[#Headers],0))," ")) ->  | G95: =IF($A$1="","", IFERROR(INDEX(Table28[#All],SMALL(IF(Table28[#All]=العملاء!$A$1,ROW(Table28[#All]),""),ROW('العملاء الموردين'!$B92)),MATCH(G$3,Table28[#Headers],0))," ")) ->  | H95: =SUMIFS(Table5[الإجمالي النهائي],Table5[نوع الفاتورة],$H$2,Table5[اسم العميل],Table36[[#This Row],[الإسم]]) -> 0 | I95: =SUMIFS(Table5[الإجمالي النهائي],Table5[نوع الفاتورة],$I$2,Table5[اسم العميل],Table36[[#This Row],[الإسم]])+SUMIFS(table30[المبلغ],table30[عميل / مورد],Table36[[#This Row],[الإسم]],table30[نوع السند],الصندوق!$L$1) -> 0 | J95: =Table36[[#This Row],[الأرصدة المدينة]]-Table36[[#This Row],[الأرصدة الدائنة]] -> 0
A96: 93 | B96: =IF($A$1="","", IFERROR(INDEX(Table28[#All],SMALL(IF(Table28[#All]=العملاء!$A$1,ROW(Table28[#All]),""),ROW('العملاء الموردين'!$B93)),MATCH(B$3,Table28[#Headers],0))," ")) ->  | C96: =IF($A$1="","", IFERROR(INDEX(Table28[#All],SMALL(IF(Table28[#All]=العملاء!$A$1,ROW(Table28[#All]),""),ROW('العملاء الموردين'!$B93)),MATCH(C$3,Table28[#Headers],0))," ")) ->  | D96: =IF($A$1="","", IFERROR(INDEX(Table28[#All],SMALL(IF(Table28[#All]=العملاء!$A$1,ROW(Table28[#All]),""),ROW('العملاء الموردين'!$B93)),MATCH(D$3,Table28[#Headers],0))," ")) ->  | E96: =IF($A$1="","", IFERROR(INDEX(Table28[#All],SMALL(IF(Table28[#All]=العملاء!$A$1,ROW(Table28[#All]),""),ROW('العملاء الموردين'!$B93)),MATCH(E$3,Table28[#Headers],0))," ")) ->  | F96: =IF($A$1="","", IFERROR(INDEX(Table28[#All],SMALL(IF(Table28[#All]=العملاء!$A$1,ROW(Table28[#All]),""),ROW('العملاء الموردين'!$B93)),MATCH(F$3,Table28[#Headers],0))," ")) ->  | G96: =IF($A$1="","", IFERROR(INDEX(Table28[#All],SMALL(IF(Table28[#All]=العملاء!$A$1,ROW(Table28[#All]),""),ROW('العملاء الموردين'!$B93)),MATCH(G$3,Table28[#Headers],0))," ")) ->  | H96: =SUMIFS(Table5[الإجمالي النهائي],Table5[نوع الفاتورة],$H$2,Table5[اسم العميل],Table36[[#This Row],[الإسم]]) -> 0 | I96: =SUMIFS(Table5[الإجمالي النهائي],Table5[نوع الفاتورة],$I$2,Table5[اسم العميل],Table36[[#This Row],[الإسم]])+SUMIFS(table30[المبلغ],table30[عميل / مورد],Table36[[#This Row],[الإسم]],table30[نوع السند],الصندوق!$L$1) -> 0 | J96: =Table36[[#This Row],[الأرصدة المدينة]]-Table36[[#This Row],[الأرصدة الدائنة]] -> 0
A97: 94 | B97: =IF($A$1="","", IFERROR(INDEX(Table28[#All],SMALL(IF(Table28[#All]=العملاء!$A$1,ROW(Table28[#All]),""),ROW('العملاء الموردين'!$B94)),MATCH(B$3,Table28[#Headers],0))," ")) ->  | C97: =IF($A$1="","", IFERROR(INDEX(Table28[#All],SMALL(IF(Table28[#All]=العملاء!$A$1,ROW(Table28[#All]),""),ROW('العملاء الموردين'!$B94)),MATCH(C$3,Table28[#Headers],0))," ")) ->  | D97: =IF($A$1="","", IFERROR(INDEX(Table28[#All],SMALL(IF(Table28[#All]=العملاء!$A$1,ROW(Table28[#All]),""),ROW('العملاء الموردين'!$B94)),MATCH(D$3,Table28[#Headers],0))," ")) ->  | E97: =IF($A$1="","", IFERROR(INDEX(Table28[#All],SMALL(IF(Table28[#All]=العملاء!$A$1,ROW(Table28[#All]),""),ROW('العملاء الموردين'!$B94)),MATCH(E$3,Table28[#Headers],0))," ")) ->  | F97: =IF($A$1="","", IFERROR(INDEX(Table28[#All],SMALL(IF(Table28[#All]=العملاء!$A$1,ROW(Table28[#All]),""),ROW('العملاء الموردين'!$B94)),MATCH(F$3,Table28[#Headers],0))," ")) ->  | G97: =IF($A$1="","", IFERROR(INDEX(Table28[#All],SMALL(IF(Table28[#All]=العملاء!$A$1,ROW(Table28[#All]),""),ROW('العملاء الموردين'!$B94)),MATCH(G$3,Table28[#Headers],0))," ")) ->  | H97: =SUMIFS(Table5[الإجمالي النهائي],Table5[نوع الفاتورة],$H$2,Table5[اسم العميل],Table36[[#This Row],[الإسم]]) -> 0 | I97: =SUMIFS(Table5[الإجمالي النهائي],Table5[نوع الفاتورة],$I$2,Table5[اسم العميل],Table36[[#This Row],[الإسم]])+SUMIFS(table30[المبلغ],table30[عميل / مورد],Table36[[#This Row],[الإسم]],table30[نوع السند],الصندوق!$L$1) -> 0 | J97: =Table36[[#This Row],[الأرصدة المدينة]]-Table36[[#This Row],[الأرصدة الدائنة]] -> 0
A98: 95 | B98: =IF($A$1="","", IFERROR(INDEX(Table28[#All],SMALL(IF(Table28[#All]=العملاء!$A$1,ROW(Table28[#All]),""),ROW('العملاء الموردين'!$B95)),MATCH(B$3,Table28[#Headers],0))," ")) ->  | C98: =IF($A$1="","", IFERROR(INDEX(Table28[#All],SMALL(IF(Table28[#All]=العملاء!$A$1,ROW(Table28[#All]),""),ROW('العملاء الموردين'!$B95)),MATCH(C$3,Table28[#Headers],0))," ")) ->  | D98: =IF($A$1="","", IFERROR(INDEX(Table28[#All],SMALL(IF(Table28[#All]=العملاء!$A$1,ROW(Table28[#All]),""),ROW('العملاء الموردين'!$B95)),MATCH(D$3,Table28[#Headers],0))," ")) ->  | E98: =IF($A$1="","", IFERROR(INDEX(Table28[#All],SMALL(IF(Table28[#All]=العملاء!$A$1,ROW(Table28[#All]),""),ROW('العملاء الموردين'!$B95)),MATCH(E$3,Table28[#Headers],0))," ")) ->  | F98: =IF($A$1="","", IFERROR(INDEX(Table28[#All],SMALL(IF(Table28[#All]=العملاء!$A$1,ROW(Table28[#All]),""),ROW('العملاء الموردين'!$B95)),MATCH(F$3,Table28[#Headers],0))," ")) ->  | G98: =IF($A$1="","", IFERROR(INDEX(Table28[#All],SMALL(IF(Table28[#All]=العملاء!$A$1,ROW(Table28[#All]),""),ROW('العملاء الموردين'!$B95)),MATCH(G$3,Table28[#Headers],0))," ")) ->  | H98: =SUMIFS(Table5[الإجمالي النهائي],Table5[نوع الفاتورة],$H$2,Table5[اسم العميل],Table36[[#This Row],[الإسم]]) -> 0 | I98: =SUMIFS(Table5[الإجمالي النهائي],Table5[نوع الفاتورة],$I$2,Table5[اسم العميل],Table36[[#This Row],[الإسم]])+SUMIFS(table30[المبلغ],table30[عميل / مورد],Table36[[#This Row],[الإسم]],table30[نوع السند],الصندوق!$L$1) -> 0 | J98: =Table36[[#This Row],[الأرصدة المدينة]]-Table36[[#This Row],[الأرصدة الدائنة]] -> 0
A99: 96 | B99: =IF($A$1="","", IFERROR(INDEX(Table28[#All],SMALL(IF(Table28[#All]=العملاء!$A$1,ROW(Table28[#All]),""),ROW('العملاء الموردين'!$B96)),MATCH(B$3,Table28[#Headers],0))," ")) ->  | C99: =IF($A$1="","", IFERROR(INDEX(Table28[#All],SMALL(IF(Table28[#All]=العملاء!$A$1,ROW(Table28[#All]),""),ROW('العملاء الموردين'!$B96)),MATCH(C$3,Table28[#Headers],0))," ")) ->  | D99: =IF($A$1="","", IFERROR(INDEX(Table28[#All],SMALL(IF(Table28[#All]=العملاء!$A$1,ROW(Table28[#All]),""),ROW('العملاء الموردين'!$B96)),MATCH(D$3,Table28[#Headers],0))," ")) ->  | E99: =IF($A$1="","", IFERROR(INDEX(Table28[#All],SMALL(IF(Table28[#All]=العملاء!$A$1,ROW(Table28[#All]),""),ROW('العملاء الموردين'!$B96)),MATCH(E$3,Table28[#Headers],0))," ")) ->  | F99: =IF($A$1="","", IFERROR(INDEX(Table28[#All],SMALL(IF(Table28[#All]=العملاء!$A$1,ROW(Table28[#All]),""),ROW('العملاء الموردين'!$B96)),MATCH(F$3,Table28[#Headers],0))," ")) ->  | G99: =IF($A$1="","", IFERROR(INDEX(Table28[#All],SMALL(IF(Table28[#All]=العملاء!$A$1,ROW(Table28[#All]),""),ROW('العملاء الموردين'!$B96)),MATCH(G$3,Table28[#Headers],0))," ")) ->  | H99: =SUMIFS(Table5[الإجمالي النهائي],Table5[نوع الفاتورة],$H$2,Table5[اسم العميل],Table36[[#This Row],[الإسم]]) -> 0 | I99: =SUMIFS(Table5[الإجمالي النهائي],Table5[نوع الفاتورة],$I$2,Table5[اسم العميل],Table36[[#This Row],[الإسم]])+SUMIFS(table30[المبلغ],table30[عميل / مورد],Table36[[#This Row],[الإسم]],table30[نوع السند],الصندوق!$L$1) -> 0 | J99: =Table36[[#This Row],[الأرصدة المدينة]]-Table36[[#This Row],[الأرصدة الدائنة]] -> 0
A100: 97 | B100: =IF($A$1="","", IFERROR(INDEX(Table28[#All],SMALL(IF(Table28[#All]=العملاء!$A$1,ROW(Table28[#All]),""),ROW('العملاء الموردين'!$B97)),MATCH(B$3,Table28[#Headers],0))," ")) ->  | C100: =IF($A$1="","", IFERROR(INDEX(Table28[#All],SMALL(IF(Table28[#All]=العملاء!$A$1,ROW(Table28[#All]),""),ROW('العملاء الموردين'!$B97)),MATCH(C$3,Table28[#Headers],0))," ")) ->  | D100: =IF($A$1="","", IFERROR(INDEX(Table28[#All],SMALL(IF(Table28[#All]=العملاء!$A$1,ROW(Table28[#All]),""),ROW('العملاء الموردين'!$B97)),MATCH(D$3,Table28[#Headers],0))," ")) ->  | E100: =IF($A$1="","", IFERROR(INDEX(Table28[#All],SMALL(IF(Table28[#All]=العملاء!$A$1,ROW(Table28[#All]),""),ROW('العملاء الموردين'!$B97)),MATCH(E$3,Table28[#Headers],0))," ")) ->  | F100: =IF($A$1="","", IFERROR(INDEX(Table28[#All],SMALL(IF(Table28[#All]=العملاء!$A$1,ROW(Table28[#All]),""),ROW('العملاء الموردين'!$B97)),MATCH(F$3,Table28[#Headers],0))," ")) ->  | G100: =IF($A$1="","", IFERROR(INDEX(Table28[#All],SMALL(IF(Table28[#All]=العملاء!$A$1,ROW(Table28[#All]),""),ROW('العملاء الموردين'!$B97)),MATCH(G$3,Table28[#Headers],0))," ")) ->  | H100: =SUMIFS(Table5[الإجمالي النهائي],Table5[نوع الفاتورة],$H$2,Table5[اسم العميل],Table36[[#This Row],[الإسم]]) -> 0 | I100: =SUMIFS(Table5[الإجمالي النهائي],Table5[نوع الفاتورة],$I$2,Table5[اسم العميل],Table36[[#This Row],[الإسم]])+SUMIFS(table30[المبلغ],table30[عميل / مورد],Table36[[#This Row],[الإسم]],table30[نوع السند],الصندوق!$L$1) -> 0 | J100: =Table36[[#This Row],[الأرصدة المدينة]]-Table36[[#This Row],[الأرصدة الدائنة]] -> 0
A101: 98 | B101: =IF($A$1="","", IFERROR(INDEX(Table28[#All],SMALL(IF(Table28[#All]=العملاء!$A$1,ROW(Table28[#All]),""),ROW('العملاء الموردين'!$B98)),MATCH(B$3,Table28[#Headers],0))," ")) ->  | C101: =IF($A$1="","", IFERROR(INDEX(Table28[#All],SMALL(IF(Table28[#All]=العملاء!$A$1,ROW(Table28[#All]),""),ROW('العملاء الموردين'!$B98)),MATCH(C$3,Table28[#Headers],0))," ")) ->  | D101: =IF($A$1="","", IFERROR(INDEX(Table28[#All],SMALL(IF(Table28[#All]=العملاء!$A$1,ROW(Table28[#All]),""),ROW('العملاء الموردين'!$B98)),MATCH(D$3,Table28[#Headers],0))," ")) ->  | E101: =IF($A$1="","", IFERROR(INDEX(Table28[#All],SMALL(IF(Table28[#All]=العملاء!$A$1,ROW(Table28[#All]),""),ROW('العملاء الموردين'!$B98)),MATCH(E$3,Table28[#Headers],0))," ")) ->  | F101: =IF($A$1="","", IFERROR(INDEX(Table28[#All],SMALL(IF(Table28[#All]=العملاء!$A$1,ROW(Table28[#All]),""),ROW('العملاء الموردين'!$B98)),MATCH(F$3,Table28[#Headers],0))," ")) ->  | G101: =IF($A$1="","", IFERROR(INDEX(Table28[#All],SMALL(IF(Table28[#All]=العملاء!$A$1,ROW(Table28[#All]),""),ROW('العملاء الموردين'!$B98)),MATCH(G$3,Table28[#Headers],0))," ")) ->  | H101: =SUMIFS(Table5[الإجمالي النهائي],Table5[نوع الفاتورة],$H$2,Table5[اسم العميل],Table36[[#This Row],[الإسم]]) -> 0 | I101: =SUMIFS(Table5[الإجمالي النهائي],Table5[نوع الفاتورة],$I$2,Table5[اسم العميل],Table36[[#This Row],[الإسم]])+SUMIFS(table30[المبلغ],table30[عميل / مورد],Table36[[#This Row],[الإسم]],table30[نوع السند],الصندوق!$L$1) -> 0 | J101: =Table36[[#This Row],[الأرصدة المدينة]]-Table36[[#This Row],[الأرصدة الدائنة]] -> 0
A102: 99 | B102: =IF($A$1="","", IFERROR(INDEX(Table28[#All],SMALL(IF(Table28[#All]=العملاء!$A$1,ROW(Table28[#All]),""),ROW('العملاء الموردين'!$B99)),MATCH(B$3,Table28[#Headers],0))," ")) ->  | C102: =IF($A$1="","", IFERROR(INDEX(Table28[#All],SMALL(IF(Table28[#All]=العملاء!$A$1,ROW(Table28[#All]),""),ROW('العملاء الموردين'!$B99)),MATCH(C$3,Table28[#Headers],0))," ")) ->  | D102: =IF($A$1="","", IFERROR(INDEX(Table28[#All],SMALL(IF(Table28[#All]=العملاء!$A$1,ROW(Table28[#All]),""),ROW('العملاء الموردين'!$B99)),MATCH(D$3,Table28[#Headers],0))," ")) ->  | E102: =IF($A$1="","", IFERROR(INDEX(Table28[#All],SMALL(IF(Table28[#All]=العملاء!$A$1,ROW(Table28[#All]),""),ROW('العملاء الموردين'!$B99)),MATCH(E$3,Table28[#Headers],0))," ")) ->  | F102: =IF($A$1="","", IFERROR(INDEX(Table28[#All],SMALL(IF(Table28[#All]=العملاء!$A$1,ROW(Table28[#All]),""),ROW('العملاء الموردين'!$B99)),MATCH(F$3,Table28[#Headers],0))," ")) ->  | G102: =IF($A$1="","", IFERROR(INDEX(Table28[#All],SMALL(IF(Table28[#All]=العملاء!$A$1,ROW(Table28[#All]),""),ROW('العملاء الموردين'!$B99)),MATCH(G$3,Table28[#Headers],0))," ")) ->  | H102: =SUMIFS(Table5[الإجمالي النهائي],Table5[نوع الفاتورة],$H$2,Table5[اسم العميل],Table36[[#This Row],[الإسم]]) -> 0 | I102: =SUMIFS(Table5[الإجمالي النهائي],Table5[نوع الفاتورة],$I$2,Table5[اسم العميل],Table36[[#This Row],[الإسم]])+SUMIFS(table30[المبلغ],table30[عميل / مورد],Table36[[#This Row],[الإسم]],table30[نوع السند],الصندوق!$L$1) -> 0 | J102: =Table36[[#This Row],[الأرصدة المدينة]]-Table36[[#This Row],[الأرصدة الدائنة]] -> 0
A103: 100 | B103: =IF($A$1="","", IFERROR(INDEX(Table28[#All],SMALL(IF(Table28[#All]=العملاء!$A$1,ROW(Table28[#All]),""),ROW('العملاء الموردين'!$B100)),MATCH(B$3,Table28[#Headers],0))," ")) ->  | C103: =IF($A$1="","", IFERROR(INDEX(Table28[#All],SMALL(IF(Table28[#All]=العملاء!$A$1,ROW(Table28[#All]),""),ROW('العملاء الموردين'!$B100)),MATCH(C$3,Table28[#Headers],0))," ")) ->  | D103: =IF($A$1="","", IFERROR(INDEX(Table28[#All],SMALL(IF(Table28[#All]=العملاء!$A$1,ROW(Table28[#All]),""),ROW('العملاء الموردين'!$B100)),MATCH(D$3,Table28[#Headers],0))," ")) ->  | E103: =IF($A$1="","", IFERROR(INDEX(Table28[#All],SMALL(IF(Table28[#All]=العملاء!$A$1,ROW(Table28[#All]),""),ROW('العملاء الموردين'!$B100)),MATCH(E$3,Table28[#Headers],0))," ")) ->  | F103: =IF($A$1="","", IFERROR(INDEX(Table28[#All],SMALL(IF(Table28[#All]=العملاء!$A$1,ROW(Table28[#All]),""),ROW('العملاء الموردين'!$B100)),MATCH(F$3,Table28[#Headers],0))," ")) ->  | G103: =IF($A$1="","", IFERROR(INDEX(Table28[#All],SMALL(IF(Table28[#All]=العملاء!$A$1,ROW(Table28[#All]),""),ROW('العملاء الموردين'!$B100)),MATCH(G$3,Table28[#Headers],0))," ")) ->  | H103: =SUMIFS(Table5[الإجمالي النهائي],Table5[نوع الفاتورة],$H$2,Table5[اسم العميل],Table36[[#This Row],[الإسم]]) -> 0 | I103: =SUMIFS(Table5[الإجمالي النهائي],Table5[نوع الفاتورة],$I$2,Table5[اسم العميل],Table36[[#This Row],[الإسم]])+SUMIFS(table30[المبلغ],table30[عميل / مورد],Table36[[#This Row],[الإسم]],table30[نوع السند],الصندوق!$L$1) -> 0 | J103: =Table36[[#This Row],[الأرصدة المدينة]]-Table36[[#This Row],[الأرصدة الدائنة]] -> 0
A104: 101 | B104: =IF($A$1="","", IFERROR(INDEX(Table28[#All],SMALL(IF(Table28[#All]=العملاء!$A$1,ROW(Table28[#All]),""),ROW('العملاء الموردين'!$B101)),MATCH(B$3,Table28[#Headers],0))," ")) ->  | C104: =IF($A$1="","", IFERROR(INDEX(Table28[#All],SMALL(IF(Table28[#All]=العملاء!$A$1,ROW(Table28[#All]),""),ROW('العملاء الموردين'!$B101)),MATCH(C$3,Table28[#Headers],0))," ")) ->  | D104: =IF($A$1="","", IFERROR(INDEX(Table28[#All],SMALL(IF(Table28[#All]=العملاء!$A$1,ROW(Table28[#All]),""),ROW('العملاء الموردين'!$B101)),MATCH(D$3,Table28[#Headers],0))," ")) ->  | E104: =IF($A$1="","", IFERROR(INDEX(Table28[#All],SMALL(IF(Table28[#All]=العملاء!$A$1,ROW(Table28[#All]),""),ROW('العملاء الموردين'!$B101)),MATCH(E$3,Table28[#Headers],0))," ")) ->  | F104: =IF($A$1="","", IFERROR(INDEX(Table28[#All],SMALL(IF(Table28[#All]=العملاء!$A$1,ROW(Table28[#All]),""),ROW('العملاء الموردين'!$B101)),MATCH(F$3,Table28[#Headers],0))," ")) ->  | G104: =IF($A$1="","", IFERROR(INDEX(Table28[#All],SMALL(IF(Table28[#All]=العملاء!$A$1,ROW(Table28[#All]),""),ROW('العملاء الموردين'!$B101)),MATCH(G$3,Table28[#Headers],0))," ")) ->  | H104: =SUMIFS(Table5[الإجمالي النهائي],Table5[نوع الفاتورة],$H$2,Table5[اسم العميل],Table36[[#This Row],[الإسم]]) -> 0 | I104: =SUMIFS(Table5[الإجمالي النهائي],Table5[نوع الفاتورة],$I$2,Table5[اسم العميل],Table36[[#This Row],[الإسم]])+SUMIFS(table30[المبلغ],table30[عميل / مورد],Table36[[#This Row],[الإسم]],table30[نوع السند],الصندوق!$L$1) -> 0 | J104: =Table36[[#This Row],[الأرصدة المدينة]]-Table36[[#This Row],[الأرصدة الدائنة]] -> 0
A105: 102 | B105: =IF($A$1="","", IFERROR(INDEX(Table28[#All],SMALL(IF(Table28[#All]=العملاء!$A$1,ROW(Table28[#All]),""),ROW('العملاء الموردين'!$B102)),MATCH(B$3,Table28[#Headers],0))," ")) ->  | C105: =IF($A$1="","", IFERROR(INDEX(Table28[#All],SMALL(IF(Table28[#All]=العملاء!$A$1,ROW(Table28[#All]),""),ROW('العملاء الموردين'!$B102)),MATCH(C$3,Table28[#Headers],0))," ")) ->  | D105: =IF($A$1="","", IFERROR(INDEX(Table28[#All],SMALL(IF(Table28[#All]=العملاء!$A$1,ROW(Table28[#All]),""),ROW('العملاء الموردين'!$B102)),MATCH(D$3,Table28[#Headers],0))," ")) ->  | E105: =IF($A$1="","", IFERROR(INDEX(Table28[#All],SMALL(IF(Table28[#All]=العملاء!$A$1,ROW(Table28[#All]),""),ROW('العملاء الموردين'!$B102)),MATCH(E$3,Table28[#Headers],0))," ")) ->  | F105: =IF($A$1="","", IFERROR(INDEX(Table28[#All],SMALL(IF(Table28[#All]=العملاء!$A$1,ROW(Table28[#All]),""),ROW('العملاء الموردين'!$B102)),MATCH(F$3,Table28[#Headers],0))," ")) ->  | G105: =IF($A$1="","", IFERROR(INDEX(Table28[#All],SMALL(IF(Table28[#All]=العملاء!$A$1,ROW(Table28[#All]),""),ROW('العملاء الموردين'!$B102)),MATCH(G$3,Table28[#Headers],0))," ")) ->  | H105: =SUMIFS(Table5[الإجمالي النهائي],Table5[نوع الفاتورة],$H$2,Table5[اسم العميل],Table36[[#This Row],[الإسم]]) -> 0 | I105: =SUMIFS(Table5[الإجمالي النهائي],Table5[نوع الفاتورة],$I$2,Table5[اسم العميل],Table36[[#This Row],[الإسم]])+SUMIFS(table30[المبلغ],table30[عميل / مورد],Table36[[#This Row],[الإسم]],table30[نوع السند],الصندوق!$L$1) -> 0 | J105: =Table36[[#This Row],[الأرصدة المدينة]]-Table36[[#This Row],[الأرصدة الدائنة]] -> 0
A106: 103 | B106: =IF($A$1="","", IFERROR(INDEX(Table28[#All],SMALL(IF(Table28[#All]=العملاء!$A$1,ROW(Table28[#All]),""),ROW('العملاء الموردين'!$B103)),MATCH(B$3,Table28[#Headers],0))," ")) ->  | C106: =IF($A$1="","", IFERROR(INDEX(Table28[#All],SMALL(IF(Table28[#All]=العملاء!$A$1,ROW(Table28[#All]),""),ROW('العملاء الموردين'!$B103)),MATCH(C$3,Table28[#Headers],0))," ")) ->  | D106: =IF($A$1="","", IFERROR(INDEX(Table28[#All],SMALL(IF(Table28[#All]=العملاء!$A$1,ROW(Table28[#All]),""),ROW('العملاء الموردين'!$B103)),MATCH(D$3,Table28[#Headers],0))," ")) ->  | E106: =IF($A$1="","", IFERROR(INDEX(Table28[#All],SMALL(IF(Table28[#All]=العملاء!$A$1,ROW(Table28[#All]),""),ROW('العملاء الموردين'!$B103)),MATCH(E$3,Table28[#Headers],0))," ")) ->  | F106: =IF($A$1="","", IFERROR(INDEX(Table28[#All],SMALL(IF(Table28[#All]=العملاء!$A$1,ROW(Table28[#All]),""),ROW('العملاء الموردين'!$B103)),MATCH(F$3,Table28[#Headers],0))," ")) ->  | G106: =IF($A$1="","", IFERROR(INDEX(Table28[#All],SMALL(IF(Table28[#All]=العملاء!$A$1,ROW(Table28[#All]),""),ROW('العملاء الموردين'!$B103)),MATCH(G$3,Table28[#Headers],0))," ")) ->  | H106: =SUMIFS(Table5[الإجمالي النهائي],Table5[نوع الفاتورة],$H$2,Table5[اسم العميل],Table36[[#This Row],[الإسم]]) -> 0 | I106: =SUMIFS(Table5[الإجمالي النهائي],Table5[نوع الفاتورة],$I$2,Table5[اسم العميل],Table36[[#This Row],[الإسم]])+SUMIFS(table30[المبلغ],table30[عميل / مورد],Table36[[#This Row],[الإسم]],table30[نوع السند],الصندوق!$L$1) -> 0 | J106: =Table36[[#This Row],[الأرصدة المدينة]]-Table36[[#This Row],[الأرصدة الدائنة]] -> 0
A107: 104 | B107: =IF($A$1="","", IFERROR(INDEX(Table28[#All],SMALL(IF(Table28[#All]=العملاء!$A$1,ROW(Table28[#All]),""),ROW('العملاء الموردين'!$B104)),MATCH(B$3,Table28[#Headers],0))," ")) ->  | C107: =IF($A$1="","", IFERROR(INDEX(Table28[#All],SMALL(IF(Table28[#All]=العملاء!$A$1,ROW(Table28[#All]),""),ROW('العملاء الموردين'!$B104)),MATCH(C$3,Table28[#Headers],0))," ")) ->  | D107: =IF($A$1="","", IFERROR(INDEX(Table28[#All],SMALL(IF(Table28[#All]=العملاء!$A$1,ROW(Table28[#All]),""),ROW('العملاء الموردين'!$B104)),MATCH(D$3,Table28[#Headers],0))," ")) ->  | E107: =IF($A$1="","", IFERROR(INDEX(Table28[#All],SMALL(IF(Table28[#All]=العملاء!$A$1,ROW(Table28[#All]),""),ROW('العملاء الموردين'!$B104)),MATCH(E$3,Table28[#Headers],0))," ")) ->  | F107: =IF($A$1="","", IFERROR(INDEX(Table28[#All],SMALL(IF(Table28[#All]=العملاء!$A$1,ROW(Table28[#All]),""),ROW('العملاء الموردين'!$B104)),MATCH(F$3,Table28[#Headers],0))," ")) ->  | G107: =IF($A$1="","", IFERROR(INDEX(Table28[#All],SMALL(IF(Table28[#All]=العملاء!$A$1,ROW(Table28[#All]),""),ROW('العملاء الموردين'!$B104)),MATCH(G$3,Table28[#Headers],0))," ")) ->  | H107: =SUMIFS(Table5[الإجمالي النهائي],Table5[نوع الفاتورة],$H$2,Table5[اسم العميل],Table36[[#This Row],[الإسم]]) -> 0 | I107: =SUMIFS(Table5[الإجمالي النهائي],Table5[نوع الفاتورة],$I$2,Table5[اسم العميل],Table36[[#This Row],[الإسم]])+SUMIFS(table30[المبلغ],table30[عميل / مورد],Table36[[#This Row],[الإسم]],table30[نوع السند],الصندوق!$L$1) -> 0 | J107: =Table36[[#This Row],[الأرصدة المدينة]]-Table36[[#This Row],[الأرصدة الدائنة]] -> 0
A108: 105 | B108: =IF($A$1="","", IFERROR(INDEX(Table28[#All],SMALL(IF(Table28[#All]=العملاء!$A$1,ROW(Table28[#All]),""),ROW('العملاء الموردين'!$B105)),MATCH(B$3,Table28[#Headers],0))," ")) ->  | C108: =IF($A$1="","", IFERROR(INDEX(Table28[#All],SMALL(IF(Table28[#All]=العملاء!$A$1,ROW(Table28[#All]),""),ROW('العملاء الموردين'!$B105)),MATCH(C$3,Table28[#Headers],0))," ")) ->  | D108: =IF($A$1="","", IFERROR(INDEX(Table28[#All],SMALL(IF(Table28[#All]=العملاء!$A$1,ROW(Table28[#All]),""),ROW('العملاء الموردين'!$B105)),MATCH(D$3,Table28[#Headers],0))," ")) ->  | E108: =IF($A$1="","", IFERROR(INDEX(Table28[#All],SMALL(IF(Table28[#All]=العملاء!$A$1,ROW(Table28[#All]),""),ROW('العملاء الموردين'!$B105)),MATCH(E$3,Table28[#Headers],0))," ")) ->  | F108: =IF($A$1="","", IFERROR(INDEX(Table28[#All],SMALL(IF(Table28[#All]=العملاء!$A$1,ROW(Table28[#All]),""),ROW('العملاء الموردين'!$B105)),MATCH(F$3,Table28[#Headers],0))," ")) ->  | G108: =IF($A$1="","", IFERROR(INDEX(Table28[#All],SMALL(IF(Table28[#All]=العملاء!$A$1,ROW(Table28[#All]),""),ROW('العملاء الموردين'!$B105)),MATCH(G$3,Table28[#Headers],0))," ")) ->  | H108: =SUMIFS(Table5[الإجمالي النهائي],Table5[نوع الفاتورة],$H$2,Table5[اسم العميل],Table36[[#This Row],[الإسم]]) -> 0 | I108: =SUMIFS(Table5[الإجمالي النهائي],Table5[نوع الفاتورة],$I$2,Table5[اسم العميل],Table36[[#This Row],[الإسم]])+SUMIFS(table30[المبلغ],table30[عميل / مورد],Table36[[#This Row],[الإسم]],table30[نوع السند],الصندوق!$L$1) -> 0 | J108: =Table36[[#This Row],[الأرصدة المدينة]]-Table36[[#This Row],[الأرصدة الدائنة]] -> 0
A109: 106 | B109: =IF($A$1="","", IFERROR(INDEX(Table28[#All],SMALL(IF(Table28[#All]=العملاء!$A$1,ROW(Table28[#All]),""),ROW('العملاء الموردين'!$B106)),MATCH(B$3,Table28[#Headers],0))," ")) ->  | C109: =IF($A$1="","", IFERROR(INDEX(Table28[#All],SMALL(IF(Table28[#All]=العملاء!$A$1,ROW(Table28[#All]),""),ROW('العملاء الموردين'!$B106)),MATCH(C$3,Table28[#Headers],0))," ")) ->  | D109: =IF($A$1="","", IFERROR(INDEX(Table28[#All],SMALL(IF(Table28[#All]=العملاء!$A$1,ROW(Table28[#All]),""),ROW('العملاء الموردين'!$B106)),MATCH(D$3,Table28[#Headers],0))," ")) ->  | E109: =IF($A$1="","", IFERROR(INDEX(Table28[#All],SMALL(IF(Table28[#All]=العملاء!$A$1,ROW(Table28[#All]),""),ROW('العملاء الموردين'!$B106)),MATCH(E$3,Table28[#Headers],0))," ")) ->  | F109: =IF($A$1="","", IFERROR(INDEX(Table28[#All],SMALL(IF(Table28[#All]=العملاء!$A$1,ROW(Table28[#All]),""),ROW('العملاء الموردين'!$B106)),MATCH(F$3,Table28[#Headers],0))," ")) ->  | G109: =IF($A$1="","", IFERROR(INDEX(Table28[#All],SMALL(IF(Table28[#All]=العملاء!$A$1,ROW(Table28[#All]),""),ROW('العملاء الموردين'!$B106)),MATCH(G$3,Table28[#Headers],0))," ")) ->  | H109: =SUMIFS(Table5[الإجمالي النهائي],Table5[نوع الفاتورة],$H$2,Table5[اسم العميل],Table36[[#This Row],[الإسم]]) -> 0 | I109: =SUMIFS(Table5[الإجمالي النهائي],Table5[نوع الفاتورة],$I$2,Table5[اسم العميل],Table36[[#This Row],[الإسم]])+SUMIFS(table30[المبلغ],table30[عميل / مورد],Table36[[#This Row],[الإسم]],table30[نوع السند],الصندوق!$L$1) -> 0 | J109: =Table36[[#This Row],[الأرصدة المدينة]]-Table36[[#This Row],[الأرصدة الدائنة]] -> 0
A110: 107 | B110: =IF($A$1="","", IFERROR(INDEX(Table28[#All],SMALL(IF(Table28[#All]=العملاء!$A$1,ROW(Table28[#All]),""),ROW('العملاء الموردين'!$B107)),MATCH(B$3,Table28[#Headers],0))," ")) ->  | C110: =IF($A$1="","", IFERROR(INDEX(Table28[#All],SMALL(IF(Table28[#All]=العملاء!$A$1,ROW(Table28[#All]),""),ROW('العملاء الموردين'!$B107)),MATCH(C$3,Table28[#Headers],0))," ")) ->  | D110: =IF($A$1="","", IFERROR(INDEX(Table28[#All],SMALL(IF(Table28[#All]=العملاء!$A$1,ROW(Table28[#All]),""),ROW('العملاء الموردين'!$B107)),MATCH(D$3,Table28[#Headers],0))," ")) ->  | E110: =IF($A$1="","", IFERROR(INDEX(Table28[#All],SMALL(IF(Table28[#All]=العملاء!$A$1,ROW(Table28[#All]),""),ROW('العملاء الموردين'!$B107)),MATCH(E$3,Table28[#Headers],0))," ")) ->  | F110: =IF($A$1="","", IFERROR(INDEX(Table28[#All],SMALL(IF(Table28[#All]=العملاء!$A$1,ROW(Table28[#All]),""),ROW('العملاء الموردين'!$B107)),MATCH(F$3,Table28[#Headers],0))," ")) ->  | G110: =IF($A$1="","", IFERROR(INDEX(Table28[#All],SMALL(IF(Table28[#All]=العملاء!$A$1,ROW(Table28[#All]),""),ROW('العملاء الموردين'!$B107)),MATCH(G$3,Table28[#Headers],0))," ")) ->  | H110: =SUMIFS(Table5[الإجمالي النهائي],Table5[نوع الفاتورة],$H$2,Table5[اسم العميل],Table36[[#This Row],[الإسم]]) -> 0 | I110: =SUMIFS(Table5[الإجمالي النهائي],Table5[نوع الفاتورة],$I$2,Table5[اسم العميل],Table36[[#This Row],[الإسم]])+SUMIFS(table30[المبلغ],table30[عميل / مورد],Table36[[#This Row],[الإسم]],table30[نوع السند],الصندوق!$L$1) -> 0 | J110: =Table36[[#This Row],[الأرصدة المدينة]]-Table36[[#This Row],[الأرصدة الدائنة]] -> 0
A111: 108 | B111: =IF($A$1="","", IFERROR(INDEX(Table28[#All],SMALL(IF(Table28[#All]=العملاء!$A$1,ROW(Table28[#All]),""),ROW('العملاء الموردين'!$B108)),MATCH(B$3,Table28[#Headers],0))," ")) ->  | C111: =IF($A$1="","", IFERROR(INDEX(Table28[#All],SMALL(IF(Table28[#All]=العملاء!$A$1,ROW(Table28[#All]),""),ROW('العملاء الموردين'!$B108)),MATCH(C$3,Table28[#Headers],0))," ")) ->  | D111: =IF($A$1="","", IFERROR(INDEX(Table28[#All],SMALL(IF(Table28[#All]=العملاء!$A$1,ROW(Table28[#All]),""),ROW('العملاء الموردين'!$B108)),MATCH(D$3,Table28[#Headers],0))," ")) ->  | E111: =IF($A$1="","", IFERROR(INDEX(Table28[#All],SMALL(IF(Table28[#All]=العملاء!$A$1,ROW(Table28[#All]),""),ROW('العملاء الموردين'!$B108)),MATCH(E$3,Table28[#Headers],0))," ")) ->  | F111: =IF($A$1="","", IFERROR(INDEX(Table28[#All],SMALL(IF(Table28[#All]=العملاء!$A$1,ROW(Table28[#All]),""),ROW('العملاء الموردين'!$B108)),MATCH(F$3,Table28[#Headers],0))," ")) ->  | G111: =IF($A$1="","", IFERROR(INDEX(Table28[#All],SMALL(IF(Table28[#All]=العملاء!$A$1,ROW(Table28[#All]),""),ROW('العملاء الموردين'!$B108)),MATCH(G$3,Table28[#Headers],0))," ")) ->  | H111: =SUMIFS(Table5[الإجمالي النهائي],Table5[نوع الفاتورة],$H$2,Table5[اسم العميل],Table36[[#This Row],[الإسم]]) -> 0 | I111: =SUMIFS(Table5[الإجمالي النهائي],Table5[نوع الفاتورة],$I$2,Table5[اسم العميل],Table36[[#This Row],[الإسم]])+SUMIFS(table30[المبلغ],table30[عميل / مورد],Table36[[#This Row],[الإسم]],table30[نوع السند],الصندوق!$L$1) -> 0 | J111: =Table36[[#This Row],[الأرصدة المدينة]]-Table36[[#This Row],[الأرصدة الدائنة]] -> 0
A112: 109 | B112: =IF($A$1="","", IFERROR(INDEX(Table28[#All],SMALL(IF(Table28[#All]=العملاء!$A$1,ROW(Table28[#All]),""),ROW('العملاء الموردين'!$B109)),MATCH(B$3,Table28[#Headers],0))," ")) ->  | C112: =IF($A$1="","", IFERROR(INDEX(Table28[#All],SMALL(IF(Table28[#All]=العملاء!$A$1,ROW(Table28[#All]),""),ROW('العملاء الموردين'!$B109)),MATCH(C$3,Table28[#Headers],0))," ")) ->  | D112: =IF($A$1="","", IFERROR(INDEX(Table28[#All],SMALL(IF(Table28[#All]=العملاء!$A$1,ROW(Table28[#All]),""),ROW('العملاء الموردين'!$B109)),MATCH(D$3,Table28[#Headers],0))," ")) ->  | E112: =IF($A$1="","", IFERROR(INDEX(Table28[#All],SMALL(IF(Table28[#All]=العملاء!$A$1,ROW(Table28[#All]),""),ROW('العملاء الموردين'!$B109)),MATCH(E$3,Table28[#Headers],0))," ")) ->  | F112: =IF($A$1="","", IFERROR(INDEX(Table28[#All],SMALL(IF(Table28[#All]=العملاء!$A$1,ROW(Table28[#All]),""),ROW('العملاء الموردين'!$B109)),MATCH(F$3,Table28[#Headers],0))," ")) ->  | G112: =IF($A$1="","", IFERROR(INDEX(Table28[#All],SMALL(IF(Table28[#All]=العملاء!$A$1,ROW(Table28[#All]),""),ROW('العملاء الموردين'!$B109)),MATCH(G$3,Table28[#Headers],0))," ")) ->  | H112: =SUMIFS(Table5[الإجمالي النهائي],Table5[نوع الفاتورة],$H$2,Table5[اسم العميل],Table36[[#This Row],[الإسم]]) -> 0 | I112: =SUMIFS(Table5[الإجمالي النهائي],Table5[نوع الفاتورة],$I$2,Table5[اسم العميل],Table36[[#This Row],[الإسم]])+SUMIFS(table30[المبلغ],table30[عميل / مورد],Table36[[#This Row],[الإسم]],table30[نوع السند],الصندوق!$L$1) -> 0 | J112: =Table36[[#This Row],[الأرصدة المدينة]]-Table36[[#This Row],[الأرصدة الدائنة]] -> 0
A113: 110 | B113: =IF($A$1="","", IFERROR(INDEX(Table28[#All],SMALL(IF(Table28[#All]=العملاء!$A$1,ROW(Table28[#All]),""),ROW('العملاء الموردين'!$B110)),MATCH(B$3,Table28[#Headers],0))," ")) ->  | C113: =IF($A$1="","", IFERROR(INDEX(Table28[#All],SMALL(IF(Table28[#All]=العملاء!$A$1,ROW(Table28[#All]),""),ROW('العملاء الموردين'!$B110)),MATCH(C$3,Table28[#Headers],0))," ")) ->  | D113: =IF($A$1="","", IFERROR(INDEX(Table28[#All],SMALL(IF(Table28[#All]=العملاء!$A$1,ROW(Table28[#All]),""),ROW('العملاء الموردين'!$B110)),MATCH(D$3,Table28[#Headers],0))," ")) ->  | E113: =IF($A$1="","", IFERROR(INDEX(Table28[#All],SMALL(IF(Table28[#All]=العملاء!$A$1,ROW(Table28[#All]),""),ROW('العملاء الموردين'!$B110)),MATCH(E$3,Table28[#Headers],0))," ")) ->  | F113: =IF($A$1="","", IFERROR(INDEX(Table28[#All],SMALL(IF(Table28[#All]=العملاء!$A$1,ROW(Table28[#All]),""),ROW('العملاء الموردين'!$B110)),MATCH(F$3,Table28[#Headers],0))," ")) ->  | G113: =IF($A$1="","", IFERROR(INDEX(Table28[#All],SMALL(IF(Table28[#All]=العملاء!$A$1,ROW(Table28[#All]),""),ROW('العملاء الموردين'!$B110)),MATCH(G$3,Table28[#Headers],0))," ")) ->  | H113: =SUMIFS(Table5[الإجمالي النهائي],Table5[نوع الفاتورة],$H$2,Table5[اسم العميل],Table36[[#This Row],[الإسم]]) -> 0 | I113: =SUMIFS(Table5[الإجمالي النهائي],Table5[نوع الفاتورة],$I$2,Table5[اسم العميل],Table36[[#This Row],[الإسم]])+SUMIFS(table30[المبلغ],table30[عميل / مورد],Table36[[#This Row],[الإسم]],table30[نوع السند],الصندوق!$L$1) -> 0 | J113: =Table36[[#This Row],[الأرصدة المدينة]]-Table36[[#This Row],[الأرصدة الدائنة]] -> 0
A114: 111 | B114: =IF($A$1="","", IFERROR(INDEX(Table28[#All],SMALL(IF(Table28[#All]=العملاء!$A$1,ROW(Table28[#All]),""),ROW('العملاء الموردين'!$B111)),MATCH(B$3,Table28[#Headers],0))," ")) ->  | C114: =IF($A$1="","", IFERROR(INDEX(Table28[#All],SMALL(IF(Table28[#All]=العملاء!$A$1,ROW(Table28[#All]),""),ROW('العملاء الموردين'!$B111)),MATCH(C$3,Table28[#Headers],0))," ")) ->  | D114: =IF($A$1="","", IFERROR(INDEX(Table28[#All],SMALL(IF(Table28[#All]=العملاء!$A$1,ROW(Table28[#All]),""),ROW('العملاء الموردين'!$B111)),MATCH(D$3,Table28[#Headers],0))," ")) ->  | E114: =IF($A$1="","", IFERROR(INDEX(Table28[#All],SMALL(IF(Table28[#All]=العملاء!$A$1,ROW(Table28[#All]),""),ROW('العملاء الموردين'!$B111)),MATCH(E$3,Table28[#Headers],0))," ")) ->  | F114: =IF($A$1="","", IFERROR(INDEX(Table28[#All],SMALL(IF(Table28[#All]=العملاء!$A$1,ROW(Table28[#All]),""),ROW('العملاء الموردين'!$B111)),MATCH(F$3,Table28[#Headers],0))," ")) ->  | G114: =IF($A$1="","", IFERROR(INDEX(Table28[#All],SMALL(IF(Table28[#All]=العملاء!$A$1,ROW(Table28[#All]),""),ROW('العملاء الموردين'!$B111)),MATCH(G$3,Table28[#Headers],0))," ")) ->  | H114: =SUMIFS(Table5[الإجمالي النهائي],Table5[نوع الفاتورة],$H$2,Table5[اسم العميل],Table36[[#This Row],[الإسم]]) -> 0 | I114: =SUMIFS(Table5[الإجمالي النهائي],Table5[نوع الفاتورة],$I$2,Table5[اسم العميل],Table36[[#This Row],[الإسم]])+SUMIFS(table30[المبلغ],table30[عميل / مورد],Table36[[#This Row],[الإسم]],table30[نوع السند],الصندوق!$L$1) -> 0 | J114: =Table36[[#This Row],[الأرصدة المدينة]]-Table36[[#This Row],[الأرصدة الدائنة]] -> 0
A115: 112 | B115: =IF($A$1="","", IFERROR(INDEX(Table28[#All],SMALL(IF(Table28[#All]=العملاء!$A$1,ROW(Table28[#All]),""),ROW('العملاء الموردين'!$B112)),MATCH(B$3,Table28[#Headers],0))," ")) ->  | C115: =IF($A$1="","", IFERROR(INDEX(Table28[#All],SMALL(IF(Table28[#All]=العملاء!$A$1,ROW(Table28[#All]),""),ROW('العملاء الموردين'!$B112)),MATCH(C$3,Table28[#Headers],0))," ")) ->  | D115: =IF($A$1="","", IFERROR(INDEX(Table28[#All],SMALL(IF(Table28[#All]=العملاء!$A$1,ROW(Table28[#All]),""),ROW('العملاء الموردين'!$B112)),MATCH(D$3,Table28[#Headers],0))," ")) ->  | E115: =IF($A$1="","", IFERROR(INDEX(Table28[#All],SMALL(IF(Table28[#All]=العملاء!$A$1,ROW(Table28[#All]),""),ROW('العملاء الموردين'!$B112)),MATCH(E$3,Table28[#Headers],0))," ")) ->  | F115: =IF($A$1="","", IFERROR(INDEX(Table28[#All],SMALL(IF(Table28[#All]=العملاء!$A$1,ROW(Table28[#All]),""),ROW('العملاء الموردين'!$B112)),MATCH(F$3,Table28[#Headers],0))," ")) ->  | G115: =IF($A$1="","", IFERROR(INDEX(Table28[#All],SMALL(IF(Table28[#All]=العملاء!$A$1,ROW(Table28[#All]),""),ROW('العملاء الموردين'!$B112)),MATCH(G$3,Table28[#Headers],0))," ")) ->  | H115: =SUMIFS(Table5[الإجمالي النهائي],Table5[نوع الفاتورة],$H$2,Table5[اسم العميل],Table36[[#This Row],[الإسم]]) -> 0 | I115: =SUMIFS(Table5[الإجمالي النهائي],Table5[نوع الفاتورة],$I$2,Table5[اسم العميل],Table36[[#This Row],[الإسم]])+SUMIFS(table30[المبلغ],table30[عميل / مورد],Table36[[#This Row],[الإسم]],table30[نوع السند],الصندوق!$L$1) -> 0 | J115: =Table36[[#This Row],[الأرصدة المدينة]]-Table36[[#This Row],[الأرصدة الدائنة]] -> 0
A116: 113 | B116: =IF($A$1="","", IFERROR(INDEX(Table28[#All],SMALL(IF(Table28[#All]=العملاء!$A$1,ROW(Table28[#All]),""),ROW('العملاء الموردين'!$B113)),MATCH(B$3,Table28[#Headers],0))," ")) ->  | C116: =IF($A$1="","", IFERROR(INDEX(Table28[#All],SMALL(IF(Table28[#All]=العملاء!$A$1,ROW(Table28[#All]),""),ROW('العملاء الموردين'!$B113)),MATCH(C$3,Table28[#Headers],0))," ")) ->  | D116: =IF($A$1="","", IFERROR(INDEX(Table28[#All],SMALL(IF(Table28[#All]=العملاء!$A$1,ROW(Table28[#All]),""),ROW('العملاء الموردين'!$B113)),MATCH(D$3,Table28[#Headers],0))," ")) ->  | E116: =IF($A$1="","", IFERROR(INDEX(Table28[#All],SMALL(IF(Table28[#All]=العملاء!$A$1,ROW(Table28[#All]),""),ROW('العملاء الموردين'!$B113)),MATCH(E$3,Table28[#Headers],0))," ")) ->  | F116: =IF($A$1="","", IFERROR(INDEX(Table28[#All],SMALL(IF(Table28[#All]=العملاء!$A$1,ROW(Table28[#All]),""),ROW('العملاء الموردين'!$B113)),MATCH(F$3,Table28[#Headers],0))," ")) ->  | G116: =IF($A$1="","", IFERROR(INDEX(Table28[#All],SMALL(IF(Table28[#All]=العملاء!$A$1,ROW(Table28[#All]),""),ROW('العملاء الموردين'!$B113)),MATCH(G$3,Table28[#Headers],0))," ")) ->  | H116: =SUMIFS(Table5[الإجمالي النهائي],Table5[نوع الفاتورة],$H$2,Table5[اسم العميل],Table36[[#This Row],[الإسم]]) -> 0 | I116: =SUMIFS(Table5[الإجمالي النهائي],Table5[نوع الفاتورة],$I$2,Table5[اسم العميل],Table36[[#This Row],[الإسم]])+SUMIFS(table30[المبلغ],table30[عميل / مورد],Table36[[#This Row],[الإسم]],table30[نوع السند],الصندوق!$L$1) -> 0 | J116: =Table36[[#This Row],[الأرصدة المدينة]]-Table36[[#This Row],[الأرصدة الدائنة]] -> 0
A117: 114 | B117: =IF($A$1="","", IFERROR(INDEX(Table28[#All],SMALL(IF(Table28[#All]=العملاء!$A$1,ROW(Table28[#All]),""),ROW('العملاء الموردين'!$B114)),MATCH(B$3,Table28[#Headers],0))," ")) ->  | C117: =IF($A$1="","", IFERROR(INDEX(Table28[#All],SMALL(IF(Table28[#All]=العملاء!$A$1,ROW(Table28[#All]),""),ROW('العملاء الموردين'!$B114)),MATCH(C$3,Table28[#Headers],0))," ")) ->  | D117: =IF($A$1="","", IFERROR(INDEX(Table28[#All],SMALL(IF(Table28[#All]=العملاء!$A$1,ROW(Table28[#All]),""),ROW('العملاء الموردين'!$B114)),MATCH(D$3,Table28[#Headers],0))," ")) ->  | E117: =IF($A$1="","", IFERROR(INDEX(Table28[#All],SMALL(IF(Table28[#All]=العملاء!$A$1,ROW(Table28[#All]),""),ROW('العملاء الموردين'!$B114)),MATCH(E$3,Table28[#Headers],0))," ")) ->  | F117: =IF($A$1="","", IFERROR(INDEX(Table28[#All],SMALL(IF(Table28[#All]=العملاء!$A$1,ROW(Table28[#All]),""),ROW('العملاء الموردين'!$B114)),MATCH(F$3,Table28[#Headers],0))," ")) ->  | G117: =IF($A$1="","", IFERROR(INDEX(Table28[#All],SMALL(IF(Table28[#All]=العملاء!$A$1,ROW(Table28[#All]),""),ROW('العملاء الموردين'!$B114)),MATCH(G$3,Table28[#Headers],0))," ")) ->  | H117: =SUMIFS(Table5[الإجمالي النهائي],Table5[نوع الفاتورة],$H$2,Table5[اسم العميل],Table36[[#This Row],[الإسم]]) -> 0 | I117: =SUMIFS(Table5[الإجمالي النهائي],Table5[نوع الفاتورة],$I$2,Table5[اسم العميل],Table36[[#This Row],[الإسم]])+SUMIFS(table30[المبلغ],table30[عميل / مورد],Table36[[#This Row],[الإسم]],table30[نوع السند],الصندوق!$L$1) -> 0 | J117: =Table36[[#This Row],[الأرصدة المدينة]]-Table36[[#This Row],[الأرصدة الدائنة]] -> 0
A118: 115 | B118: =IF($A$1="","", IFERROR(INDEX(Table28[#All],SMALL(IF(Table28[#All]=العملاء!$A$1,ROW(Table28[#All]),""),ROW('العملاء الموردين'!$B115)),MATCH(B$3,Table28[#Headers],0))," ")) ->  | C118: =IF($A$1="","", IFERROR(INDEX(Table28[#All],SMALL(IF(Table28[#All]=العملاء!$A$1,ROW(Table28[#All]),""),ROW('العملاء الموردين'!$B115)),MATCH(C$3,Table28[#Headers],0))," ")) ->  | D118: =IF($A$1="","", IFERROR(INDEX(Table28[#All],SMALL(IF(Table28[#All]=العملاء!$A$1,ROW(Table28[#All]),""),ROW('العملاء الموردين'!$B115)),MATCH(D$3,Table28[#Headers],0))," ")) ->  | E118: =IF($A$1="","", IFERROR(INDEX(Table28[#All],SMALL(IF(Table28[#All]=العملاء!$A$1,ROW(Table28[#All]),""),ROW('العملاء الموردين'!$B115)),MATCH(E$3,Table28[#Headers],0))," ")) ->  | F118: =IF($A$1="","", IFERROR(INDEX(Table28[#All],SMALL(IF(Table28[#All]=العملاء!$A$1,ROW(Table28[#All]),""),ROW('العملاء الموردين'!$B115)),MATCH(F$3,Table28[#Headers],0))," ")) ->  | G118: =IF($A$1="","", IFERROR(INDEX(Table28[#All],SMALL(IF(Table28[#All]=العملاء!$A$1,ROW(Table28[#All]),""),ROW('العملاء الموردين'!$B115)),MATCH(G$3,Table28[#Headers],0))," ")) ->  | H118: =SUMIFS(Table5[الإجمالي النهائي],Table5[نوع الفاتورة],$H$2,Table5[اسم العميل],Table36[[#This Row],[الإسم]]) -> 0 | I118: =SUMIFS(Table5[الإجمالي النهائي],Table5[نوع الفاتورة],$I$2,Table5[اسم العميل],Table36[[#This Row],[الإسم]])+SUMIFS(table30[المبلغ],table30[عميل / مورد],Table36[[#This Row],[الإسم]],table30[نوع السند],الصندوق!$L$1) -> 0 | J118: =Table36[[#This Row],[الأرصدة المدينة]]-Table36[[#This Row],[الأرصدة الدائنة]] -> 0
A119: 116 | B119: =IF($A$1="","", IFERROR(INDEX(Table28[#All],SMALL(IF(Table28[#All]=العملاء!$A$1,ROW(Table28[#All]),""),ROW('العملاء الموردين'!$B116)),MATCH(B$3,Table28[#Headers],0))," ")) ->  | C119: =IF($A$1="","", IFERROR(INDEX(Table28[#All],SMALL(IF(Table28[#All]=العملاء!$A$1,ROW(Table28[#All]),""),ROW('العملاء الموردين'!$B116)),MATCH(C$3,Table28[#Headers],0))," ")) ->  | D119: =IF($A$1="","", IFERROR(INDEX(Table28[#All],SMALL(IF(Table28[#All]=العملاء!$A$1,ROW(Table28[#All]),""),ROW('العملاء الموردين'!$B116)),MATCH(D$3,Table28[#Headers],0))," ")) ->  | E119: =IF($A$1="","", IFERROR(INDEX(Table28[#All],SMALL(IF(Table28[#All]=العملاء!$A$1,ROW(Table28[#All]),""),ROW('العملاء الموردين'!$B116)),MATCH(E$3,Table28[#Headers],0))," ")) ->  | F119: =IF($A$1="","", IFERROR(INDEX(Table28[#All],SMALL(IF(Table28[#All]=العملاء!$A$1,ROW(Table28[#All]),""),ROW('العملاء الموردين'!$B116)),MATCH(F$3,Table28[#Headers],0))," ")) ->  | G119: =IF($A$1="","", IFERROR(INDEX(Table28[#All],SMALL(IF(Table28[#All]=العملاء!$A$1,ROW(Table28[#All]),""),ROW('العملاء الموردين'!$B116)),MATCH(G$3,Table28[#Headers],0))," ")) ->  | H119: =SUMIFS(Table5[الإجمالي النهائي],Table5[نوع الفاتورة],$H$2,Table5[اسم العميل],Table36[[#This Row],[الإسم]]) -> 0 | I119: =SUMIFS(Table5[الإجمالي النهائي],Table5[نوع الفاتورة],$I$2,Table5[اسم العميل],Table36[[#This Row],[الإسم]])+SUMIFS(table30[المبلغ],table30[عميل / مورد],Table36[[#This Row],[الإسم]],table30[نوع السند],الصندوق!$L$1) -> 0 | J119: =Table36[[#This Row],[الأرصدة المدينة]]-Table36[[#This Row],[الأرصدة الدائنة]] -> 0
A120: 117 | B120: =IF($A$1="","", IFERROR(INDEX(Table28[#All],SMALL(IF(Table28[#All]=العملاء!$A$1,ROW(Table28[#All]),""),ROW('العملاء الموردين'!$B117)),MATCH(B$3,Table28[#Headers],0))," ")) ->  | C120: =IF($A$1="","", IFERROR(INDEX(Table28[#All],SMALL(IF(Table28[#All]=العملاء!$A$1,ROW(Table28[#All]),""),ROW('العملاء الموردين'!$B117)),MATCH(C$3,Table28[#Headers],0))," ")) ->  | D120: =IF($A$1="","", IFERROR(INDEX(Table28[#All],SMALL(IF(Table28[#All]=العملاء!$A$1,ROW(Table28[#All]),""),ROW('العملاء الموردين'!$B117)),MATCH(D$3,Table28[#Headers],0))," ")) ->  | E120: =IF($A$1="","", IFERROR(INDEX(Table28[#All],SMALL(IF(Table28[#All]=العملاء!$A$1,ROW(Table28[#All]),""),ROW('العملاء الموردين'!$B117)),MATCH(E$3,Table28[#Headers],0))," ")) ->  | F120: =IF($A$1="","", IFERROR(INDEX(Table28[#All],SMALL(IF(Table28[#All]=العملاء!$A$1,ROW(Table28[#All]),""),ROW('العملاء الموردين'!$B117)),MATCH(F$3,Table28[#Headers],0))," ")) ->  | G120: =IF($A$1="","", IFERROR(INDEX(Table28[#All],SMALL(IF(Table28[#All]=العملاء!$A$1,ROW(Table28[#All]),""),ROW('العملاء الموردين'!$B117)),MATCH(G$3,Table28[#Headers],0))," ")) ->  | H120: =SUMIFS(Table5[الإجمالي النهائي],Table5[نوع الفاتورة],$H$2,Table5[اسم العميل],Table36[[#This Row],[الإسم]]) -> 0 | I120: =SUMIFS(Table5[الإجمالي النهائي],Table5[نوع الفاتورة],$I$2,Table5[اسم العميل],Table36[[#This Row],[الإسم]])+SUMIFS(table30[المبلغ],table30[عميل / مورد],Table36[[#This Row],[الإسم]],table30[نوع السند],الصندوق!$L$1) -> 0 | J120: =Table36[[#This Row],[الأرصدة المدينة]]-Table36[[#This Row],[الأرصدة الدائنة]] -> 0
A121: 118 | B121: =IF($A$1="","", IFERROR(INDEX(Table28[#All],SMALL(IF(Table28[#All]=العملاء!$A$1,ROW(Table28[#All]),""),ROW('العملاء الموردين'!$B118)),MATCH(B$3,Table28[#Headers],0))," ")) ->  | C121: =IF($A$1="","", IFERROR(INDEX(Table28[#All],SMALL(IF(Table28[#All]=العملاء!$A$1,ROW(Table28[#All]),""),ROW('العملاء الموردين'!$B118)),MATCH(C$3,Table28[#Headers],0))," ")) ->  | D121: =IF($A$1="","", IFERROR(INDEX(Table28[#All],SMALL(IF(Table28[#All]=العملاء!$A$1,ROW(Table28[#All]),""),ROW('العملاء الموردين'!$B118)),MATCH(D$3,Table28[#Headers],0))," ")) ->  | E121: =IF($A$1="","", IFERROR(INDEX(Table28[#All],SMALL(IF(Table28[#All]=العملاء!$A$1,ROW(Table28[#All]),""),ROW('العملاء الموردين'!$B118)),MATCH(E$3,Table28[#Headers],0))," ")) ->  | F121: =IF($A$1="","", IFERROR(INDEX(Table28[#All],SMALL(IF(Table28[#All]=العملاء!$A$1,ROW(Table28[#All]),""),ROW('العملاء الموردين'!$B118)),MATCH(F$3,Table28[#Headers],0))," ")) ->  | G121: =IF($A$1="","", IFERROR(INDEX(Table28[#All],SMALL(IF(Table28[#All]=العملاء!$A$1,ROW(Table28[#All]),""),ROW('العملاء الموردين'!$B118)),MATCH(G$3,Table28[#Headers],0))," ")) ->  | H121: =SUMIFS(Table5[الإجمالي النهائي],Table5[نوع الفاتورة],$H$2,Table5[اسم العميل],Table36[[#This Row],[الإسم]]) -> 0 | I121: =SUMIFS(Table5[الإجمالي النهائي],Table5[نوع الفاتورة],$I$2,Table5[اسم العميل],Table36[[#This Row],[الإسم]])+SUMIFS(table30[المبلغ],table30[عميل / مورد],Table36[[#This Row],[الإسم]],table30[نوع السند],الصندوق!$L$1) -> 0 | J121: =Table36[[#This Row],[الأرصدة المدينة]]-Table36[[#This Row],[الأرصدة الدائنة]] -> 0
A122: 119 | B122: =IF($A$1="","", IFERROR(INDEX(Table28[#All],SMALL(IF(Table28[#All]=العملاء!$A$1,ROW(Table28[#All]),""),ROW('العملاء الموردين'!$B119)),MATCH(B$3,Table28[#Headers],0))," ")) ->  | C122: =IF($A$1="","", IFERROR(INDEX(Table28[#All],SMALL(IF(Table28[#All]=العملاء!$A$1,ROW(Table28[#All]),""),ROW('العملاء الموردين'!$B119)),MATCH(C$3,Table28[#Headers],0))," ")) ->  | D122: =IF($A$1="","", IFERROR(INDEX(Table28[#All],SMALL(IF(Table28[#All]=العملاء!$A$1,ROW(Table28[#All]),""),ROW('العملاء الموردين'!$B119)),MATCH(D$3,Table28[#Headers],0))," ")) ->  | E122: =IF($A$1="","", IFERROR(INDEX(Table28[#All],SMALL(IF(Table28[#All]=العملاء!$A$1,ROW(Table28[#All]),""),ROW('العملاء الموردين'!$B119)),MATCH(E$3,Table28[#Headers],0))," ")) ->  | F122: =IF($A$1="","", IFERROR(INDEX(Table28[#All],SMALL(IF(Table28[#All]=العملاء!$A$1,ROW(Table28[#All]),""),ROW('العملاء الموردين'!$B119)),MATCH(F$3,Table28[#Headers],0))," ")) ->  | G122: =IF($A$1="","", IFERROR(INDEX(Table28[#All],SMALL(IF(Table28[#All]=العملاء!$A$1,ROW(Table28[#All]),""),ROW('العملاء الموردين'!$B119)),MATCH(G$3,Table28[#Headers],0))," ")) ->  | H122: =SUMIFS(Table5[الإجمالي النهائي],Table5[نوع الفاتورة],$H$2,Table5[اسم العميل],Table36[[#This Row],[الإسم]]) -> 0 | I122: =SUMIFS(Table5[الإجمالي النهائي],Table5[نوع الفاتورة],$I$2,Table5[اسم العميل],Table36[[#This Row],[الإسم]])+SUMIFS(table30[المبلغ],table30[عميل / مورد],Table36[[#This Row],[الإسم]],table30[نوع السند],الصندوق!$L$1) -> 0 | J122: =Table36[[#This Row],[الأرصدة المدينة]]-Table36[[#This Row],[الأرصدة الدائنة]] -> 0
A123: 120 | B123: =IF($A$1="","", IFERROR(INDEX(Table28[#All],SMALL(IF(Table28[#All]=العملاء!$A$1,ROW(Table28[#All]),""),ROW('العملاء الموردين'!$B120)),MATCH(B$3,Table28[#Headers],0))," ")) ->  | C123: =IF($A$1="","", IFERROR(INDEX(Table28[#All],SMALL(IF(Table28[#All]=العملاء!$A$1,ROW(Table28[#All]),""),ROW('العملاء الموردين'!$B120)),MATCH(C$3,Table28[#Headers],0))," ")) ->  | D123: =IF($A$1="","", IFERROR(INDEX(Table28[#All],SMALL(IF(Table28[#All]=العملاء!$A$1,ROW(Table28[#All]),""),ROW('العملاء الموردين'!$B120)),MATCH(D$3,Table28[#Headers],0))," ")) ->  | E123: =IF($A$1="","", IFERROR(INDEX(Table28[#All],SMALL(IF(Table28[#All]=العملاء!$A$1,ROW(Table28[#All]),""),ROW('العملاء الموردين'!$B120)),MATCH(E$3,Table28[#Headers],0))," ")) ->  | F123: =IF($A$1="","", IFERROR(INDEX(Table28[#All],SMALL(IF(Table28[#All]=العملاء!$A$1,ROW(Table28[#All]),""),ROW('العملاء الموردين'!$B120)),MATCH(F$3,Table28[#Headers],0))," ")) ->  | G123: =IF($A$1="","", IFERROR(INDEX(Table28[#All],SMALL(IF(Table28[#All]=العملاء!$A$1,ROW(Table28[#All]),""),ROW('العملاء الموردين'!$B120)),MATCH(G$3,Table28[#Headers],0))," ")) ->  | H123: =SUMIFS(Table5[الإجمالي النهائي],Table5[نوع الفاتورة],$H$2,Table5[اسم العميل],Table36[[#This Row],[الإسم]]) -> 0 | I123: =SUMIFS(Table5[الإجمالي النهائي],Table5[نوع الفاتورة],$I$2,Table5[اسم العميل],Table36[[#This Row],[الإسم]])+SUMIFS(table30[المبلغ],table30[عميل / مورد],Table36[[#This Row],[الإسم]],table30[نوع السند],الصندوق!$L$1) -> 0 | J123: =Table36[[#This Row],[الأرصدة المدينة]]-Table36[[#This Row],[الأرصدة الدائنة]] -> 0
A124: 121 | B124: =IF($A$1="","", IFERROR(INDEX(Table28[#All],SMALL(IF(Table28[#All]=العملاء!$A$1,ROW(Table28[#All]),""),ROW('العملاء الموردين'!$B121)),MATCH(B$3,Table28[#Headers],0))," ")) ->  | C124: =IF($A$1="","", IFERROR(INDEX(Table28[#All],SMALL(IF(Table28[#All]=العملاء!$A$1,ROW(Table28[#All]),""),ROW('العملاء الموردين'!$B121)),MATCH(C$3,Table28[#Headers],0))," ")) ->  | D124: =IF($A$1="","", IFERROR(INDEX(Table28[#All],SMALL(IF(Table28[#All]=العملاء!$A$1,ROW(Table28[#All]),""),ROW('العملاء الموردين'!$B121)),MATCH(D$3,Table28[#Headers],0))," ")) ->  | E124: =IF($A$1="","", IFERROR(INDEX(Table28[#All],SMALL(IF(Table28[#All]=العملاء!$A$1,ROW(Table28[#All]),""),ROW('العملاء الموردين'!$B121)),MATCH(E$3,Table28[#Headers],0))," ")) ->  | F124: =IF($A$1="","", IFERROR(INDEX(Table28[#All],SMALL(IF(Table28[#All]=العملاء!$A$1,ROW(Table28[#All]),""),ROW('العملاء الموردين'!$B121)),MATCH(F$3,Table28[#Headers],0))," ")) ->  | G124: =IF($A$1="","", IFERROR(INDEX(Table28[#All],SMALL(IF(Table28[#All]=العملاء!$A$1,ROW(Table28[#All]),""),ROW('العملاء الموردين'!$B121)),MATCH(G$3,Table28[#Headers],0))," ")) ->  | H124: =SUMIFS(Table5[الإجمالي النهائي],Table5[نوع الفاتورة],$H$2,Table5[اسم العميل],Table36[[#This Row],[الإسم]]) -> 0 | I124: =SUMIFS(Table5[الإجمالي النهائي],Table5[نوع الفاتورة],$I$2,Table5[اسم العميل],Table36[[#This Row],[الإسم]])+SUMIFS(table30[المبلغ],table30[عميل / مورد],Table36[[#This Row],[الإسم]],table30[نوع السند],الصندوق!$L$1) -> 0 | J124: =Table36[[#This Row],[الأرصدة المدينة]]-Table36[[#This Row],[الأرصدة الدائنة]] -> 0
A125: 122 | B125: =IF($A$1="","", IFERROR(INDEX(Table28[#All],SMALL(IF(Table28[#All]=العملاء!$A$1,ROW(Table28[#All]),""),ROW('العملاء الموردين'!$B122)),MATCH(B$3,Table28[#Headers],0))," ")) ->  | C125: =IF($A$1="","", IFERROR(INDEX(Table28[#All],SMALL(IF(Table28[#All]=العملاء!$A$1,ROW(Table28[#All]),""),ROW('العملاء الموردين'!$B122)),MATCH(C$3,Table28[#Headers],0))," ")) ->  | D125: =IF($A$1="","", IFERROR(INDEX(Table28[#All],SMALL(IF(Table28[#All]=العملاء!$A$1,ROW(Table28[#All]),""),ROW('العملاء الموردين'!$B122)),MATCH(D$3,Table28[#Headers],0))," ")) ->  | E125: =IF($A$1="","", IFERROR(INDEX(Table28[#All],SMALL(IF(Table28[#All]=العملاء!$A$1,ROW(Table28[#All]),""),ROW('العملاء الموردين'!$B122)),MATCH(E$3,Table28[#Headers],0))," ")) ->  | F125: =IF($A$1="","", IFERROR(INDEX(Table28[#All],SMALL(IF(Table28[#All]=العملاء!$A$1,ROW(Table28[#All]),""),ROW('العملاء الموردين'!$B122)),MATCH(F$3,Table28[#Headers],0))," ")) ->  | G125: =IF($A$1="","", IFERROR(INDEX(Table28[#All],SMALL(IF(Table28[#All]=العملاء!$A$1,ROW(Table28[#All]),""),ROW('العملاء الموردين'!$B122)),MATCH(G$3,Table28[#Headers],0))," ")) ->  | H125: =SUMIFS(Table5[الإجمالي النهائي],Table5[نوع الفاتورة],$H$2,Table5[اسم العميل],Table36[[#This Row],[الإسم]]) -> 0 | I125: =SUMIFS(Table5[الإجمالي النهائي],Table5[نوع الفاتورة],$I$2,Table5[اسم العميل],Table36[[#This Row],[الإسم]])+SUMIFS(table30[المبلغ],table30[عميل / مورد],Table36[[#This Row],[الإسم]],table30[نوع السند],الصندوق!$L$1) -> 0 | J125: =Table36[[#This Row],[الأرصدة المدينة]]-Table36[[#This Row],[الأرصدة الدائنة]] -> 0
A126: 123 | B126: =IF($A$1="","", IFERROR(INDEX(Table28[#All],SMALL(IF(Table28[#All]=العملاء!$A$1,ROW(Table28[#All]),""),ROW('العملاء الموردين'!$B123)),MATCH(B$3,Table28[#Headers],0))," ")) ->  | C126: =IF($A$1="","", IFERROR(INDEX(Table28[#All],SMALL(IF(Table28[#All]=العملاء!$A$1,ROW(Table28[#All]),""),ROW('العملاء الموردين'!$B123)),MATCH(C$3,Table28[#Headers],0))," ")) ->  | D126: =IF($A$1="","", IFERROR(INDEX(Table28[#All],SMALL(IF(Table28[#All]=العملاء!$A$1,ROW(Table28[#All]),""),ROW('العملاء الموردين'!$B123)),MATCH(D$3,Table28[#Headers],0))," ")) ->  | E126: =IF($A$1="","", IFERROR(INDEX(Table28[#All],SMALL(IF(Table28[#All]=العملاء!$A$1,ROW(Table28[#All]),""),ROW('العملاء الموردين'!$B123)),MATCH(E$3,Table28[#Headers],0))," ")) ->  | F126: =IF($A$1="","", IFERROR(INDEX(Table28[#All],SMALL(IF(Table28[#All]=العملاء!$A$1,ROW(Table28[#All]),""),ROW('العملاء الموردين'!$B123)),MATCH(F$3,Table28[#Headers],0))," ")) ->  | G126: =IF($A$1="","", IFERROR(INDEX(Table28[#All],SMALL(IF(Table28[#All]=العملاء!$A$1,ROW(Table28[#All]),""),ROW('العملاء الموردين'!$B123)),MATCH(G$3,Table28[#Headers],0))," ")) ->  | H126: =SUMIFS(Table5[الإجمالي النهائي],Table5[نوع الفاتورة],$H$2,Table5[اسم العميل],Table36[[#This Row],[الإسم]]) -> 0 | I126: =SUMIFS(Table5[الإجمالي النهائي],Table5[نوع الفاتورة],$I$2,Table5[اسم العميل],Table36[[#This Row],[الإسم]])+SUMIFS(table30[المبلغ],table30[عميل / مورد],Table36[[#This Row],[الإسم]],table30[نوع السند],الصندوق!$L$1) -> 0 | J126: =Table36[[#This Row],[الأرصدة المدينة]]-Table36[[#This Row],[الأرصدة الدائنة]] -> 0
A127: 124 | B127: =IF($A$1="","", IFERROR(INDEX(Table28[#All],SMALL(IF(Table28[#All]=العملاء!$A$1,ROW(Table28[#All]),""),ROW('العملاء الموردين'!$B124)),MATCH(B$3,Table28[#Headers],0))," ")) ->  | C127: =IF($A$1="","", IFERROR(INDEX(Table28[#All],SMALL(IF(Table28[#All]=العملاء!$A$1,ROW(Table28[#All]),""),ROW('العملاء الموردين'!$B124)),MATCH(C$3,Table28[#Headers],0))," ")) ->  | D127: =IF($A$1="","", IFERROR(INDEX(Table28[#All],SMALL(IF(Table28[#All]=العملاء!$A$1,ROW(Table28[#All]),""),ROW('العملاء الموردين'!$B124)),MATCH(D$3,Table28[#Headers],0))," ")) ->  | E127: =IF($A$1="","", IFERROR(INDEX(Table28[#All],SMALL(IF(Table28[#All]=العملاء!$A$1,ROW(Table28[#All]),""),ROW('العملاء الموردين'!$B124)),MATCH(E$3,Table28[#Headers],0))," ")) ->  | F127: =IF($A$1="","", IFERROR(INDEX(Table28[#All],SMALL(IF(Table28[#All]=العملاء!$A$1,ROW(Table28[#All]),""),ROW('العملاء الموردين'!$B124)),MATCH(F$3,Table28[#Headers],0))," ")) ->  | G127: =IF($A$1="","", IFERROR(INDEX(Table28[#All],SMALL(IF(Table28[#All]=العملاء!$A$1,ROW(Table28[#All]),""),ROW('العملاء الموردين'!$B124)),MATCH(G$3,Table28[#Headers],0))," ")) ->  | H127: =SUMIFS(Table5[الإجمالي النهائي],Table5[نوع الفاتورة],$H$2,Table5[اسم العميل],Table36[[#This Row],[الإسم]]) -> 0 | I127: =SUMIFS(Table5[الإجمالي النهائي],Table5[نوع الفاتورة],$I$2,Table5[اسم العميل],Table36[[#This Row],[الإسم]])+SUMIFS(table30[المبلغ],table30[عميل / مورد],Table36[[#This Row],[الإسم]],table30[نوع السند],الصندوق!$L$1) -> 0 | J127: =Table36[[#This Row],[الأرصدة المدينة]]-Table36[[#This Row],[الأرصدة الدائنة]] -> 0
A128: 125 | B128: =IF($A$1="","", IFERROR(INDEX(Table28[#All],SMALL(IF(Table28[#All]=العملاء!$A$1,ROW(Table28[#All]),""),ROW('العملاء الموردين'!$B125)),MATCH(B$3,Table28[#Headers],0))," ")) ->  | C128: =IF($A$1="","", IFERROR(INDEX(Table28[#All],SMALL(IF(Table28[#All]=العملاء!$A$1,ROW(Table28[#All]),""),ROW('العملاء الموردين'!$B125)),MATCH(C$3,Table28[#Headers],0))," ")) ->  | D128: =IF($A$1="","", IFERROR(INDEX(Table28[#All],SMALL(IF(Table28[#All]=العملاء!$A$1,ROW(Table28[#All]),""),ROW('العملاء الموردين'!$B125)),MATCH(D$3,Table28[#Headers],0))," ")) ->  | E128: =IF($A$1="","", IFERROR(INDEX(Table28[#All],SMALL(IF(Table28[#All]=العملاء!$A$1,ROW(Table28[#All]),""),ROW('العملاء الموردين'!$B125)),MATCH(E$3,Table28[#Headers],0))," ")) ->  | F128: =IF($A$1="","", IFERROR(INDEX(Table28[#All],SMALL(IF(Table28[#All]=العملاء!$A$1,ROW(Table28[#All]),""),ROW('العملاء الموردين'!$B125)),MATCH(F$3,Table28[#Headers],0))," ")) ->  | G128: =IF($A$1="","", IFERROR(INDEX(Table28[#All],SMALL(IF(Table28[#All]=العملاء!$A$1,ROW(Table28[#All]),""),ROW('العملاء الموردين'!$B125)),MATCH(G$3,Table28[#Headers],0))," ")) ->  | H128: =SUMIFS(Table5[الإجمالي النهائي],Table5[نوع الفاتورة],$H$2,Table5[اسم العميل],Table36[[#This Row],[الإسم]]) -> 0 | I128: =SUMIFS(Table5[الإجمالي النهائي],Table5[نوع الفاتورة],$I$2,Table5[اسم العميل],Table36[[#This Row],[الإسم]])+SUMIFS(table30[المبلغ],table30[عميل / مورد],Table36[[#This Row],[الإسم]],table30[نوع السند],الصندوق!$L$1) -> 0 | J128: =Table36[[#This Row],[الأرصدة المدينة]]-Table36[[#This Row],[الأرصدة الدائنة]] -> 0
A129: 126 | B129: =IF($A$1="","", IFERROR(INDEX(Table28[#All],SMALL(IF(Table28[#All]=العملاء!$A$1,ROW(Table28[#All]),""),ROW('العملاء الموردين'!$B126)),MATCH(B$3,Table28[#Headers],0))," ")) ->  | C129: =IF($A$1="","", IFERROR(INDEX(Table28[#All],SMALL(IF(Table28[#All]=العملاء!$A$1,ROW(Table28[#All]),""),ROW('العملاء الموردين'!$B126)),MATCH(C$3,Table28[#Headers],0))," ")) ->  | D129: =IF($A$1="","", IFERROR(INDEX(Table28[#All],SMALL(IF(Table28[#All]=العملاء!$A$1,ROW(Table28[#All]),""),ROW('العملاء الموردين'!$B126)),MATCH(D$3,Table28[#Headers],0))," ")) ->  | E129: =IF($A$1="","", IFERROR(INDEX(Table28[#All],SMALL(IF(Table28[#All]=العملاء!$A$1,ROW(Table28[#All]),""),ROW('العملاء الموردين'!$B126)),MATCH(E$3,Table28[#Headers],0))," ")) ->  | F129: =IF($A$1="","", IFERROR(INDEX(Table28[#All],SMALL(IF(Table28[#All]=العملاء!$A$1,ROW(Table28[#All]),""),ROW('العملاء الموردين'!$B126)),MATCH(F$3,Table28[#Headers],0))," ")) ->  | G129: =IF($A$1="","", IFERROR(INDEX(Table28[#All],SMALL(IF(Table28[#All]=العملاء!$A$1,ROW(Table28[#All]),""),ROW('العملاء الموردين'!$B126)),MATCH(G$3,Table28[#Headers],0))," ")) ->  | H129: =SUMIFS(Table5[الإجمالي النهائي],Table5[نوع الفاتورة],$H$2,Table5[اسم العميل],Table36[[#This Row],[الإسم]]) -> 0 | I129: =SUMIFS(Table5[الإجمالي النهائي],Table5[نوع الفاتورة],$I$2,Table5[اسم العميل],Table36[[#This Row],[الإسم]])+SUMIFS(table30[المبلغ],table30[عميل / مورد],Table36[[#This Row],[الإسم]],table30[نوع السند],الصندوق!$L$1) -> 0 | J129: =Table36[[#This Row],[الأرصدة المدينة]]-Table36[[#This Row],[الأرصدة الدائنة]] -> 0
A130: 127 | B130: =IF($A$1="","", IFERROR(INDEX(Table28[#All],SMALL(IF(Table28[#All]=العملاء!$A$1,ROW(Table28[#All]),""),ROW('العملاء الموردين'!$B127)),MATCH(B$3,Table28[#Headers],0))," ")) ->  | C130: =IF($A$1="","", IFERROR(INDEX(Table28[#All],SMALL(IF(Table28[#All]=العملاء!$A$1,ROW(Table28[#All]),""),ROW('العملاء الموردين'!$B127)),MATCH(C$3,Table28[#Headers],0))," ")) ->  | D130: =IF($A$1="","", IFERROR(INDEX(Table28[#All],SMALL(IF(Table28[#All]=العملاء!$A$1,ROW(Table28[#All]),""),ROW('العملاء الموردين'!$B127)),MATCH(D$3,Table28[#Headers],0))," ")) ->  | E130: =IF($A$1="","", IFERROR(INDEX(Table28[#All],SMALL(IF(Table28[#All]=العملاء!$A$1,ROW(Table28[#All]),""),ROW('العملاء الموردين'!$B127)),MATCH(E$3,Table28[#Headers],0))," ")) ->  | F130: =IF($A$1="","", IFERROR(INDEX(Table28[#All],SMALL(IF(Table28[#All]=العملاء!$A$1,ROW(Table28[#All]),""),ROW('العملاء الموردين'!$B127)),MATCH(F$3,Table28[#Headers],0))," ")) ->  | G130: =IF($A$1="","", IFERROR(INDEX(Table28[#All],SMALL(IF(Table28[#All]=العملاء!$A$1,ROW(Table28[#All]),""),ROW('العملاء الموردين'!$B127)),MATCH(G$3,Table28[#Headers],0))," ")) ->  | H130: =SUMIFS(Table5[الإجمالي النهائي],Table5[نوع الفاتورة],$H$2,Table5[اسم العميل],Table36[[#This Row],[الإسم]]) -> 0 | I130: =SUMIFS(Table5[الإجمالي النهائي],Table5[نوع الفاتورة],$I$2,Table5[اسم العميل],Table36[[#This Row],[الإسم]])+SUMIFS(table30[المبلغ],table30[عميل / مورد],Table36[[#This Row],[الإسم]],table30[نوع السند],الصندوق!$L$1) -> 0 | J130: =Table36[[#This Row],[الأرصدة المدينة]]-Table36[[#This Row],[الأرصدة الدائنة]] -> 0
A131: 128 | B131: =IF($A$1="","", IFERROR(INDEX(Table28[#All],SMALL(IF(Table28[#All]=العملاء!$A$1,ROW(Table28[#All]),""),ROW('العملاء الموردين'!$B128)),MATCH(B$3,Table28[#Headers],0))," ")) ->  | C131: =IF($A$1="","", IFERROR(INDEX(Table28[#All],SMALL(IF(Table28[#All]=العملاء!$A$1,ROW(Table28[#All]),""),ROW('العملاء الموردين'!$B128)),MATCH(C$3,Table28[#Headers],0))," ")) ->  | D131: =IF($A$1="","", IFERROR(INDEX(Table28[#All],SMALL(IF(Table28[#All]=العملاء!$A$1,ROW(Table28[#All]),""),ROW('العملاء الموردين'!$B128)),MATCH(D$3,Table28[#Headers],0))," ")) ->  | E131: =IF($A$1="","", IFERROR(INDEX(Table28[#All],SMALL(IF(Table28[#All]=العملاء!$A$1,ROW(Table28[#All]),""),ROW('العملاء الموردين'!$B128)),MATCH(E$3,Table28[#Headers],0))," ")) ->  | F131: =IF($A$1="","", IFERROR(INDEX(Table28[#All],SMALL(IF(Table28[#All]=العملاء!$A$1,ROW(Table28[#All]),""),ROW('العملاء الموردين'!$B128)),MATCH(F$3,Table28[#Headers],0))," ")) ->  | G131: =IF($A$1="","", IFERROR(INDEX(Table28[#All],SMALL(IF(Table28[#All]=العملاء!$A$1,ROW(Table28[#All]),""),ROW('العملاء الموردين'!$B128)),MATCH(G$3,Table28[#Headers],0))," ")) ->  | H131: =SUMIFS(Table5[الإجمالي النهائي],Table5[نوع الفاتورة],$H$2,Table5[اسم العميل],Table36[[#This Row],[الإسم]]) -> 0 | I131: =SUMIFS(Table5[الإجمالي النهائي],Table5[نوع الفاتورة],$I$2,Table5[اسم العميل],Table36[[#This Row],[الإسم]])+SUMIFS(table30[المبلغ],table30[عميل / مورد],Table36[[#This Row],[الإسم]],table30[نوع السند],الصندوق!$L$1) -> 0 | J131: =Table36[[#This Row],[الأرصدة المدينة]]-Table36[[#This Row],[الأرصدة الدائنة]] -> 0
A132: 129 | B132: =IF($A$1="","", IFERROR(INDEX(Table28[#All],SMALL(IF(Table28[#All]=العملاء!$A$1,ROW(Table28[#All]),""),ROW('العملاء الموردين'!$B129)),MATCH(B$3,Table28[#Headers],0))," ")) ->  | C132: =IF($A$1="","", IFERROR(INDEX(Table28[#All],SMALL(IF(Table28[#All]=العملاء!$A$1,ROW(Table28[#All]),""),ROW('العملاء الموردين'!$B129)),MATCH(C$3,Table28[#Headers],0))," ")) ->  | D132: =IF($A$1="","", IFERROR(INDEX(Table28[#All],SMALL(IF(Table28[#All]=العملاء!$A$1,ROW(Table28[#All]),""),ROW('العملاء الموردين'!$B129)),MATCH(D$3,Table28[#Headers],0))," ")) ->  | E132: =IF($A$1="","", IFERROR(INDEX(Table28[#All],SMALL(IF(Table28[#All]=العملاء!$A$1,ROW(Table28[#All]),""),ROW('العملاء الموردين'!$B129)),MATCH(E$3,Table28[#Headers],0))," ")) ->  | F132: =IF($A$1="","", IFERROR(INDEX(Table28[#All],SMALL(IF(Table28[#All]=العملاء!$A$1,ROW(Table28[#All]),""),ROW('العملاء الموردين'!$B129)),MATCH(F$3,Table28[#Headers],0))," ")) ->  | G132: =IF($A$1="","", IFERROR(INDEX(Table28[#All],SMALL(IF(Table28[#All]=العملاء!$A$1,ROW(Table28[#All]),""),ROW('العملاء الموردين'!$B129)),MATCH(G$3,Table28[#Headers],0))," ")) ->  | H132: =SUMIFS(Table5[الإجمالي النهائي],Table5[نوع الفاتورة],$H$2,Table5[اسم العميل],Table36[[#This Row],[الإسم]]) -> 0 | I132: =SUMIFS(Table5[الإجمالي النهائي],Table5[نوع الفاتورة],$I$2,Table5[اسم العميل],Table36[[#This Row],[الإسم]])+SUMIFS(table30[المبلغ],table30[عميل / مورد],Table36[[#This Row],[الإسم]],table30[نوع السند],الصندوق!$L$1) -> 0 | J132: =Table36[[#This Row],[الأرصدة المدينة]]-Table36[[#This Row],[الأرصدة الدائنة]] -> 0
A133: 130 | B133: =IF($A$1="","", IFERROR(INDEX(Table28[#All],SMALL(IF(Table28[#All]=العملاء!$A$1,ROW(Table28[#All]),""),ROW('العملاء الموردين'!$B130)),MATCH(B$3,Table28[#Headers],0))," ")) ->  | C133: =IF($A$1="","", IFERROR(INDEX(Table28[#All],SMALL(IF(Table28[#All]=العملاء!$A$1,ROW(Table28[#All]),""),ROW('العملاء الموردين'!$B130)),MATCH(C$3,Table28[#Headers],0))," ")) ->  | D133: =IF($A$1="","", IFERROR(INDEX(Table28[#All],SMALL(IF(Table28[#All]=العملاء!$A$1,ROW(Table28[#All]),""),ROW('العملاء الموردين'!$B130)),MATCH(D$3,Table28[#Headers],0))," ")) ->  | E133: =IF($A$1="","", IFERROR(INDEX(Table28[#All],SMALL(IF(Table28[#All]=العملاء!$A$1,ROW(Table28[#All]),""),ROW('العملاء الموردين'!$B130)),MATCH(E$3,Table28[#Headers],0))," ")) ->  | F133: =IF($A$1="","", IFERROR(INDEX(Table28[#All],SMALL(IF(Table28[#All]=العملاء!$A$1,ROW(Table28[#All]),""),ROW('العملاء الموردين'!$B130)),MATCH(F$3,Table28[#Headers],0))," ")) ->  | G133: =IF($A$1="","", IFERROR(INDEX(Table28[#All],SMALL(IF(Table28[#All]=العملاء!$A$1,ROW(Table28[#All]),""),ROW('العملاء الموردين'!$B130)),MATCH(G$3,Table28[#Headers],0))," ")) ->  | H133: =SUMIFS(Table5[الإجمالي النهائي],Table5[نوع الفاتورة],$H$2,Table5[اسم العميل],Table36[[#This Row],[الإسم]]) -> 0 | I133: =SUMIFS(Table5[الإجمالي النهائي],Table5[نوع الفاتورة],$I$2,Table5[اسم العميل],Table36[[#This Row],[الإسم]])+SUMIFS(table30[المبلغ],table30[عميل / مورد],Table36[[#This Row],[الإسم]],table30[نوع السند],الصندوق!$L$1) -> 0 | J133: =Table36[[#This Row],[الأرصدة المدينة]]-Table36[[#This Row],[الأرصدة الدائنة]] -> 0
A134: 131 | B134: =IF($A$1="","", IFERROR(INDEX(Table28[#All],SMALL(IF(Table28[#All]=العملاء!$A$1,ROW(Table28[#All]),""),ROW('العملاء الموردين'!$B131)),MATCH(B$3,Table28[#Headers],0))," ")) ->  | C134: =IF($A$1="","", IFERROR(INDEX(Table28[#All],SMALL(IF(Table28[#All]=العملاء!$A$1,ROW(Table28[#All]),""),ROW('العملاء الموردين'!$B131)),MATCH(C$3,Table28[#Headers],0))," ")) ->  | D134: =IF($A$1="","", IFERROR(INDEX(Table28[#All],SMALL(IF(Table28[#All]=العملاء!$A$1,ROW(Table28[#All]),""),ROW('العملاء الموردين'!$B131)),MATCH(D$3,Table28[#Headers],0))," ")) ->  | E134: =IF($A$1="","", IFERROR(INDEX(Table28[#All],SMALL(IF(Table28[#All]=العملاء!$A$1,ROW(Table28[#All]),""),ROW('العملاء الموردين'!$B131)),MATCH(E$3,Table28[#Headers],0))," ")) ->  | F134: =IF($A$1="","", IFERROR(INDEX(Table28[#All],SMALL(IF(Table28[#All]=العملاء!$A$1,ROW(Table28[#All]),""),ROW('العملاء الموردين'!$B131)),MATCH(F$3,Table28[#Headers],0))," ")) ->  | G134: =IF($A$1="","", IFERROR(INDEX(Table28[#All],SMALL(IF(Table28[#All]=العملاء!$A$1,ROW(Table28[#All]),""),ROW('العملاء الموردين'!$B131)),MATCH(G$3,Table28[#Headers],0))," ")) ->  | H134: =SUMIFS(Table5[الإجمالي النهائي],Table5[نوع الفاتورة],$H$2,Table5[اسم العميل],Table36[[#This Row],[الإسم]]) -> 0 | I134: =SUMIFS(Table5[الإجمالي النهائي],Table5[نوع الفاتورة],$I$2,Table5[اسم العميل],Table36[[#This Row],[الإسم]])+SUMIFS(table30[المبلغ],table30[عميل / مورد],Table36[[#This Row],[الإسم]],table30[نوع السند],الصندوق!$L$1) -> 0 | J134: =Table36[[#This Row],[الأرصدة المدينة]]-Table36[[#This Row],[الأرصدة الدائنة]] -> 0
A135: 132 | B135: =IF($A$1="","", IFERROR(INDEX(Table28[#All],SMALL(IF(Table28[#All]=العملاء!$A$1,ROW(Table28[#All]),""),ROW('العملاء الموردين'!$B132)),MATCH(B$3,Table28[#Headers],0))," ")) ->  | C135: =IF($A$1="","", IFERROR(INDEX(Table28[#All],SMALL(IF(Table28[#All]=العملاء!$A$1,ROW(Table28[#All]),""),ROW('العملاء الموردين'!$B132)),MATCH(C$3,Table28[#Headers],0))," ")) ->  | D135: =IF($A$1="","", IFERROR(INDEX(Table28[#All],SMALL(IF(Table28[#All]=العملاء!$A$1,ROW(Table28[#All]),""),ROW('العملاء الموردين'!$B132)),MATCH(D$3,Table28[#Headers],0))," ")) ->  | E135: =IF($A$1="","", IFERROR(INDEX(Table28[#All],SMALL(IF(Table28[#All]=العملاء!$A$1,ROW(Table28[#All]),""),ROW('العملاء الموردين'!$B132)),MATCH(E$3,Table28[#Headers],0))," ")) ->  | F135: =IF($A$1="","", IFERROR(INDEX(Table28[#All],SMALL(IF(Table28[#All]=العملاء!$A$1,ROW(Table28[#All]),""),ROW('العملاء الموردين'!$B132)),MATCH(F$3,Table28[#Headers],0))," ")) ->  | G135: =IF($A$1="","", IFERROR(INDEX(Table28[#All],SMALL(IF(Table28[#All]=العملاء!$A$1,ROW(Table28[#All]),""),ROW('العملاء الموردين'!$B132)),MATCH(G$3,Table28[#Headers],0))," ")) ->  | H135: =SUMIFS(Table5[الإجمالي النهائي],Table5[نوع الفاتورة],$H$2,Table5[اسم العميل],Table36[[#This Row],[الإسم]]) -> 0 | I135: =SUMIFS(Table5[الإجمالي النهائي],Table5[نوع الفاتورة],$I$2,Table5[اسم العميل],Table36[[#This Row],[الإسم]])+SUMIFS(table30[المبلغ],table30[عميل / مورد],Table36[[#This Row],[الإسم]],table30[نوع السند],الصندوق!$L$1) -> 0 | J135: =Table36[[#This Row],[الأرصدة المدينة]]-Table36[[#This Row],[الأرصدة الدائنة]] -> 0
A136: 133 | B136: =IF($A$1="","", IFERROR(INDEX(Table28[#All],SMALL(IF(Table28[#All]=العملاء!$A$1,ROW(Table28[#All]),""),ROW('العملاء الموردين'!$B133)),MATCH(B$3,Table28[#Headers],0))," ")) ->  | C136: =IF($A$1="","", IFERROR(INDEX(Table28[#All],SMALL(IF(Table28[#All]=العملاء!$A$1,ROW(Table28[#All]),""),ROW('العملاء الموردين'!$B133)),MATCH(C$3,Table28[#Headers],0))," ")) ->  | D136: =IF($A$1="","", IFERROR(INDEX(Table28[#All],SMALL(IF(Table28[#All]=العملاء!$A$1,ROW(Table28[#All]),""),ROW('العملاء الموردين'!$B133)),MATCH(D$3,Table28[#Headers],0))," ")) ->  | E136: =IF($A$1="","", IFERROR(INDEX(Table28[#All],SMALL(IF(Table28[#All]=العملاء!$A$1,ROW(Table28[#All]),""),ROW('العملاء الموردين'!$B133)),MATCH(E$3,Table28[#Headers],0))," ")) ->  | F136: =IF($A$1="","", IFERROR(INDEX(Table28[#All],SMALL(IF(Table28[#All]=العملاء!$A$1,ROW(Table28[#All]),""),ROW('العملاء الموردين'!$B133)),MATCH(F$3,Table28[#Headers],0))," ")) ->  | G136: =IF($A$1="","", IFERROR(INDEX(Table28[#All],SMALL(IF(Table28[#All]=العملاء!$A$1,ROW(Table28[#All]),""),ROW('العملاء الموردين'!$B133)),MATCH(G$3,Table28[#Headers],0))," ")) ->  | H136: =SUMIFS(Table5[الإجمالي النهائي],Table5[نوع الفاتورة],$H$2,Table5[اسم العميل],Table36[[#This Row],[الإسم]]) -> 0 | I136: =SUMIFS(Table5[الإجمالي النهائي],Table5[نوع الفاتورة],$I$2,Table5[اسم العميل],Table36[[#This Row],[الإسم]])+SUMIFS(table30[المبلغ],table30[عميل / مورد],Table36[[#This Row],[الإسم]],table30[نوع السند],الصندوق!$L$1) -> 0 | J136: =Table36[[#This Row],[الأرصدة المدينة]]-Table36[[#This Row],[الأرصدة الدائنة]] -> 0
A137: 134 | B137: =IF($A$1="","", IFERROR(INDEX(Table28[#All],SMALL(IF(Table28[#All]=العملاء!$A$1,ROW(Table28[#All]),""),ROW('العملاء الموردين'!$B134)),MATCH(B$3,Table28[#Headers],0))," ")) ->  | C137: =IF($A$1="","", IFERROR(INDEX(Table28[#All],SMALL(IF(Table28[#All]=العملاء!$A$1,ROW(Table28[#All]),""),ROW('العملاء الموردين'!$B134)),MATCH(C$3,Table28[#Headers],0))," ")) ->  | D137: =IF($A$1="","", IFERROR(INDEX(Table28[#All],SMALL(IF(Table28[#All]=العملاء!$A$1,ROW(Table28[#All]),""),ROW('العملاء الموردين'!$B134)),MATCH(D$3,Table28[#Headers],0))," ")) ->  | E137: =IF($A$1="","", IFERROR(INDEX(Table28[#All],SMALL(IF(Table28[#All]=العملاء!$A$1,ROW(Table28[#All]),""),ROW('العملاء الموردين'!$B134)),MATCH(E$3,Table28[#Headers],0))," ")) ->  | F137: =IF($A$1="","", IFERROR(INDEX(Table28[#All],SMALL(IF(Table28[#All]=العملاء!$A$1,ROW(Table28[#All]),""),ROW('العملاء الموردين'!$B134)),MATCH(F$3,Table28[#Headers],0))," ")) ->  | G137: =IF($A$1="","", IFERROR(INDEX(Table28[#All],SMALL(IF(Table28[#All]=العملاء!$A$1,ROW(Table28[#All]),""),ROW('العملاء الموردين'!$B134)),MATCH(G$3,Table28[#Headers],0))," ")) ->  | H137: =SUMIFS(Table5[الإجمالي النهائي],Table5[نوع الفاتورة],$H$2,Table5[اسم العميل],Table36[[#This Row],[الإسم]]) -> 0 | I137: =SUMIFS(Table5[الإجمالي النهائي],Table5[نوع الفاتورة],$I$2,Table5[اسم العميل],Table36[[#This Row],[الإسم]])+SUMIFS(table30[المبلغ],table30[عميل / مورد],Table36[[#This Row],[الإسم]],table30[نوع السند],الصندوق!$L$1) -> 0 | J137: =Table36[[#This Row],[الأرصدة المدينة]]-Table36[[#This Row],[الأرصدة الدائنة]] -> 0
A138: 135 | B138: =IF($A$1="","", IFERROR(INDEX(Table28[#All],SMALL(IF(Table28[#All]=العملاء!$A$1,ROW(Table28[#All]),""),ROW('العملاء الموردين'!$B135)),MATCH(B$3,Table28[#Headers],0))," ")) ->  | C138: =IF($A$1="","", IFERROR(INDEX(Table28[#All],SMALL(IF(Table28[#All]=العملاء!$A$1,ROW(Table28[#All]),""),ROW('العملاء الموردين'!$B135)),MATCH(C$3,Table28[#Headers],0))," ")) ->  | D138: =IF($A$1="","", IFERROR(INDEX(Table28[#All],SMALL(IF(Table28[#All]=العملاء!$A$1,ROW(Table28[#All]),""),ROW('العملاء الموردين'!$B135)),MATCH(D$3,Table28[#Headers],0))," ")) ->  | E138: =IF($A$1="","", IFERROR(INDEX(Table28[#All],SMALL(IF(Table28[#All]=العملاء!$A$1,ROW(Table28[#All]),""),ROW('العملاء الموردين'!$B135)),MATCH(E$3,Table28[#Headers],0))," ")) ->  | F138: =IF($A$1="","", IFERROR(INDEX(Table28[#All],SMALL(IF(Table28[#All]=العملاء!$A$1,ROW(Table28[#All]),""),ROW('العملاء الموردين'!$B135)),MATCH(F$3,Table28[#Headers],0))," ")) ->  | G138: =IF($A$1="","", IFERROR(INDEX(Table28[#All],SMALL(IF(Table28[#All]=العملاء!$A$1,ROW(Table28[#All]),""),ROW('العملاء الموردين'!$B135)),MATCH(G$3,Table28[#Headers],0))," ")) ->  | H138: =SUMIFS(Table5[الإجمالي النهائي],Table5[نوع الفاتورة],$H$2,Table5[اسم العميل],Table36[[#This Row],[الإسم]]) -> 0 | I138: =SUMIFS(Table5[الإجمالي النهائي],Table5[نوع الفاتورة],$I$2,Table5[اسم العميل],Table36[[#This Row],[الإسم]])+SUMIFS(table30[المبلغ],table30[عميل / مورد],Table36[[#This Row],[الإسم]],table30[نوع السند],الصندوق!$L$1) -> 0 | J138: =Table36[[#This Row],[الأرصدة المدينة]]-Table36[[#This Row],[الأرصدة الدائنة]] -> 0
A139: 136 | B139: =IF($A$1="","", IFERROR(INDEX(Table28[#All],SMALL(IF(Table28[#All]=العملاء!$A$1,ROW(Table28[#All]),""),ROW('العملاء الموردين'!$B136)),MATCH(B$3,Table28[#Headers],0))," ")) ->  | C139: =IF($A$1="","", IFERROR(INDEX(Table28[#All],SMALL(IF(Table28[#All]=العملاء!$A$1,ROW(Table28[#All]),""),ROW('العملاء الموردين'!$B136)),MATCH(C$3,Table28[#Headers],0))," ")) ->  | D139: =IF($A$1="","", IFERROR(INDEX(Table28[#All],SMALL(IF(Table28[#All]=العملاء!$A$1,ROW(Table28[#All]),""),ROW('العملاء الموردين'!$B136)),MATCH(D$3,Table28[#Headers],0))," ")) ->  | E139: =IF($A$1="","", IFERROR(INDEX(Table28[#All],SMALL(IF(Table28[#All]=العملاء!$A$1,ROW(Table28[#All]),""),ROW('العملاء الموردين'!$B136)),MATCH(E$3,Table28[#Headers],0))," ")) ->  | F139: =IF($A$1="","", IFERROR(INDEX(Table28[#All],SMALL(IF(Table28[#All]=العملاء!$A$1,ROW(Table28[#All]),""),ROW('العملاء الموردين'!$B136)),MATCH(F$3,Table28[#Headers],0))," ")) ->  | G139: =IF($A$1="","", IFERROR(INDEX(Table28[#All],SMALL(IF(Table28[#All]=العملاء!$A$1,ROW(Table28[#All]),""),ROW('العملاء الموردين'!$B136)),MATCH(G$3,Table28[#Headers],0))," ")) ->  | H139: =SUMIFS(Table5[الإجمالي النهائي],Table5[نوع الفاتورة],$H$2,Table5[اسم العميل],Table36[[#This Row],[الإسم]]) -> 0 | I139: =SUMIFS(Table5[الإجمالي النهائي],Table5[نوع الفاتورة],$I$2,Table5[اسم العميل],Table36[[#This Row],[الإسم]])+SUMIFS(table30[المبلغ],table30[عميل / مورد],Table36[[#This Row],[الإسم]],table30[نوع السند],الصندوق!$L$1) -> 0 | J139: =Table36[[#This Row],[الأرصدة المدينة]]-Table36[[#This Row],[الأرصدة الدائنة]] -> 0
A140: 137 | B140: =IF($A$1="","", IFERROR(INDEX(Table28[#All],SMALL(IF(Table28[#All]=العملاء!$A$1,ROW(Table28[#All]),""),ROW('العملاء الموردين'!$B137)),MATCH(B$3,Table28[#Headers],0))," ")) ->  | C140: =IF($A$1="","", IFERROR(INDEX(Table28[#All],SMALL(IF(Table28[#All]=العملاء!$A$1,ROW(Table28[#All]),""),ROW('العملاء الموردين'!$B137)),MATCH(C$3,Table28[#Headers],0))," ")) ->  | D140: =IF($A$1="","", IFERROR(INDEX(Table28[#All],SMALL(IF(Table28[#All]=العملاء!$A$1,ROW(Table28[#All]),""),ROW('العملاء الموردين'!$B137)),MATCH(D$3,Table28[#Headers],0))," ")) ->  | E140: =IF($A$1="","", IFERROR(INDEX(Table28[#All],SMALL(IF(Table28[#All]=العملاء!$A$1,ROW(Table28[#All]),""),ROW('العملاء الموردين'!$B137)),MATCH(E$3,Table28[#Headers],0))," ")) ->  | F140: =IF($A$1="","", IFERROR(INDEX(Table28[#All],SMALL(IF(Table28[#All]=العملاء!$A$1,ROW(Table28[#All]),""),ROW('العملاء الموردين'!$B137)),MATCH(F$3,Table28[#Headers],0))," ")) ->  | G140: =IF($A$1="","", IFERROR(INDEX(Table28[#All],SMALL(IF(Table28[#All]=العملاء!$A$1,ROW(Table28[#All]),""),ROW('العملاء الموردين'!$B137)),MATCH(G$3,Table28[#Headers],0))," ")) ->  | H140: =SUMIFS(Table5[الإجمالي النهائي],Table5[نوع الفاتورة],$H$2,Table5[اسم العميل],Table36[[#This Row],[الإسم]]) -> 0 | I140: =SUMIFS(Table5[الإجمالي النهائي],Table5[نوع الفاتورة],$I$2,Table5[اسم العميل],Table36[[#This Row],[الإسم]])+SUMIFS(table30[المبلغ],table30[عميل / مورد],Table36[[#This Row],[الإسم]],table30[نوع السند],الصندوق!$L$1) -> 0 | J140: =Table36[[#This Row],[الأرصدة المدينة]]-Table36[[#This Row],[الأرصدة الدائنة]] -> 0
A141: 138 | B141: =IF($A$1="","", IFERROR(INDEX(Table28[#All],SMALL(IF(Table28[#All]=العملاء!$A$1,ROW(Table28[#All]),""),ROW('العملاء الموردين'!$B138)),MATCH(B$3,Table28[#Headers],0))," ")) ->  | C141: =IF($A$1="","", IFERROR(INDEX(Table28[#All],SMALL(IF(Table28[#All]=العملاء!$A$1,ROW(Table28[#All]),""),ROW('العملاء الموردين'!$B138)),MATCH(C$3,Table28[#Headers],0))," ")) ->  | D141: =IF($A$1="","", IFERROR(INDEX(Table28[#All],SMALL(IF(Table28[#All]=العملاء!$A$1,ROW(Table28[#All]),""),ROW('العملاء الموردين'!$B138)),MATCH(D$3,Table28[#Headers],0))," ")) ->  | E141: =IF($A$1="","", IFERROR(INDEX(Table28[#All],SMALL(IF(Table28[#All]=العملاء!$A$1,ROW(Table28[#All]),""),ROW('العملاء الموردين'!$B138)),MATCH(E$3,Table28[#Headers],0))," ")) ->  | F141: =IF($A$1="","", IFERROR(INDEX(Table28[#All],SMALL(IF(Table28[#All]=العملاء!$A$1,ROW(Table28[#All]),""),ROW('العملاء الموردين'!$B138)),MATCH(F$3,Table28[#Headers],0))," ")) ->  | G141: =IF($A$1="","", IFERROR(INDEX(Table28[#All],SMALL(IF(Table28[#All]=العملاء!$A$1,ROW(Table28[#All]),""),ROW('العملاء الموردين'!$B138)),MATCH(G$3,Table28[#Headers],0))," ")) ->  | H141: =SUMIFS(Table5[الإجمالي النهائي],Table5[نوع الفاتورة],$H$2,Table5[اسم العميل],Table36[[#This Row],[الإسم]]) -> 0 | I141: =SUMIFS(Table5[الإجمالي النهائي],Table5[نوع الفاتورة],$I$2,Table5[اسم العميل],Table36[[#This Row],[الإسم]])+SUMIFS(table30[المبلغ],table30[عميل / مورد],Table36[[#This Row],[الإسم]],table30[نوع السند],الصندوق!$L$1) -> 0 | J141: =Table36[[#This Row],[الأرصدة المدينة]]-Table36[[#This Row],[الأرصدة الدائنة]] -> 0
A142: 139 | B142: =IF($A$1="","", IFERROR(INDEX(Table28[#All],SMALL(IF(Table28[#All]=العملاء!$A$1,ROW(Table28[#All]),""),ROW('العملاء الموردين'!$B139)),MATCH(B$3,Table28[#Headers],0))," ")) ->  | C142: =IF($A$1="","", IFERROR(INDEX(Table28[#All],SMALL(IF(Table28[#All]=العملاء!$A$1,ROW(Table28[#All]),""),ROW('العملاء الموردين'!$B139)),MATCH(C$3,Table28[#Headers],0))," ")) ->  | D142: =IF($A$1="","", IFERROR(INDEX(Table28[#All],SMALL(IF(Table28[#All]=العملاء!$A$1,ROW(Table28[#All]),""),ROW('العملاء الموردين'!$B139)),MATCH(D$3,Table28[#Headers],0))," ")) ->  | E142: =IF($A$1="","", IFERROR(INDEX(Table28[#All],SMALL(IF(Table28[#All]=العملاء!$A$1,ROW(Table28[#All]),""),ROW('العملاء الموردين'!$B139)),MATCH(E$3,Table28[#Headers],0))," ")) ->  | F142: =IF($A$1="","", IFERROR(INDEX(Table28[#All],SMALL(IF(Table28[#All]=العملاء!$A$1,ROW(Table28[#All]),""),ROW('العملاء الموردين'!$B139)),MATCH(F$3,Table28[#Headers],0))," ")) ->  | G142: =IF($A$1="","", IFERROR(INDEX(Table28[#All],SMALL(IF(Table28[#All]=العملاء!$A$1,ROW(Table28[#All]),""),ROW('العملاء الموردين'!$B139)),MATCH(G$3,Table28[#Headers],0))," ")) ->  | H142: =SUMIFS(Table5[الإجمالي النهائي],Table5[نوع الفاتورة],$H$2,Table5[اسم العميل],Table36[[#This Row],[الإسم]]) -> 0 | I142: =SUMIFS(Table5[الإجمالي النهائي],Table5[نوع الفاتورة],$I$2,Table5[اسم العميل],Table36[[#This Row],[الإسم]])+SUMIFS(table30[المبلغ],table30[عميل / مورد],Table36[[#This Row],[الإسم]],table30[نوع السند],الصندوق!$L$1) -> 0 | J142: =Table36[[#This Row],[الأرصدة المدينة]]-Table36[[#This Row],[الأرصدة الدائنة]] -> 0
A143: 140 | B143: =IF($A$1="","", IFERROR(INDEX(Table28[#All],SMALL(IF(Table28[#All]=العملاء!$A$1,ROW(Table28[#All]),""),ROW('العملاء الموردين'!$B140)),MATCH(B$3,Table28[#Headers],0))," ")) ->  | C143: =IF($A$1="","", IFERROR(INDEX(Table28[#All],SMALL(IF(Table28[#All]=العملاء!$A$1,ROW(Table28[#All]),""),ROW('العملاء الموردين'!$B140)),MATCH(C$3,Table28[#Headers],0))," ")) ->  | D143: =IF($A$1="","", IFERROR(INDEX(Table28[#All],SMALL(IF(Table28[#All]=العملاء!$A$1,ROW(Table28[#All]),""),ROW('العملاء الموردين'!$B140)),MATCH(D$3,Table28[#Headers],0))," ")) ->  | E143: =IF($A$1="","", IFERROR(INDEX(Table28[#All],SMALL(IF(Table28[#All]=العملاء!$A$1,ROW(Table28[#All]),""),ROW('العملاء الموردين'!$B140)),MATCH(E$3,Table28[#Headers],0))," ")) ->  | F143: =IF($A$1="","", IFERROR(INDEX(Table28[#All],SMALL(IF(Table28[#All]=العملاء!$A$1,ROW(Table28[#All]),""),ROW('العملاء الموردين'!$B140)),MATCH(F$3,Table28[#Headers],0))," ")) ->  | G143: =IF($A$1="","", IFERROR(INDEX(Table28[#All],SMALL(IF(Table28[#All]=العملاء!$A$1,ROW(Table28[#All]),""),ROW('العملاء الموردين'!$B140)),MATCH(G$3,Table28[#Headers],0))," ")) ->  | H143: =SUMIFS(Table5[الإجمالي النهائي],Table5[نوع الفاتورة],$H$2,Table5[اسم العميل],Table36[[#This Row],[الإسم]]) -> 0 | I143: =SUMIFS(Table5[الإجمالي النهائي],Table5[نوع الفاتورة],$I$2,Table5[اسم العميل],Table36[[#This Row],[الإسم]])+SUMIFS(table30[المبلغ],table30[عميل / مورد],Table36[[#This Row],[الإسم]],table30[نوع السند],الصندوق!$L$1) -> 0 | J143: =Table36[[#This Row],[الأرصدة المدينة]]-Table36[[#This Row],[الأرصدة الدائنة]] -> 0
A144: 141 | B144: =IF($A$1="","", IFERROR(INDEX(Table28[#All],SMALL(IF(Table28[#All]=العملاء!$A$1,ROW(Table28[#All]),""),ROW('العملاء الموردين'!$B141)),MATCH(B$3,Table28[#Headers],0))," ")) ->  | C144: =IF($A$1="","", IFERROR(INDEX(Table28[#All],SMALL(IF(Table28[#All]=العملاء!$A$1,ROW(Table28[#All]),""),ROW('العملاء الموردين'!$B141)),MATCH(C$3,Table28[#Headers],0))," ")) ->  | D144: =IF($A$1="","", IFERROR(INDEX(Table28[#All],SMALL(IF(Table28[#All]=العملاء!$A$1,ROW(Table28[#All]),""),ROW('العملاء الموردين'!$B141)),MATCH(D$3,Table28[#Headers],0))," ")) ->  | E144: =IF($A$1="","", IFERROR(INDEX(Table28[#All],SMALL(IF(Table28[#All]=العملاء!$A$1,ROW(Table28[#All]),""),ROW('العملاء الموردين'!$B141)),MATCH(E$3,Table28[#Headers],0))," ")) ->  | F144: =IF($A$1="","", IFERROR(INDEX(Table28[#All],SMALL(IF(Table28[#All]=العملاء!$A$1,ROW(Table28[#All]),""),ROW('العملاء الموردين'!$B141)),MATCH(F$3,Table28[#Headers],0))," ")) ->  | G144: =IF($A$1="","", IFERROR(INDEX(Table28[#All],SMALL(IF(Table28[#All]=العملاء!$A$1,ROW(Table28[#All]),""),ROW('العملاء الموردين'!$B141)),MATCH(G$3,Table28[#Headers],0))," ")) ->  | H144: =SUMIFS(Table5[الإجمالي النهائي],Table5[نوع الفاتورة],$H$2,Table5[اسم العميل],Table36[[#This Row],[الإسم]]) -> 0 | I144: =SUMIFS(Table5[الإجمالي النهائي],Table5[نوع الفاتورة],$I$2,Table5[اسم العميل],Table36[[#This Row],[الإسم]])+SUMIFS(table30[المبلغ],table30[عميل / مورد],Table36[[#This Row],[الإسم]],table30[نوع السند],الصندوق!$L$1) -> 0 | J144: =Table36[[#This Row],[الأرصدة المدينة]]-Table36[[#This Row],[الأرصدة الدائنة]] -> 0
A145: 142 | B145: =IF($A$1="","", IFERROR(INDEX(Table28[#All],SMALL(IF(Table28[#All]=العملاء!$A$1,ROW(Table28[#All]),""),ROW('العملاء الموردين'!$B142)),MATCH(B$3,Table28[#Headers],0))," ")) ->  | C145: =IF($A$1="","", IFERROR(INDEX(Table28[#All],SMALL(IF(Table28[#All]=العملاء!$A$1,ROW(Table28[#All]),""),ROW('العملاء الموردين'!$B142)),MATCH(C$3,Table28[#Headers],0))," ")) ->  | D145: =IF($A$1="","", IFERROR(INDEX(Table28[#All],SMALL(IF(Table28[#All]=العملاء!$A$1,ROW(Table28[#All]),""),ROW('العملاء الموردين'!$B142)),MATCH(D$3,Table28[#Headers],0))," ")) ->  | E145: =IF($A$1="","", IFERROR(INDEX(Table28[#All],SMALL(IF(Table28[#All]=العملاء!$A$1,ROW(Table28[#All]),""),ROW('العملاء الموردين'!$B142)),MATCH(E$3,Table28[#Headers],0))," ")) ->  | F145: =IF($A$1="","", IFERROR(INDEX(Table28[#All],SMALL(IF(Table28[#All]=العملاء!$A$1,ROW(Table28[#All]),""),ROW('العملاء الموردين'!$B142)),MATCH(F$3,Table28[#Headers],0))," ")) ->  | G145: =IF($A$1="","", IFERROR(INDEX(Table28[#All],SMALL(IF(Table28[#All]=العملاء!$A$1,ROW(Table28[#All]),""),ROW('العملاء الموردين'!$B142)),MATCH(G$3,Table28[#Headers],0))," ")) ->  | H145: =SUMIFS(Table5[الإجمالي النهائي],Table5[نوع الفاتورة],$H$2,Table5[اسم العميل],Table36[[#This Row],[الإسم]]) -> 0 | I145: =SUMIFS(Table5[الإجمالي النهائي],Table5[نوع الفاتورة],$I$2,Table5[اسم العميل],Table36[[#This Row],[الإسم]])+SUMIFS(table30[المبلغ],table30[عميل / مورد],Table36[[#This Row],[الإسم]],table30[نوع السند],الصندوق!$L$1) -> 0 | J145: =Table36[[#This Row],[الأرصدة المدينة]]-Table36[[#This Row],[الأرصدة الدائنة]] -> 0
A146: 143 | B146: =IF($A$1="","", IFERROR(INDEX(Table28[#All],SMALL(IF(Table28[#All]=العملاء!$A$1,ROW(Table28[#All]),""),ROW('العملاء الموردين'!$B143)),MATCH(B$3,Table28[#Headers],0))," ")) ->  | C146: =IF($A$1="","", IFERROR(INDEX(Table28[#All],SMALL(IF(Table28[#All]=العملاء!$A$1,ROW(Table28[#All]),""),ROW('العملاء الموردين'!$B143)),MATCH(C$3,Table28[#Headers],0))," ")) ->  | D146: =IF($A$1="","", IFERROR(INDEX(Table28[#All],SMALL(IF(Table28[#All]=العملاء!$A$1,ROW(Table28[#All]),""),ROW('العملاء الموردين'!$B143)),MATCH(D$3,Table28[#Headers],0))," ")) ->  | E146: =IF($A$1="","", IFERROR(INDEX(Table28[#All],SMALL(IF(Table28[#All]=العملاء!$A$1,ROW(Table28[#All]),""),ROW('العملاء الموردين'!$B143)),MATCH(E$3,Table28[#Headers],0))," ")) ->  | F146: =IF($A$1="","", IFERROR(INDEX(Table28[#All],SMALL(IF(Table28[#All]=العملاء!$A$1,ROW(Table28[#All]),""),ROW('العملاء الموردين'!$B143)),MATCH(F$3,Table28[#Headers],0))," ")) ->  | G146: =IF($A$1="","", IFERROR(INDEX(Table28[#All],SMALL(IF(Table28[#All]=العملاء!$A$1,ROW(Table28[#All]),""),ROW('العملاء الموردين'!$B143)),MATCH(G$3,Table28[#Headers],0))," ")) ->  | H146: =SUMIFS(Table5[الإجمالي النهائي],Table5[نوع الفاتورة],$H$2,Table5[اسم العميل],Table36[[#This Row],[الإسم]]) -> 0 | I146: =SUMIFS(Table5[الإجمالي النهائي],Table5[نوع الفاتورة],$I$2,Table5[اسم العميل],Table36[[#This Row],[الإسم]])+SUMIFS(table30[المبلغ],table30[عميل / مورد],Table36[[#This Row],[الإسم]],table30[نوع السند],الصندوق!$L$1) -> 0 | J146: =Table36[[#This Row],[الأرصدة المدينة]]-Table36[[#This Row],[الأرصدة الدائنة]] -> 0
A147: 144 | B147: =IF($A$1="","", IFERROR(INDEX(Table28[#All],SMALL(IF(Table28[#All]=العملاء!$A$1,ROW(Table28[#All]),""),ROW('العملاء الموردين'!$B144)),MATCH(B$3,Table28[#Headers],0))," ")) ->  | C147: =IF($A$1="","", IFERROR(INDEX(Table28[#All],SMALL(IF(Table28[#All]=العملاء!$A$1,ROW(Table28[#All]),""),ROW('العملاء الموردين'!$B144)),MATCH(C$3,Table28[#Headers],0))," ")) ->  | D147: =IF($A$1="","", IFERROR(INDEX(Table28[#All],SMALL(IF(Table28[#All]=العملاء!$A$1,ROW(Table28[#All]),""),ROW('العملاء الموردين'!$B144)),MATCH(D$3,Table28[#Headers],0))," ")) ->  | E147: =IF($A$1="","", IFERROR(INDEX(Table28[#All],SMALL(IF(Table28[#All]=العملاء!$A$1,ROW(Table28[#All]),""),ROW('العملاء الموردين'!$B144)),MATCH(E$3,Table28[#Headers],0))," ")) ->  | F147: =IF($A$1="","", IFERROR(INDEX(Table28[#All],SMALL(IF(Table28[#All]=العملاء!$A$1,ROW(Table28[#All]),""),ROW('العملاء الموردين'!$B144)),MATCH(F$3,Table28[#Headers],0))," ")) ->  | G147: =IF($A$1="","", IFERROR(INDEX(Table28[#All],SMALL(IF(Table28[#All]=العملاء!$A$1,ROW(Table28[#All]),""),ROW('العملاء الموردين'!$B144)),MATCH(G$3,Table28[#Headers],0))," ")) ->  | H147: =SUMIFS(Table5[الإجمالي النهائي],Table5[نوع الفاتورة],$H$2,Table5[اسم العميل],Table36[[#This Row],[الإسم]]) -> 0 | I147: =SUMIFS(Table5[الإجمالي النهائي],Table5[نوع الفاتورة],$I$2,Table5[اسم العميل],Table36[[#This Row],[الإسم]])+SUMIFS(table30[المبلغ],table30[عميل / مورد],Table36[[#This Row],[الإسم]],table30[نوع السند],الصندوق!$L$1) -> 0 | J147: =Table36[[#This Row],[الأرصدة المدينة]]-Table36[[#This Row],[الأرصدة الدائنة]] -> 0
A148: 145 | B148: =IF($A$1="","", IFERROR(INDEX(Table28[#All],SMALL(IF(Table28[#All]=العملاء!$A$1,ROW(Table28[#All]),""),ROW('العملاء الموردين'!$B145)),MATCH(B$3,Table28[#Headers],0))," ")) ->  | C148: =IF($A$1="","", IFERROR(INDEX(Table28[#All],SMALL(IF(Table28[#All]=العملاء!$A$1,ROW(Table28[#All]),""),ROW('العملاء الموردين'!$B145)),MATCH(C$3,Table28[#Headers],0))," ")) ->  | D148: =IF($A$1="","", IFERROR(INDEX(Table28[#All],SMALL(IF(Table28[#All]=العملاء!$A$1,ROW(Table28[#All]),""),ROW('العملاء الموردين'!$B145)),MATCH(D$3,Table28[#Headers],0))," ")) ->  | E148: =IF($A$1="","", IFERROR(INDEX(Table28[#All],SMALL(IF(Table28[#All]=العملاء!$A$1,ROW(Table28[#All]),""),ROW('العملاء الموردين'!$B145)),MATCH(E$3,Table28[#Headers],0))," ")) ->  | F148: =IF($A$1="","", IFERROR(INDEX(Table28[#All],SMALL(IF(Table28[#All]=العملاء!$A$1,ROW(Table28[#All]),""),ROW('العملاء الموردين'!$B145)),MATCH(F$3,Table28[#Headers],0))," ")) ->  | G148: =IF($A$1="","", IFERROR(INDEX(Table28[#All],SMALL(IF(Table28[#All]=العملاء!$A$1,ROW(Table28[#All]),""),ROW('العملاء الموردين'!$B145)),MATCH(G$3,Table28[#Headers],0))," ")) ->  | H148: =SUMIFS(Table5[الإجمالي النهائي],Table5[نوع الفاتورة],$H$2,Table5[اسم العميل],Table36[[#This Row],[الإسم]]) -> 0 | I148: =SUMIFS(Table5[الإجمالي النهائي],Table5[نوع الفاتورة],$I$2,Table5[اسم العميل],Table36[[#This Row],[الإسم]])+SUMIFS(table30[المبلغ],table30[عميل / مورد],Table36[[#This Row],[الإسم]],table30[نوع السند],الصندوق!$L$1) -> 0 | J148: =Table36[[#This Row],[الأرصدة المدينة]]-Table36[[#This Row],[الأرصدة الدائنة]] -> 0
A149: 146 | B149: =IF($A$1="","", IFERROR(INDEX(Table28[#All],SMALL(IF(Table28[#All]=العملاء!$A$1,ROW(Table28[#All]),""),ROW('العملاء الموردين'!$B146)),MATCH(B$3,Table28[#Headers],0))," ")) ->  | C149: =IF($A$1="","", IFERROR(INDEX(Table28[#All],SMALL(IF(Table28[#All]=العملاء!$A$1,ROW(Table28[#All]),""),ROW('العملاء الموردين'!$B146)),MATCH(C$3,Table28[#Headers],0))," ")) ->  | D149: =IF($A$1="","", IFERROR(INDEX(Table28[#All],SMALL(IF(Table28[#All]=العملاء!$A$1,ROW(Table28[#All]),""),ROW('العملاء الموردين'!$B146)),MATCH(D$3,Table28[#Headers],0))," ")) ->  | E149: =IF($A$1="","", IFERROR(INDEX(Table28[#All],SMALL(IF(Table28[#All]=العملاء!$A$1,ROW(Table28[#All]),""),ROW('العملاء الموردين'!$B146)),MATCH(E$3,Table28[#Headers],0))," ")) ->  | F149: =IF($A$1="","", IFERROR(INDEX(Table28[#All],SMALL(IF(Table28[#All]=العملاء!$A$1,ROW(Table28[#All]),""),ROW('العملاء الموردين'!$B146)),MATCH(F$3,Table28[#Headers],0))," ")) ->  | G149: =IF($A$1="","", IFERROR(INDEX(Table28[#All],SMALL(IF(Table28[#All]=العملاء!$A$1,ROW(Table28[#All]),""),ROW('العملاء الموردين'!$B146)),MATCH(G$3,Table28[#Headers],0))," ")) ->  | H149: =SUMIFS(Table5[الإجمالي النهائي],Table5[نوع الفاتورة],$H$2,Table5[اسم العميل],Table36[[#This Row],[الإسم]]) -> 0 | I149: =SUMIFS(Table5[الإجمالي النهائي],Table5[نوع الفاتورة],$I$2,Table5[اسم العميل],Table36[[#This Row],[الإسم]])+SUMIFS(table30[المبلغ],table30[عميل / مورد],Table36[[#This Row],[الإسم]],table30[نوع السند],الصندوق!$L$1) -> 0 | J149: =Table36[[#This Row],[الأرصدة المدينة]]-Table36[[#This Row],[الأرصدة الدائنة]] -> 0
A150: 147 | B150: =IF($A$1="","", IFERROR(INDEX(Table28[#All],SMALL(IF(Table28[#All]=العملاء!$A$1,ROW(Table28[#All]),""),ROW('العملاء الموردين'!$B147)),MATCH(B$3,Table28[#Headers],0))," ")) ->  | C150: =IF($A$1="","", IFERROR(INDEX(Table28[#All],SMALL(IF(Table28[#All]=العملاء!$A$1,ROW(Table28[#All]),""),ROW('العملاء الموردين'!$B147)),MATCH(C$3,Table28[#Headers],0))," ")) ->  | D150: =IF($A$1="","", IFERROR(INDEX(Table28[#All],SMALL(IF(Table28[#All]=العملاء!$A$1,ROW(Table28[#All]),""),ROW('العملاء الموردين'!$B147)),MATCH(D$3,Table28[#Headers],0))," ")) ->  | E150: =IF($A$1="","", IFERROR(INDEX(Table28[#All],SMALL(IF(Table28[#All]=العملاء!$A$1,ROW(Table28[#All]),""),ROW('العملاء الموردين'!$B147)),MATCH(E$3,Table28[#Headers],0))," ")) ->  | F150: =IF($A$1="","", IFERROR(INDEX(Table28[#All],SMALL(IF(Table28[#All]=العملاء!$A$1,ROW(Table28[#All]),""),ROW('العملاء الموردين'!$B147)),MATCH(F$3,Table28[#Headers],0))," ")) ->  | G150: =IF($A$1="","", IFERROR(INDEX(Table28[#All],SMALL(IF(Table28[#All]=العملاء!$A$1,ROW(Table28[#All]),""),ROW('العملاء الموردين'!$B147)),MATCH(G$3,Table28[#Headers],0))," ")) ->  | H150: =SUMIFS(Table5[الإجمالي النهائي],Table5[نوع الفاتورة],$H$2,Table5[اسم العميل],Table36[[#This Row],[الإسم]]) -> 0 | I150: =SUMIFS(Table5[الإجمالي النهائي],Table5[نوع الفاتورة],$I$2,Table5[اسم العميل],Table36[[#This Row],[الإسم]])+SUMIFS(table30[المبلغ],table30[عميل / مورد],Table36[[#This Row],[الإسم]],table30[نوع السند],الصندوق!$L$1) -> 0 | J150: =Table36[[#This Row],[الأرصدة المدينة]]-Table36[[#This Row],[الأرصدة الدائنة]] -> 0
A151: 148 | B151: =IF($A$1="","", IFERROR(INDEX(Table28[#All],SMALL(IF(Table28[#All]=العملاء!$A$1,ROW(Table28[#All]),""),ROW('العملاء الموردين'!$B148)),MATCH(B$3,Table28[#Headers],0))," ")) ->  | C151: =IF($A$1="","", IFERROR(INDEX(Table28[#All],SMALL(IF(Table28[#All]=العملاء!$A$1,ROW(Table28[#All]),""),ROW('العملاء الموردين'!$B148)),MATCH(C$3,Table28[#Headers],0))," ")) ->  | D151: =IF($A$1="","", IFERROR(INDEX(Table28[#All],SMALL(IF(Table28[#All]=العملاء!$A$1,ROW(Table28[#All]),""),ROW('العملاء الموردين'!$B148)),MATCH(D$3,Table28[#Headers],0))," ")) ->  | E151: =IF($A$1="","", IFERROR(INDEX(Table28[#All],SMALL(IF(Table28[#All]=العملاء!$A$1,ROW(Table28[#All]),""),ROW('العملاء الموردين'!$B148)),MATCH(E$3,Table28[#Headers],0))," ")) ->  | F151: =IF($A$1="","", IFERROR(INDEX(Table28[#All],SMALL(IF(Table28[#All]=العملاء!$A$1,ROW(Table28[#All]),""),ROW('العملاء الموردين'!$B148)),MATCH(F$3,Table28[#Headers],0))," ")) ->  | G151: =IF($A$1="","", IFERROR(INDEX(Table28[#All],SMALL(IF(Table28[#All]=العملاء!$A$1,ROW(Table28[#All]),""),ROW('العملاء الموردين'!$B148)),MATCH(G$3,Table28[#Headers],0))," ")) ->  | H151: =SUMIFS(Table5[الإجمالي النهائي],Table5[نوع الفاتورة],$H$2,Table5[اسم العميل],Table36[[#This Row],[الإسم]]) -> 0 | I151: =SUMIFS(Table5[الإجمالي النهائي],Table5[نوع الفاتورة],$I$2,Table5[اسم العميل],Table36[[#This Row],[الإسم]])+SUMIFS(table30[المبلغ],table30[عميل / مورد],Table36[[#This Row],[الإسم]],table30[نوع السند],الصندوق!$L$1) -> 0 | J151: =Table36[[#This Row],[الأرصدة المدينة]]-Table36[[#This Row],[الأرصدة الدائنة]] -> 0
A152: 149 | B152: =IF($A$1="","", IFERROR(INDEX(Table28[#All],SMALL(IF(Table28[#All]=العملاء!$A$1,ROW(Table28[#All]),""),ROW('العملاء الموردين'!$B149)),MATCH(B$3,Table28[#Headers],0))," ")) ->  | C152: =IF($A$1="","", IFERROR(INDEX(Table28[#All],SMALL(IF(Table28[#All]=العملاء!$A$1,ROW(Table28[#All]),""),ROW('العملاء الموردين'!$B149)),MATCH(C$3,Table28[#Headers],0))," ")) ->  | D152: =IF($A$1="","", IFERROR(INDEX(Table28[#All],SMALL(IF(Table28[#All]=العملاء!$A$1,ROW(Table28[#All]),""),ROW('العملاء الموردين'!$B149)),MATCH(D$3,Table28[#Headers],0))," ")) ->  | E152: =IF($A$1="","", IFERROR(INDEX(Table28[#All],SMALL(IF(Table28[#All]=العملاء!$A$1,ROW(Table28[#All]),""),ROW('العملاء الموردين'!$B149)),MATCH(E$3,Table28[#Headers],0))," ")) ->  | F152: =IF($A$1="","", IFERROR(INDEX(Table28[#All],SMALL(IF(Table28[#All]=العملاء!$A$1,ROW(Table28[#All]),""),ROW('العملاء الموردين'!$B149)),MATCH(F$3,Table28[#Headers],0))," ")) ->  | G152: =IF($A$1="","", IFERROR(INDEX(Table28[#All],SMALL(IF(Table28[#All]=العملاء!$A$1,ROW(Table28[#All]),""),ROW('العملاء الموردين'!$B149)),MATCH(G$3,Table28[#Headers],0))," ")) ->  | H152: =SUMIFS(Table5[الإجمالي النهائي],Table5[نوع الفاتورة],$H$2,Table5[اسم العميل],Table36[[#This Row],[الإسم]]) -> 0 | I152: =SUMIFS(Table5[الإجمالي النهائي],Table5[نوع الفاتورة],$I$2,Table5[اسم العميل],Table36[[#This Row],[الإسم]])+SUMIFS(table30[المبلغ],table30[عميل / مورد],Table36[[#This Row],[الإسم]],table30[نوع السند],الصندوق!$L$1) -> 0 | J152: =Table36[[#This Row],[الأرصدة المدينة]]-Table36[[#This Row],[الأرصدة الدائنة]] -> 0
A153: 150 | B153: =IF($A$1="","", IFERROR(INDEX(Table28[#All],SMALL(IF(Table28[#All]=العملاء!$A$1,ROW(Table28[#All]),""),ROW('العملاء الموردين'!$B150)),MATCH(B$3,Table28[#Headers],0))," ")) ->  | C153: =IF($A$1="","", IFERROR(INDEX(Table28[#All],SMALL(IF(Table28[#All]=العملاء!$A$1,ROW(Table28[#All]),""),ROW('العملاء الموردين'!$B150)),MATCH(C$3,Table28[#Headers],0))," ")) ->  | D153: =IF($A$1="","", IFERROR(INDEX(Table28[#All],SMALL(IF(Table28[#All]=العملاء!$A$1,ROW(Table28[#All]),""),ROW('العملاء الموردين'!$B150)),MATCH(D$3,Table28[#Headers],0))," ")) ->  | E153: =IF($A$1="","", IFERROR(INDEX(Table28[#All],SMALL(IF(Table28[#All]=العملاء!$A$1,ROW(Table28[#All]),""),ROW('العملاء الموردين'!$B150)),MATCH(E$3,Table28[#Headers],0))," ")) ->  | F153: =IF($A$1="","", IFERROR(INDEX(Table28[#All],SMALL(IF(Table28[#All]=العملاء!$A$1,ROW(Table28[#All]),""),ROW('العملاء الموردين'!$B150)),MATCH(F$3,Table28[#Headers],0))," ")) ->  | G153: =IF($A$1="","", IFERROR(INDEX(Table28[#All],SMALL(IF(Table28[#All]=العملاء!$A$1,ROW(Table28[#All]),""),ROW('العملاء الموردين'!$B150)),MATCH(G$3,Table28[#Headers],0))," ")) ->  | H153: =SUMIFS(Table5[الإجمالي النهائي],Table5[نوع الفاتورة],$H$2,Table5[اسم العميل],Table36[[#This Row],[الإسم]]) -> 0 | I153: =SUMIFS(Table5[الإجمالي النهائي],Table5[نوع الفاتورة],$I$2,Table5[اسم العميل],Table36[[#This Row],[الإسم]])+SUMIFS(table30[المبلغ],table30[عميل / مورد],Table36[[#This Row],[الإسم]],table30[نوع السند],الصندوق!$L$1) -> 0 | J153: =Table36[[#This Row],[الأرصدة المدينة]]-Table36[[#This Row],[الأرصدة الدائنة]] -> 0

Sheet كشف عميل
U1: مبيعات | V1: نقدي
B2: أسم العميل | G2: المدفوعات | J2: اجمالي المبيعات | L2: =SUMIF(Table14[نوع الفاتورة],$U$1,Table14[الإجمالي النهائي]) -> 22600 | O2: عدد الفواتير | Q2: =COUNT(Table14[رقم الفاتورة]) -> 2 | U2: مرتجع مبيعات | V2: شيك
B4: يس | G4: =SUM(Table15[المبلغ]) -> 4000 | J4: اجمالي المرتجعات | L4: =SUMIF(Table14[نوع الفاتورة],$U$2,Table14[الإجمالي النهائي]) -> 6840 | O4: عدد فواتير المبيعات | Q4: =COUNTIF(Table14[نوع الفاتورة],$U$1) -> 1
B6: الرصيد | G6: حالة الرصيد | J6: اجمالي ضريبة المبيعات | L6: =SUM(Table14[ضريبة المبيعات]) -> 3621.66 | O6: عدد فواتير المرتجعات | Q6: =COUNTIF(Table14[نوع الفاتورة],$U$2) -> 1
B8: =$L$2-$L$4-$G$4 -> 11760 | G8: =IF($L$2>(L4+G4),"مدين","دائن") -> مدين | J8: إجمالي الخصم المسموح للمبيعات | L8: =SUMIF(Table14[نوع الفاتورة],$U$1,Table14[الخصم]) -> 50.66 | O8: التعامل النقدي | Q8: =COUNTIF(Table15[طريقة التحصيل],$V$1) -> 1
J10: اجمالي الخصم على المرتجعات | L10: =SUMIF(Table14[نوع الفاتورة],$U$2,Table14[الخصم]) -> 0 | O10: التعامل البنكي | Q10: =COUNTIF(Table15[طريقة التحصيل],$V$2) -> 1
A12: تفاصيل الاصناف | G12: تفاصيل إجمالي الفواتير | O12: تفاصيل السداد
A13: التاريخ | B13: رقم الفاتورة | C13: اسم الصنف | D13: الكمية | E13: الوحدة | G13: التاريخ | H13: رقم الفاتورة | I13: نوع الفاتورة | J13: إجمالي الفاتورة | K13: ضريبة المبيعات | L13: الخصم | M13: الإجمالي النهائي | O13: التاريخ | P13: المبلغ | Q13: طريقة التحصيل | R13: تاريخ الاستحقاق | S13: البيان
A14: =IF($B$4="","", IFERROR(INDEX(Table4[#All],SMALL(IF(Table4[#All]='كشف عميل'!$B$4,ROW(Table4[#All]),""),ROW('أصناف المبيعات'!$A1)),MATCH(A$13,Table4[#Headers],0))," ")) -> 2021-02-02 | B14: =IF($B$4="","", IFERROR(INDEX(Table4[#All],SMALL(IF(Table4[#All]='كشف عميل'!$B$4,ROW(Table4[#All]),""),ROW('أصناف المبيعات'!$A1)),MATCH(B$13,Table4[#Headers],0))," ")) -> 5 | C14: =IF($B$4="","", IFERROR(INDEX(Table4[#All],SMALL(IF(Table4[#All]='كشف عميل'!$B$4,ROW(Table4[#All]),""),ROW('أصناف المبيعات'!$A1)),MATCH(C$13,Table4[#Headers],0))," ")) -> موز | D14: =IF($B$4="","", IFERROR(INDEX(Table4[#All],SMALL(IF(Table4[#All]='كشف عميل'!$B$4,ROW(Table4[#All]),""),ROW('أصناف المبيعات'!$A1)),MATCH(D$13,Table4[#Headers],0))," ")) -> 89 | E14: =IF($B$4="","", IFERROR(INDEX(Table4[#All],SMALL(IF(Table4[#All]='كشف عميل'!$B$4,ROW(Table4[#All]),""),ROW('أصناف المبيعات'!$A1)),MATCH(E$13,Table4[#Headers],0))," ")) -> كيلو | G14: =IF($B$4="","", IFERROR(INDEX(Table5[#All],SMALL(IF(Table5[#All]='كشف عميل'!$B$4,ROW(Table5[#All]),""),ROW(المبيعات!$A1)),MATCH(G$13,Table5[#Headers],0))," ")) -> 2021-02-02 | H14: =IF($B$4="","", IFERROR(INDEX(Table5[#All],SMALL(IF(Table5[#All]='كشف عميل'!$B$4,ROW(Table5[#All]),""),ROW(المبيعات!$A1)),MATCH(H$13,Table5[#Headers],0))," ")) -> 5 | I14: =IF($B$4="","", IFERROR(INDEX(Table5[#All],SMALL(IF(Table5[#All]='كشف عميل'!$B$4,ROW(Table5[#All]),""),ROW(المبيعات!$A1)),MATCH(I$13,Table5[#Headers],0))," ")) -> مبيعات | J14: =IF($B$4="","", IFERROR(INDEX(Table5[#All],SMALL(IF(Table5[#All]='كشف عميل'!$B$4,ROW(Table5[#All]),""),ROW(المبيعات!$A1)),MATCH(J$13,Table5[#Headers],0))," ")) -> 19869 | K14: =IF($B$4="","", IFERROR(INDEX(Table5[#All],SMALL(IF(Table5[#All]='كشف عميل'!$B$4,ROW(Table5[#All]),""),ROW(المبيعات!$A1)),MATCH(K$13,Table5[#Headers],0))," ")) -> 2781.66 | L14: =IF($B$4="","", IFERROR(INDEX(Table5[#All],SMALL(IF(Table5[#All]='كشف عميل'!$B$4,ROW(Table5[#All]),""),ROW(المبيعات!$A1)),MATCH(L$13,Table5[#Headers],0))," ")) -> 50.66 | M14: =IF($B$4="","", IFERROR(INDEX(Table5[#All],SMALL(IF(Table5[#All]='كشف عميل'!$B$4,ROW(Table5[#All]),""),ROW(المبيعات!$A1)),MATCH(M$13,Table5[#Headers],0))," ")) -> 22600 | O14: =IF($B$4="","", IFERROR(INDEX(table30[#All],SMALL(IF(table30[#All]='كشف عميل'!$B$4,ROW(table30[#All]),""),ROW(الصندوق!$B1)),MATCH(O$13,table30[#Headers],0))," ")) -> 2021-05-05 | P14: =IF($B$4="","", IFERROR(INDEX(table30[#All],SMALL(IF(table30[#All]='كشف عميل'!$B$4,ROW(table30[#All]),""),ROW(الصندوق!$B1)),MATCH(P$13,table30[#Headers],0))," ")) -> 2500 | Q14: =IF($B$4="","", IFERROR(INDEX(table30[#All],SMALL(IF(table30[#All]='كشف عميل'!$B$4,ROW(table30[#All]),""),ROW(الصندوق!$B1)),MATCH(Q$13,table30[#Headers],0))," ")) -> نقدي | R14: =IF($B$4="","", IFERROR(INDEX(table30[#All],SMALL(IF(table30[#All]='كشف عميل'!$B$4,ROW(table30[#All]),""),ROW(الصندوق!$B1)),MATCH(R$13,table30[#Headers],0))," ")) -> 00:00:00 | S14: =IF($B$4="","", IFERROR(INDEX(table30[#All],SMALL(IF(table30[#All]='كشف عميل'!$B$4,ROW(table30[#All]),""),ROW(الصندوق!$B1)),MATCH(S$13,table30[#Headers],0))," ")) -> 0
A15: =IF($B$4="","", IFERROR(INDEX(Table4[#All],SMALL(IF(Table4[#All]='كشف عميل'!$B$4,ROW(Table4[#All]),""),ROW('أصناف المبيعات'!$A2)),MATCH(A$13,Table4[#Headers],0))," ")) -> 2021-02-02 | B15: =IF($B$4="","", IFERROR(INDEX(Table4[#All],SMALL(IF(Table4[#All]='كشف عميل'!$B$4,ROW(Table4[#All]),""),ROW('أصناف المبيعات'!$A2)),MATCH(B$13,Table4[#Headers],0))," ")) -> 5 | C15: =IF($B$4="","", IFERROR(INDEX(Table4[#All],SMALL(IF(Table4[#All]='كشف عميل'!$B$4,ROW(Table4[#All]),""),ROW('أصناف المبيعات'!$A2)),MATCH(C$13,Table4[#Headers],0))," ")) -> لاب توب | D15: =IF($B$4="","", IFERROR(INDEX(Table4[#All],SMALL(IF(Table4[#All]='كشف عميل'!$B$4,ROW(Table4[#All]),""),ROW('أصناف المبيعات'!$A2)),MATCH(D$13,Table4[#Headers],0))," ")) -> 3 | E15: =IF($B$4="","", IFERROR(INDEX(Table4[#All],SMALL(IF(Table4[#All]='كشف عميل'!$B$4,ROW(Table4[#All]),""),ROW('أصناف المبيعات'!$A2)),MATCH(E$13,Table4[#Headers],0))," ")) -> قطعة | G15: =IF($B$4="","", IFERROR(INDEX(Table5[#All],SMALL(IF(Table5[#All]='كشف عميل'!$B$4,ROW(Table5[#All]),""),ROW(المبيعات!$A2)),MATCH(G$13,Table5[#Headers],0))," ")) -> 2021-02-02 | H15: =IF($B$4="","", IFERROR(INDEX(Table5[#All],SMALL(IF(Table5[#All]='كشف عميل'!$B$4,ROW(Table5[#All]),""),ROW(المبيعات!$A2)),MATCH(H$13,Table5[#Headers],0))," ")) -> 6 | I15: =IF($B$4="","", IFERROR(INDEX(Table5[#All],SMALL(IF(Table5[#All]='كشف عميل'!$B$4,ROW(Table5[#All]),""),ROW(المبيعات!$A2)),MATCH(I$13,Table5[#Headers],0))," ")) -> مرتجع مبيعات | J15: =IF($B$4="","", IFERROR(INDEX(Table5[#All],SMALL(IF(Table5[#All]='كشف عميل'!$B$4,ROW(Table5[#All]),""),ROW(المبيعات!$A2)),MATCH(J$13,Table5[#Headers],0))," ")) -> 6000 | K15: =IF($B$4="","", IFERROR(INDEX(Table5[#All],SMALL(IF(Table5[#All]='كشف عميل'!$B$4,ROW(Table5[#All]),""),ROW(المبيعات!$A2)),MATCH(K$13,Table5[#Headers],0))," ")) -> 840 | L15: =IF($B$4="","", IFERROR(INDEX(Table5[#All],SMALL(IF(Table5[#All]='كشف عميل'!$B$4,ROW(Table5[#All]),""),ROW(المبيعات!$A2)),MATCH(L$13,Table5[#Headers],0))," ")) -> 0 | M15: =IF($B$4="","", IFERROR(INDEX(Table5[#All],SMALL(IF(Table5[#All]='كشف عميل'!$B$4,ROW(Table5[#All]),""),ROW(المبيعات!$A2)),MATCH(M$13,Table5[#Headers],0))," ")) -> 6840 | O15: =IF($B$4="","", IFERROR(INDEX(table30[#All],SMALL(IF(table30[#All]='كشف عميل'!$B$4,ROW(table30[#All]),""),ROW(الصندوق!$B2)),MATCH(O$13,table30[#Headers],0))," ")) -> 2021-02-02 | P15: =IF($B$4="","", IFERROR(INDEX(table30[#All],SMALL(IF(table30[#All]='كشف عميل'!$B$4,ROW(table30[#All]),""),ROW(الصندوق!$B2)),MATCH(P$13,table30[#Headers],0))," ")) -> 1500 | Q15: =IF($B$4="","", IFERROR(INDEX(table30[#All],SMALL(IF(table30[#All]='كشف عميل'!$B$4,ROW(table30[#All]),""),ROW(الصندوق!$B2)),MATCH(Q$13,table30[#Headers],0))," ")) -> شيك | R15: =IF($B$4="","", IFERROR(INDEX(table30[#All],SMALL(IF(table30[#All]='كشف عميل'!$B$4,ROW(table30[#All]),""),ROW(الصندوق!$B2)),MATCH(R$13,table30[#Headers],0))," ")) -> 00:00:00 | S15: =IF($B$4="","", IFERROR(INDEX(table30[#All],SMALL(IF(table30[#All]='كشف عميل'!$B$4,ROW(table30[#All]),""),ROW(الصندوق!$B2)),MATCH(S$13,table30[#Headers],0))," ")) -> 0
A16: =IF($B$4="","", IFERROR(INDEX(Table4[#All],SMALL(IF(Table4[#All]='كشف عميل'!$B$4,ROW(Table4[#All]),""),ROW('أصناف المبيعات'!$A3)),MATCH(A$13,Table4[#Headers],0))," ")) -> 2021-02-02 | B16: =IF($B$4="","", IFERROR(INDEX(Table4[#All],SMALL(IF(Table4[#All]='كشف عميل'!$B$4,ROW(Table4[#All]),""),ROW('أصناف المبيعات'!$A3)),MATCH(B$13,Table4[#Headers],0))," ")) -> 5 | C16: =IF($B$4="","", IFERROR(INDEX(Table4[#All],SMALL(IF(Table4[#All]='كشف عميل'!$B$4,ROW(Table4[#All]),""),ROW('أصناف المبيعات'!$A3)),MATCH(C$13,Table4[#Headers],0))," ")) -> 0 | D16: =IF($B$4="","", IFERROR(INDEX(Table4[#All],SMALL(IF(Table4[#All]='كشف عميل'!$B$4,ROW(Table4[#All]),""),ROW('أصناف المبيعات'!$A3)),MATCH(D$13,Table4[#Headers],0))," ")) -> 0 | E16: =IF($B$4="","", IFERROR(INDEX(Table4[#All],SMALL(IF(Table4[#All]='كشف عميل'!$B$4,ROW(Table4[#All]),""),ROW('أصناف المبيعات'!$A3)),MATCH(E$13,Table4[#Headers],0))," ")) -> 0 | G16: =IF($B$4="","", IFERROR(INDEX(Table5[#All],SMALL(IF(Table5[#All]='كشف عميل'!$B$4,ROW(Table5[#All]),""),ROW(المبيعات!$A3)),MATCH(G$13,Table5[#Headers],0))," ")) ->  | H16: =IF($B$4="","", IFERROR(INDEX(Table5[#All],SMALL(IF(Table5[#All]='كشف عميل'!$B$4,ROW(Table5[#All]),""),ROW(المبيعات!$A3)),MATCH(H$13,Table5[#Headers],0))," ")) ->  | I16: =IF($B$4="","", IFERROR(INDEX(Table5[#All],SMALL(IF(Table5[#All]='كشف عميل'!$B$4,ROW(Table5[#All]),""),ROW(المبيعات!$A3)),MATCH(I$13,Table5[#Headers],0))," ")) ->  | J16: =IF($B$4="","", IFERROR(INDEX(Table5[#All],SMALL(IF(Table5[#All]='كشف عميل'!$B$4,ROW(Table5[#All]),""),ROW(المبيعات!$A3)),MATCH(J$13,Table5[#Headers],0))," ")) ->  | K16: =IF($B$4="","", IFERROR(INDEX(Table5[#All],SMALL(IF(Table5[#All]='كشف عميل'!$B$4,ROW(Table5[#All]),""),ROW(المبيعات!$A3)),MATCH(K$13,Table5[#Headers],0))," ")) ->  | L16: =IF($B$4="","", IFERROR(INDEX(Table5[#All],SMALL(IF(Table5[#All]='كشف عميل'!$B$4,ROW(Table5[#All]),""),ROW(المبيعات!$A3)),MATCH(L$13,Table5[#Headers],0))," ")) ->  | M16: =IF($B$4="","", IFERROR(INDEX(Table5[#All],SMALL(IF(Table5[#All]='كشف عميل'!$B$4,ROW(Table5[#All]),""),ROW(المبيعات!$A3)),MATCH(M$13,Table5[#Headers],0))," ")) ->  | O16: =IF($B$4="","", IFERROR(INDEX(table30[#All],SMALL(IF(table30[#All]='كشف عميل'!$B$4,ROW(table30[#All]),""),ROW(الصندوق!$B3)),MATCH(O$13,table30[#Headers],0))," ")) ->  | P16: =IF($B$4="","", IFERROR(INDEX(table30[#All],SMALL(IF(table30[#All]='كشف عميل'!$B$4,ROW(table30[#All]),""),ROW(الصندوق!$B3)),MATCH(P$13,table30[#Headers],0))," ")) ->  | Q16: =IF($B$4="","", IFERROR(INDEX(table30[#All],SMALL(IF(table30[#All]='كشف عميل'!$B$4,ROW(table30[#All]),""),ROW(الصندوق!$B3)),MATCH(Q$13,table30[#Headers],0))," ")) ->  | R16: =IF($B$4="","", IFERROR(INDEX(table30[#All],SMALL(IF(table30[#All]='كشف عميل'!$B$4,ROW(table30[#All]),""),ROW(الصندوق!$B3)),MATCH(R$13,table30[#Headers],0))," ")) ->  | S16: =IF($B$4="","", IFERROR(INDEX(table30[#All],SMALL(IF(table30[#All]='كشف عميل'!$B$4,ROW(table30[#All]),""),ROW(الصندوق!$B3)),MATCH(S$13,table30[#Headers],0))," ")) -> 
A17: =IF($B$4="","", IFERROR(INDEX(Table4[#All],SMALL(IF(Table4[#All]='كشف عميل'!$B$4,ROW(Table4[#All]),""),ROW('أصناف المبيعات'!$A4)),MATCH(A$13,Table4[#Headers],0))," ")) -> 2021-02-02 | B17: =IF($B$4="","", IFERROR(INDEX(Table4[#All],SMALL(IF(Table4[#All]='كشف عميل'!$B$4,ROW(Table4[#All]),""),ROW('أصناف المبيعات'!$A4)),MATCH(B$13,Table4[#Headers],0))," ")) -> 5 | C17: =IF($B$4="","", IFERROR(INDEX(Table4[#All],SMALL(IF(Table4[#All]='كشف عميل'!$B$4,ROW(Table4[#All]),""),ROW('أصناف المبيعات'!$A4)),MATCH(C$13,Table4[#Headers],0))," ")) -> 0 | D17: =IF($B$4="","", IFERROR(INDEX(Table4[#All],SMALL(IF(Table4[#All]='كشف عميل'!$B$4,ROW(Table4[#All]),""),ROW('أصناف المبيعات'!$A4)),MATCH(D$13,Table4[#Headers],0))," ")) -> 0 | E17: =IF($B$4="","", IFERROR(INDEX(Table4[#All],SMALL(IF(Table4[#All]='كشف عميل'!$B$4,ROW(Table4[#All]),""),ROW('أصناف المبيعات'!$A4)),MATCH(E$13,Table4[#Headers],0))," ")) -> 0 | G17: =IF($B$4="","", IFERROR(INDEX(Table5[#All],SMALL(IF(Table5[#All]='كشف عميل'!$B$4,ROW(Table5[#All]),""),ROW(المبيعات!$A4)),MATCH(G$13,Table5[#Headers],0))," ")) ->  | H17: =IF($B$4="","", IFERROR(INDEX(Table5[#All],SMALL(IF(Table5[#All]='كشف عميل'!$B$4,ROW(Table5[#All]),""),ROW(المبيعات!$A4)),MATCH(H$13,Table5[#Headers],0))," ")) ->  | I17: =IF($B$4="","", IFERROR(INDEX(Table5[#All],SMALL(IF(Table5[#All]='كشف عميل'!$B$4,ROW(Table5[#All]),""),ROW(المبيعات!$A4)),MATCH(I$13,Table5[#Headers],0))," ")) ->  | J17: =IF($B$4="","", IFERROR(INDEX(Table5[#All],SMALL(IF(Table5[#All]='كشف عميل'!$B$4,ROW(Table5[#All]),""),ROW(المبيعات!$A4)),MATCH(J$13,Table5[#Headers],0))," ")) ->  | K17: =IF($B$4="","", IFERROR(INDEX(Table5[#All],SMALL(IF(Table5[#All]='كشف عميل'!$B$4,ROW(Table5[#All]),""),ROW(المبيعات!$A4)),MATCH(K$13,Table5[#Headers],0))," ")) ->  | L17: =IF($B$4="","", IFERROR(INDEX(Table5[#All],SMALL(IF(Table5[#All]='كشف عميل'!$B$4,ROW(Table5[#All]),""),ROW(المبيعات!$A4)),MATCH(L$13,Table5[#Headers],0))," ")) ->  | M17: =IF($B$4="","", IFERROR(INDEX(Table5[#All],SMALL(IF(Table5[#All]='كشف عميل'!$B$4,ROW(Table5[#All]),""),ROW(المبيعات!$A4)),MATCH(M$13,Table5[#Headers],0))," ")) ->  | O17: =IF($B$4="","", IFERROR(INDEX(table30[#All],SMALL(IF(table30[#All]='كشف عميل'!$B$4,ROW(table30[#All]),""),ROW(الصندوق!$B4)),MATCH(O$13,table30[#Headers],0))," ")) ->  | P17: =IF($B$4="","", IFERROR(INDEX(table30[#All],SMALL(IF(table30[#All]='كشف عميل'!$B$4,ROW(table30[#All]),""),ROW(الصندوق!$B4)),MATCH(P$13,table30[#Headers],0))," ")) ->  | Q17: =IF($B$4="","", IFERROR(INDEX(table30[#All],SMALL(IF(table30[#All]='كشف عميل'!$B$4,ROW(table30[#All]),""),ROW(الصندوق!$B4)),MATCH(Q$13,table30[#Headers],0))," ")) ->  | R17: =IF($B$4="","", IFERROR(INDEX(table30[#All],SMALL(IF(table30[#All]='كشف عميل'!$B$4,ROW(table30[#All]),""),ROW(الصندوق!$B4)),MATCH(R$13,table30[#Headers],0))," ")) ->  | S17: =IF($B$4="","", IFERROR(INDEX(table30[#All],SMALL(IF(table30[#All]='كشف عميل'!$B$4,ROW(table30[#All]),""),ROW(الصندوق!$B4)),MATCH(S$13,table30[#Headers],0))," ")) -> 
A18: =IF($B$4="","", IFERROR(INDEX(Table4[#All],SMALL(IF(Table4[#All]='كشف عميل'!$B$4,ROW(Table4[#All]),""),ROW('أصناف المبيعات'!$A5)),MATCH(A$13,Table4[#Headers],0))," ")) -> 2021-02-02 | B18: =IF($B$4="","", IFERROR(INDEX(Table4[#All],SMALL(IF(Table4[#All]='كشف عميل'!$B$4,ROW(Table4[#All]),""),ROW('أصناف المبيعات'!$A5)),MATCH(B$13,Table4[#Headers],0))," ")) -> 5 | C18: =IF($B$4="","", IFERROR(INDEX(Table4[#All],SMALL(IF(Table4[#All]='كشف عميل'!$B$4,ROW(Table4[#All]),""),ROW('أصناف المبيعات'!$A5)),MATCH(C$13,Table4[#Headers],0))," ")) -> 0 | D18: =IF($B$4="","", IFERROR(INDEX(Table4[#All],SMALL(IF(Table4[#All]='كشف عميل'!$B$4,ROW(Table4[#All]),""),ROW('أصناف المبيعات'!$A5)),MATCH(D$13,Table4[#Headers],0))," ")) -> 0 | E18: =IF($B$4="","", IFERROR(INDEX(Table4[#All],SMALL(IF(Table4[#All]='كشف عميل'!$B$4,ROW(Table4[#All]),""),ROW('أصناف المبيعات'!$A5)),MATCH(E$13,Table4[#Headers],0))," ")) -> 0 | G18: =IF($B$4="","", IFERROR(INDEX(Table5[#All],SMALL(IF(Table5[#All]='كشف عميل'!$B$4,ROW(Table5[#All]),""),ROW(المبيعات!$A5)),MATCH(G$13,Table5[#Headers],0))," ")) ->  | H18: =IF($B$4="","", IFERROR(INDEX(Table5[#All],SMALL(IF(Table5[#All]='كشف عميل'!$B$4,ROW(Table5[#All]),""),ROW(المبيعات!$A5)),MATCH(H$13,Table5[#Headers],0))," ")) ->  | I18: =IF($B$4="","", IFERROR(INDEX(Table5[#All],SMALL(IF(Table5[#All]='كشف عميل'!$B$4,ROW(Table5[#All]),""),ROW(المبيعات!$A5)),MATCH(I$13,Table5[#Headers],0))," ")) ->  | J18: =IF($B$4="","", IFERROR(INDEX(Table5[#All],SMALL(IF(Table5[#All]='كشف عميل'!$B$4,ROW(Table5[#All]),""),ROW(المبيعات!$A5)),MATCH(J$13,Table5[#Headers],0))," ")) ->  | K18: =IF($B$4="","", IFERROR(INDEX(Table5[#All],SMALL(IF(Table5[#All]='كشف عميل'!$B$4,ROW(Table5[#All]),""),ROW(المبيعات!$A5)),MATCH(K$13,Table5[#Headers],0))," ")) ->  | L18: =IF($B$4="","", IFERROR(INDEX(Table5[#All],SMALL(IF(Table5[#All]='كشف عميل'!$B$4,ROW(Table5[#All]),""),ROW(المبيعات!$A5)),MATCH(L$13,Table5[#Headers],0))," ")) ->  | M18: =IF($B$4="","", IFERROR(INDEX(Table5[#All],SMALL(IF(Table5[#All]='كشف عميل'!$B$4,ROW(Table5[#All]),""),ROW(المبيعات!$A5)),MATCH(M$13,Table5[#Headers],0))," ")) ->  | O18: =IF($B$4="","", IFERROR(INDEX(table30[#All],SMALL(IF(table30[#All]='كشف عميل'!$B$4,ROW(table30[#All]),""),ROW(الصندوق!$B5)),MATCH(O$13,table30[#Headers],0))," ")) ->  | P18: =IF($B$4="","", IFERROR(INDEX(table30[#All],SMALL(IF(table30[#All]='كشف عميل'!$B$4,ROW(table30[#All]),""),ROW(الصندوق!$B5)),MATCH(P$13,table30[#Headers],0))," ")) ->  | Q18: =IF($B$4="","", IFERROR(INDEX(table30[#All],SMALL(IF(table30[#All]='كشف عميل'!$B$4,ROW(table30[#All]),""),ROW(الصندوق!$B5)),MATCH(Q$13,table30[#Headers],0))," ")) ->  | R18: =IF($B$4="","", IFERROR(INDEX(table30[#All],SMALL(IF(table30[#All]='كشف عميل'!$B$4,ROW(table30[#All]),""),ROW(الصندوق!$B5)),MATCH(R$13,table30[#Headers],0))," ")) ->  | S18: =IF($B$4="","", IFERROR(INDEX(table30[#All],SMALL(IF(table30[#All]='كشف عميل'!$B$4,ROW(table30[#All]),""),ROW(الصندوق!$B5)),MATCH(S$13,table30[#Headers],0))," ")) -> 
A19: =IF($B$4="","", IFERROR(INDEX(Table4[#All],SMALL(IF(Table4[#All]='كشف عميل'!$B$4,ROW(Table4[#All]),""),ROW('أصناف المبيعات'!$A6)),MATCH(A$13,Table4[#Headers],0))," ")) -> 2021-02-02 | B19: =IF($B$4="","", IFERROR(INDEX(Table4[#All],SMALL(IF(Table4[#All]='كشف عميل'!$B$4,ROW(Table4[#All]),""),ROW('أصناف المبيعات'!$A6)),MATCH(B$13,Table4[#Headers],0))," ")) -> 5 | C19: =IF($B$4="","", IFERROR(INDEX(Table4[#All],SMALL(IF(Table4[#All]='كشف عميل'!$B$4,ROW(Table4[#All]),""),ROW('أصناف المبيعات'!$A6)),MATCH(C$13,Table4[#Headers],0))," ")) -> 0 | D19: =IF($B$4="","", IFERROR(INDEX(Table4[#All],SMALL(IF(Table4[#All]='كشف عميل'!$B$4,ROW(Table4[#All]),""),ROW('أصناف المبيعات'!$A6)),MATCH(D$13,Table4[#Headers],0))," ")) -> 0 | E19: =IF($B$4="","", IFERROR(INDEX(Table4[#All],SMALL(IF(Table4[#All]='كشف عميل'!$B$4,ROW(Table4[#All]),""),ROW('أصناف المبيعات'!$A6)),MATCH(E$13,Table4[#Headers],0))," ")) -> 0 | G19: =IF($B$4="","", IFERROR(INDEX(Table5[#All],SMALL(IF(Table5[#All]='كشف عميل'!$B$4,ROW(Table5[#All]),""),ROW(المبيعات!$A6)),MATCH(G$13,Table5[#Headers],0))," ")) ->  | H19: =IF($B$4="","", IFERROR(INDEX(Table5[#All],SMALL(IF(Table5[#All]='كشف عميل'!$B$4,ROW(Table5[#All]),""),ROW(المبيعات!$A6)),MATCH(H$13,Table5[#Headers],0))," ")) ->  | I19: =IF($B$4="","", IFERROR(INDEX(Table5[#All],SMALL(IF(Table5[#All]='كشف عميل'!$B$4,ROW(Table5[#All]),""),ROW(المبيعات!$A6)),MATCH(I$13,Table5[#Headers],0))," ")) ->  | J19: =IF($B$4="","", IFERROR(INDEX(Table5[#All],SMALL(IF(Table5[#All]='كشف عميل'!$B$4,ROW(Table5[#All]),""),ROW(المبيعات!$A6)),MATCH(J$13,Table5[#Headers],0))," ")) ->  | K19: =IF($B$4="","", IFERROR(INDEX(Table5[#All],SMALL(IF(Table5[#All]='كشف عميل'!$B$4,ROW(Table5[#All]),""),ROW(المبيعات!$A6)),MATCH(K$13,Table5[#Headers],0))," ")) ->  | L19: =IF($B$4="","", IFERROR(INDEX(Table5[#All],SMALL(IF(Table5[#All]='كشف عميل'!$B$4,ROW(Table5[#All]),""),ROW(المبيعات!$A6)),MATCH(L$13,Table5[#Headers],0))," ")) ->  | M19: =IF($B$4="","", IFERROR(INDEX(Table5[#All],SMALL(IF(Table5[#All]='كشف عميل'!$B$4,ROW(Table5[#All]),""),ROW(المبيعات!$A6)),MATCH(M$13,Table5[#Headers],0))," ")) ->  | O19: =IF($B$4="","", IFERROR(INDEX(table30[#All],SMALL(IF(table30[#All]='كشف عميل'!$B$4,ROW(table30[#All]),""),ROW(الصندوق!$B6)),MATCH(O$13,table30[#Headers],0))," ")) ->  | P19: =IF($B$4="","", IFERROR(INDEX(table30[#All],SMALL(IF(table30[#All]='كشف عميل'!$B$4,ROW(table30[#All]),""),ROW(الصندوق!$B6)),MATCH(P$13,table30[#Headers],0))," ")) ->  | Q19: =IF($B$4="","", IFERROR(INDEX(table30[#All],SMALL(IF(table30[#All]='كشف عميل'!$B$4,ROW(table30[#All]),""),ROW(الصندوق!$B6)),MATCH(Q$13,table30[#Headers],0))," ")) ->  | R19: =IF($B$4="","", IFERROR(INDEX(table30[#All],SMALL(IF(table30[#All]='كشف عميل'!$B$4,ROW(table30[#All]),""),ROW(الصندوق!$B6)),MATCH(R$13,table30[#Headers],0))," ")) ->  | S19: =IF($B$4="","", IFERROR(INDEX(table30[#All],SMALL(IF(table30[#All]='كشف عميل'!$B$4,ROW(table30[#All]),""),ROW(الصندوق!$B6)),MATCH(S$13,table30[#Headers],0))," ")) -> 
A20: =IF($B$4="","", IFERROR(INDEX(Table4[#All],SMALL(IF(Table4[#All]='كشف عميل'!$B$4,ROW(Table4[#All]),""),ROW('أصناف المبيعات'!$A7)),MATCH(A$13,Table4[#Headers],0))," ")) -> 2021-02-02 | B20: =IF($B$4="","", IFERROR(INDEX(Table4[#All],SMALL(IF(Table4[#All]='كشف عميل'!$B$4,ROW(Table4[#All]),""),ROW('أصناف المبيعات'!$A7)),MATCH(B$13,Table4[#Headers],0))," ")) -> 5 | C20: =IF($B$4="","", IFERROR(INDEX(Table4[#All],SMALL(IF(Table4[#All]='كشف عميل'!$B$4,ROW(Table4[#All]),""),ROW('أصناف المبيعات'!$A7)),MATCH(C$13,Table4[#Headers],0))," ")) -> 0 | D20: =IF($B$4="","", IFERROR(INDEX(Table4[#All],SMALL(IF(Table4[#All]='كشف عميل'!$B$4,ROW(Table4[#All]),""),ROW('أصناف المبيعات'!$A7)),MATCH(D$13,Table4[#Headers],0))," ")) -> 0 | E20: =IF($B$4="","", IFERROR(INDEX(Table4[#All],SMALL(IF(Table4[#All]='كشف عميل'!$B$4,ROW(Table4[#All]),""),ROW('أصناف المبيعات'!$A7)),MATCH(E$13,Table4[#Headers],0))," ")) -> 0 | G20: =IF($B$4="","", IFERROR(INDEX(Table5[#All],SMALL(IF(Table5[#All]='كشف عميل'!$B$4,ROW(Table5[#All]),""),ROW(المبيعات!$A7)),MATCH(G$13,Table5[#Headers],0))," ")) ->  | H20: =IF($B$4="","", IFERROR(INDEX(Table5[#All],SMALL(IF(Table5[#All]='كشف عميل'!$B$4,ROW(Table5[#All]),""),ROW(المبيعات!$A7)),MATCH(H$13,Table5[#Headers],0))," ")) ->  | I20: =IF($B$4="","", IFERROR(INDEX(Table5[#All],SMALL(IF(Table5[#All]='كشف عميل'!$B$4,ROW(Table5[#All]),""),ROW(المبيعات!$A7)),MATCH(I$13,Table5[#Headers],0))," ")) ->  | J20: =IF($B$4="","", IFERROR(INDEX(Table5[#All],SMALL(IF(Table5[#All]='كشف عميل'!$B$4,ROW(Table5[#All]),""),ROW(المبيعات!$A7)),MATCH(J$13,Table5[#Headers],0))," ")) ->  | K20: =IF($B$4="","", IFERROR(INDEX(Table5[#All],SMALL(IF(Table5[#All]='كشف عميل'!$B$4,ROW(Table5[#All]),""),ROW(المبيعات!$A7)),MATCH(K$13,Table5[#Headers],0))," ")) ->  | L20: =IF($B$4="","", IFERROR(INDEX(Table5[#All],SMALL(IF(Table5[#All]='كشف عميل'!$B$4,ROW(Table5[#All]),""),ROW(المبيعات!$A7)),MATCH(L$13,Table5[#Headers],0))," ")) ->  | M20: =IF($B$4="","", IFERROR(INDEX(Table5[#All],SMALL(IF(Table5[#All]='كشف عميل'!$B$4,ROW(Table5[#All]),""),ROW(المبيعات!$A7)),MATCH(M$13,Table5[#Headers],0))," ")) ->  | O20: =IF($B$4="","", IFERROR(INDEX(table30[#All],SMALL(IF(table30[#All]='كشف عميل'!$B$4,ROW(table30[#All]),""),ROW(الصندوق!$B7)),MATCH(O$13,table30[#Headers],0))," ")) ->  | P20: =IF($B$4="","", IFERROR(INDEX(table30[#All],SMALL(IF(table30[#All]='كشف عميل'!$B$4,ROW(table30[#All]),""),ROW(الصندوق!$B7)),MATCH(P$13,table30[#Headers],0))," ")) ->  | Q20: =IF($B$4="","", IFERROR(INDEX(table30[#All],SMALL(IF(table30[#All]='كشف عميل'!$B$4,ROW(table30[#All]),""),ROW(الصندوق!$B7)),MATCH(Q$13,table30[#Headers],0))," ")) ->  | R20: =IF($B$4="","", IFERROR(INDEX(table30[#All],SMALL(IF(table30[#All]='كشف عميل'!$B$4,ROW(table30[#All]),""),ROW(الصندوق!$B7)),MATCH(R$13,table30[#Headers],0))," ")) ->  | S20: =IF($B$4="","", IFERROR(INDEX(table30[#All],SMALL(IF(table30[#All]='كشف عميل'!$B$4,ROW(table30[#All]),""),ROW(الصندوق!$B7)),MATCH(S$13,table30[#Headers],0))," ")) -> 
A21: =IF($B$4="","", IFERROR(INDEX(Table4[#All],SMALL(IF(Table4[#All]='كشف عميل'!$B$4,ROW(Table4[#All]),""),ROW('أصناف المبيعات'!$A8)),MATCH(A$13,Table4[#Headers],0))," ")) -> 2021-02-02 | B21: =IF($B$4="","", IFERROR(INDEX(Table4[#All],SMALL(IF(Table4[#All]='كشف عميل'!$B$4,ROW(Table4[#All]),""),ROW('أصناف المبيعات'!$A8)),MATCH(B$13,Table4[#Headers],0))," ")) -> 5 | C21: =IF($B$4="","", IFERROR(INDEX(Table4[#All],SMALL(IF(Table4[#All]='كشف عميل'!$B$4,ROW(Table4[#All]),""),ROW('أصناف المبيعات'!$A8)),MATCH(C$13,Table4[#Headers],0))," ")) -> 0 | D21: =IF($B$4="","", IFERROR(INDEX(Table4[#All],SMALL(IF(Table4[#All]='كشف عميل'!$B$4,ROW(Table4[#All]),""),ROW('أصناف المبيعات'!$A8)),MATCH(D$13,Table4[#Headers],0))," ")) -> 0 | E21: =IF($B$4="","", IFERROR(INDEX(Table4[#All],SMALL(IF(Table4[#All]='كشف عميل'!$B$4,ROW(Table4[#All]),""),ROW('أصناف المبيعات'!$A8)),MATCH(E$13,Table4[#Headers],0))," ")) -> 0 | G21: =IF($B$4="","", IFERROR(INDEX(Table5[#All],SMALL(IF(Table5[#All]='كشف عميل'!$B$4,ROW(Table5[#All]),""),ROW(المبيعات!$A8)),MATCH(G$13,Table5[#Headers],0))," ")) ->  | H21: =IF($B$4="","", IFERROR(INDEX(Table5[#All],SMALL(IF(Table5[#All]='كشف عميل'!$B$4,ROW(Table5[#All]),""),ROW(المبيعات!$A8)),MATCH(H$13,Table5[#Headers],0))," ")) ->  | I21: =IF($B$4="","", IFERROR(INDEX(Table5[#All],SMALL(IF(Table5[#All]='كشف عميل'!$B$4,ROW(Table5[#All]),""),ROW(المبيعات!$A8)),MATCH(I$13,Table5[#Headers],0))," ")) ->  | J21: =IF($B$4="","", IFERROR(INDEX(Table5[#All],SMALL(IF(Table5[#All]='كشف عميل'!$B$4,ROW(Table5[#All]),""),ROW(المبيعات!$A8)),MATCH(J$13,Table5[#Headers],0))," ")) ->  | K21: =IF($B$4="","", IFERROR(INDEX(Table5[#All],SMALL(IF(Table5[#All]='كشف عميل'!$B$4,ROW(Table5[#All]),""),ROW(المبيعات!$A8)),MATCH(K$13,Table5[#Headers],0))," ")) ->  | L21: =IF($B$4="","", IFERROR(INDEX(Table5[#All],SMALL(IF(Table5[#All]='كشف عميل'!$B$4,ROW(Table5[#All]),""),ROW(المبيعات!$A8)),MATCH(L$13,Table5[#Headers],0))," ")) ->  | M21: =IF($B$4="","", IFERROR(INDEX(Table5[#All],SMALL(IF(Table5[#All]='كشف عميل'!$B$4,ROW(Table5[#All]),""),ROW(المبيعات!$A8)),MATCH(M$13,Table5[#Headers],0))," ")) ->  | O21: =IF($B$4="","", IFERROR(INDEX(table30[#All],SMALL(IF(table30[#All]='كشف عميل'!$B$4,ROW(table30[#All]),""),ROW(الصندوق!$B8)),MATCH(O$13,table30[#Headers],0))," ")) ->  | P21: =IF($B$4="","", IFERROR(INDEX(table30[#All],SMALL(IF(table30[#All]='كشف عميل'!$B$4,ROW(table30[#All]),""),ROW(الصندوق!$B8)),MATCH(P$13,table30[#Headers],0))," ")) ->  | Q21: =IF($B$4="","", IFERROR(INDEX(table30[#All],SMALL(IF(table30[#All]='كشف عميل'!$B$4,ROW(table30[#All]),""),ROW(الصندوق!$B8)),MATCH(Q$13,table30[#Headers],0))," ")) ->  | R21: =IF($B$4="","", IFERROR(INDEX(table30[#All],SMALL(IF(table30[#All]='كشف عميل'!$B$4,ROW(table30[#All]),""),ROW(الصندوق!$B8)),MATCH(R$13,table30[#Headers],0))," ")) ->  | S21: =IF($B$4="","", IFERROR(INDEX(table30[#All],SMALL(IF(table30[#All]='كشف عميل'!$B$4,ROW(table30[#All]),""),ROW(الصندوق!$B8)),MATCH(S$13,table30[#Headers],0))," ")) -> 
A22: =IF($B$4="","", IFERROR(INDEX(Table4[#All],SMALL(IF(Table4[#All]='كشف عميل'!$B$4,ROW(Table4[#All]),""),ROW('أصناف المبيعات'!$A9)),MATCH(A$13,Table4[#Headers],0))," ")) -> 2021-02-02 | B22: =IF($B$4="","", IFERROR(INDEX(Table4[#All],SMALL(IF(Table4[#All]='كشف عميل'!$B$4,ROW(Table4[#All]),""),ROW('أصناف المبيعات'!$A9)),MATCH(B$13,Table4[#Headers],0))," ")) -> 5 | C22: =IF($B$4="","", IFERROR(INDEX(Table4[#All],SMALL(IF(Table4[#All]='كشف عميل'!$B$4,ROW(Table4[#All]),""),ROW('أصناف المبيعات'!$A9)),MATCH(C$13,Table4[#Headers],0))," ")) -> 0 | D22: =IF($B$4="","", IFERROR(INDEX(Table4[#All],SMALL(IF(Table4[#All]='كشف عميل'!$B$4,ROW(Table4[#All]),""),ROW('أصناف المبيعات'!$A9)),MATCH(D$13,Table4[#Headers],0))," ")) -> 0 | E22: =IF($B$4="","", IFERROR(INDEX(Table4[#All],SMALL(IF(Table4[#All]='كشف عميل'!$B$4,ROW(Table4[#All]),""),ROW('أصناف المبيعات'!$A9)),MATCH(E$13,Table4[#Headers],0))," ")) -> 0 | G22: =IF($B$4="","", IFERROR(INDEX(Table5[#All],SMALL(IF(Table5[#All]='كشف عميل'!$B$4,ROW(Table5[#All]),""),ROW(المبيعات!$A9)),MATCH(G$13,Table5[#Headers],0))," ")) ->  | H22: =IF($B$4="","", IFERROR(INDEX(Table5[#All],SMALL(IF(Table5[#All]='كشف عميل'!$B$4,ROW(Table5[#All]),""),ROW(المبيعات!$A9)),MATCH(H$13,Table5[#Headers],0))," ")) ->  | I22: =IF($B$4="","", IFERROR(INDEX(Table5[#All],SMALL(IF(Table5[#All]='كشف عميل'!$B$4,ROW(Table5[#All]),""),ROW(المبيعات!$A9)),MATCH(I$13,Table5[#Headers],0))," ")) ->  | J22: =IF($B$4="","", IFERROR(INDEX(Table5[#All],SMALL(IF(Table5[#All]='كشف عميل'!$B$4,ROW(Table5[#All]),""),ROW(المبيعات!$A9)),MATCH(J$13,Table5[#Headers],0))," ")) ->  | K22: =IF($B$4="","", IFERROR(INDEX(Table5[#All],SMALL(IF(Table5[#All]='كشف عميل'!$B$4,ROW(Table5[#All]),""),ROW(المبيعات!$A9)),MATCH(K$13,Table5[#Headers],0))," ")) ->  | L22: =IF($B$4="","", IFERROR(INDEX(Table5[#All],SMALL(IF(Table5[#All]='كشف عميل'!$B$4,ROW(Table5[#All]),""),ROW(المبيعات!$A9)),MATCH(L$13,Table5[#Headers],0))," ")) ->  | M22: =IF($B$4="","", IFERROR(INDEX(Table5[#All],SMALL(IF(Table5[#All]='كشف عميل'!$B$4,ROW(Table5[#All]),""),ROW(المبيعات!$A9)),MATCH(M$13,Table5[#Headers],0))," ")) ->  | O22: =IF($B$4="","", IFERROR(INDEX(table30[#All],SMALL(IF(table30[#All]='كشف عميل'!$B$4,ROW(table30[#All]),""),ROW(الصندوق!$B9)),MATCH(O$13,table30[#Headers],0))," ")) ->  | P22: =IF($B$4="","", IFERROR(INDEX(table30[#All],SMALL(IF(table30[#All]='كشف عميل'!$B$4,ROW(table30[#All]),""),ROW(الصندوق!$B9)),MATCH(P$13,table30[#Headers],0))," ")) ->  | Q22: =IF($B$4="","", IFERROR(INDEX(table30[#All],SMALL(IF(table30[#All]='كشف عميل'!$B$4,ROW(table30[#All]),""),ROW(الصندوق!$B9)),MATCH(Q$13,table30[#Headers],0))," ")) ->  | R22: =IF($B$4="","", IFERROR(INDEX(table30[#All],SMALL(IF(table30[#All]='كشف عميل'!$B$4,ROW(table30[#All]),""),ROW(الصندوق!$B9)),MATCH(R$13,table30[#Headers],0))," ")) ->  | S22: =IF($B$4="","", IFERROR(INDEX(table30[#All],SMALL(IF(table30[#All]='كشف عميل'!$B$4,ROW(table30[#All]),""),ROW(الصندوق!$B9)),MATCH(S$13,table30[#Headers],0))," ")) -> 
A23: =IF($B$4="","", IFERROR(INDEX(Table4[#All],SMALL(IF(Table4[#All]='كشف عميل'!$B$4,ROW(Table4[#All]),""),ROW('أصناف المبيعات'!$A10)),MATCH(A$13,Table4[#Headers],0))," ")) -> 2021-02-02 | B23: =IF($B$4="","", IFERROR(INDEX(Table4[#All],SMALL(IF(Table4[#All]='كشف عميل'!$B$4,ROW(Table4[#All]),""),ROW('أصناف المبيعات'!$A10)),MATCH(B$13,Table4[#Headers],0))," ")) -> 5 | C23: =IF($B$4="","", IFERROR(INDEX(Table4[#All],SMALL(IF(Table4[#All]='كشف عميل'!$B$4,ROW(Table4[#All]),""),ROW('أصناف المبيعات'!$A10)),MATCH(C$13,Table4[#Headers],0))," ")) -> 0 | D23: =IF($B$4="","", IFERROR(INDEX(Table4[#All],SMALL(IF(Table4[#All]='كشف عميل'!$B$4,ROW(Table4[#All]),""),ROW('أصناف المبيعات'!$A10)),MATCH(D$13,Table4[#Headers],0))," ")) -> 0 | E23: =IF($B$4="","", IFERROR(INDEX(Table4[#All],SMALL(IF(Table4[#All]='كشف عميل'!$B$4,ROW(Table4[#All]),""),ROW('أصناف المبيعات'!$A10)),MATCH(E$13,Table4[#Headers],0))," ")) -> 0 | G23: =IF($B$4="","", IFERROR(INDEX(Table5[#All],SMALL(IF(Table5[#All]='كشف عميل'!$B$4,ROW(Table5[#All]),""),ROW(المبيعات!$A10)),MATCH(G$13,Table5[#Headers],0))," ")) ->  | H23: =IF($B$4="","", IFERROR(INDEX(Table5[#All],SMALL(IF(Table5[#All]='كشف عميل'!$B$4,ROW(Table5[#All]),""),ROW(المبيعات!$A10)),MATCH(H$13,Table5[#Headers],0))," ")) ->  | I23: =IF($B$4="","", IFERROR(INDEX(Table5[#All],SMALL(IF(Table5[#All]='كشف عميل'!$B$4,ROW(Table5[#All]),""),ROW(المبيعات!$A10)),MATCH(I$13,Table5[#Headers],0))," ")) ->  | J23: =IF($B$4="","", IFERROR(INDEX(Table5[#All],SMALL(IF(Table5[#All]='كشف عميل'!$B$4,ROW(Table5[#All]),""),ROW(المبيعات!$A10)),MATCH(J$13,Table5[#Headers],0))," ")) ->  | K23: =IF($B$4="","", IFERROR(INDEX(Table5[#All],SMALL(IF(Table5[#All]='كشف عميل'!$B$4,ROW(Table5[#All]),""),ROW(المبيعات!$A10)),MATCH(K$13,Table5[#Headers],0))," ")) ->  | L23: =IF($B$4="","", IFERROR(INDEX(Table5[#All],SMALL(IF(Table5[#All]='كشف عميل'!$B$4,ROW(Table5[#All]),""),ROW(المبيعات!$A10)),MATCH(L$13,Table5[#Headers],0))," ")) ->  | M23: =IF($B$4="","", IFERROR(INDEX(Table5[#All],SMALL(IF(Table5[#All]='كشف عميل'!$B$4,ROW(Table5[#All]),""),ROW(المبيعات!$A10)),MATCH(M$13,Table5[#Headers],0))," ")) ->  | O23: =IF($B$4="","", IFERROR(INDEX(table30[#All],SMALL(IF(table30[#All]='كشف عميل'!$B$4,ROW(table30[#All]),""),ROW(الصندوق!$B10)),MATCH(O$13,table30[#Headers],0))," ")) ->  | P23: =IF($B$4="","", IFERROR(INDEX(table30[#All],SMALL(IF(table30[#All]='كشف عميل'!$B$4,ROW(table30[#All]),""),ROW(الصندوق!$B10)),MATCH(P$13,table30[#Headers],0))," ")) ->  | Q23: =IF($B$4="","", IFERROR(INDEX(table30[#All],SMALL(IF(table30[#All]='كشف عميل'!$B$4,ROW(table30[#All]),""),ROW(الصندوق!$B10)),MATCH(Q$13,table30[#Headers],0))," ")) ->  | R23: =IF($B$4="","", IFERROR(INDEX(table30[#All],SMALL(IF(table30[#All]='كشف عميل'!$B$4,ROW(table30[#All]),""),ROW(الصندوق!$B10)),MATCH(R$13,table30[#Headers],0))," ")) ->  | S23: =IF($B$4="","", IFERROR(INDEX(table30[#All],SMALL(IF(table30[#All]='كشف عميل'!$B$4,ROW(table30[#All]),""),ROW(الصندوق!$B10)),MATCH(S$13,table30[#Headers],0))," ")) -> 
A24: =IF($B$4="","", IFERROR(INDEX(Table4[#All],SMALL(IF(Table4[#All]='كشف عميل'!$B$4,ROW(Table4[#All]),""),ROW('أصناف المبيعات'!$A11)),MATCH(A$13,Table4[#Headers],0))," ")) -> 2021-02-02 | B24: =IF($B$4="","", IFERROR(INDEX(Table4[#All],SMALL(IF(Table4[#All]='كشف عميل'!$B$4,ROW(Table4[#All]),""),ROW('أصناف المبيعات'!$A11)),MATCH(B$13,Table4[#Headers],0))," ")) -> 5 | C24: =IF($B$4="","", IFERROR(INDEX(Table4[#All],SMALL(IF(Table4[#All]='كشف عميل'!$B$4,ROW(Table4[#All]),""),ROW('أصناف المبيعات'!$A11)),MATCH(C$13,Table4[#Headers],0))," ")) -> 0 | D24: =IF($B$4="","", IFERROR(INDEX(Table4[#All],SMALL(IF(Table4[#All]='كشف عميل'!$B$4,ROW(Table4[#All]),""),ROW('أصناف المبيعات'!$A11)),MATCH(D$13,Table4[#Headers],0))," ")) -> 0 | E24: =IF($B$4="","", IFERROR(INDEX(Table4[#All],SMALL(IF(Table4[#All]='كشف عميل'!$B$4,ROW(Table4[#All]),""),ROW('أصناف المبيعات'!$A11)),MATCH(E$13,Table4[#Headers],0))," ")) -> 0 | G24: =IF($B$4="","", IFERROR(INDEX(Table5[#All],SMALL(IF(Table5[#All]='كشف عميل'!$B$4,ROW(Table5[#All]),""),ROW(المبيعات!$A11)),MATCH(G$13,Table5[#Headers],0))," ")) ->  | H24: =IF($B$4="","", IFERROR(INDEX(Table5[#All],SMALL(IF(Table5[#All]='كشف عميل'!$B$4,ROW(Table5[#All]),""),ROW(المبيعات!$A11)),MATCH(H$13,Table5[#Headers],0))," ")) ->  | I24: =IF($B$4="","", IFERROR(INDEX(Table5[#All],SMALL(IF(Table5[#All]='كشف عميل'!$B$4,ROW(Table5[#All]),""),ROW(المبيعات!$A11)),MATCH(I$13,Table5[#Headers],0))," ")) ->  | J24: =IF($B$4="","", IFERROR(INDEX(Table5[#All],SMALL(IF(Table5[#All]='كشف عميل'!$B$4,ROW(Table5[#All]),""),ROW(المبيعات!$A11)),MATCH(J$13,Table5[#Headers],0))," ")) ->  | K24: =IF($B$4="","", IFERROR(INDEX(Table5[#All],SMALL(IF(Table5[#All]='كشف عميل'!$B$4,ROW(Table5[#All]),""),ROW(المبيعات!$A11)),MATCH(K$13,Table5[#Headers],0))," ")) ->  | L24: =IF($B$4="","", IFERROR(INDEX(Table5[#All],SMALL(IF(Table5[#All]='كشف عميل'!$B$4,ROW(Table5[#All]),""),ROW(المبيعات!$A11)),MATCH(L$13,Table5[#Headers],0))," ")) ->  | M24: =IF($B$4="","", IFERROR(INDEX(Table5[#All],SMALL(IF(Table5[#All]='كشف عميل'!$B$4,ROW(Table5[#All]),""),ROW(المبيعات!$A11)),MATCH(M$13,Table5[#Headers],0))," ")) ->  | O24: =IF($B$4="","", IFERROR(INDEX(table30[#All],SMALL(IF(table30[#All]='كشف عميل'!$B$4,ROW(table30[#All]),""),ROW(الصندوق!$B11)),MATCH(O$13,table30[#Headers],0))," ")) ->  | P24: =IF($B$4="","", IFERROR(INDEX(table30[#All],SMALL(IF(table30[#All]='كشف عميل'!$B$4,ROW(table30[#All]),""),ROW(الصندوق!$B11)),MATCH(P$13,table30[#Headers],0))," ")) ->  | Q24: =IF($B$4="","", IFERROR(INDEX(table30[#All],SMALL(IF(table30[#All]='كشف عميل'!$B$4,ROW(table30[#All]),""),ROW(الصندوق!$B11)),MATCH(Q$13,table30[#Headers],0))," ")) ->  | R24: =IF($B$4="","", IFERROR(INDEX(table30[#All],SMALL(IF(table30[#All]='كشف عميل'!$B$4,ROW(table30[#All]),""),ROW(الصندوق!$B11)),MATCH(R$13,table30[#Headers],0))," ")) ->  | S24: =IF($B$4="","", IFERROR(INDEX(table30[#All],SMALL(IF(table30[#All]='كشف عميل'!$B$4,ROW(table30[#All]),""),ROW(الصندوق!$B11)),MATCH(S$13,table30[#Headers],0))," ")) -> 
A25: =IF($B$4="","", IFERROR(INDEX(Table4[#All],SMALL(IF(Table4[#All]='كشف عميل'!$B$4,ROW(Table4[#All]),""),ROW('أصناف المبيعات'!$A12)),MATCH(A$13,Table4[#Headers],0))," ")) -> 2021-02-02 | B25: =IF($B$4="","", IFERROR(INDEX(Table4[#All],SMALL(IF(Table4[#All]='كشف عميل'!$B$4,ROW(Table4[#All]),""),ROW('أصناف المبيعات'!$A12)),MATCH(B$13,Table4[#Headers],0))," ")) -> 5 | C25: =IF($B$4="","", IFERROR(INDEX(Table4[#All],SMALL(IF(Table4[#All]='كشف عميل'!$B$4,ROW(Table4[#All]),""),ROW('أصناف المبيعات'!$A12)),MATCH(C$13,Table4[#Headers],0))," ")) -> 0 | D25: =IF($B$4="","", IFERROR(INDEX(Table4[#All],SMALL(IF(Table4[#All]='كشف عميل'!$B$4,ROW(Table4[#All]),""),ROW('أصناف المبيعات'!$A12)),MATCH(D$13,Table4[#Headers],0))," ")) -> 0 | E25: =IF($B$4="","", IFERROR(INDEX(Table4[#All],SMALL(IF(Table4[#All]='كشف عميل'!$B$4,ROW(Table4[#All]),""),ROW('أصناف المبيعات'!$A12)),MATCH(E$13,Table4[#Headers],0))," ")) -> 0 | G25: =IF($B$4="","", IFERROR(INDEX(Table5[#All],SMALL(IF(Table5[#All]='كشف عميل'!$B$4,ROW(Table5[#All]),""),ROW(المبيعات!$A12)),MATCH(G$13,Table5[#Headers],0))," ")) ->  | H25: =IF($B$4="","", IFERROR(INDEX(Table5[#All],SMALL(IF(Table5[#All]='كشف عميل'!$B$4,ROW(Table5[#All]),""),ROW(المبيعات!$A12)),MATCH(H$13,Table5[#Headers],0))," ")) ->  | I25: =IF($B$4="","", IFERROR(INDEX(Table5[#All],SMALL(IF(Table5[#All]='كشف عميل'!$B$4,ROW(Table5[#All]),""),ROW(المبيعات!$A12)),MATCH(I$13,Table5[#Headers],0))," ")) ->  | J25: =IF($B$4="","", IFERROR(INDEX(Table5[#All],SMALL(IF(Table5[#All]='كشف عميل'!$B$4,ROW(Table5[#All]),""),ROW(المبيعات!$A12)),MATCH(J$13,Table5[#Headers],0))," ")) ->  | K25: =IF($B$4="","", IFERROR(INDEX(Table5[#All],SMALL(IF(Table5[#All]='كشف عميل'!$B$4,ROW(Table5[#All]),""),ROW(المبيعات!$A12)),MATCH(K$13,Table5[#Headers],0))," ")) ->  | L25: =IF($B$4="","", IFERROR(INDEX(Table5[#All],SMALL(IF(Table5[#All]='كشف عميل'!$B$4,ROW(Table5[#All]),""),ROW(المبيعات!$A12)),MATCH(L$13,Table5[#Headers],0))," ")) ->  | M25: =IF($B$4="","", IFERROR(INDEX(Table5[#All],SMALL(IF(Table5[#All]='كشف عميل'!$B$4,ROW(Table5[#All]),""),ROW(المبيعات!$A12)),MATCH(M$13,Table5[#Headers],0))," ")) ->  | O25: =IF($B$4="","", IFERROR(INDEX(table30[#All],SMALL(IF(table30[#All]='كشف عميل'!$B$4,ROW(table30[#All]),""),ROW(الصندوق!$B12)),MATCH(O$13,table30[#Headers],0))," ")) ->  | P25: =IF($B$4="","", IFERROR(INDEX(table30[#All],SMALL(IF(table30[#All]='كشف عميل'!$B$4,ROW(table30[#All]),""),ROW(الصندوق!$B12)),MATCH(P$13,table30[#Headers],0))," ")) ->  | Q25: =IF($B$4="","", IFERROR(INDEX(table30[#All],SMALL(IF(table30[#All]='كشف عميل'!$B$4,ROW(table30[#All]),""),ROW(الصندوق!$B12)),MATCH(Q$13,table30[#Headers],0))," ")) ->  | R25: =IF($B$4="","", IFERROR(INDEX(table30[#All],SMALL(IF(table30[#All]='كشف عميل'!$B$4,ROW(table30[#All]),""),ROW(الصندوق!$B12)),MATCH(R$13,table30[#Headers],0))," ")) ->  | S25: =IF($B$4="","", IFERROR(INDEX(table30[#All],SMALL(IF(table30[#All]='كشف عميل'!$B$4,ROW(table30[#All]),""),ROW(الصندوق!$B12)),MATCH(S$13,table30[#Headers],0))," ")) -> 
A26: =IF($B$4="","", IFERROR(INDEX(Table4[#All],SMALL(IF(Table4[#All]='كشف عميل'!$B$4,ROW(Table4[#All]),""),ROW('أصناف المبيعات'!$A13)),MATCH(A$13,Table4[#Headers],0))," ")) -> 2021-02-02 | B26: =IF($B$4="","", IFERROR(INDEX(Table4[#All],SMALL(IF(Table4[#All]='كشف عميل'!$B$4,ROW(Table4[#All]),""),ROW('أصناف المبيعات'!$A13)),MATCH(B$13,Table4[#Headers],0))," ")) -> 5 | C26: =IF($B$4="","", IFERROR(INDEX(Table4[#All],SMALL(IF(Table4[#All]='كشف عميل'!$B$4,ROW(Table4[#All]),""),ROW('أصناف المبيعات'!$A13)),MATCH(C$13,Table4[#Headers],0))," ")) -> 0 | D26: =IF($B$4="","", IFERROR(INDEX(Table4[#All],SMALL(IF(Table4[#All]='كشف عميل'!$B$4,ROW(Table4[#All]),""),ROW('أصناف المبيعات'!$A13)),MATCH(D$13,Table4[#Headers],0))," ")) -> 0 | E26: =IF($B$4="","", IFERROR(INDEX(Table4[#All],SMALL(IF(Table4[#All]='كشف عميل'!$B$4,ROW(Table4[#All]),""),ROW('أصناف المبيعات'!$A13)),MATCH(E$13,Table4[#Headers],0))," ")) -> 0 | G26: =IF($B$4="","", IFERROR(INDEX(Table5[#All],SMALL(IF(Table5[#All]='كشف عميل'!$B$4,ROW(Table5[#All]),""),ROW(المبيعات!$A13)),MATCH(G$13,Table5[#Headers],0))," ")) ->  | H26: =IF($B$4="","", IFERROR(INDEX(Table5[#All],SMALL(IF(Table5[#All]='كشف عميل'!$B$4,ROW(Table5[#All]),""),ROW(المبيعات!$A13)),MATCH(H$13,Table5[#Headers],0))," ")) ->  | I26: =IF($B$4="","", IFERROR(INDEX(Table5[#All],SMALL(IF(Table5[#All]='كشف عميل'!$B$4,ROW(Table5[#All]),""),ROW(المبيعات!$A13)),MATCH(I$13,Table5[#Headers],0))," ")) ->  | J26: =IF($B$4="","", IFERROR(INDEX(Table5[#All],SMALL(IF(Table5[#All]='كشف عميل'!$B$4,ROW(Table5[#All]),""),ROW(المبيعات!$A13)),MATCH(J$13,Table5[#Headers],0))," ")) ->  | K26: =IF($B$4="","", IFERROR(INDEX(Table5[#All],SMALL(IF(Table5[#All]='كشف عميل'!$B$4,ROW(Table5[#All]),""),ROW(المبيعات!$A13)),MATCH(K$13,Table5[#Headers],0))," ")) ->  | L26: =IF($B$4="","", IFERROR(INDEX(Table5[#All],SMALL(IF(Table5[#All]='كشف عميل'!$B$4,ROW(Table5[#All]),""),ROW(المبيعات!$A13)),MATCH(L$13,Table5[#Headers],0))," ")) ->  | M26: =IF($B$4="","", IFERROR(INDEX(Table5[#All],SMALL(IF(Table5[#All]='كشف عميل'!$B$4,ROW(Table5[#All]),""),ROW(المبيعات!$A13)),MATCH(M$13,Table5[#Headers],0))," ")) ->  | O26: =IF($B$4="","", IFERROR(INDEX(table30[#All],SMALL(IF(table30[#All]='كشف عميل'!$B$4,ROW(table30[#All]),""),ROW(الصندوق!$B13)),MATCH(O$13,table30[#Headers],0))," ")) ->  | P26: =IF($B$4="","", IFERROR(INDEX(table30[#All],SMALL(IF(table30[#All]='كشف عميل'!$B$4,ROW(table30[#All]),""),ROW(الصندوق!$B13)),MATCH(P$13,table30[#Headers],0))," ")) ->  | Q26: =IF($B$4="","", IFERROR(INDEX(table30[#All],SMALL(IF(table30[#All]='كشف عميل'!$B$4,ROW(table30[#All]),""),ROW(الصندوق!$B13)),MATCH(Q$13,table30[#Headers],0))," ")) ->  | R26: =IF($B$4="","", IFERROR(INDEX(table30[#All],SMALL(IF(table30[#All]='كشف عميل'!$B$4,ROW(table30[#All]),""),ROW(الصندوق!$B13)),MATCH(R$13,table30[#Headers],0))," ")) ->  | S26: =IF($B$4="","", IFERROR(INDEX(table30[#All],SMALL(IF(table30[#All]='كشف عميل'!$B$4,ROW(table30[#All]),""),ROW(الصندوق!$B13)),MATCH(S$13,table30[#Headers],0))," ")) -> 
A27: =IF($B$4="","", IFERROR(INDEX(Table4[#All],SMALL(IF(Table4[#All]='كشف عميل'!$B$4,ROW(Table4[#All]),""),ROW('أصناف المبيعات'!$A14)),MATCH(A$13,Table4[#Headers],0))," ")) -> 2021-02-02 | B27: =IF($B$4="","", IFERROR(INDEX(Table4[#All],SMALL(IF(Table4[#All]='كشف عميل'!$B$4,ROW(Table4[#All]),""),ROW('أصناف المبيعات'!$A14)),MATCH(B$13,Table4[#Headers],0))," ")) -> 5 | C27: =IF($B$4="","", IFERROR(INDEX(Table4[#All],SMALL(IF(Table4[#All]='كشف عميل'!$B$4,ROW(Table4[#All]),""),ROW('أصناف المبيعات'!$A14)),MATCH(C$13,Table4[#Headers],0))," ")) -> 0 | D27: =IF($B$4="","", IFERROR(INDEX(Table4[#All],SMALL(IF(Table4[#All]='كشف عميل'!$B$4,ROW(Table4[#All]),""),ROW('أصناف المبيعات'!$A14)),MATCH(D$13,Table4[#Headers],0))," ")) -> 0 | E27: =IF($B$4="","", IFERROR(INDEX(Table4[#All],SMALL(IF(Table4[#All]='كشف عميل'!$B$4,ROW(Table4[#All]),""),ROW('أصناف المبيعات'!$A14)),MATCH(E$13,Table4[#Headers],0))," ")) -> 0 | G27: =IF($B$4="","", IFERROR(INDEX(Table5[#All],SMALL(IF(Table5[#All]='كشف عميل'!$B$4,ROW(Table5[#All]),""),ROW(المبيعات!$A14)),MATCH(G$13,Table5[#Headers],0))," ")) ->  | H27: =IF($B$4="","", IFERROR(INDEX(Table5[#All],SMALL(IF(Table5[#All]='كشف عميل'!$B$4,ROW(Table5[#All]),""),ROW(المبيعات!$A14)),MATCH(H$13,Table5[#Headers],0))," ")) ->  | I27: =IF($B$4="","", IFERROR(INDEX(Table5[#All],SMALL(IF(Table5[#All]='كشف عميل'!$B$4,ROW(Table5[#All]),""),ROW(المبيعات!$A14)),MATCH(I$13,Table5[#Headers],0))," ")) ->  | J27: =IF($B$4="","", IFERROR(INDEX(Table5[#All],SMALL(IF(Table5[#All]='كشف عميل'!$B$4,ROW(Table5[#All]),""),ROW(المبيعات!$A14)),MATCH(J$13,Table5[#Headers],0))," ")) ->  | K27: =IF($B$4="","", IFERROR(INDEX(Table5[#All],SMALL(IF(Table5[#All]='كشف عميل'!$B$4,ROW(Table5[#All]),""),ROW(المبيعات!$A14)),MATCH(K$13,Table5[#Headers],0))," ")) ->  | L27: =IF($B$4="","", IFERROR(INDEX(Table5[#All],SMALL(IF(Table5[#All]='كشف عميل'!$B$4,ROW(Table5[#All]),""),ROW(المبيعات!$A14)),MATCH(L$13,Table5[#Headers],0))," ")) ->  | M27: =IF($B$4="","", IFERROR(INDEX(Table5[#All],SMALL(IF(Table5[#All]='كشف عميل'!$B$4,ROW(Table5[#All]),""),ROW(المبيعات!$A14)),MATCH(M$13,Table5[#Headers],0))," ")) ->  | O27: =IF($B$4="","", IFERROR(INDEX(table30[#All],SMALL(IF(table30[#All]='كشف عميل'!$B$4,ROW(table30[#All]),""),ROW(الصندوق!$B14)),MATCH(O$13,table30[#Headers],0))," ")) ->  | P27: =IF($B$4="","", IFERROR(INDEX(table30[#All],SMALL(IF(table30[#All]='كشف عميل'!$B$4,ROW(table30[#All]),""),ROW(الصندوق!$B14)),MATCH(P$13,table30[#Headers],0))," ")) ->  | Q27: =IF($B$4="","", IFERROR(INDEX(table30[#All],SMALL(IF(table30[#All]='كشف عميل'!$B$4,ROW(table30[#All]),""),ROW(الصندوق!$B14)),MATCH(Q$13,table30[#Headers],0))," ")) ->  | R27: =IF($B$4="","", IFERROR(INDEX(table30[#All],SMALL(IF(table30[#All]='كشف عميل'!$B$4,ROW(table30[#All]),""),ROW(الصندوق!$B14)),MATCH(R$13,table30[#Headers],0))," ")) ->  | S27: =IF($B$4="","", IFERROR(INDEX(table30[#All],SMALL(IF(table30[#All]='كشف عميل'!$B$4,ROW(table30[#All]),""),ROW(الصندوق!$B14)),MATCH(S$13,table30[#Headers],0))," ")) -> 
